Workbook

Sheet Control Panel
A1: GO TO
A2: Utah | C2: FILING INFORMATION | J2: Model Checks
A3: 1.1 | J3: (Must Be 0)
A4: 1.2 | E4: UTAH | J4: ='Model Checks'!D7 -> 1.19950451
A5: 1.3 pg 1 | D5: Current Case No. | E5: 15-057-11 | J5: (If this is not 0, or very close, go to
A6: 1.3 pg 2 | D6: Filing Date | E6: 2015-09-02 | J6: the "Model Checks"
D7: Test Year Ending | E7: 2016-09-30 | J7: Tab and find the
A8: 1.4 pg 1 | D8: Proposed Effective Date | E8: 2015-10-01 | J8: problem.)
A9: 1.4 pg 2 | D9: Prior Case No. | E9: 15-057-04
A10: 1.4 pg 3 | J10: Go To
A11: 1.5 | C11: Total Increase (Decrease) | E11: ='Utah Summary-by class'!Q24 -> -17624592.15 | G11: =E11-F11 -> -17624592.15 | J11: Model Checks'
A12: 1.6 pg 1
A13: 1.6 pg 2
A14: 1.6 pg 3 | C14: Typical Customer's Bill | J14: Old Ut Data color
A15: 1.7 pg 1
A16: 1.7 pg 2 | D16: Previous | E16: ='Ut 1.7'!F30 -> 705.59 | J16: New Data color
A17: 1.8 | D17: Proposed | E17: ='Ut 1.7'!H30 -> 692.65
A18: 1.9 | D18: Difference | E18: ='Ut 1.7'!J30 -> -12.94 | G18: =E18-F18 -> -12.94
A19: Monthly Inputs | D19: % Difference | E19: ='Ut 1.7'!J32 -> -1.83 | G19: =E19-F19 -> -1.83
A20: Other Inputs
A21: Expenses
A22: Rate Base
C29: Exhibit Headings
C31: UTAH
E32: Questar Gas Company
E33: ="Docket No. "&E5 -> Docket No. 15-057-11
C36: Test Year (enter as text)
D37: from | E37: Oct-15
D38: to | E38: Sept-16

Sheet Monthly Inputs
A1: MONTHLY INPUTS | E1: Col. E-F, copy from col. J-K (or appropriate columns), rows 3 through 81, before updating test year
G2: TEST YEAR COLUMNS | S2: 12-Month
E3: Aug15 | F3: Sep15 | G3: Oct15 | H3: Nov15 | I3: Dec15 | J3: Jan16 | K3: Feb16 | L3: Mar16 | M3: Apr16 | N3: May16 | O3: Jun16 | P3: Jul16 | Q3: Aug16 | R3: Sep16 | S3: =R3 -> Sep16
E4: 8 | F4: 9 | G4: 10 | H4: 11 | I4: 12 | J4: 1 | K4: 2 | L4: 3 | M4: 4 | N4: 5 | O4: 6 | P4: 7 | Q4: 8 | R4: 9
A5: QGC Company Produced Gas In MDth | I5: Updated: | J5: 2015-08-13
A6: WEXPRO I
B7: Company Production In Dth | E7: 5404037 | F7: 5227300 | G7: 5348457 | H7: 5207312 | I7: 5281689 | J7: 5186216 | K7: 4772956 | L7: 5023592 | M7: 4905372 | N7: 5015083 | O7: 4808811 | P7: 4960387 | Q7: 4887224 | R7: 4736953 | S7: =SUM(G7:R7) -> 60134052
B8: Birch Cr Gathering | E8: =E7/$S$7*$S$8 -> 0 | F8: 0 | G8: =G7/$S$7*$S$8 -> 0 | H8: =H7/$S$7*$S$8 -> 0 | I8: =I7/$S$7*$S$8 -> 0 | J8: 0 | K8: 0 | L8: 0 | M8: 0 | N8: 0 | O8: 0 | P8: 0 | Q8: 0 | R8: =R7/$S$7*$S$8 -> 0 | S8: ='Other Inputs'!$D$160 -> 0
B9: QGM Gathering | E9: =E7/$S$7*$S$9 -> 3434027.672 | F9: =F7/$S$7*$S$9 -> 3321719.087 | G9: =G7/$S$7*$S$9 -> 3398709.028 | H9: =H7/$S$7*$S$9 -> 3309017.593 | I9: 3356280.903 | J9: 3295612.013 | K9: 3033003.471 | L9: 3192271.618 | M9: 3117148.011 | N9: 3186864.523 | O9: 3055787.746 | P9: 3152107.623 | Q9: 3105615.756 | R9: =R7/$S$7*$S$9 -> 3010125.149 | S9: ='Other Inputs'!$D$174 -> 38212543.43
A12: WEXPRO II
B13: Company Production In Dth | E13: 313512 | F13: 299978 | G13: 300840 | H13: 403190 | I13: 412200 | J13: 407900 | K13: 377660 | L13: 399640 | M13: 382910 | N13: 391810 | O13: 375150 | P13: 384000 | Q13: 195240 | R13: 340510 | S13: =SUM(G13:R13) -> 4371050
B14: Samson Gathering | E14: =E13/$S$13*$S$14 -> 313512 | F14: =F13/$S$13*$S$14 -> 299978 | G14: =G13/$S$13*$S$14 -> 300840 | H14: =H13/$S$13*$S$14 -> 403190 | I14: 412200 | J14: 407900 | K14: 377660 | L14: 399640 | M14: 382910 | N14: 391810 | O14: 375150 | P14: 384000 | Q14: 195240 | R14: =R13/$S$13*$S$14 -> 340510 | S14: ='Other Inputs'!D177 -> 4371050
D21: 1000
B23: Injections in Dth
C24: Chalk Creek | E24: 0 | F24: 0 | G24: 0 | H24: 146489 | I24: 0 | J24: 0 | K24: 0 | L24: 0 | M24: 0 | N24: 0 | O24: 0 | P24: 0 | Q24: 0 | R24: 0 | S24: =SUM(G24:R24) -> 146489
C25: Clay Basin | E25: 2293680 | F25: 1999920 | G25: 1889585 | H25: 1651590 | I25: 0 | J25: 0 | K25: 0 | L25: 0 | M25: 871415 | N25: 1062862 | O25: 1353316 | P25: 1940107 | Q25: 1786632 | R25: 1138451 | S25: =SUM(G25:R25) -> 11693958
C26: Coalville | E26: 0 | F26: 0 | G26: 138085 | H26: 247750 | I26: 14434 | J26: 0 | K26: 0 | L26: 0 | M26: 0 | N26: 0 | O26: 0 | P26: 0 | Q26: 0 | R26: 0 | S26: =SUM(G26:R26) -> 400269
C27: Leroy | E27: 0 | F27: 0 | G27: 441212 | H27: 0 | I27: 0 | J27: 0 | K27: 0 | L27: 0 | M27: 0 | N27: 0 | O27: 0 | P27: 0 | Q27: 0 | R27: 0 | S27: 441212
C28: Ryckman | E28: 370410 | F28: 358462 | G28: 635897 | H28: 0 | I28: 0 | J28: 0 | K28: 0 | L28: 11358 | M28: 358462 | N28: 370410 | O28: 49565 | P28: 370410 | Q28: 370410 | R28: 59744 | S28: 2226256
C29: Total Injections | E29: =SUM(E24:E28) -> 2664090 | F29: 2358382 | G29: =SUM(G24:G28) -> 3104779 | H29: 2045829 | I29: 14434 | J29: 0 | K29: 0 | L29: 11358 | M29: 1229877 | N29: 1433272 | O29: 1402881 | P29: 2310517 | Q29: 2157042 | R29: 1198195 | S29: 14908184
B31: Withdrawls In Dth
C32: Chalk Creek | E32: 0 | F32: 0 | G32: 0 | H32: 0 | I32: 0 | J32: 146314 | K32: 0 | L32: 0 | M32: 0 | N32: 0 | O32: 0 | P32: 0 | Q32: 0 | R32: 0 | S32: =SUM(G32:R32) -> 146314
C33: Clay Basin | E33: 0 | F33: 0 | G33: 0 | H33: 0 | I33: 3469875 | J33: 5393116 | K33: 3302102 | L33: 0 | M33: 0 | N33: 0 | O33: 0 | P33: 76036 | Q33: 0 | R33: 0 | S33: =SUM(G33:R33) -> 12241129
C34: Coalville | E34: 0 | F34: 0 | G34: 0 | H34: 0 | I34: 140250 | J34: 0 | K34: 0 | L34: 0 | M34: 0 | N34: 0 | O34: 0 | P34: 0 | Q34: 0 | R34: 0 | S34: 140250
C35: Leroy | E35: 0 | F35: 0 | G35: 0 | H35: 0 | I35: 0 | J35: 0 | K35: 0 | L35: 0 | M35: 0 | N35: 0 | O35: 0 | P35: 0 | Q35: 0 | R35: 0 | S35: 0
C36: Ryckman | E36: 0 | F36: 0 | G36: 0 | H36: 0 | I36: 514600 | J36: 514600 | K36: 481400 | L36: 0 | M36: 0 | N36: 0 | O36: 0 | P36: 0 | Q36: 0 | R36: 0 | S36: 1510600
C37: Total Withdrawls | E37: =SUM(E32:E36) -> 0 | F37: 0 | G37: =SUM(G32:G36) -> 0 | H37: 0 | I37: 4124725 | J37: 6054030 | K37: 3783502 | L37: 0 | M37: 0 | N37: 0 | O37: 0 | P37: 76036 | Q37: 0 | R37: 0 | S37: 14038293
B39: Lost & Unaccounted for on QPC
A42: Injection and Withdrawl Used, Lost and Unaccounted For
D43: Gas Use
D44: %
B45: Injections in Dth
C46: Chalk Creek | D46: ='Other Inputs'!E135 -> 0.019 | E46: =E24*-$D46 -> 0 | F46: =F24*-$D46 -> 0 | G46: =G24*-$D46 -> 0 | H46: =H24*-$D46 -> -2783.291 | I46: =I24*-$D46 -> 0 | J46: =J24*-$D46 -> 0 | K46: 0 | L46: 0 | M46: 0 | N46: 0 | O46: 0 | P46: 0 | Q46: 0 | R46: 0 | S46: =SUM(G46:R46) -> -2783.291
C47: Clay Basin | D47: ='Other Inputs'!E144 -> 0.025 | E47: =E25*-$D47 -> -57342 | F47: =F25*-$D47 -> -49998 | G47: =G25*-$D47 -> -47239.625 | H47: =H25*-$D47 -> -41289.75 | I47: =I25*-$D47 -> 0 | J47: =J25*-$D47 -> 0 | K47: 0 | L47: 0 | M47: -21785.375 | N47: =N25*-$D47 -> -26571.55 | O47: -33832.9 | P47: -48502.675 | Q47: -44665.8 | R47: -28461.275 | S47: =SUM(G47:R47) -> -292348.95
C48: Coalville | D48: ='Other Inputs'!E147 -> 0.0101 | E48: =E26*-$D48 -> 0 | F48: 0 | G48: =G26*-$D48 -> -1394.6585 | H48: -2502.275 | I48: -145.7834 | J48: 0 | K48: 0 | L48: 0 | M48: 0 | N48: 0 | O48: 0 | P48: 0 | Q48: 0 | R48: 0 | S48: =SUM(G48:R48) -> -4042.7169
C49: Leroy | D49: ='Other Inputs'!E141 -> 0.0302 | E49: =E27*-$D49 -> 0 | F49: 0 | G49: =G27*-$D49 -> -13324.6024 | H49: 0 | I49: 0 | J49: 0 | K49: 0 | L49: 0 | M49: 0 | N49: 0 | O49: 0 | P49: 0 | Q49: 0 | R49: 0 | S49: =SUM(G49:R49) -> -13324.6024
C50: Ryckman | D50: ='Other Inputs'!E138 -> 0.025 | E50: =E28*-$D50 -> -9260.25 | F50: -8961.55 | G50: -15897.425 | H50: 0 | I50: 0 | J50: 0 | K50: 0 | L50: -283.95 | M50: -8961.55 | N50: -9260.25 | O50: -1239.125 | P50: -9260.25 | Q50: -9260.25 | R50: -1493.6 | S50: =SUM(G50:R50) -> -55656.4
C51: Total Injections | E51: =SUM(E46:E50) -> -66602.25 | F51: -58959.55 | G51: =SUM(G46:G50) -> -77856.3109 | H51: -46575.316 | I51: -145.7834 | J51: 0 | K51: 0 | L51: -283.95 | M51: -30746.925 | N51: -35831.8 | O51: -35072.025 | P51: -57762.925 | Q51: -53926.05 | R51: -29954.875 | S51: =SUM(S46:S50) -> -368155.9603
B53: Withdrawls In Dth
C54: Chalk Creek | D54: ='Other Inputs'!E136 -> 0.0178 | E54: =E32*-$D54 -> 0 | F54: 0 | G54: =G32*-$D54 -> 0 | H54: 0 | I54: 0 | J54: -2604.3892 | K54: 0 | L54: 0 | M54: 0 | N54: 0 | O54: 0 | P54: 0 | Q54: 0 | R54: 0 | S54: =SUM(G54:R54) -> -2604.3892
C55: Clay Basin | D55: ='Other Inputs'!E145 -> 0.0151 | E55: =E33*-$D55 -> 0 | F55: 0 | G55: =G33*-$D55 -> 0 | H55: 0 | I55: -52395.1125 | J55: -81436.0516 | K55: -49861.7402 | L55: 0 | M55: 0 | N55: 0 | O55: 0 | P55: -1148.1436 | Q55: 0 | R55: 0 | S55: =SUM(G55:R55) -> -184841.0479
C56: Coalville | D56: ='Other Inputs'!E148 -> 0.0134 | E56: =E34*-$D56 -> 0 | F56: 0 | G56: =G34*-$D56 -> 0 | H56: 0 | I56: -1879.35 | J56: 0 | K56: =K34*-$D56 -> 0 | L56: 0 | M56: 0 | N56: 0 | O56: 0 | P56: 0 | Q56: 0 | R56: 0 | S56: =SUM(G56:R56) -> -1879.35
C57: Leroy | D57: ='Other Inputs'!E142 -> 0.0113 | E57: =E35*-$D57 -> 0 | F57: 0 | G57: =G35*-$D57 -> 0 | H57: 0 | I57: 0 | J57: 0 | K57: 0 | L57: 0 | M57: 0 | N57: 0 | O57: 0 | P57: 0 | Q57: 0 | R57: 0 | S57: =SUM(G57:R57) -> 0
C58: Ryckman | D58: ='Other Inputs'!E139 -> 0 | E58: =E36*-$D58 -> 0 | F58: 0 | G58: 0 | H58: 0 | I58: 0 | J58: 0 | K58: 0 | L58: 0 | M58: 0 | N58: =N36*-$D58 -> 0 | O58: 0 | P58: 0 | Q58: 0 | R58: 0 | S58: =SUM(G58:R58) -> 0
C59: Total Withdrawls | E59: =SUM(E54:E58) -> 0 | F59: 0 | G59: =SUM(G54:G58) -> 0 | H59: 0 | I59: -54274.4625 | J59: -84040.4408 | K59: =SUM(K54:K58) -> -49861.7402 | L59: 0 | M59: 0 | N59: 0 | O59: 0 | P59: -1148.1436 | Q59: 0 | R59: 0 | S59: =SUM(S54:S58) -> -189324.7871
B61: QPC Transportation Loss
C62: Chalk Creek | D62: ='Other Inputs'!$E$286 -> 0.0186 | E62: =E32*-$D62 -> 0 | F62: 0 | G62: =G32*-$D62 -> 0 | H62: 0 | I62: 0 | J62: -2721.4404 | K62: 0 | L62: 0 | M62: 0 | N62: 0 | O62: 0 | P62: 0 | Q62: 0 | R62: 0 | S62: =SUM(G62:R62) -> -2721.4404
C63: Clay Basin | D63: ='Other Inputs'!$E$286 -> 0.0186 | E63: =E33*-$D63 -> 0 | F63: 0 | G63: =G33*-$D63 -> 0 | H63: 0 | I63: -64539.675 | J63: -100311.9576 | K63: -61419.0972 | L63: 0 | M63: 0 | N63: 0 | O63: 0 | P63: -1414.2696 | Q63: 0 | R63: 0 | S63: =SUM(G63:R63) -> -227684.9994
C64: Coalville | D64: ='Other Inputs'!$E$286 -> 0.0186 | E64: =E34*-$D64 -> 0 | F64: 0 | G64: =G34*-$D64 -> 0 | H64: 0 | I64: -2608.65 | J64: 0 | K64: 0 | L64: 0 | M64: 0 | N64: 0 | O64: 0 | P64: 0 | Q64: 0 | R64: 0 | S64: =SUM(G64:R64) -> -2608.65
C65: Leroy | D65: ='Other Inputs'!$E$286 -> 0.0186 | E65: =E35*-$D65 -> 0 | F65: 0 | G65: =G35*-$D65 -> 0 | H65: 0 | I65: 0 | J65: 0 | K65: 0 | L65: 0 | M65: 0 | N65: 0 | O65: 0 | P65: 0 | Q65: 0 | R65: 0 | S65: =SUM(G65:R65) -> 0
C66: Ryckman | D66: ='Other Inputs'!$E$286 -> 0.0186 | E66: =E36*-$D66 -> 0 | F66: 0 | G66: 0 | H66: 0 | I66: -9571.56 | J66: -9571.56 | K66: -8954.04 | L66: 0 | M66: 0 | N66: =N36*-$D66 -> 0 | O66: 0 | P66: 0 | Q66: 0 | R66: 0 | S66: =SUM(G66:R66) -> -28097.16
C67: Total Withdrawls | E67: =SUM(E62:E66) -> 0 | F67: 0 | G67: =SUM(G62:G66) -> 0 | H67: 0 | I67: -76719.885 | J67: -112604.958 | K67: -70373.1372 | L67: 0 | M67: 0 | N67: 0 | O67: 0 | P67: -1414.2696 | Q67: 0 | R67: 0 | S67: -261112.2498
B70: Total Injections & Withdrawls | E70: =E51+E59 -> -66602.25 | F70: =F51+F59 -> -58959.55 | G70: =G51+G59 -> -77856.3109 | H70: =H51+H59 -> -46575.316 | I70: =I51+I59 -> -54420.2459 | J70: -84040.4408 | K70: =K51+K59 -> -49861.7402 | L70: -283.95 | M70: -30746.925 | N70: -35831.8 | O70: -35072.025 | P70: -58911.0686 | Q70: -53926.05 | R70: -29954.875 | S70: =S51+S59 -> -557480.7474
R72: Fuel Factor | S72: =-S70/(S37+S29) -> 0.01925901889
S74: 12-Month
E75: Aug15 | F75: Sep15 | G75: =G3 -> Oct15 | H75: =H3 -> Nov15 | I75: Dec15 | J75: Jan16 | K75: Feb16 | L75: Mar16 | M75: Apr16 | N75: May16 | O75: Jun16 | P75: Jul16 | Q75: Aug16 | R75: Sep16 | S75: Total
I77: Updated: | J77: 2015-08-13 | K77: EXH 1.2
A78: Natural Gas Spot Price Forecast - Average of GI, Cera & Pira | E78: (Forecast --->) | G78: (Forecast --->)
B79: Kern River Opal, Wyoming | E79: 2.71 | F79: =TRANSPOSE('Graph (Ex 1.10) Inputs'!F2:F14) -> 2.56 | G79: 2.59 | H79: 2.59 | I79: 2.75 | J79: 2.81 | K79: 2.72 | L79: 2.63 | M79: 2.56 | N79: 2.62 | O79: 2.74 | P79: 2.86 | Q79: 2.92 | R79: 2.92
B82: Spot Purchases from IRP | G82: 4206.09 | H82: 6765.51 | I82: =5053-3697.2 -> 1355.8 | J82: =5206.09-3999 -> 1207.09 | K82: =5118.16-3062 -> 2056.16 | L82: 6692.78 | M82: =6913.88-1377.1 -> 5536.78 | N82: =2661.88-1153 -> 1508.88 | O82: 126.297 | P82: 0 | Q82: 69.034 | R82: 141.875 | S82: =SUM(G82:R82) -> 29666.296
C83: In DTH | G83: =G82*1000 -> 4206090 | H83: =H82*1000 -> 6765510 | I83: 1355800 | J83: 1207090 | K83: 2056160 | L83: =L82*1000 -> 6692780 | M83: =M82*1000 -> 5536780 | N83: 1508880 | O83: 126297 | P83: 0 | Q83: 69034 | R83: 141875 | S83: =SUM(G83:R83) -> 29666296
C84: In $ | G84: =G83*G79 -> 10893773.1 | H84: 17522670.9 | I84: 3728450 | J84: 3391922.9 | K84: =K83*K79 -> 5592755.2 | L84: 17602011.4 | M84: 14174156.8 | N84: 3953265.6 | O84: 346053.78 | P84: 0 | Q84: 201579.28 | R84: 414275 | S84: =SUM(G84:R84) -> 77820913.96
A87: CONTRACT PURCHASES | I87: Updated: | J87: 2015-08-13
B89: Peaking Purchases (DTH) | G89: 0 | H89: 1000000 | I89: 4000000 | J89: 5000000 | K89: 4000000 | L89: 0 | M89: 0 | N89: 0 | O89: 0 | P89: 0 | Q89: 0 | R89: 0 | S89: =SUM(G89:R89) -> 14000000
B90: Peaking Purchases ($) | G90: 0 | H90: 2754738.14 | I90: 11644892.79 | J90: 14868820.43 | K90: 11515504.97 | L90: 0 | M90: 0 | N90: 0 | O90: 0 | P90: 0 | Q90: 0 | R90: 0 | S90: =SUM(G90:R90) -> 40783956.32
B92: Term Purchases (DTH) | G92: 0 | H92: 900000 | I92: 3100000 | J92: 3100000 | K92: 2900000 | L92: 930000 | M92: 0 | N92: 0 | O92: 0 | P92: 0 | Q92: 0 | R92: 0 | S92: =SUM(G92:R92) -> 10930000
B93: Term Purchases ($) | G93: 0 | H93: 2539890 | I93: 8719928 | J93: 8905928 | K93: 8070352 | L93: 2661753 | M93: 0 | N93: 0 | O93: 0 | P93: 0 | Q93: 0 | R93: 0 | S93: =SUM(G93:R93) -> 30897851
B94: Stabilization Costs (Winter Months - Oct to Mar) | G94: 0 | H94: 0 | I94: 0 | J94: 0 | K94: 0 | L94: 0 | M94: 0 | N94: 0 | O94: 0 | P94: 0 | Q94: 0 | R94: 0 | S94: =SUM(G94:R94) -> 0
B97: Total Purchases (DTH) | E97: =E89+E92 -> 0 | F97: =F89+F92 -> 0 | G97: =G89+G92 -> 0 | H97: =H89+H92 -> 1900000 | I97: 7100000 | J97: 8100000 | K97: 6900000 | L97: =L89+L92 -> 930000 | M97: 0 | N97: 0 | O97: 0 | P97: 0 | Q97: 0 | R97: 0 | S97: =SUM(G97:R97) -> 24930000
B98: Total Purchases ($) | E98: =E90+E93 -> 0 | F98: =F90+F93 -> 0 | G98: 0 | H98: 5294628.14 | I98: 20364820.79 | J98: 23774748.43 | K98: 19585856.97 | L98: =L90+L93 -> 2661753 | M98: 0 | N98: 0 | O98: 0 | P98: 0 | Q98: 0 | R98: 0 | S98: =SUM(G98:R98) -> 71681807.33
A101: Typical Customer Monthly Usage in Dth
B102: Utah | G102: =VLOOKUP(MONTH(G3),$F$116:$G$127,2,FALSE) -> 3.1 | H102: =VLOOKUP(MONTH(H3),$F$116:$G$127,2,FALSE) -> 6.3 | I102: =VLOOKUP(MONTH(I3),$F$116:$G$127,2,FALSE) -> 11.5 | J102: 14.9 | K102: 12.5 | L102: 10.1 | M102: 8.3 | N102: 4.4 | O102: 3.1 | P102: 2 | Q102: 1.8 | R102: 2 | S102: =SUM(G102:R102) -> 80
B103: Wyoming | G103: =VLOOKUP(MONTH(G3),$F$116:$H$127,3,FALSE) -> 4.1 | H103: =VLOOKUP(MONTH(H3),$F$116:$H$127,3,FALSE) -> 8 | I103: =VLOOKUP(MONTH(I3),$F$116:$H$127,3,FALSE) -> 12.3 | J103: 14.7 | K103: 14.1 | L103: 11.8 | M103: 9.4 | N103: 5.8 | O103: 3.7 | P103: 2.3 | Q103: 1.7 | R103: 2.1 | S103: =SUM(G103:R103) -> 90
A105: INPUTS FROM WEXPRO | G105: =G3 -> Oct15 | H105: =H3 -> Nov15 | I105: Dec15 | J105: Jan16 | K105: Feb16 | L105: Mar16 | M105: Apr16 | N105: May16 | O105: Jun16 | P105: =P3 -> Jul16 | Q105: Aug16 | R105: Sep16 | S105: 12-Month
S106: Total
A107: Wexpro I Operator Fee (Wexpro forecast) | G107: 24249216 | H107: 23494007 | I107: 23506368 | J107: 23355506 | K107: 22612179 | L107: 22796390 | M107: 22260157 | N107: 22299533 | O107: 21950805 | P107: 22056006 | Q107: 21909451 | R107: 21490226 | S107: =SUM(G107:R107) -> 271979844
A109: Wexpro II Operator Fee (Wexpro forecast) | G109: 1948595 | H109: 2173876 | I109: 2194690 | J109: 2182903 | K109: 2101186 | L109: 2137679 | M109: 2082571 | N109: 2096951 | O109: 2057869 | P109: 2078193 | Q109: 2063168 | R109: 2017875 | S109: =SUM(G109:R109) -> 25135556
F115: Typical UPC | G115: UT | H115: WY
F116: 1 | G116: 14.9 | H116: 14.7
F117: 2 | G117: 12.5 | H117: 14.1
F118: 3 | G118: 10.1 | H118: 11.8
F119: 4 | G119: 8.3 | H119: 9.4
F120: 5 | G120: 4.4 | H120: 5.8
F121: 6 | G121: 3.1 | H121: 3.7
F122: 7 | G122: 2 | H122: 2.3
F123: 8 | G123: 1.8 | H123: 1.7
F124: 9 | G124: 2 | H124: 2.1
F125: 10 | G125: 3.1 | H125: 4.1
F126: 11 | G126: 6.3 | H126: 8
F127: 12 | G127: 11.5 | H127: 12.3
F128: Total | G128: =SUM(G116:G127) -> 80 | H128: =SUM(H116:H127) -> 90

Sheet Graph (Ex 1.10) Inputs
C1: ACTUAL | D1: CERA | E1: PIRA | F1: AVG
B2: 2015-09-01 | D2: 2.68 | E2: 2.44 | F2: 2.56
B3: 2015-10-01 | D3: 2.66 | E3: 2.52 | F3: 2.59
B4: 2015-11-01 | D4: 2.62 | E4: 2.55 | F4: 2.59
B5: 2015-12-01 | D5: 2.72 | E5: 2.78 | F5: 2.75
B6: 2016-01-01 | D6: 2.73 | E6: 2.9 | F6: 2.81
B7: 2016-02-01 | D7: 2.66 | E7: 2.78 | F7: 2.72
B8: 2016-03-01 | D8: 2.62 | E8: 2.63 | F8: 2.63
B9: 2016-04-01 | D9: 2.58 | E9: 2.53 | F9: 2.56
B10: 2016-05-01 | D10: 2.61 | E10: 2.64 | F10: 2.62
B11: 2016-06-01 | D11: 2.64 | E11: 2.84 | F11: 2.74
B12: 2016-07-01 | D12: 2.73 | E12: 2.99 | F12: 2.86
B13: 2016-08-01 | D13: 2.8 | E13: 3.04 | F13: 2.92
B14: 2016-09-01 | D14: 2.84 | E14: 3 | F14: 2.92

Sheet Other Inputs
H1: Used In
A2: INPUT SECTION | H2: Ut | I2: Wy | J2: Source
A3: INPUTS FROM QUESTAR PIPELINE TARIFF AND CONTRACTS
B5: QPC Storage Commodity Rates | E5: Rate | F5: Effective
B6: Peaking Injections | E6: 0.03872 | F6: 2015-01-01 | H6: 1.3.2 | I6: 1.3p2 | J6: QPC Tariff Statement of Rates
B7: Peaking Withdrawals | E7: 0.03872 | F7: =$F$6 -> 2015-01-01 | H7: 1.3.2 | I7: 1.3p2 | J7: =J6 -> QPC Tariff Statement of Rates
B8: Ryckman Injections | E8: 0.015 | F8: =$F$6 -> 2015-01-01
B9: Ryckman Withdrawals | E9: 0.01 | F9: 2015-01-01
B10: Clay Basin Injections | E10: 0.01049 | F10: 2015-01-01 | H10: 1.3.2 | I10: 1.3p2 | J10: QPC Tariff Statement of Rates
B11: Clay Basin Withdrawals | E11: 0.01781 | F11: =$F$6 -> 2015-01-01 | H11: 1.3.2 | I11: 1.3p2 | J11: =J10 -> QPC Tariff Statement of Rates
B13: QPC Storage Field Reservation Charges
B14: Peaking Storage Fields Demand (Leroy, Chalk Creek, Coalville) | E14: 2.87375 | F14: =$F$6 -> 2015-01-01 | H14: 1.3.2 | I14: 1.3p2 | J14: =$J$6 -> QPC Tariff Statement of Rates
B15: Ryckman | E15: 0.09 | F15: =$F$6 -> 2015-01-01
B16: Clay Basin Demand | E16: 2.85338 | F16: =$F$6 -> 2015-01-01 | H16: 1.3.2 | I16: 1.3p2 | J16: =$J$6 -> QPC Tariff Statement of Rates
B17: Clay Basin Capacity | E17: 0.02378 | F17: =$F$6 -> 2015-01-01 | H17: 1.3.2 | I17: 1.3p2 | J17: =$J$6 -> QPC Tariff Statement of Rates
B21: FIRM TRANSPORTATION | D21: Contract Dth | E21: Months | F21: Maximum Rate | G21: Effective
B22: T-1 Transportation - Yearly (MT241) | D22: =798902 -> 798902 | E22: 12 | F22: 5.28804 | G22: 1/1/2015 | H22: 1.3p1 | J22: =$J$6 -> QPC Tariff Statement of Rates
B23: T-1 Transportation - Yearly (Mainline 104) | D23: 30000 | E23: 12 | F23: 5.28804 | G23: =$G$22 -> 1/1/2015 | H23: Jan | J23: =$J$6 -> QPC Tariff Statement of Rates
B24: T-1 Transportation - Yearly (Tieline 112) | D24: 12000 | E24: 12 | F24: 5.28804 | G24: =$G$22 -> 1/1/2015 | H24: 1.3p1 | J24: =$J$6 -> QPC Tariff Statement of Rates
B25: T-1 Transportation - Nov-Mar | D25: 75000 | E25: 5 | F25: 6.80887 | G25: =$G$22 -> 1/1/2015
B26: Total Yearly T-1 Transportation | D26: =SUM(D22:D25) -> 915902 | E26: 12
B28: T-1 Transportation - Seasonal(BASE TARIFF RATE LOW LOAD) Mainline 104 | D28: 0 | E28: 0 | F28: 0
B30: No-Notice Transportation (BASE TARIFF RATE) | D30: 203542 | E30: 12 | F30: 0.86753 | G30: =$G$22 -> 1/1/2015 | H30: 1.3p1 | J30: =$J$6 -> QPC Tariff Statement of Rates
B31: GRI - Yearly (SURCHARGE LOW LOAD CUSTOMERS MAXIMUM) | D31: =D26 -> 915902 | E31: 12 | F31: 0 | G31: =$G$22 -> 1/1/2015 | H31: 1.3p1 | J31: =$J$6 -> QPC Tariff Statement of Rates
B32: GRI - Seasonal (No GRI currently) | D32: 30000 | E32: 3 | F32: =+F31 -> 0 | G32: =$G$22 -> 1/1/2015 | H32: 1.3p1 | J32: =$J$6 -> QPC Tariff Statement of Rates
B33: GRI | D33: 52000 | E33: 12 | F33: =+F31 -> 0 | G33: =$G$22 -> 1/1/2015 | H33: 1.3p1 | J33: =$J$6 -> QPC Tariff Statement of Rates
B35: TRANSPORTATION COMMODITY
B36: PIPELINE USAGE CHARGE TO VOLUMETRIC RELEASES
B37: QPC Commodity
B38: QPC Firm Transportation Usage Charge (Max & Min) (BASE TARIFF RATE) | F38: 0.00267 | G38: 2015-01-01 | H38: 1.3p1 | J38: =$J$6 -> QPC Tariff Statement of Rates
B39: QPC (ANNUAL CHARGE ADJUSTMENT) | F39: 0.0014 | G39: 2014-10-01 | H39: 1.3p1 | J39: FERC Website
B40: QPC GRI SURCHARGE (not used currently) | F40: 0 | G40: =G38 -> 2015-01-01 | H40: 1.3p1 | J40: =$J$6 -> QPC Tariff Statement of Rates
E41: Current | F41: Proposed
B42: INTER TRANS (T-2 PIPELINE BASE TARIFF) MAX | D42: Base Tariff | E42: 0.17652 | F42: 0.17652 | G42: 2015-01-01 | J42: =$J$6 -> QPC Tariff Statement of Rates
C43: (not used currently) | D43: GRI Surcharge | E43: 0 | F43: 0 | G43: =G42 -> 2015-01-01 | J43: =$J$6 -> QPC Tariff Statement of Rates
D44: Annual Charge | E44: 0.0014 | F44: 0.0014 | G44: 2014-10-01 | J44: ferc.gov
D45: Total | E45: =SUM(E42:E44) -> 0.17792 | F45: =SUM(F42:F44) -> 0.17792
B48: Utah | E48: =ROUND((E45)/(1-$E283),5) -> 0.17885 | F48: =ROUND((F45)/(1-E283),5) -> 0.17885 | H48: 1.6.3 | J48: Before Adjustment for Bad Debt (Transport grossed up for QGC fuel)
B49: Wyoming | F49: =ROUND((F45)/(1-E284),5) -> 0.18063
A51: INPUTS FROM KERN RIVER PIPELINE TARIFF AND CONTRACTS
B52: Kern River 2003 Expansion | D52: Contract Dth | E52: Months | F52: Maximum Rate | G52: Effective
F53: 0.4717 | G53: 2015-04-01 | J53: KR Tariff 5-A
B54: Jan - Dec | D54: 3000 | E54: 12 | F54: 14.34754167 | H54: 1.3.1
B55: November - March | D55: 50000 | E55: 5 | F55: 14.34754167 | H55: Jan
B56: Jan - Dec | D56: 1885 | E56: 12 | F56: 17.74204167
B57: Days in Tariff Rate | E57: 366 | F57: 0.5833 | G57: =G53 -> 2015-04-01
B59: Kern River 2003 Expansion | E59: Days in TEST PERIOD
B60: Jan - Dec | C60: 0.8138169565 | D60: =D54+D56 -> 4885 | E60: 366 | F60: 0.0044 | G60: =G57 -> 2015-04-01 | H60: 1.3p1 | J60: KR Tariff 5-A
B61: November - March | C61: =C60 -> 0.8138169565 | D61: =D55 -> 50000 | E61: 152 | F61: 0.0044 | G61: =G57 -> 2015-04-01 | H61: 1.3p1 | J61: KR Tariff 5-A
A63: INPUTS FROM QUESTAR GAS TARIFF
B65: I-Sales Commodity Rates | E65: I-2 -eliminated | F65: IS
B66: Effective Date | E66: 11/1/2005 | F66: 7/31/2009
B67: Commodity Rate | E67: 0 | F67: =ROUND((7353080/1941997),5) -> 3.78635
B68: CO2 Refund | E68: 0 | F68: 0
B69: Net Commodity Rate | E69: =SUM(E67:E68) -> 0 | F69: =SUM(F67:F68) -> 3.78635
A71: Current SNG Rates
B72: UTAH | E72: Current SNG Base | F72: Current SNG Amort. | G72: Current SNG Total | J72: Effective
B73: GS | D73: Winter | E73: 1.08433 | F73: 0.1685 | G73: =E73+F73 -> 1.25283 | J73: 2015-06-01
D74: Summer | E74: 0.50911 | F74: 0.07911 | G74: =E74+F74 -> 0.58822 | J74: =J73 -> 2015-06-01
B76: FS | D76: Winter | E76: 1.05609 | F76: 0.16411 | G76: =E76+F76 -> 1.2202 | J76: 2015-06-01
D77: Summer | E77: 0.50911 | F77: 0.07911 | G77: =E77+F77 -> 0.58822 | J77: =J76 -> 2015-06-01
B79: NGV | E79: 0.78248 | F79: 0.12159 | G79: =E79+F79 -> 0.90407 | J79: 2015-06-01
B81: (This includes bad debt adjustment) IS | E81: 0.17925 | F81: 0 | G81: =E81+F81 -> 0.17925 | J81: 2015-06-01
A84: Current Rates
B85: Utah GS | J85: Effective
B86: Block 1 | D86: Summer | G86: 6.90346 | J86: 2015-06-01
B87: Block 2 | D87: Summer | G87: 5.87138 | J87: =$J$86 -> 2015-06-01
B88: Block 1 | D88: Winter | G88: 8.21084 | J88: =$J$86 -> 2015-06-01
B89: Block 2 | D89: Winter | G89: 7.17877 | J89: =$J$86 -> 2015-06-01
B90: #1 BSF | G90: 6.75 | J90: =J86 -> 2015-06-01
B92: Wyoming GS
B93: Block 1 | G93: 7.39118 | J93: 2015-06-01
B94: Block 2 | G94: 7.1365 | J94: =J93 -> 2015-06-01
B95: BSF | G95: 12 | J95: =J93 -> 2015-06-01
A97: INPUTS FROM PREVIOUS PASSTHROUGH CASE
B98: PRIOR PERIOD COMPANY PRODUCTION AVERAGE GAS COST
E99: PROPOSED | F99: PRIOR CASE | G99: Most Recent
B100: VOLUMES DTH | E100: ='Monthly Inputs'!S7+'Monthly Inputs'!S13 -> 64505102 | F100: 67095449 | G100: EXH 1.1
B101: AMOUNT | E101: =+D184+D205 -> 326187983.6 | F101: 343430865 | G101: EXH 1.1
B102: AVG COST | E102: =+E101/E100 -> 5.056778045 | F102: =ROUND(+F101/F100,5) -> 5.11854
B104: Utah Cost of Gas by Component
B105: Unit Cost Of Gas (Line 7) | F105: 4.20785 | J105: Exhibit 1.6 pg 1 (Prior case)
B106: 191 Account Amortization (Line 8) | F106: 0.06294 | J106: Exhibit 1.6 pg 1 (Prior case )
B107: Total Unit Cost In Rates (Line 9) | F107: =SUM(F105:F106) -> 4.27079
B109: I-2 Commodity Cost (excluding bad debt) | E109: 0
B111: Wyoming Cost of Gas by Component
B112: Unit Cost Of Gas (Line 9) | F112: 4.95941 | J112: (WY) Exhibit 1.6 pg 1
B113: 191 Account Amortization (Line 10) | F113: 0.08783 | J113: (WY) Exhibit 1.6 pg 1
B114: Total Unit Cost In Rates (Line 11) | F114: =F112+F113 -> 5.04724 | J114: (WY) Exhibit 1.6 pg 1
A119: INPUTS FROM 191 ACCOUNT MONTH END BALANCE ACTUAL OR FORECAST | E119: Utah | F119: Wyoming
E120: 2015 | F120: 2015-07-31
H121: 1.6.2
D122: current yr /mo(text)
B123: July 2015 191 account (Actual/Forecast) | D123: 2015 | E123: 18077600 | F123: 962140 | H123: 1.6.1
B124: Supplier Non-Gas Cost Under (Over) Collected through July 2015 (act/fcst) | D124: July | E124: 17289106 | H124: 1.6.2
B125: Commodity Cost Under (Over) Collected during YEAR (Act/Fcst) | E125: =E123-E124 -> 788494
A127: INPUTS FROM IRP
B128: #1 Peak Day Demand Forecast | E128: 2015 | F128: Source
B129: Utah | E129: =E131-E130 -> 1289691 | F129: 2015 IRP
B130: Wyoming | E130: 39186
B131: System Total Peak Day Demand Forecast | E131: 1328877 | H131: 1.5 | I131: 1.5
A134: STORAGE FIELD INPUTS | E134: Storage
B135: Chalk Creek Injections Factor | E135: 0.019
B136: Chalk Creek Withdrawls Factor | E136: 0.0178
B138: Ryckman Injections Factor | E138: 0.025
B139: Ryckman Withdrawls Factor | E139: 0
B141: Leroy Injections Factor | E141: 0.0302
B142: Leroy Withdrawls Factor | E142: 0.0113
B144: Clay Basin Injections Factor | E144: 0.025
B145: Clay Basin Withdrawls Factor | E145: 0.0151
B147: Coalville Injections Factor | E147: 0.0101
B148: Coalville Withdrawls Factor | E148: 0.0134
B150: QPC Storage Field Reservation Charges | E150: Monthly Dth
B151: Peaking Storage Fields Maximum Daily Withdrawal Qty (Leroy, Chalk Creek, Coalville) | E151: 184625
B152: Ryckman Maximum Storage Qty | E152: =2500000 -> 2500000
B153: Clay Basin Minimum Required Deliverability | E153: 111827
B154: Clay Basin Capacity | E154: 13419000
A156: OTHER INPUTS | D156: Revenue
B157: OTHER GATHERING
B162: Total Forecasted Birch Creek | D162: 247116.15 | E162: 2015-07-31
B164: Other gathering | D164: 1637694.23 | E164: 2015-07-31 | H164: JanB
B165: Total Gathering | D165: =SUM(D162:D164) -> 1884810.38 | H165: 1.3.1 | I165: 1.3P1
B167: Other Transportation | D167: 3397182.87 | E167: 2015-07-31 | H167: 1.3.1
B169: Forecast Future Contracts Premium over spot price | E169: 0.02 | F169: Verified with Tina 08/13/15
D171: Commodity | E171: Mo. Demand
D172: Charge | E172: Charge | F172: Effective
B173: QEP Gathering Rates -System wide Gathering agreement #163 (SWGA) | D173: 0.14446 | E173: 862503 | F173: 2014-09-01 | I173: 1.3p1
B174: QGC Gathering Throughput Dth From Exhibit 1.1 Backup | D174: ='Ex 1.1 Data'!E1 -> 38212543.43 | E174: 12 | I174: 1.3p1
B176: Gathering Rate Wexpro II | D176: 0.4279 | I176: 1.3p1
B177: Wexpro II Gathering Throughput Dth From Exhibit 1.1 Backup | D177: ='Ex 1.1 Data'!L1 -> 4371050 | I177: 1.3p1
A179: OTHER INPUTS | D179: Volume (Dth) | E179: Revenue
A180: WEXPRO I
B181: Questar Gas Production 1/ | D181: Current
B182: Test Year Royalties | D182: ='Ut 1.1'!I1415 -> 27063743.93 | H182: 1.4.1 | I182: 1.4P1 | J182: Exhibit 1.1
B183: Operator Service Fee | D183: ='Monthly Inputs'!S107 -> 271979844 | H183: 1.4.1 | I183: 1.4P1
B184: Total Questar Gas Production Costs | D184: =SUM(D182:D183) -> 299043587.9
B186: Total Questar Gas Production Dth | D186: ='Ut 1.1'!F1420 -> 60134052
F187: Hot | G187: Hot
B188: Other Revenue Credits | D188: 1 | E188: 2 | F188: 2 | G188: 2 | I188: 1
D189: Historical | E189: Forecast | F189: =HLOOKUP(F$188,$D$188:$E$196,$I189) -> Forecast | G189: =HLOOKUP(G$188,$D$188:$E$196,$I189) -> Forecast | I189: 2
D190: 12 Mo Ending | E190: 12 Mo Ending | F190: Utah | G190: Wyoming | I190: 3
B191: 483 Sales for Resale | E191: 2578952 | F191: =HLOOKUP(F$188,$D$188:$E$196,$I191) -> 2578952 | G191: =HLOOKUP(G$188,$D$188:$E$196,$I191) -> 2578952 | I191: 4
B192: 490 Incidental Plant Prod Sales | E192: 3127471 | F192: =HLOOKUP(F$188,$D$188:$E$196,$I192) -> 3127471 | G192: 3127471 | I192: 5
B193: 492 Incidental Gasoline_Oil Sales | E193: 424941 | F193: 424941 | G193: 424941 | I193: 6
B194: 4951 Overriding Royalty Revenue from Celsius | E194: 11583249 | F194: 11583249 | G194: 11583249 | I194: 7
B195: 4952 Oil Revenue Received from Wexpro | E195: 0 | F195: 0 | G195: 0 | I195: 8
B196: 758001 Gas Well Royalities - Other | E196: -63741 | F196: -63741 | G196: -63741 | I196: 9
B199: Total Other Revenue Credits | D199: =SUM(D191:D196) -> 0 | E199: =SUM(E191:E196) -> 17650872 | F199: =SUM(F191:F196) -> 17650872 | G199: =SUM(G191:G196) -> 17650872
A201: WEXPRO II
B202: Questar Gas Production 1/ | D202: Current
B203: Test Year Royalties | D203: ='Ut 1.1'!I1515 -> 2008839.657 | H203: 1.4.1 | I203: 1.4P1
B204: Operator Service Fee | D204: ='Monthly Inputs'!S109 -> 25135556 | H204: 1.4.1 | I204: 1.4P1
B205: Total Questar Gas Production Costs | D205: =SUM(D203:D204) -> 27144395.66
B207: Total Questar Gas Production Dth | D207: ='Ut 1.1'!F1520 -> 4371050
F208: Hot | G208: Hot
B209: Other Revenue Credits | D209: 1 | E209: 2 | F209: 2 | G209: 2 | I209: 1
D210: Historical | E210: Forecast | F210: =HLOOKUP(F$188,$D$188:$E$196,$I210) -> Forecast | G210: =HLOOKUP(G$188,$D$188:$E$196,$I210) -> Forecast | I210: 2
D211: 12 Mo Ending | E211: 12 Mo Ending | F211: Utah | G211: Wyoming | I211: 3
B212: 483 Sales for Resale | E212: 0 | F212: =HLOOKUP(F$209,$D$209:$E$217,$I212) -> 0 | G212: 0 | I212: 4
B213: 490 Incidental Plant Prod Sales | E213: 528837 | F213: 528837 | G213: 528837 | I213: 5
B214: 492 Incidental Gasoline_Oil Sales | E214: 511920 | F214: 511920 | G214: 511920 | I214: 6
B215: 4951 Overriding Royalty Revenue from Celsius | E215: 0 | F215: 0 | G215: 0 | I215: 7
B216: 4952 Oil Revenue Received from Wexpro | E216: 0 | F216: 0 | G216: 0 | I216: 8
B217: 758001 Gas Well Royalities - Other | E217: -76788 | F217: -76788 | G217: -76788 | I217: 9
B220: Total Other Revenue Credits | D220: =SUM(D212:D217) -> 0 | E220: =SUM(E212:E218) -> 963969 | F220: =SUM(F212:F217) -> 963969 | G220: =SUM(G212:G217) -> 963969
E222: Proceeds | F222: Dths | G222: Price
B223: Sales of Wexpro Gas | E223: 0 | F223: 0 | G223: 0
A225: SUMMARY INPUTS FROM REVRUN, RATE BASE, EXPENSES, ETC.
B227: Supplier Non-Gas Costs Recovered at Current Rates 3/ | E227: ='RevRun Fcst'!T$199 -> 114315267.2 | H227: 1.6.2
B228: MT Supplier Non-Gas | E228: ='RevRun Fcst'!T142 -> 2028.36
B229: Net Supplier Non-Gas | E229: =E227-E228 -> 114313238.9
B230: UT Current Int Sales SNG Rate - not including Bad Debt adj. | E230: ='RevRun Fcst'!T102+'RevRun Fcst'!T93 -> 1199935 | F230: 0.1788
E232: ='Rate Base'!$U$8 -> 2015-07-31 | F232: update to most current
B233: Account 164-1 - Gas Stored Underground | D233: Dth | E233: Ending Balance | F233: $ per Dth
D234: ='Rate Base'!T295 -> -8357578 | E234: ='Rate Base'!T216 -> 41844180.15 | F234: =+E234/D234 -> -5.006735223 | H234: 1.4.2
A237: UT CET and DSM AMORTIZATION FILING INPUTS
E238: Base DNG | F238: Current DNG
B239: GS Rates (Base rates are before CET, DSM, & EA Amortizations) | D239: Summer Blk 1 | E239: 1.73142 | F239: 2.04445
D240: Summer Blk 2 | E240: 0.73142 | F240: 1.01237
D241: Winter Blk 1 | E241: 2.35422 | F241: 2.68722
D242: Winter Blk 2 | E242: 1.35422 | F242: 1.65515 | J242: Base DNG Rate from latest general rate case Docket 13-057-05
J243: Current DNG Rates Effective 06-1-15
D244: Energy Assistance | E244: 0.01419 | F244: Current Rate 7/1/2014 GS Rate
E245: 0.01174 | F245: Current Rate 7/1/2014 FS Rate
E246: 0.00657 | F246: Current Rate 7/1/2014 IS Rate
E247: 0.2679 | F247: Current Rate 7/1/2014 NGV Rate
E248: Ending Balance | F248: Date
B249: CET Balance (Account 191.9) | E249: -1886289.514 | F249: 2011-07-31
B250: DSM Expense Deferral Balance (Account 182.4) | E250: 42000000 | F250: 2011-03-31
B252: GS Block Usage in Dth | D252: Winter Blk 1 | E252: 52526064
D253: Winter Blk 2 | E253: 14984828
D254: Summer Blk 1 | E254: 23076373
D255: Summer Blk 2 | E255: 4705902
A257: WY CET and DSM AMORTIZATION FILING INPUTS
E258: Base DNG | F258: Current DNG
B259: GS Rates (Base rates are before CET and DSM Amortizations) | D259: Blk 1 | E259: 1.73142 | F259: 2.01783
D260: Blk 2 | E260: 0.73142 | F260: 1.08394
J262: Base DNG Rate from latest general rate case Docket 30010-94-GR-08
J263: Current Rates Effective 10/1/13
E265: Ending Balance | F265: Date
... 31 more rows

Sheet Calculations
A1: GAS BALANCE FOR 12 MONTHS ENDING: _________________
D3: SALES VOLUMES IN DECATHERMS (12 Months of Forecast)
D4: Forecast | E4: Forecast | F4: Forecast | G4: Forecast | H4: Forecast | I4: Forecast | J4: Forecast | K4: Forecast | L4: Forecast | M4: Forecast | N4: Forecast | O4: Forecast | P4: 12-Month
A5: RATE CLASS | D5: ='Monthly Inputs'!G3 -> Oct15 | E5: ='Monthly Inputs'!H3 -> Nov15 | F5: ='Monthly Inputs'!I3 -> Dec15 | G5: ='Monthly Inputs'!J3 -> Jan16 | H5: ='Monthly Inputs'!K3 -> Feb16 | I5: ='Monthly Inputs'!L3 -> Mar16 | J5: ='Monthly Inputs'!M3 -> Apr16 | K5: ='Monthly Inputs'!N3 -> May16 | L5: ='Monthly Inputs'!O3 -> Jun16 | M5: ='Monthly Inputs'!P3 -> Jul16 | N5: ='Monthly Inputs'!Q3 -> Aug16 | O5: ='Monthly Inputs'!R3 -> Sep16 | P5: Total
A6: UTAH | D6: =MONTH(D5) -> 10 | E6: =MONTH(E5) -> 11 | F6: 12 | G6: 1 | H6: 2 | I6: 3 | J6: 4 | K6: 5 | L6: 6 | M6: 7 | N6: 8 | O6: 9
B7: GSR | D7: ='RevRun Fcst'!H21 -> 5769694 | E7: ='RevRun Fcst'!I21 -> 10851580 | F7: ='RevRun Fcst'!J21 -> 16281633 | G7: ='RevRun Fcst'!K21 -> 18773872 | H7: ='RevRun Fcst'!L21 -> 16001877 | I7: ='RevRun Fcst'!M21 -> 11686638 | J7: ='RevRun Fcst'!N21 -> 8189805 | K7: ='RevRun Fcst'!O21 -> 4320893 | L7: ='RevRun Fcst'!P21 -> 2952413 | M7: ='RevRun Fcst'!Q21 -> 2156951 | N7: ='RevRun Fcst'!R21 -> 2124897 | O7: ='RevRun Fcst'!S21 -> 3167765 | P7: =SUM(D7:O7) -> 102278018
B8: GSC | D8: ='RevRun Fcst'!H30 -> 0 | E8: ='RevRun Fcst'!I30 -> 0 | F8: ='RevRun Fcst'!J30 -> 0 | G8: ='RevRun Fcst'!K30 -> 0 | H8: ='RevRun Fcst'!L30 -> 0 | I8: ='RevRun Fcst'!M30 -> 0 | J8: ='RevRun Fcst'!N30 -> 0 | K8: ='RevRun Fcst'!O30 -> 0 | L8: ='RevRun Fcst'!P30 -> 0 | M8: ='RevRun Fcst'!Q30 -> 0 | N8: ='RevRun Fcst'!R30 -> 0 | O8: ='RevRun Fcst'!S30 -> 0 | P8: 0
B9: GSS | D9: ='RevRun Fcst'!H39 -> 0 | E9: ='RevRun Fcst'!I39 -> 0 | F9: ='RevRun Fcst'!J39 -> 0 | G9: ='RevRun Fcst'!K39 -> 0 | H9: ='RevRun Fcst'!L39 -> 0 | I9: ='RevRun Fcst'!M39 -> 0 | J9: ='RevRun Fcst'!N39 -> 0 | K9: ='RevRun Fcst'!O39 -> 0 | L9: ='RevRun Fcst'!P39 -> 0 | M9: ='RevRun Fcst'!Q39 -> 0 | N9: ='RevRun Fcst'!R39 -> 0 | O9: ='RevRun Fcst'!S39 -> 0 | P9: 0
B10: F-1 | D10: ='RevRun Fcst'!H48 -> 373384 | E10: ='RevRun Fcst'!I48 -> 465177 | F10: ='RevRun Fcst'!J48 -> 525722 | G10: ='RevRun Fcst'!K48 -> 549409 | H10: ='RevRun Fcst'!L48 -> 495791 | I10: ='RevRun Fcst'!M48 -> 464692 | J10: ='RevRun Fcst'!N48 -> 411984 | K10: ='RevRun Fcst'!O48 -> 352961 | L10: ='RevRun Fcst'!P48 -> 339266 | M10: ='RevRun Fcst'!Q48 -> 306036 | N10: ='RevRun Fcst'!R48 -> 288982 | O10: ='RevRun Fcst'!S48 -> 327723 | P10: 4901127
B11: F-4 | D11: ='RevRun Fcst'!H75 -> 0 | E11: ='RevRun Fcst'!I75 -> 0 | F11: ='RevRun Fcst'!J75 -> 0 | G11: ='RevRun Fcst'!K75 -> 0 | H11: ='RevRun Fcst'!L75 -> 0 | I11: ='RevRun Fcst'!M75 -> 0 | J11: ='RevRun Fcst'!N75 -> 0 | K11: ='RevRun Fcst'!O75 -> 0 | L11: ='RevRun Fcst'!P75 -> 0 | M11: ='RevRun Fcst'!Q75 -> 0 | N11: ='RevRun Fcst'!R75 -> 0 | O11: ='RevRun Fcst'!S75 -> 0 | P11: 0
B12: NGV | D12: ='RevRun Fcst'!H66 -> 54988 | E12: ='RevRun Fcst'!I66 -> 45580 | F12: ='RevRun Fcst'!J66 -> 47157 | G12: ='RevRun Fcst'!K66 -> 40604 | H12: ='RevRun Fcst'!L66 -> 47642 | I12: ='RevRun Fcst'!M66 -> 48221 | J12: ='RevRun Fcst'!N66 -> 65925 | K12: ='RevRun Fcst'!O66 -> 55217 | L12: ='RevRun Fcst'!P66 -> 51839 | M12: ='RevRun Fcst'!Q66 -> 53667 | N12: ='RevRun Fcst'!R66 -> 55800 | O12: ='RevRun Fcst'!S66 -> 53237 | P12: 619877
A13: Total Firm Sales | D13: =SUM(D7:D12) -> 6198066 | E13: 11362337 | F13: =SUM(F7:F12) -> 16854512 | G13: 19363885 | H13: 16545310 | I13: 12199551 | J13: 8667714 | K13: 4729071 | L13: 3343518 | M13: 2516654 | N13: 2469679 | O13: 3548725 | P13: =SUM(P7:P12) -> 107799022
B15: I-4 | D15: ='RevRun Fcst'!H102 -> 112463 | E15: ='RevRun Fcst'!I102 -> 133275 | F15: ='RevRun Fcst'!J102 -> 109177 | G15: ='RevRun Fcst'!K102 -> 100693 | H15: ='RevRun Fcst'!L102 -> 70230 | I15: ='RevRun Fcst'!M102 -> 65741 | J15: ='RevRun Fcst'!N102 -> 79195 | K15: ='RevRun Fcst'!O102 -> 111927 | L15: ='RevRun Fcst'!P102 -> 108368 | M15: ='RevRun Fcst'!Q102 -> 113969 | N15: ='RevRun Fcst'!R102 -> 88288 | O15: ='RevRun Fcst'!S102 -> 106609 | P15: =SUM(D15:O15) -> 1199935
B16: IS-4 | D16: ='RevRun Fcst'!H93 -> 0 | E16: ='RevRun Fcst'!I93 -> 0 | F16: ='RevRun Fcst'!J93 -> 0 | G16: ='RevRun Fcst'!K93 -> 0 | H16: ='RevRun Fcst'!L93 -> 0 | I16: ='RevRun Fcst'!M93 -> 0 | J16: ='RevRun Fcst'!N93 -> 0 | K16: ='RevRun Fcst'!O93 -> 0 | L16: ='RevRun Fcst'!P93 -> 0 | M16: ='RevRun Fcst'!Q93 -> 0 | N16: ='RevRun Fcst'!R93 -> 0 | O16: ='RevRun Fcst'!S93 -> 0 | P16: =SUM(D16:O16) -> 0
A17: Total Interruptible Sales | D17: =SUM(D15:D16) -> 112463 | E17: 133275 | F17: 109177 | G17: 100693 | H17: 70230 | I17: 65741 | J17: 79195 | K17: 111927 | L17: 108368 | M17: 113969 | N17: 88288 | O17: 106609 | P17: 1199935
A20: Total Utah Sales | D20: =+D13+D17 -> 6310529 | E20: =+E13+E17 -> 11495612 | F20: =+F13+F17 -> 16963689 | G20: 19464578 | H20: 16615540 | I20: 12265292 | J20: 8746909 | K20: 4840998 | L20: 3451886 | M20: 2630623 | N20: 2557967 | O20: 3655334 | P20: =+P13+P17 -> 108998957
A22: Total Utah Transportation | D22: ='RevRun Fcst'!H204 -> 6518645 | E22: ='RevRun Fcst'!I204 -> 7407064 | F22: ='RevRun Fcst'!J204 -> 7487467 | G22: ='RevRun Fcst'!K204 -> 7902456 | H22: ='RevRun Fcst'!L204 -> 7042134 | I22: ='RevRun Fcst'!M204 -> 7289248 | J22: ='RevRun Fcst'!N204 -> 6527200 | K22: ='RevRun Fcst'!O204 -> 6216528 | L22: ='RevRun Fcst'!P204 -> 7048306 | M22: ='RevRun Fcst'!Q204 -> 7556522 | N22: ='RevRun Fcst'!R204 -> 7122474 | O22: ='RevRun Fcst'!S204 -> 6128997 | P22: =SUM(D22:O22) -> 84247041
A25: Total Utah Sales & Trans | D25: =+D20+D22 -> 12829174 | E25: 18902676 | F25: 24451156 | G25: 27367034 | H25: 23657674 | I25: 19554540 | J25: 15274109 | K25: 11057526 | L25: 10500192 | M25: 10187145 | N25: 9680441 | O25: 9784331 | P25: 193245998
A27: WYOMING
A28: GS-1 | D28: ='RevRun Fcst'!H244 -> 218684 | E28: ='RevRun Fcst'!I244 -> 380755 | F28: ='RevRun Fcst'!J244 -> 551102 | G28: ='RevRun Fcst'!K244 -> 653355 | H28: ='RevRun Fcst'!L244 -> 569096 | I28: ='RevRun Fcst'!M244 -> 451519 | J28: ='RevRun Fcst'!N244 -> 332845 | K28: ='RevRun Fcst'!O244 -> 213781 | L28: ='RevRun Fcst'!P244 -> 110537 | M28: ='RevRun Fcst'!Q244 -> 84909 | N28: ='RevRun Fcst'!R244 -> 70814 | O28: ='RevRun Fcst'!S244 -> 124815 | P28: =SUM(D28:O28) -> 3762212
A29: GS-W | D29: ='RevRun Fcst'!H271 -> 0 | E29: ='RevRun Fcst'!I271 -> 0 | F29: ='RevRun Fcst'!J271 -> 0 | G29: ='RevRun Fcst'!K271 -> 0 | H29: ='RevRun Fcst'!L271 -> 0 | I29: ='RevRun Fcst'!M271 -> 0 | J29: ='RevRun Fcst'!N271 -> 0 | K29: ='RevRun Fcst'!O271 -> 0 | L29: ='RevRun Fcst'!P271 -> 0 | M29: ='RevRun Fcst'!Q271 -> 0 | N29: ='RevRun Fcst'!R271 -> 0 | O29: ='RevRun Fcst'!S271 -> 0 | P29: =SUM(D29:O29) -> 0
A30: F-1 | D30: ='RevRun Fcst'!H253 -> 14783 | E30: ='RevRun Fcst'!I253 -> 18785 | F30: ='RevRun Fcst'!J253 -> 21197 | G30: ='RevRun Fcst'!K253 -> 23085 | H30: ='RevRun Fcst'!L253 -> 20370 | I30: ='RevRun Fcst'!M253 -> 19926 | J30: ='RevRun Fcst'!N253 -> 15935 | K30: ='RevRun Fcst'!O253 -> 15427 | L30: ='RevRun Fcst'!P253 -> 13386 | M30: ='RevRun Fcst'!Q253 -> 11568 | N30: ='RevRun Fcst'!R253 -> 10644 | O30: ='RevRun Fcst'!S253 -> 11985 | P30: =SUM(D30:O30) -> 197091
A31: NGV | D31: ='RevRun Fcst'!H262 -> 1426 | E31: ='RevRun Fcst'!I262 -> 2342 | F31: ='RevRun Fcst'!J262 -> 1501 | G31: ='RevRun Fcst'!K262 -> 1245 | H31: ='RevRun Fcst'!L262 -> 2009 | I31: ='RevRun Fcst'!M262 -> 2024 | J31: ='RevRun Fcst'!N262 -> 2409 | K31: ='RevRun Fcst'!O262 -> 2427 | L31: ='RevRun Fcst'!P262 -> 2424 | M31: ='RevRun Fcst'!Q262 -> 2504 | N31: ='RevRun Fcst'!R262 -> 2201 | O31: ='RevRun Fcst'!S262 -> 1150 | P31: =SUM(D31:O31) -> 23662
A32: Total Firm Sales | D32: =SUM(D28:D31) -> 234893 | E32: 401882 | F32: 573800 | G32: 677685 | H32: 591475 | I32: 473469 | J32: 351189 | K32: 231635 | L32: 126347 | M32: 98981 | N32: 83659 | O32: 137950 | P32: 3982965
A34: I-2 | D34: ='RevRun Fcst'!H280 -> 10936 | E34: ='RevRun Fcst'!I280 -> 15799 | F34: ='RevRun Fcst'!J280 -> 20337 | G34: ='RevRun Fcst'!K280 -> 21886 | H34: ='RevRun Fcst'!L280 -> 15596 | I34: ='RevRun Fcst'!M280 -> 14625 | J34: ='RevRun Fcst'!N280 -> 16669 | K34: ='RevRun Fcst'!O280 -> 14012 | L34: ='RevRun Fcst'!P280 -> 9908 | M34: ='RevRun Fcst'!Q280 -> 7194 | N34: ='RevRun Fcst'!R280 -> 6656 | O34: ='RevRun Fcst'!S280 -> 9492 | P34: =SUM(D34:O34) -> 163110
A35: I-4 | D35: ='RevRun Fcst'!H289 -> 0 | E35: ='RevRun Fcst'!I289 -> 0 | F35: ='RevRun Fcst'!J289 -> 0 | G35: ='RevRun Fcst'!K289 -> 0 | H35: ='RevRun Fcst'!L289 -> 0 | I35: ='RevRun Fcst'!M289 -> 0 | J35: ='RevRun Fcst'!N289 -> 0 | K35: ='RevRun Fcst'!O289 -> 0 | L35: ='RevRun Fcst'!P289 -> 0 | M35: ='RevRun Fcst'!Q289 -> 0 | N35: ='RevRun Fcst'!R289 -> 0 | O35: ='RevRun Fcst'!S289 -> 0 | P35: =SUM(D35:O35) -> 0
A36: Total Interruptible Sales | D36: =SUM(D34:D35) -> 10936 | E36: 15799 | F36: 20337 | G36: 21886 | H36: 15596 | I36: 14625 | J36: 16669 | K36: 14012 | L36: 9908 | M36: 7194 | N36: 6656 | O36: 9492 | P36: 163110
A39: Total Wyoming Sales | D39: =+D32+D36 -> 245829 | E39: 417681 | F39: 594137 | G39: 699571 | H39: 607071 | I39: 488094 | J39: 367858 | K39: 245647 | L39: 136255 | M39: 106175 | N39: 90315 | O39: 147442 | P39: 4146075
A41: Total Wyoming Transportation | D41: ='RevRun Fcst'!H328 -> 30492 | E41: ='RevRun Fcst'!I328 -> 44269 | F41: ='RevRun Fcst'!J328 -> 44734 | G41: ='RevRun Fcst'!K328 -> 36097 | H41: ='RevRun Fcst'!L328 -> 55274 | I41: ='RevRun Fcst'!M328 -> 47360 | J41: ='RevRun Fcst'!N328 -> 28769 | K41: ='RevRun Fcst'!O328 -> 58382 | L41: ='RevRun Fcst'!P328 -> 11438 | M41: ='RevRun Fcst'!Q328 -> 35010 | N41: ='RevRun Fcst'!R328 -> 13901 | O41: ='RevRun Fcst'!S328 -> 26623 | P41: =SUM(D41:O41) -> 432349
A44: Total Wyoming Sales & Trans | D44: =+D39+D41 -> 276321 | E44: 461950 | F44: 638871 | G44: 735668 | H44: 662345 | I44: 535454 | J44: 396627 | K44: 304029 | L44: 147693 | M44: 141185 | N44: 104216 | O44: 174065 | P44: 4578424
A47: Total System Sales and Trans | D47: =+D25+D44 -> 13105495 | E47: 19364626 | F47: 25090027 | G47: 28102702 | H47: 24320019 | I47: 20089994 | J47: 15670736 | K47: 11361555 | L47: 10647885 | M47: 10328330 | N47: 9784657 | O47: =+O25+O44 -> 9958396 | P47: 197824422
A49: Usage by Season
C50: Month | D50: =MONTH(D5) -> 10 | E50: 11 | F50: 12 | G50: 1 | H50: 2 | I50: 3 | J50: 4 | K50: 5 | L50: 6 | M50: 7 | N50: 8 | O50: 9
A51: GS | C51: Season (0=Winter, 1=Summer) | D51: =IF(D$50<4,0,IF(D$50>10,0,1)) -> 1 | E51: =IF(E$50<4,0,IF(E$50>10,0,1)) -> 0 | F51: 0 | G51: 0 | H51: 0 | I51: 0 | J51: 1 | K51: 1 | L51: 1 | M51: 1 | N51: 1 | O51: 1 | P51: Total
B52: Winter | D52: =IF(D51=0,D7+D8,0) -> 0 | E52: =IF(E51=0,E7+E8,0) -> 10851580 | F52: 16281633 | G52: 18773872 | H52: 16001877 | I52: 11686638 | J52: 0 | K52: 0 | L52: 0 | M52: 0 | N52: 0 | O52: 0 | P52: =SUM(D52:O52) -> 73595600
B53: Summer | D53: =IF(D51=1,D7+D8,0) -> 5769694 | E53: 0 | F53: 0 | G53: 0 | H53: 0 | I53: 0 | J53: 8189805 | K53: 4320893 | L53: 2952413 | M53: 2156951 | N53: 2124897 | O53: 3167765 | P53: =SUM(D53:O53) -> 28682418
A54: GSS
B55: Winter | D55: =IF(D51=0,D9,0) -> 0 | E55: 0 | F55: 0 | G55: 0 | H55: 0 | I55: 0 | J55: 0 | K55: 0 | L55: 0 | M55: 0 | N55: 0 | O55: 0 | P55: =SUM(D55:O55) -> 0
B56: Summer | D56: =IF(D51=1,D9,0) -> 0 | E56: 0 | F56: 0 | G56: 0 | H56: 0 | I56: 0 | J56: 0 | K56: 0 | L56: 0 | M56: 0 | N56: 0 | O56: 0 | P56: =SUM(D56:O56) -> 0
A57: F-S
B58: Winter | D58: =IF(D51=0,D10,0) -> 0 | E58: 465177 | F58: 525722 | G58: 549409 | H58: 495791 | I58: 464692 | J58: 0 | K58: 0 | L58: 0 | M58: 0 | N58: 0 | O58: 0 | P58: =SUM(D58:O58) -> 2500791 | Q58: =SUM(G58:I58) -> 1509892
B59: Summer | D59: =IF(D51=1,D10,0) -> 373384 | E59: 0 | F59: 0 | G59: 0 | H59: 0 | I59: 0 | J59: 411984 | K59: 352961 | L59: 339266 | M59: 306036 | N59: 288982 | O59: 327723 | P59: =SUM(D59:O59) -> 2400336 | Q59: =P58+P59-Q58 -> 3391235
B62: Rates: R050201.R1 | C62: WYOMING NON-CORE DNG REVENUES FROM DEMAND FORECAST AND CURRENTLY EFFECTIVE I-SALES GAS COST RATES
D63: Forecast | E63: Forecast | F63: Forecast | G63: Forecast | H63: Forecast | I63: Forecast | J63: Forecast | K63: Forecast | L63: Forecast | M63: Forecast | N63: Forecast | O63: Forecast | P63: 12-Month
D64: =D5 -> Oct15 | E64: =E5 -> Nov15 | F64: =F5 -> Dec15 | G64: Jan16 | H64: Feb16 | I64: Mar16 | J64: Apr16 | K64: May16 | L64: Jun16 | M64: Jul16 | N64: Aug16 | O64: Sep16 | P64: Total
A65: I-2 & 1-4 (Non-Gas Revenue) (Yearly) | D65: ='RevRun Fcst'!H273+'RevRun Fcst'!H282 -> 4410.8 | E65: ='RevRun Fcst'!I273+'RevRun Fcst'!I282 -> 5633.78 | F65: ='RevRun Fcst'!J273+'RevRun Fcst'!J282 -> 6775.06 | G65: ='RevRun Fcst'!K273+'RevRun Fcst'!K282 -> 7164.61 | H65: ='RevRun Fcst'!L273+'RevRun Fcst'!L282 -> 5582.74 | I65: ='RevRun Fcst'!M273+'RevRun Fcst'!M282 -> 5338.55 | J65: ='RevRun Fcst'!N273+'RevRun Fcst'!N282 -> 5852.58 | K65: ='RevRun Fcst'!O273+'RevRun Fcst'!O282 -> 5184.38 | L65: ='RevRun Fcst'!P273+'RevRun Fcst'!P282 -> 4152.27 | M65: ='RevRun Fcst'!Q273+'RevRun Fcst'!Q282 -> 3469.72 | N65: ='RevRun Fcst'!R273+'RevRun Fcst'!R282 -> 3334.42 | O65: ='RevRun Fcst'!S273+'RevRun Fcst'!S282 -> 4047.65 | P65: =SUM(D65:O65) -> 60946.56
A66: IC (Total Revenue) (Yearly) | D66: =ROUND(D41*$P66/$P41,0) -> 7400 | E66: 10743 | F66: 10856 | G66: 8760 | H66: 13413 | I66: 11493 | J66: 6981 | K66: 14168 | L66: 2776 | M66: 8496 | N66: 3373 | O66: =P66-SUM(D66:N66) -> 6460.32 | P66: ='RevRun Fcst'!T300+'RevRun Fcst'!T314 -> 104919.32
A68: ="I-2 Gas Cost (Rate Effective "&'Other Inputs'!E66&")" -> I-2 Gas Cost (Rate Effective 11/1/2005) | D68: ='Other Inputs'!E69 -> 0 | E68: =+D68 -> 0 | F68: 0 | G68: 0 | H68: 0 | I68: 0 | J68: 0 | K68: 0 | L68: 0 | M68: 0 | N68: 0 | O68: 0
A69: ="I-4 Gas Cost (Rate Effective "&'Other Inputs'!F66&")" -> I-4 Gas Cost (Rate Effective 7/31/2009) | D69: ='Other Inputs'!F69 -> 3.78635 | E69: =+D69 -> 3.78635 | F69: 3.78635 | G69: 3.78635 | H69: 3.78635 | I69: 3.78635 | J69: 3.78635 | K69: 3.78635 | L69: 3.78635 | M69: 3.78635 | N69: 3.78635 | O69: 3.78635
D72: ALLOCATION BASES
D73: DEMAND | G73: OTHER COST
A74: Utah Peak Day Demand | D74: =+D76-D75 -> 1289691 | E74: =D74/D76 -> 0.9705119435 | G74: Utah Sales | H74: =+P20 -> 108998957 | I74: =H74/H76 -> 0.9633561021
A75: Wyoming Peak Day Demand | D75: ='Other Inputs'!E130 -> 39186 | E75: =1-E74 -> 0.02948805646 | G75: Wyoming Sales | H75: =+P39 -> 4146075 | I75: =1-I74 -> 0.0366438979
A76: Peak Day Demand | D76: ='Other Inputs'!E131 -> 1328877 | E76: =ROUND(D76/D$76,4) -> 1 | G76: Total Sales | H76: =+H74+H75 -> 113145032 | I76: =ROUND(H76/H$76,4) -> 1
D79: Financial Report Information (Latest 12 Months of Actual Expenses and 13 Months of Rate Base)
D80: Actual | E80: Actual | F80: Actual | G80: Actual | H80: Actual | I80: Actual | J80: Actual | K80: Actual | L80: Actual | M80: Actual | N80: Actual | O80: Actual
A81: Accounts | D81: =Expenses!J9 -> 2014-11-01 | E81: =Expenses!K9 -> 2014-12-01 | F81: =Expenses!L9 -> 2015-01-01 | G81: =Expenses!M9 -> 2015-02-01 | H81: =Expenses!N9 -> 2015-03-01 | I81: =Expenses!O9 -> 2015-04-01 | J81: =Expenses!P9 -> 2015-05-01 | K81: =Expenses!Q9 -> 2015-06-01 | L81: =Expenses!R9 -> 2015-07-01 | M81: =Expenses!G9 -> 2014-08-01 | N81: =Expenses!H9 -> 2014-09-01 | O81: =Expenses!I9 -> 2014-10-01 | P81: =+'Monthly Inputs'!S3 -> Sep16
A82: EXPENSES
B83: Gas Use In Dth (Acct 810 & 812) | D83: 0 | E83: 0 | F83: 0 | G83: 0 | H83: 0 | I83: 0 | J83: 0 | K83: 0 | L83: 0 | M83: 0 | N83: 0 | O83: 0 | P83: =SUM(D83:O83) -> 0
B85: Other Revenue (Yearly)
B86: Sales for Resale (account 483) | D86: =Expenses!J445 -> 431109.9 | E86: =Expenses!K445 -> 240381.04 | F86: =Expenses!L445 -> 352021.09 | G86: =Expenses!M445 -> 306803.97 | H86: =Expenses!N445 -> 210363.93 | I86: =Expenses!O445 -> 153637.59 | J86: =Expenses!P445 -> 169087.65 | K86: =Expenses!Q445 -> 164715.89 | L86: =Expenses!R445 -> 173703.67 | M86: =Expenses!G445 -> 422737.5 | N86: =Expenses!H445 -> 385189.97 | O86: =Expenses!I445 -> 264701.82 | P86: =SUM(D86:O86) -> 3274454.02
B87: Incidental Plant Prod Sales (Acct 490) | D87: =Expenses!J446 -> 939463.24 | E87: =Expenses!K446 -> 844351.44 | F87: =Expenses!L446 -> 610520.79 | G87: =Expenses!M446 -> 364292.21 | H87: =Expenses!N446 -> 345338.15 | I87: =Expenses!O446 -> 233394.85 | J87: =Expenses!P446 -> 692126.7 | K87: =Expenses!Q446 -> 407181.33 | L87: =Expenses!R446 -> 314262.33 | M87: =Expenses!G446 -> 892809.25 | N87: =Expenses!H446 -> 604993.77 | O87: =Expenses!I446 -> 810197.98 | P87: =SUM(D87:O87) -> 7058932.04
B88: Gas Processed by Others (account 491) | D88: =Expenses!J461 -> 0 | E88: =Expenses!K461 -> 0 | F88: =Expenses!L461 -> 0 | G88: =Expenses!M461 -> 0 | H88: =Expenses!N461 -> 0 | I88: =Expenses!O461 -> 0 | J88: =Expenses!P461 -> 0 | K88: =Expenses!Q461 -> 0 | L88: =Expenses!R461 -> 0 | M88: =Expenses!G461 -> 0 | N88: =Expenses!H461 -> 0 | O88: =Expenses!I461 -> 0 | P88: =SUM(D88:O88) -> 0
B89: Gasoline - Oil Sales (account 492) | D89: =Expenses!J447 -> 131467.64 | E89: =Expenses!K447 -> 175410.47 | F89: =Expenses!L447 -> 123658.45 | G89: =Expenses!M447 -> 143687.47 | H89: =Expenses!N447 -> 68503.83 | I89: =Expenses!O447 -> 96803.36 | J89: =Expenses!P447 -> 86173.16 | K89: =Expenses!Q447 -> 87241.49 | L89: =Expenses!R447 -> 81106.3 | M89: =Expenses!G447 -> 275951.21 | N89: =Expenses!H447 -> 167786.76 | O89: =Expenses!I447 -> 149260.02 | P89: =SUM(D89:O89) -> 1587050.16
B90: Gasoline - Oil Cost (account 758.001) | D90: =-Expenses!J450 -> -35445.14 | E90: =-Expenses!K450 -> -26866.01 | F90: =-Expenses!L450 -> -20397.98 | G90: =-Expenses!M450 -> -23435.82 | H90: =-Expenses!N450 -> -11271.11 | I90: =-Expenses!O450 -> 6314.52 | J90: =-Expenses!P450 -> -13683.2 | K90: =-Expenses!Q450 -> -13458.14 | L90: =-Expenses!R450 -> -13386.31 | M90: =-Expenses!G450 -> -42487.02 | N90: =-Expenses!H450 -> -27726.92 | O90: =-Expenses!I450 -> -24473.79 | P90: =SUM(D90:O90) -> -246316.92
B93: Overriding Royalty (account 495-1) | D93: =Expenses!J448 -> 1394710.96 | E93: =Expenses!K448 -> 1413000.66 | F93: =Expenses!L448 -> 1176752.57 | G93: =Expenses!M448 -> 1274375.72 | H93: =Expenses!N448 -> 933484.78 | I93: =Expenses!O448 -> 762905.16 | J93: =Expenses!P448 -> 809281.23 | K93: =Expenses!Q448 -> 883459.29 | L93: =Expenses!R448 -> 874315.8 | M93: =Expenses!G448 -> 1664443.26 | N93: =Expenses!H448 -> 1799581.52 | O93: =Expenses!I448 -> 1521451.99 | P93: =SUM(D93:O93) -> 14507762.94
B94: Wexpro Revenue Sharing (account 495-2) | D94: =Expenses!J449 -> 0 | E94: =Expenses!K449 -> 0 | F94: =Expenses!L449 -> 0 | G94: =Expenses!M449 -> 0 | H94: =Expenses!N449 -> 0 | I94: =Expenses!O449 -> 0 | J94: =Expenses!P449 -> 0 | K94: =Expenses!Q449 -> 0 | L94: =Expenses!R449 -> 0 | M94: =Expenses!G449 -> 0 | N94: =Expenses!H449 -> -146492 | O94: =Expenses!I449 -> 0 | P94: =SUM(D94:O94) -> -146492
P95: Page 2 of 6
C96: Actual | D96: Actual | E96: Actual | F96: Actual | G96: Actual | H96: Actual | I96: Actual | J96: Actual | K96: Actual | L96: Actual | M96: Actual | N96: Actual | O96: Actual | P96: 13-Month
A97: Accounts | C97: ='Rate Base'!H8 -> 2014-07-21 | D97: ='Rate Base'!I8 -> 2014-08-20 | E97: ='Rate Base'!J8 -> 2014-09-19 | F97: ='Rate Base'!K8 -> 2014-10-19 | G97: ='Rate Base'!L8 -> 2014-11-18 | H97: ='Rate Base'!M8 -> 2014-12-18 | I97: ='Rate Base'!N8 -> 2015-01-17 | J97: ='Rate Base'!O8 -> 2015-02-16 | K97: ='Rate Base'!P8 -> 2015-03-18 | L97: ='Rate Base'!Q8 -> 2015-04-17 | M97: ='Rate Base'!R8 -> 2015-05-17 | N97: ='Rate Base'!S8 -> 2015-06-16 | O97: ='Rate Base'!T8 -> 2015-07-16 | P97: Average
A98: RATE BASE - PRODUCTION
B99: Acct 164 (Working Gas) - Production | C99: ='Rate Base'!H216 -> 42002346.57 | D99: ='Rate Base'!I216 -> 56135251.62 | E99: ='Rate Base'!J216 -> 66798582.12 | F99: ='Rate Base'!K216 -> 69627001.85 | G99: ='Rate Base'!L216 -> 59708122.01 | H99: ='Rate Base'!M216 -> 40325369.94 | I99: ='Rate Base'!N216 -> 30248596.29 | J99: ='Rate Base'!O216 -> 14896410.62 | K99: ='Rate Base'!P216 -> 9447138.71 | L99: ='Rate Base'!Q216 -> 6488848.3 | M99: ='Rate Base'!R216 -> 11612623.98 | N99: ='Rate Base'!S216 -> 26098151.32 | O99: ='Rate Base'!T216 -> 41844180.15 | P99: =(((+C99+O99)/2)+SUM(D99:N99))/12 -> 36109113.34
B100: Acct 101 - Production | C100: ='Rate Base'!H158 -> 79968136.83 | D100: ='Rate Base'!I158 -> 79968136.83 | E100: ='Rate Base'!J158 -> 79968136.83 | F100: ='Rate Base'!K158 -> 79968136.83 | G100: ='Rate Base'!L158 -> 79968136.83 | H100: ='Rate Base'!M158 -> 79968136.83 | I100: ='Rate Base'!N158 -> 79968136.83 | J100: ='Rate Base'!O158 -> 79968136.83 | K100: ='Rate Base'!P158 -> 79968136.83 | L100: ='Rate Base'!Q158 -> 79968136.83 | M100: ='Rate Base'!R158 -> 79968136.83 | N100: ='Rate Base'!S158 -> 79968136.83 | O100: ='Rate Base'!T158 -> 79968136.83 | P100: 79968136.83
B101: Acct 108 - Production | C101: ='Rate Base'!H176 -> -67270278.51 | D101: ='Rate Base'!I176 -> -67313568.07 | E101: ='Rate Base'!J176 -> -67341847.47 | F101: ='Rate Base'!K176 -> -67370368.33 | G101: ='Rate Base'!L176 -> -67417957.61 | H101: ='Rate Base'!M176 -> -67503017.46 | I101: ='Rate Base'!N176 -> -67590733.85 | J101: ='Rate Base'!O176 -> -67644222.63 | K101: ='Rate Base'!P176 -> -67710115.81 | L101: ='Rate Base'!Q176 -> -67699242.67 | M101: ='Rate Base'!R176 -> -67761597.82 | N101: ='Rate Base'!S176 -> -67858205.05 | O101: ='Rate Base'!T176 -> -67923165.79 | P101: -67567299.91
B102: Acct 111 - Production | C102: ='Rate Base'!H183 -> -6089142.24 | D102: ='Rate Base'!I183 -> -6090167.45 | E102: ='Rate Base'!J183 -> -6090799.73 | F102: ='Rate Base'!K183 -> -6091526.41 | G102: ='Rate Base'!L183 -> -6092752.27 | H102: ='Rate Base'!M183 -> -6094959.03 | I102: ='Rate Base'!N183 -> -6097235.33 | J102: ='Rate Base'!O183 -> -6098547.69 | K102: ='Rate Base'!P183 -> -6100221.03 | L102: ='Rate Base'!Q183 -> -6102015.92 | M102: ='Rate Base'!R183 -> -6103594.58 | N102: ='Rate Base'!S183 -> -6105396.1 | O102: ='Rate Base'!T183 -> -6107065.06 | P102: -6097109.933
B103: Acct 2550 - Production | C103: ='Rate Base'!H251 -> -9268.15 | D103: ='Rate Base'!I251 -> -8364.51 | E103: ='Rate Base'!J251 -> -7460.87 | F103: ='Rate Base'!K251 -> -6557.23 | G103: ='Rate Base'!L251 -> -5653.59 | H103: ='Rate Base'!M251 -> -4749.92 | I103: ='Rate Base'!N251 -> -4479.67 | J103: ='Rate Base'!O251 -> -4209.42 | K103: ='Rate Base'!P251 -> -3939.17 | L103: ='Rate Base'!Q251 -> -3668.92 | M103: ='Rate Base'!R251 -> -3398.67 | N103: ='Rate Base'!S251 -> -3128.42 | O103: ='Rate Base'!T251 -> -2858.17 | P103: -5139.4625
B104: Acct 2820 - Production | C104: ='Rate Base'!H258 -> -1939270.93 | D104: ='Rate Base'!I258 -> -1916040.18 | E104: ='Rate Base'!J258 -> -1909455.99 | F104: ='Rate Base'!K258 -> -1901970.04 | G104: ='Rate Base'!L258 -> -2270786.68 | H104: ='Rate Base'!M258 -> -1773585.33 | I104: ='Rate Base'!N258 -> -1764032.42 | J104: ='Rate Base'!O258 -> -1754423.62 | K104: ='Rate Base'!P258 -> -1745027.76 | L104: ='Rate Base'!Q258 -> -1735310.71 | M104: ='Rate Base'!R258 -> -1726168.69 | N104: ='Rate Base'!S258 -> -1717187.46 | O104: ='Rate Base'!T258 -> -1708223.92 | P104: -1836478.025
B105: Acct 2821 - Production | C105: ='Rate Base'!H265 -> -743900.31 | D105: ='Rate Base'!I265 -> -743900.31 | E105: ='Rate Base'!J265 -> -743900.31 | F105: ='Rate Base'!K265 -> -743900.31 | G105: ='Rate Base'!L265 -> -725600.31 | H105: ='Rate Base'!M265 -> -725600.31 | I105: ='Rate Base'!N265 -> -725600.31 | J105: ='Rate Base'!O265 -> -725600.31 | K105: ='Rate Base'!P265 -> -725600.31 | L105: ='Rate Base'!Q265 -> -725600.31 | M105: ='Rate Base'!R265 -> -725600.31 | N105: ='Rate Base'!S265 -> -725600.31 | O105: ='Rate Base'!T265 -> -725600.31 | P105: -730937.81
D107: Production | H107: Acct 101 | I107: Acct 108 | J107: Acct 111 | K107: Acct 2550 | L107: Acct 2820 | M107: Acct 2821 | N107: Total
B108: Depreciation - Acct 403 | D108: =Expenses!S385 -> 687114.89 | F108: Thirteen month average | H108: =P100 -> 79968136.83 | I108: =P101 -> -67567299.91 | J108: =P102 -> -6097109.933 | K108: =P103 -> -5139.4625 | L108: =P104 -> -1836478.025 | M108: =P105 -> -730937.81 | N108: =SUM(H108:M108) -> 3731171.69
B109: Amortization & Depletion - Acct 404 | D109: =Expenses!S392 -> 17922.81 | F109: =CONCATENATE("Wexpro Red. @ ",-'Other Inputs'!E278*100," %") -> Wexpro Red. @ 6.3 % | H109: =H108*'Other Inputs'!$E$278 -> -5037992.62 | I109: =I108*'Other Inputs'!$E$278 -> 4256739.894 | J109: =J108*'Other Inputs'!$E$278 -> 384117.9257 | N109: =SUM(H109:M109) -> -397134.8002
B110: Utah Pre-Tax Return on Production Assets | D110: =+N111 -> 359742.5804 | M110: =SUM(N108:N109) -> 3334036.889
B111: Utah Production Cost | D111: =SUM(D108:D110) -> 1064780.28 | M111: ="Utah Pre-Tax Rate of Return on Production Assets ("&'Other Inputs'!E281&")" -> Utah Pre-Tax Rate of Return on Production Assets (0.1079) | N111: =M110*'Other Inputs'!E281 -> 359742.5804
M112: ="Wyoming Pre-Tax Rate of Return on Production Assets ("&'Other Inputs'!E280&")" -> Wyoming Pre-Tax Rate of Return on Production Assets (0.1059) | N112: =M110*'Other Inputs'!E280 -> 353074.5066
A114: TACTICAL PLAN INFORMATION (IRP) | P114: 12-Month
D115: =D5 -> Oct15 | E115: =E5 -> Nov15 | F115: Dec15 | G115: Jan16 | H115: Feb16 | I115: Mar16 | J115: Apr16 | K115: May16 | L115: Jun16 | M115: Jul16 | N115: Aug16 | O115: Sep16 | P115: Total
A116: COMPANY PRODUCTION
B117: Prior Company
B118: D24 Wells
B119: Brady & Powel
B120: Total Company Production Wexpro I & II | D120: ='Monthly Inputs'!G7+'Monthly Inputs'!G13 -> 5649297 | E120: ='Monthly Inputs'!H7+'Monthly Inputs'!H13 -> 5610502 | F120: ='Monthly Inputs'!I7+'Monthly Inputs'!I13 -> 5693889 | G120: ='Monthly Inputs'!J7+'Monthly Inputs'!J13 -> 5594116 | H120: ='Monthly Inputs'!K7+'Monthly Inputs'!K13 -> 5150616 | I120: ='Monthly Inputs'!L7+'Monthly Inputs'!L13 -> 5423232 | J120: ='Monthly Inputs'!M7+'Monthly Inputs'!M13 -> 5288282 | K120: ='Monthly Inputs'!N7+'Monthly Inputs'!N13 -> 5406893 | L120: ='Monthly Inputs'!O7+'Monthly Inputs'!O13 -> 5183961 | M120: ='Monthly Inputs'!P7+'Monthly Inputs'!P13 -> 5344387 | N120: ='Monthly Inputs'!Q7+'Monthly Inputs'!Q13 -> 5082464 | O120: ='Monthly Inputs'!R7+'Monthly Inputs'!R13 -> 5077463 | P120: =SUM(D120:O120) -> 64505102
A122: STORAGE INJECTIONS
B123: Chalk Creek | D123: ='Monthly Inputs'!G24 -> 0 | E123: ='Monthly Inputs'!H24 -> 146489 | F123: ='Monthly Inputs'!I24 -> 0 | G123: ='Monthly Inputs'!J24 -> 0 | H123: ='Monthly Inputs'!K24 -> 0 | I123: ='Monthly Inputs'!L24 -> 0 | J123: ='Monthly Inputs'!M24 -> 0 | K123: ='Monthly Inputs'!N24 -> 0 | L123: ='Monthly Inputs'!O24 -> 0 | M123: ='Monthly Inputs'!P24 -> 0 | N123: ='Monthly Inputs'!Q24 -> 0 | O123: ='Monthly Inputs'!R24 -> 0 | P123: =SUM(D123:O123) -> 146489
B124: Coalville | D124: ='Monthly Inputs'!G26 -> 138085 | E124: ='Monthly Inputs'!H26 -> 247750 | F124: ='Monthly Inputs'!I26 -> 14434 | G124: ='Monthly Inputs'!J26 -> 0 | H124: ='Monthly Inputs'!K26 -> 0 | I124: ='Monthly Inputs'!L26 -> 0 | J124: ='Monthly Inputs'!M26 -> 0 | K124: ='Monthly Inputs'!N26 -> 0 | L124: ='Monthly Inputs'!O26 -> 0 | M124: ='Monthly Inputs'!P26 -> 0 | N124: ='Monthly Inputs'!Q26 -> 0 | O124: ='Monthly Inputs'!R26 -> 0 | P124: =SUM(D124:O124) -> 400269
B125: Leroy | D125: ='Monthly Inputs'!G27 -> 441212 | E125: ='Monthly Inputs'!H27 -> 0 | F125: ='Monthly Inputs'!I27 -> 0 | G125: ='Monthly Inputs'!J27 -> 0 | H125: ='Monthly Inputs'!K27 -> 0 | I125: ='Monthly Inputs'!L27 -> 0 | J125: ='Monthly Inputs'!M27 -> 0 | K125: ='Monthly Inputs'!N27 -> 0 | L125: ='Monthly Inputs'!O27 -> 0 | M125: ='Monthly Inputs'!P27 -> 0 | N125: ='Monthly Inputs'!Q27 -> 0 | O125: ='Monthly Inputs'!R27 -> 0 | P125: =SUM(D125:O125) -> 441212
B126: Ryckman | D126: ='Monthly Inputs'!G28 -> 635897 | E126: ='Monthly Inputs'!H28 -> 0 | F126: ='Monthly Inputs'!I28 -> 0 | G126: ='Monthly Inputs'!J28 -> 0 | H126: ='Monthly Inputs'!K28 -> 0 | I126: ='Monthly Inputs'!L28 -> 11358 | J126: ='Monthly Inputs'!M28 -> 358462 | K126: ='Monthly Inputs'!N28 -> 370410 | L126: ='Monthly Inputs'!O28 -> 49565 | M126: ='Monthly Inputs'!P28 -> 370410 | N126: ='Monthly Inputs'!Q28 -> 370410 | O126: ='Monthly Inputs'!R28 -> 59744 | P126: =SUM(D126:O126) -> 2226256
B127: Total Peaking Storage | D127: =SUM(D123:D126) -> 1215194 | E127: 394239 | F127: 14434 | G127: 0 | H127: 0 | I127: 11358 | J127: 358462 | K127: 370410 | L127: 49565 | M127: 370410 | N127: 370410 | O127: 59744 | P127: 3214226
B128: Clay Basin | D128: ='Monthly Inputs'!G25 -> 1889585 | E128: ='Monthly Inputs'!H25 -> 1651590 | F128: ='Monthly Inputs'!I25 -> 0 | G128: ='Monthly Inputs'!J25 -> 0 | H128: ='Monthly Inputs'!K25 -> 0 | I128: ='Monthly Inputs'!L25 -> 0 | J128: ='Monthly Inputs'!M25 -> 871415 | K128: ='Monthly Inputs'!N25 -> 1062862 | L128: ='Monthly Inputs'!O25 -> 1353316 | M128: ='Monthly Inputs'!P25 -> 1940107 | N128: ='Monthly Inputs'!Q25 -> 1786632 | O128: ='Monthly Inputs'!R25 -> 1138451 | P128: =SUM(D128:O128) -> 11693958
B129: Total Storage Injections | D129: =SUM(D127:D128) -> 3104779 | E129: =SUM(E127:E128) -> 2045829 | F129: 14434 | G129: 0 | H129: 0 | I129: 11358 | J129: 1229877 | K129: 1433272 | L129: 1402881 | M129: 2310517 | N129: 2157042 | O129: 1198195 | P129: 14908184
A130: STORAGE WITHDRAWLS
B131: Chalk Creek | D131: ='Monthly Inputs'!G32 -> 0 | E131: ='Monthly Inputs'!H32 -> 0 | F131: ='Monthly Inputs'!I32 -> 0 | G131: ='Monthly Inputs'!J32 -> 146314 | H131: ='Monthly Inputs'!K32 -> 0 | I131: ='Monthly Inputs'!L32 -> 0 | J131: ='Monthly Inputs'!M32 -> 0 | K131: ='Monthly Inputs'!N32 -> 0 | L131: ='Monthly Inputs'!O32 -> 0 | M131: ='Monthly Inputs'!P32 -> 0 | N131: ='Monthly Inputs'!Q32 -> 0 | O131: ='Monthly Inputs'!R32 -> 0 | P131: =SUM(D131:O131) -> 146314
B132: Coalville | D132: ='Monthly Inputs'!G34 -> 0 | E132: ='Monthly Inputs'!H34 -> 0 | F132: ='Monthly Inputs'!I34 -> 140250 | G132: ='Monthly Inputs'!J34 -> 0 | H132: ='Monthly Inputs'!K34 -> 0 | I132: ='Monthly Inputs'!L34 -> 0 | J132: ='Monthly Inputs'!M34 -> 0 | K132: ='Monthly Inputs'!N34 -> 0 | L132: ='Monthly Inputs'!O34 -> 0 | M132: ='Monthly Inputs'!P34 -> 0 | N132: ='Monthly Inputs'!Q34 -> 0 | O132: ='Monthly Inputs'!R34 -> 0 | P132: =SUM(D132:O132) -> 140250
B133: Leroy | D133: ='Monthly Inputs'!G35 -> 0 | E133: ='Monthly Inputs'!H35 -> 0 | F133: ='Monthly Inputs'!I35 -> 0 | G133: ='Monthly Inputs'!J35 -> 0 | H133: ='Monthly Inputs'!K35 -> 0 | I133: ='Monthly Inputs'!L35 -> 0 | J133: ='Monthly Inputs'!M35 -> 0 | K133: ='Monthly Inputs'!N35 -> 0 | L133: ='Monthly Inputs'!O35 -> 0 | M133: ='Monthly Inputs'!P35 -> 0 | N133: ='Monthly Inputs'!Q35 -> 0 | O133: ='Monthly Inputs'!R35 -> 0 | P133: =SUM(D133:O133) -> 0
B134: Ryckman | D134: ='Monthly Inputs'!G36 -> 0 | E134: ='Monthly Inputs'!H36 -> 0 | F134: ='Monthly Inputs'!I36 -> 514600 | G134: ='Monthly Inputs'!J36 -> 514600 | H134: ='Monthly Inputs'!K36 -> 481400 | I134: ='Monthly Inputs'!L36 -> 0 | J134: ='Monthly Inputs'!M36 -> 0 | K134: ='Monthly Inputs'!N36 -> 0 | L134: ='Monthly Inputs'!O36 -> 0 | M134: ='Monthly Inputs'!P36 -> 0 | N134: ='Monthly Inputs'!Q36 -> 0 | O134: ='Monthly Inputs'!R36 -> 0 | P134: =SUM(D134:O134) -> 1510600
B135: Total Peaking Storage | D135: =SUM(D131:D134) -> 0 | E135: =SUM(E131:E134) -> 0 | F135: 654850 | G135: 660914 | H135: 481400 | I135: 0 | J135: 0 | K135: 0 | L135: 0 | M135: 0 | N135: 0 | O135: 0 | P135: 1797164
B136: Clay Basin | D136: ='Monthly Inputs'!G33 -> 0 | E136: ='Monthly Inputs'!H33 -> 0 | F136: ='Monthly Inputs'!I33 -> 3469875 | G136: ='Monthly Inputs'!J33 -> 5393116 | H136: ='Monthly Inputs'!K33 -> 3302102 | I136: ='Monthly Inputs'!L33 -> 0 | J136: ='Monthly Inputs'!M33 -> 0 | K136: ='Monthly Inputs'!N33 -> 0 | L136: ='Monthly Inputs'!O33 -> 0 | M136: ='Monthly Inputs'!P33 -> 76036 | N136: ='Monthly Inputs'!Q33 -> 0 | O136: ='Monthly Inputs'!R33 -> 0 | P136: =SUM(D136:O136) -> 12241129
B137: Total Storage Withdrawls | D137: =SUM(D135:D136) -> 0 | E137: 0 | F137: 4124725 | G137: 6054030 | H137: 3783502 | I137: 0 | J137: 0 | K137: 0 | L137: 0 | M137: 76036 | N137: 0 | O137: 0 | P137: 14038293
A140: Gas Supply and Demand | D140: =D4 -> Forecast | E140: Forecast | F140: Forecast | G140: Forecast | H140: Forecast | I140: Forecast | J140: Forecast | K140: Forecast | L140: Forecast | M140: Forecast | N140: Forecast | O140: Forecast | P140: 12-Month
A141: Demand | D141: =D5 -> Oct15 | E141: Nov15 | F141: Dec15 | G141: Jan16 | H141: Feb16 | I141: Mar16 | J141: Apr16 | K141: May16 | L141: Jun16 | M141: Jul16 | N141: Aug16 | O141: Sep16 | P141: Total
A143: Utah Sales | D143: =+D20 -> 6310529 | E143: 11495612 | F143: =+F20 -> 16963689 | G143: 19464578 | H143: 16615540 | I143: 12265292 | J143: 8746909 | K143: 4840998 | L143: 3451886 | M143: 2630623 | N143: 2557967 | O143: 3655334 | P143: =SUM(D143:O143) -> 108998957
A144: Wyoming Sales | D144: =+D39 -> 245829 | E144: 417681 | F144: 594137 | G144: 699571 | H144: 607071 | I144: 488094 | J144: 367858 | K144: 245647 | L144: 136255 | M144: 106175 | N144: 90315 | O144: 147442 | P144: =SUM(D144:O144) -> 4146075
A145: Total Sales | D145: =+D143+D144 -> 6556358 | E145: 11913293 | F145: 17557826 | G145: 20164149 | H145: 17222611 | I145: 12753386 | J145: 9114767 | K145: 5086645 | L145: 3588141 | M145: 2736798 | N145: 2648282 | O145: 3802776 | P145: 113145032
A147: Distribution Use (Offices) | D147: =ROUND(O83,0) -> 0 | E147: =ROUND(D83,0) -> 0 | F147: =ROUND(E83,0) -> 0 | G147: 0 | H147: 0 | I147: 0 | J147: 0 | K147: 0 | L147: 0 | M147: 0 | N147: 0 | O147: 0 | P147: =SUM(D147:O147) -> 0
A148: Distribution Lost and Unaccounted for | D148: =+D150-D145-D147 -> 34179 | E148: =+E150-E145-E147 -> 62104 | F148: 91530 | G148: 105116 | H148: 89782 | I148: 66484 | J148: 47516 | K148: 26517 | L148: 18705 | M148: 14267 | N148: 13806 | O148: =+O150-O145-O147 -> 19824 | P148: =SUM(D148:O148) -> 589830
A150: Total City Gate | D150: =ROUND((D145+D147)/(1-'Other Inputs'!$E$283),0) -> 6590537 | E150: =ROUND((E145+E147)/(1-'Other Inputs'!$E$283),0) -> 11975397 | F150: =ROUND((F145+F147)/(1-'Other Inputs'!$E$283),0) -> 17649356 | G150: =ROUND((G145+G147)/(1-'Other Inputs'!$E$283),0) -> 20269265 | H150: =ROUND((H145+H147)/(1-'Other Inputs'!$E$283),0) -> 17312393 | I150: =ROUND((I145+I147)/(1-'Other Inputs'!$E$283),0) -> 12819870 | J150: =ROUND((J145+J147)/(1-'Other Inputs'!$E$283),0) -> 9162283 | K150: =ROUND((K145+K147)/(1-'Other Inputs'!$E$283),0) -> 5113162 | L150: =ROUND((L145+L147)/(1-'Other Inputs'!$E$283),0) -> 3606846 | M150: =ROUND((M145+M147)/(1-'Other Inputs'!$E$283),0) -> 2751065 | N150: =ROUND((N145+N147)/(1-'Other Inputs'!$E$283),0) -> 2662088 | O150: =ROUND((O145+O147)/(1-'Other Inputs'!$E$283),0) -> 3822600 | P150: =SUM(D150:O150) -> 113734862
A152: Peaking Injection | D152: =+D127 -> 1215194 | E152: 394239 | F152: 14434 | G152: 0 | H152: 0 | I152: 11358 | J152: 358462 | K152: 370410 | L152: 49565 | M152: =+M127 -> 370410 | N152: 370410 | O152: 59744 | P152: =SUM(D152:O152) -> 3214226
A153: Clay Basin Injection | D153: =+D128 -> 1889585 | E153: 1651590 | F153: 0 | G153: 0 | H153: 0 | I153: 0 | J153: 871415 | K153: 1062862 | L153: 1353316 | M153: 1940107 | N153: 1786632 | O153: 1138451 | P153: =SUM(D153:O153) -> 11693958
A154: Storage Lost & Unaccounted For | D154: =-'Monthly Inputs'!G51 -> 77856.3109 | E154: =-'Monthly Inputs'!H51 -> 46575.316 | F154: =-'Monthly Inputs'!I51 -> 145.7834 | G154: =-'Monthly Inputs'!J51 -> 0 | H154: =-'Monthly Inputs'!K51 -> 0 | I154: =-'Monthly Inputs'!L51 -> 283.95 | J154: =-'Monthly Inputs'!M51 -> 30746.925 | K154: =-'Monthly Inputs'!N51 -> 35831.8 | L154: =-'Monthly Inputs'!O51 -> 35072.025 | M154: =-'Monthly Inputs'!P51 -> 57762.925 | N154: =-'Monthly Inputs'!Q51 -> 53926.05 | O154: =-'Monthly Inputs'!R51 -> 29954.875 | P154: =SUM(D154:O154) -> 368155.9603
A155: Total Demand | D155: =SUM(D150:D154) -> 9773172.311 | E155: =SUM(E150:E154) -> 14067801.32 | F155: 17663935.78 | G155: 20269265 | H155: =SUM(H150:H154) -> 17312393 | I155: 12831511.95 | J155: 10422906.93 | K155: 6582265.8 | L155: 5044799.025 | M155: 5119344.925 | N155: 4873056.05 | O155: =SUM(O150:O154) -> 5050749.875 | P155: =SUM(D155:O155) -> 129011202
D157: Forecast | E157: Forecast | F157: Forecast | G157: Forecast | H157: Forecast | I157: Forecast | J157: Forecast | K157: Forecast | L157: Forecast | M157: Forecast | N157: Forecast | O157: Forecast | P157: 12-Month
A158: Supply | D158: =D5 -> Oct15 | E158: =E5 -> Nov15 | F158: Dec15 | G158: Jan16 | H158: Feb16 | I158: Mar16 | J158: Apr16 | K158: May16 | L158: Jun16 | M158: Jul16 | N158: Aug16 | O158: Sep16 | P158: Total
A159: Company Production | D159: =+D120 -> 5649297 | E159: 5610502 | F159: 5693889 | G159: 5594116 | H159: 5150616 | I159: 5423232 | J159: 5288282 | K159: 5406893 | L159: 5183961 | M159: 5344387 | N159: 5082464 | O159: 5077463 | P159: =SUM(D159:O159) -> 64505102
A160: Co Prod Lost & Unaccounted For | D160: =ROUND(D159*(-'Other Inputs'!$E$285-'Other Inputs'!$E$286),0) -> -319688 | E160: =ROUND(E159*(-'Other Inputs'!$E$285-'Other Inputs'!$E$286),0) -> -317493 | F160: =ROUND(F159*(-'Other Inputs'!$E$285-'Other Inputs'!$E$286),0) -> -322211 | G160: =ROUND(G159*(-'Other Inputs'!$E$285-'Other Inputs'!$E$286),0) -> -316565 | H160: =ROUND(H159*(-'Other Inputs'!$E$285-'Other Inputs'!$E$286),0) -> -291468 | I160: =ROUND(I159*(-'Other Inputs'!$E$285-'Other Inputs'!$E$286),0) -> -306895 | J160: =ROUND(J159*(-'Other Inputs'!$E$285-'Other Inputs'!$E$286),0) -> -299259 | K160: =ROUND(K159*(-'Other Inputs'!$E$285-'Other Inputs'!$E$286),0) -> -305971 | L160: =ROUND(L159*(-'Other Inputs'!$E$285-'Other Inputs'!$E$286),0) -> -293355 | M160: =ROUND(M159*(-'Other Inputs'!$E$285-'Other Inputs'!$E$286),0) -> -302434 | N160: =ROUND(N159*(-'Other Inputs'!$E$285-'Other Inputs'!$E$286),0) -> -287612 | O160: =ROUND(O159*(-'Other Inputs'!$E$285-'Other Inputs'!$E$286),0) -> -287329 | P160: =SUM(D160:O160) -> -3650280
A161: Company Production @ City Gate | D161: =SUM(D159:D160) -> 5329609 | E161: =SUM(E159:E160) -> 5293009 | F161: 5371678 | G161: 5277551 | H161: 4859148 | I161: 5116337 | J161: 4989023 | K161: 5100922 | L161: 4890606 | M161: 5041953 | N161: 4794852 | O161: 4790134 | P161: =SUM(D161:O161) -> 60854822
A163: Peaking Withdrawal | D163: =+D135 -> 0 | E163: 0 | F163: 654850 | G163: 660914 | H163: 481400 | I163: 0 | J163: 0 | K163: 0 | L163: 0 | M163: 0 | N163: 0 | O163: 0 | P163: =SUM(D163:O163) -> 1797164
A164: Clay Basin Withdrawal | D164: =+D136 -> 0 | E164: 0 | F164: 3469875 | G164: 5393116 | H164: 3302102 | I164: 0 | J164: 0 | K164: 0 | L164: 0 | M164: 76036 | N164: 0 | O164: 0 | P164: =SUM(D164:O164) -> 12241129
A165: QPC Transportation Loss on Storage | D165: ='Monthly Inputs'!G67+'Monthly Inputs'!G59 -> 0 | E165: ='Monthly Inputs'!H67+'Monthly Inputs'!H59 -> 0 | F165: ='Monthly Inputs'!I67+'Monthly Inputs'!I59 -> -130994.3475 | G165: ='Monthly Inputs'!J67+'Monthly Inputs'!J59 -> -196645.3988 | H165: ='Monthly Inputs'!K67+'Monthly Inputs'!K59 -> -120234.8774 | I165: ='Monthly Inputs'!L67+'Monthly Inputs'!L59 -> 0 | J165: ='Monthly Inputs'!M67+'Monthly Inputs'!M59 -> 0 | K165: ='Monthly Inputs'!N67+'Monthly Inputs'!N59 -> 0 | L165: ='Monthly Inputs'!O67+'Monthly Inputs'!O59 -> 0 | M165: ='Monthly Inputs'!P67+'Monthly Inputs'!P59 -> -2562.4132 | N165: ='Monthly Inputs'!Q67+'Monthly Inputs'!Q59 -> 0 | O165: ='Monthly Inputs'!R67+'Monthly Inputs'!R59 -> 0 | P165: =SUM(D165:O165) -> -450437.0369
A166: Storage Lost & Unaccounted For | D166: ='Monthly Inputs'!G51 -> -77856.3109 | E166: ='Monthly Inputs'!H51 -> -46575.316 | F166: ='Monthly Inputs'!I51 -> -145.7834 | G166: ='Monthly Inputs'!J51 -> 0 | H166: ='Monthly Inputs'!K51 -> 0 | I166: ='Monthly Inputs'!L51 -> -283.95 | J166: ='Monthly Inputs'!M51 -> -30746.925 | K166: ='Monthly Inputs'!N51 -> -35831.8 | L166: ='Monthly Inputs'!O51 -> -35072.025 | M166: ='Monthly Inputs'!P51 -> -57762.925 | N166: ='Monthly Inputs'!Q51 -> -53926.05 | O166: ='Monthly Inputs'!R51 -> -29954.875 | P166: =SUM(D166:O166) -> -368155.9603
A167: Storage Supply @ City Gate | D167: =SUM(D163:D166) -> -77856.3109 | E167: =SUM(E163:E166) -> -46575.316 | F167: 3993584.869 | G167: 5857384.601 | H167: 3663267.123 | I167: -283.95 | J167: -30746.925 | K167: -35831.8 | L167: -35072.025 | M167: 15710.6618 | N167: -53926.05 | O167: -29954.875 | P167: 13219700
A169: Gas Purchased @ City Gate | D169: =D155-D161-D167-D154 -> 4443563.311 | E169: 8774792.316 | F169: 8298527.131 | G169: 9134329.399 | H169: 8789977.877 | I169: 7715174.95 | J169: 5433883.925 | K169: 1481343.8 | L169: 154193.025 | M169: 3918.3382 | N169: 78204.05 | O169: 260615.875 | P169: =SUM(D169:O169) -> 54568524
A170: Gas Reimbursement | D170: =+D171-D169 -> 84216.6891 | E170: =+E171-E169 -> 166304.684 | F170: 157277.8691 | G170: 173118.6012 | H170: 166592.1226 | I170: 146222.05 | J170: 102986.075 | K170: 28075.2 | L170: 2921.975 | M170: 74.6618 | N170: 1481.95 | O170: 4939.125 | P170: =SUM(D170:O170) -> 1034211.003
A171: Gas Purchased - Dth ( /.98) | D171: =ROUND(D169/(1-'Other Inputs'!$E$286),0) -> 4527780 | E171: =ROUND(E169/(1-'Other Inputs'!$E$286),0) -> 8941097 | F171: =ROUND(F169/(1-'Other Inputs'!$E$286),0) -> 8455805 | G171: =ROUND(G169/(1-'Other Inputs'!$E$286),0) -> 9307448 | H171: =ROUND(H169/(1-'Other Inputs'!$E$286),0) -> 8956570 | I171: =ROUND(I169/(1-'Other Inputs'!$E$286),0) -> 7861397 | J171: =ROUND(J169/(1-'Other Inputs'!$E$286),0) -> 5536870 | K171: =ROUND(K169/(1-'Other Inputs'!$E$286),0) -> 1509419 | L171: =ROUND(L169/(1-'Other Inputs'!$E$286),0) -> 157115 | M171: =ROUND(M169/(1-'Other Inputs'!$E$286),0) -> 3993 | N171: =ROUND(N169/(1-'Other Inputs'!$E$286),0) -> 79686 | O171: =ROUND(O169/(1-'Other Inputs'!$E$286),0) -> 265555 | P171: =SUM(D171:O171) -> 55602735
A173: Transported Volumes - total | D173: =+D161+D169+D137+D165 -> 9773172.311 | E173: 14067801.32 | F173: 17663935.78 | G173: 20269265 | H173: 17312393 | I173: 12831511.95 | J173: 10422906.93 | K173: 6582265.8 | L173: 5044799.025 | M173: 5119344.925 | N173: 4873056.05 | O173: 5050749.875 | P173: 129011202
A174: Kern transported volumes | D174: =HLOOKUP(MONTH(D5),kernrivertrans,6,FALSE) -> 75684.97695 | E174: 1293968.961 | F174: 1337101.259 | G174: 1337101.259 | H174: 1250836.662 | I174: 1337101.259 | J174: 73243.52608 | K174: 75684.97695 | L174: 73243.52608 | M174: 75684.97695 | N174: 75684.97695 | O174: 73243.52608
A175: Storage Fuel % | C175: =(P154-P166)/(P163+P164+P152+P153) -> 0.02543701331
A177: Company Production as % of Total Supply / Demand | D177: =D159/(D171+D159) -> 0.555100153 | E177: 0.3855591403 | F177: =F159/(F171+F159) -> 0.4024036845 | G177: 0.375404622 | H177: =H159/(H171+H159) -> 0.3651058404 | I177: 0.4082336059 | J177: 0.4885180365 | K177: 0.7817595562 | L177: 0.9705836427 | M177: 0.9992534188 | N177: 0.9845634087 | O177: =O159/(O171+O159) -> 0.9502986889 | P177: =P159/(P171+P159) -> 0.5370598923
A179: PURCHASES BREAKDOWN
A180: Spot Market Purchases | D180: ='Monthly Inputs'!G83 -> 4206090 | E180: ='Monthly Inputs'!H83 -> 6765510 | F180: ='Monthly Inputs'!I83 -> 1355800 | G180: ='Monthly Inputs'!J83 -> 1207090 | H180: ='Monthly Inputs'!K83 -> 2056160 | I180: ='Monthly Inputs'!L83 -> 6692780 | J180: ='Monthly Inputs'!M83 -> 5536780 | K180: ='Monthly Inputs'!N83 -> 1508880 | L180: ='Monthly Inputs'!O83 -> 126297 | M180: ='Monthly Inputs'!P83 -> 0 | N180: ='Monthly Inputs'!Q83 -> 69034 | O180: ='Monthly Inputs'!R83 -> 141875 | P180: =SUM(D180:O180) -> 29666296
A181: Spot Market Purchases Cost | D181: ='Monthly Inputs'!G84 -> 10893773.1 | E181: ='Monthly Inputs'!H84 -> 17522670.9 | F181: ='Monthly Inputs'!I84 -> 3728450 | G181: ='Monthly Inputs'!J84 -> 3391922.9 | H181: ='Monthly Inputs'!K84 -> 5592755.2 | I181: ='Monthly Inputs'!L84 -> 17602011.4 | J181: ='Monthly Inputs'!M84 -> 14174156.8 | K181: ='Monthly Inputs'!N84 -> 3953265.6 | L181: ='Monthly Inputs'!O84 -> 346053.78 | M181: ='Monthly Inputs'!P84 -> 0 | N181: ='Monthly Inputs'!Q84 -> 201579.28 | O181: ='Monthly Inputs'!R84 -> 414275 | P181: =SUM(D181:O181) -> 77820913.96
A183: Contract Purchases (Dth) | D183: ='Monthly Inputs'!G92 -> 0 | E183: ='Monthly Inputs'!H92 -> 900000 | F183: ='Monthly Inputs'!I92 -> 3100000 | G183: ='Monthly Inputs'!J92 -> 3100000 | H183: ='Monthly Inputs'!K92 -> 2900000 | I183: ='Monthly Inputs'!L92 -> 930000 | J183: ='Monthly Inputs'!M92 -> 0 | K183: ='Monthly Inputs'!N92 -> 0 | L183: ='Monthly Inputs'!O92 -> 0 | M183: ='Monthly Inputs'!P92 -> 0 | N183: ='Monthly Inputs'!Q92 -> 0 | O183: ='Monthly Inputs'!R92 -> 0 | P183: =SUM(D183:O183) -> 10930000
A184: Contract Purchases Cost Including Stabalization Costs | D184: ='Monthly Inputs'!G93+'Monthly Inputs'!G94 -> 0 | E184: ='Monthly Inputs'!H93+'Monthly Inputs'!H94 -> 2539890 | F184: ='Monthly Inputs'!I93+'Monthly Inputs'!I94 -> 8719928 | G184: ='Monthly Inputs'!J93+'Monthly Inputs'!J94 -> 8905928 | H184: ='Monthly Inputs'!K93+'Monthly Inputs'!K94 -> 8070352 | I184: ='Monthly Inputs'!L93+'Monthly Inputs'!L94 -> 2661753 | J184: ='Monthly Inputs'!M93+'Monthly Inputs'!M94 -> 0 | K184: ='Monthly Inputs'!N93+'Monthly Inputs'!N94 -> 0 | L184: ='Monthly Inputs'!O93+'Monthly Inputs'!O94 -> 0 | M184: ='Monthly Inputs'!P93+'Monthly Inputs'!P94 -> 0 | N184: ='Monthly Inputs'!Q93+'Monthly Inputs'!Q94 -> 0 | O184: ='Monthly Inputs'!R93+'Monthly Inputs'!R94 -> 0 | P184: =SUM(D184:O184) -> 30897851
A186: Peak Purchases (Dth) | D186: ='Monthly Inputs'!G89 -> 0 | E186: ='Monthly Inputs'!H89 -> 1000000 | F186: ='Monthly Inputs'!I89 -> 4000000 | G186: ='Monthly Inputs'!J89 -> 5000000 | H186: ='Monthly Inputs'!K89 -> 4000000 | I186: ='Monthly Inputs'!L89 -> 0 | J186: ='Monthly Inputs'!M89 -> 0 | K186: ='Monthly Inputs'!N89 -> 0 | L186: ='Monthly Inputs'!O89 -> 0 | M186: ='Monthly Inputs'!P89 -> 0 | N186: ='Monthly Inputs'!Q89 -> 0 | O186: ='Monthly Inputs'!R89 -> 0 | P186: =SUM(D186:O186) -> 14000000
A187: Peak Purchases Cost | D187: ='Monthly Inputs'!G90 -> 0 | E187: ='Monthly Inputs'!H90 -> 2754738.14 | F187: ='Monthly Inputs'!I90 -> 11644892.79 | G187: ='Monthly Inputs'!J90 -> 14868820.43 | H187: ='Monthly Inputs'!K90 -> 11515504.97 | I187: ='Monthly Inputs'!L90 -> 0 | J187: ='Monthly Inputs'!M90 -> 0 | K187: ='Monthly Inputs'!N90 -> 0 | L187: ='Monthly Inputs'!O90 -> 0 | M187: ='Monthly Inputs'!P90 -> 0 | N187: ='Monthly Inputs'!Q90 -> 0 | O187: ='Monthly Inputs'!R90 -> 0 | P187: =SUM(D187:O187) -> 40783956.32
A189: Future Purchases | D189: =+D171-D180-D183-D186 -> 321690 | E189: =+E171-E180-E183-E186 -> 275587 | F189: =+F171-F180-F183-F186 -> 5 | G189: =+G171-G180-G183-G186 -> 358 | H189: =+H171-H180-H183-H186 -> 410 | I189: =+I171-I180-I183-I186 -> 238617 | J189: =+J171-J180-J183-J186 -> 90 | K189: =+K171-K180-K183-K186 -> 539 | L189: 30818 | M189: =+M171-M180-M183-M186 -> 3993 | N189: 10652 | O189: 123680 | P189: =SUM(D189:O189) -> 1006439
A190: Future Purchases Cost | D190: =ROUND(D189*D197,0) -> 839611 | E190: =ROUND(E189*E197,0) -> 719282 | F190: =ROUND(F189*F197,0) -> 14 | G190: 1013 | H190: =ROUND(H189*H197,0) -> 1123 | I190: 632335 | J190: 232 | K190: 1423 | L190: 85058 | M190: 11500 | N190: 31317 | O190: 363619 | P190: =SUM(D190:O190) -> 2686527
A192: Total Purchases Cost | D192: =+D181+D184+D187+D190 -> 11733384.1 | E192: =+E181+E184+E187+E190 -> 23536581.04 | F192: =+F181+F184+F187+F190 -> 24093284.79 | G192: =+G181+G184+G187+G190 -> 27167684.33 | H192: =+H181+H184+H187+H190 -> 25179735.17 | I192: 20896099.4 | J192: =+J181+J184+J187+J190 -> 14174388.8 | K192: 3954688.6 | L192: 431111.78 | M192: 11500 | N192: 232896.28 | O192: =+O181+O184+O187+O190 -> 777894 | P192: 152189248.3
A194: Gas Cost
A195: Gas Cost Purchases | D195: =IF(D171=0,0,ROUND(D192/D171,5)) -> 2.59142 | E195: =IF(E171=0,0,ROUND(E192/E171,5)) -> 2.6324 | F195: 2.84932 | G195: 2.91892 | H195: 2.81131 | I195: 2.65806 | J195: 2.56 | K195: 2.62001 | L195: 2.74393 | M195: 2.88004 | N195: 2.92267 | O195: 2.92931
A196: Gas Cost Injection Rate | D196: ='Ut Storage'!K27 -> 4.456917033 | E196: =+D196 -> 4.456917033 | F196: 4.456917033 | G196: 4.456917033 | H196: 4.456917033 | I196: 4.456917033 | J196: 4.456917033 | K196: 4.456917033 | L196: 4.456917033 | M196: 4.456917033 | N196: 4.456917033 | O196: 4.456917033
A197: =CONCATENATE("'Future Contract Price (spot + $",'Other Inputs'!E169,")") -> 'Future Contract Price (spot + $0.02) | D197: =+D229+'Other Inputs'!$E$169 -> 2.61 | E197: =+E229+'Other Inputs'!$E$169 -> 2.61 | F197: =+F229+'Other Inputs'!$E$169 -> 2.77 | G197: =+G229+'Other Inputs'!$E$169 -> 2.83 | H197: =+H229+'Other Inputs'!$E$169 -> 2.74 | I197: =+I229+'Other Inputs'!$E$169 -> 2.65 | J197: =+J229+'Other Inputs'!$E$169 -> 2.58 | K197: =+K229+'Other Inputs'!$E$169 -> 2.64 | L197: =+L229+'Other Inputs'!$E$169 -> 2.76 | M197: =+M229+'Other Inputs'!$E$169 -> 2.88 | N197: =+N229+'Other Inputs'!$E$169 -> 2.94 | O197: =+O229+'Other Inputs'!$E$169 -> 2.94
A199: System Production | D199: =+D161 -> 5329609 | E199: 5293009 | F199: 5371678 | G199: 5277551 | H199: 4859148 | I199: 5116337 | J199: 4989023 | K199: 5100922 | L199: 4890606 | M199: 5041953 | N199: 4794852 | O199: 4790134 | P199: =SUM(D199:O199) -> 60854822
A200: System Purchases | D200: =+D169 -> 4443563.311 | E200: 8774792.316 | F200: 8298527.131 | G200: 9134329.399 | H200: 8789977.877 | I200: 7715174.95 | J200: 5433883.925 | K200: 1481343.8 | L200: 154193.025 | M200: 3918.3382 | N200: 78204.05 | O200: 260615.875 | P200: =SUM(D200:O200) -> 54568524
A201: System Gathering of Production | D201: =ROUND($P201*D$120/$P$120,0) -> 3346619 | E201: 3323637 | F201: 3373035 | G201: 3313930 | H201: 3051203 | I201: 3212699 | J201: 3132755 | K201: 3203020 | L201: 3070956 | M201: 3165992 | N201: 3010830 | O201: 3007867 | P201: ='Other Inputs'!$D$174 -> 38212543.43
A202: System Birch Creek Gathering | D202: =ROUND($P202*D$120/$P$120,0) -> 0 | E202: 0 | F202: 0 | G202: 0 | H202: 0 | I202: 0 | J202: 0 | K202: 0 | L202: 0 | M202: 0 | N202: 0 | O202: 0 | P202: ='Other Inputs'!$D$158 -> 0
A204: Utah Production | D204: =ROUND(D199*$I$74,0) -> 5134311 | E204: 5099053 | F204: 5174839 | G204: 5084161 | H204: 4681090 | I204: 4928854 | J204: 4806206 | K204: 4914004 | L204: 4711395 | M204: 4857196 | N204: 4619150 | O204: 4614605 | P204: =SUM(D204:O204) -> 58624864
A205: Utah Purchases | D205: =ROUND(D200*$I$74,0) -> 4280734 | E205: 8453250 | F205: 7994437 | G205: 8799612 | H205: 8467879 | I205: 7432461 | J205: 5234765 | K205: 1427062 | L205: 148543 | M205: 3775 | N205: 75338 | O205: 251066 | P205: =SUM(D205:O205) -> 52568922
A206: Utah Gathering | D206: =ROUND(D201*$I$74,0) -> 3223986 | E206: 3201846 | F206: 3249434 | G206: 3192495 | H206: 2939395 | I206: 3094973 | J206: 3017959 | K206: 3085649 | L206: 2958424 | M206: 3049978 | N206: 2900501 | O206: 2897647 | P206: =SUM(D206:O206) -> 36812287
A207: Utah Birch Creek Gathering | D207: =ROUND(D202*$I$74,0) -> 0 | E207: 0 | F207: 0 | G207: 0 | H207: 0 | I207: 0 | J207: 0 | K207: 0 | L207: 0 | M207: 0 | N207: 0 | O207: 0 | P207: =SUM(D207:O207) -> 0
A209: Wyoming Production | D209: =+D199-D204 -> 195298 | E209: 193956 | F209: 196839 | G209: 193390 | H209: 178058 | I209: 187483 | J209: 182817 | K209: 186918 | L209: 179211 | M209: 184757 | N209: 175702 | O209: 175529 | P209: =SUM(D209:O209) -> 2229958
A210: Wyoming Purchases | D210: =+D200-D205 -> 162829.3109 | E210: 321542.316 | F210: 304090.1309 | G210: 334717.3988 | H210: 322098.8774 | I210: 282713.95 | J210: 199118.925 | K210: 54281.8 | L210: 5650.025 | M210: 143.3382 | N210: 2866.05 | O210: 9549.875 | P210: =SUM(D210:O210) -> 1999601.997
A211: Wyoming Gathering | D211: =+D201-D206 -> 122633 | E211: 121791 | F211: 123601 | G211: 121435 | H211: 111808 | I211: 117726 | J211: 114796 | K211: 117371 | L211: 112532 | M211: 116014 | N211: 110329 | O211: 110220 | P211: =SUM(D211:O211) -> 1400256
A212: Wyoming Birch Creek Gathering | D212: =+D202-D207 -> 0 | E212: 0 | F212: 0 | G212: 0 | H212: 0 | I212: 0 | J212: 0 | K212: 0 | L212: 0 | M212: 0 | N212: 0 | O212: 0 | P212: =SUM(D212:O212) -> 0
A215: I-2, I-4 Averate Gas Cost Calculations
A216: Wyoming
B217: Wyoming I-2 Volumes | D217: =D34 -> 10936 | E217: 15799 | F217: 20337 | G217: 21886 | H217: 15596 | I217: 14625 | J217: 16669 | K217: 14012 | L217: 9908 | M217: 7194 | N217: 6656 | O217: 9492 | P217: 163110
B218: Wyoming I-4 Volumes | D218: =D35 -> 0 | E218: 0 | F218: 0 | G218: 0 | H218: 0 | I218: 0 | J218: 0 | K218: 0 | L218: 0 | M218: 0 | N218: 0 | O218: 0 | P218: 0
D219: =SUM(D217:D218) -> 10936 | E219: =SUM(E217:E218) -> 15799 | F219: 20337 | G219: 21886 | H219: 15596 | I219: 14625 | J219: 16669 | K219: 14012 | L219: 9908 | M219: 7194 | N219: 6656 | O219: 9492 | P219: 163110
B221: Global Insight Spot Price Forecast | D221: ='Monthly Inputs'!G79 -> 2.59 | E221: ='Monthly Inputs'!H79 -> 2.59 | F221: ='Monthly Inputs'!I79 -> 2.75 | G221: ='Monthly Inputs'!J79 -> 2.81 | H221: ='Monthly Inputs'!K79 -> 2.72 | I221: ='Monthly Inputs'!L79 -> 2.63 | J221: ='Monthly Inputs'!M79 -> 2.56 | K221: ='Monthly Inputs'!N79 -> 2.62 | L221: ='Monthly Inputs'!O79 -> 2.74 | M221: ='Monthly Inputs'!P79 -> 2.86 | N221: ='Monthly Inputs'!Q79 -> 2.92 | O221: ='Monthly Inputs'!R79 -> 2.92
D222: =D219*D221 -> 28324.24 | E222: =E219*E221 -> 40919.41 | F222: 55926.75 | G222: 61499.66 | H222: 42421.12 | I222: 38463.75 | J222: 42672.64 | K222: 36711.44 | L222: 27147.92 | M222: 20574.84 | N222: 19435.52 | O222: 27716.64 | P222: =SUM(D222:O222) -> 441813.93
P223: =P222/P219 -> 2.70868696
P224: =1-'Other Inputs'!$E$284 -> 0.985
P225: =1-'Other Inputs'!$E$286 -> 0.9814
P226: =P223/P224/P225 -> 2.802054208
A227: Utah
B228: Utah I-4 & IS-4 Volumes | D228: =D15+D16 -> 112463 | E228: 133275 | F228: 109177 | G228: 100693 | H228: 70230 | I228: 65741 | J228: 79195 | K228: 111927 | L228: 108368 | M228: 113969 | N228: 88288 | O228: 106609 | P228: 1199935
B229: =B221 -> Global Insight Spot Price Forecast | D229: ='Monthly Inputs'!G79 -> 2.59 | E229: ='Monthly Inputs'!H79 -> 2.59 | F229: ='Monthly Inputs'!I79 -> 2.75 | G229: ='Monthly Inputs'!J79 -> 2.81 | H229: ='Monthly Inputs'!K79 -> 2.72 | I229: ='Monthly Inputs'!L79 -> 2.63 | J229: ='Monthly Inputs'!M79 -> 2.56 | K229: ='Monthly Inputs'!N79 -> 2.62 | L229: ='Monthly Inputs'!O79 -> 2.74 | M229: ='Monthly Inputs'!P79 -> 2.86 | N229: ='Monthly Inputs'!Q79 -> 2.92 | O229: ='Monthly Inputs'!R79 -> 2.92
D230: =D228*D229 -> 291279.17 | E230: =E228*E229 -> 345182.25 | F230: 300236.75 | G230: 282947.33 | H230: 191025.6 | I230: 172898.83 | J230: 202739.2 | K230: 293248.74 | L230: 296928.32 | M230: 325951.34 | N230: 257800.96 | O230: =O228*O229 -> 311298.28 | P230: =SUM(D230:O230) -> 3271536.77
P231: =P230/P228 -> 2.726428323
P232: =1-'Other Inputs'!$E$283 -> 0.994814 | Q232: QGC Lost & Unaccounted For % (Utah
P233: =1-'Other Inputs'!$E$286 -> 0.9814 | Q233: QPC Lost & Unaccounted For %
P235: =P231/P232/P233 -> 2.792583339
D237: =MONTH(D238) -> 1 | E237: =MONTH(E238) -> 2 | F237: =MONTH(F238) -> 3 | G237: 4 | H237: 5 | I237: 6 | J237: 7 | K237: 8 | L237: 9 | M237: 10 | N237: 11 | O237: 12
D238: 2011-01-01 | E238: 2011-02-01 | F238: 2011-03-01 | G238: 2011-04-01 | H238: 2011-05-01 | I238: 2011-06-01 | J238: 2011-07-01 | K238: 2010-08-01 | L238: 2010-09-01 | M238: 2010-10-01 | N238: 2010-11-01 | O238: 2010-12-01
D239: 31 | E239: 29 | F239: 31 | G239: 30 | H239: 31 | I239: 30 | J239: 31 | K239: 31 | L239: 30 | M239: 31 | N239: 30 | O239: 31
D240: ='Other Inputs'!$D$54+'Other Inputs'!$D$55 -> 53000 | E240: ='Other Inputs'!$D$54+'Other Inputs'!$D$55 -> 53000 | F240: ='Other Inputs'!$D$54+'Other Inputs'!$D$55 -> 53000 | G240: ='Other Inputs'!$D$54 -> 3000 | H240: ='Other Inputs'!$D$54 -> 3000 | I240: ='Other Inputs'!$D$54 -> 3000 | J240: ='Other Inputs'!$D$54 -> 3000 | K240: ='Other Inputs'!$D$54 -> 3000 | L240: ='Other Inputs'!$D$54 -> 3000 | M240: ='Other Inputs'!$D$54 -> 3000 | N240: ='Other Inputs'!$D$54+'Other Inputs'!$D$55 -> 53000 | O240: ='Other Inputs'!$D$54+'Other Inputs'!$D$55 -> 53000
D241: ='Other Inputs'!$C$60 -> 0.8138169565 | E241: ='Other Inputs'!$C$60 -> 0.8138169565 | F241: ='Other Inputs'!$C$60 -> 0.8138169565 | G241: ='Other Inputs'!$C$60 -> 0.8138169565 | H241: ='Other Inputs'!$C$60 -> 0.8138169565 | I241: ='Other Inputs'!$C$60 -> 0.8138169565 | J241: ='Other Inputs'!$C$60 -> 0.8138169565 | K241: ='Other Inputs'!$C$60 -> 0.8138169565 | L241: ='Other Inputs'!$C$60 -> 0.8138169565 | M241: ='Other Inputs'!$C$60 -> 0.8138169565 | N241: ='Other Inputs'!$C$60 -> 0.8138169565 | O241: ='Other Inputs'!$C$60 -> 0.8138169565
D242: =D239*D240*D241 -> 1337101.259 | E242: =E239*E240*E241 -> 1250836.662 | F242: 1337101.259 | G242: 73243.52608 | H242: 75684.97695 | I242: 73243.52608 | J242: 75684.97695 | K242: 75684.97695 | L242: 73243.52608 | M242: 75684.97695 | N242: 1293968.961 | O242: 1337101.259 | P242: =SUM(D242:O242) -> 7078579.887
D246: 0.13 | E246: 0.14 | F246: 0.05 | G246: 0.05 | H246: 0.02 | I246: 0.02 | J246: 0.02 | K246: 0.02 | L246: 0.01 | M246: 0 | N246: 0 | O246: 0
D247: =D246*(D180+D183+D186+D189) -> 588611.4 | E247: 1251753.58 | F247: 422790.25 | G247: 465372.4 | H247: 179131.4 | I247: 157227.94 | J247: 110737.4 | K247: 30188.38 | L247: 1571.15 | M247: 0 | N247: 0 | O247: 0

Sheet Utah Summary-by class
A1: UTAH SUMMARY
B2: NOT AN EXHIBIT !!!
Q3: Sub Total
C4: COMMODITY | J4: SNG | Q4: TOTAL
C5: Current | D5: Proposed | E5: Current | F5: Proposed | G5: Revenue | H5: % | J5: Current | K5: Proposed | L5: Current | M5: Proposed | N5: Revenue | O5: % | Q5: Revenue | R5: %
A6: RATE | B6: Dth Sales | C6: Rates | D6: Rates | E6: Revenue | F6: Revenue | G6: Difference | H6: Change | J6: Rates | K6: Rates | L6: Revenue | M6: Revenue | N6: Difference | O6: Change | Q6: Difference | R6: Change
A8: GS (W) | B8: =Calculations!P52 -> 73595600 | C8: ='Ut 1.6 p1'!$H$33 -> 4.27079 | D8: =ROUND('Ut 1.6 p1'!$F$33,5) -> 4.10429 | E8: =ROUND(B8*C8,0) -> 314311353 | F8: =ROUND(B8*D8,0) -> 302057685 | G8: =(F8-E8) -> -12253668 | J8: ='Ut 1.6 p3'!E16 -> 1.25283 | K8: ='Ut 1.6 p3'!I16 -> 1.25858 | L8: =ROUND(B8*J8,0) -> 92202776 | M8: =B8*K8 -> 92625950.25 | N8: =(M8-L8) -> 423174.248 | Q8: =G8+N8 -> -11830493.75
A9: GS (S) | B9: =Calculations!P53 -> 28682418 | C9: ='Ut 1.6 p1'!$H$33 -> 4.27079 | D9: =D8 -> 4.10429 | E9: =ROUND(B9*C9,0) -> 122496584 | F9: =ROUND(B9*D9,0) -> 117720961 | G9: =(F9-E9) -> -4775623 | J9: ='Ut 1.6 p3'!E17 -> 0.58822 | K9: ='Ut 1.6 p3'!I17 -> 0.59092 | L9: =ROUND(B9*J9,0) -> 16871572 | M9: =B9*K9 -> 16949014.44 | N9: =(M9-L9) -> 77442.44456 | Q9: =G9+N9 -> -4698180.555
A10: Total | B10: =SUM(B8:B9) -> 102278018 | E10: =SUM(E8:E9) -> 436807937 | F10: =SUM(F8:F9) -> 419778646 | G10: =SUM(G8:G9) -> -17029291 | H10: =IF(G10=0,0,G10/E10) -> -0.03898576367 | L10: =SUM(L8:L9) -> 109074348 | M10: =SUM(M8:M9) -> 109574964.7 | N10: =SUM(N8:N9) -> 500616.6926 | O10: =IF(N10=0,0,N10/L10) -> 0.004589683108 | Q10: =SUM(Q8:Q9) -> -16528674.31 | R10: =IF(Q10=0,0,Q10/(E10+L10)) -> -0.03027882524
A13: FS (W) | B13: =Calculations!P58 -> 2500791 | C13: ='Ut 1.6 p1'!$H$33 -> 4.27079 | D13: =D8 -> 4.10429 | E13: =ROUND(B13*C13,0) -> 10680353 | F13: =ROUND(B13*D13,0) -> 10263971 | G13: =(F13-E13) -> -416382 | J13: ='Ut 1.6 p3'!E19 -> 1.2202 | K13: ='Ut 1.6 p3'!I19 -> 1.2258 | L13: =ROUND(B13*J13,0) -> 3051465 | M13: =B13*K13 -> 3065469.608 | N13: =(M13-L13) -> 14004.6078 | Q13: =G13+N13 -> -402377.3922
A14: FS (S) | B14: =Calculations!P59 -> 2400336 | C14: ='Ut 1.6 p1'!$H$33 -> 4.27079 | D14: =D9 -> 4.10429 | E14: =ROUND(B14*C14,0) -> 10251331 | F14: =ROUND(B14*D14,0) -> 9851675 | G14: =(F14-E14) -> -399656 | J14: ='Ut 1.6 p3'!E20 -> 0.58822 | K14: ='Ut 1.6 p3'!I20 -> 0.59092 | L14: =ROUND(B14*J14,0) -> 1411926 | M14: =B14*K14 -> 1418406.549 | N14: =(M14-L14) -> 6480.54912 | Q14: =G14+N14 -> -393175.4509
A15: Total | B15: =SUM(B13:B14) -> 4901127 | E15: =SUM(E13:E14) -> 20931684 | F15: =SUM(F13:F14) -> 20115646 | G15: =SUM(G13:G14) -> -816038 | H15: =IF(G15=0,0,G15/E15) -> -0.03898577869 | L15: =SUM(L13:L14) -> 4463391 | M15: =SUM(M13:M14) -> 4483876.157 | N15: =SUM(N13:N14) -> 20485.15692 | O15: =IF(N15=0,0,N15/L15) -> 0.004589594978 | Q15: =SUM(Q13:Q14) -> -795552.8431 | R15: =IF(Q15=0,0,Q15/(E15+L15)) -> -0.03132705232
A18: NGV | B18: =Calculations!P12 -> 619877 | C18: ='Ut 1.6 p1'!$H$33 -> 4.27079 | D18: =D8 -> 4.10429 | E18: =ROUND(B18*C18,0) -> 2647364 | F18: =ROUND(B18*D18,0) -> 2544155 | G18: =(F18-E18) -> -103209 | H18: =IF(G18=0,0,G18/E18) -> -0.03898557206 | J18: ='Ut 1.6 p3'!E22 -> 0.90407 | K18: ='Ut 1.6 p3'!I22 -> 0.90822 | L18: =ROUND(B18*J18,0) -> 560412 | M18: =ROUND(B18*K18,0) -> 562985 | N18: =(M18-L18) -> 2573 | O18: =IF(N18=0,0,N18/L18) -> 0.004591264998 | Q18: =G18+N18 -> -100636 | R18: =IF(Q18=0,0,Q18/(E18+L18)) -> -0.03137251479
A21: IS | B21: =Calculations!P17 -> 1199935 | C21: ='Ut 1.6 p1'!$H$33 -> 4.27079 | D21: =D8 -> 4.10429 | E21: =ROUND(B21*C21,0) -> 5124670 | F21: =ROUND(B21*D21,0) -> 4924881 | G21: =(F21-E21) -> -199789 | H21: =IF(G21=0,0,G21/E21) -> -0.03898572981 | J21: ='Ut 1.6 p3'!E24 -> 0.1788 | K21: ='Ut 1.6 p3'!I24 -> 0.17885 | L21: =ROUND(B21*J21,0) -> 214548 | M21: =ROUND(B21*K21,0) -> 214608 | N21: =(M21-L21) -> 60 | O21: =IF(N21=0,0,N21/L21) -> 0.000279657699 | Q21: =G21+N21 -> -199729 | R21: =IF(Q21=0,0,Q21/(E21+L21)) -> -0.03740791254
B23: - | E23: - | F23: - | G23: - | L23: ------------------- | M23: ------------------- | N23: ------------------- | Q23: -------------------
B24: =B10+B15+B18+B21 -> 108998957 | E24: =E10+E15+E18+E21 -> 465511655 | F24: =F10+F15+F18+F21 -> 447363328 | G24: =G10+G15+G18+G21 -> -18148327 | H24: =IF(G24=0,0,G24/E24) -> -0.03898576288 | L24: =L10+L15+L18+L21 -> 114312699 | M24: =M10+M15+M18+M21 -> 114836433.8 | N24: =N10+N15+N18+N21 -> 523734.8495 | O24: =IF(N24=0,0,N24/L24) -> 0.004581598143 | Q24: =Q10+Q15+Q18+Q21 -> -17624592.15 | R24: =IF(Q24=0,0,Q24/(E24+L24)) -> -0.03039643304
G25: =IF(G24>0,"Commodity Increase","Commodity Decrease") -> Commodity Decrease | N25: =IF(N24>0,"Increase to SNG","Decrease to SNG") -> Increase to SNG
B26: NOT AN EXHIBIT !!!
G27: =ROUND(G24,-3) -> -18148000 | N27: =ROUND(N24,-3) -> 524000 | Q27: =ROUND(Q24,-3) -> -17625000
G28: Rounded | N28: Rounded | Q28: Rounded

Sheet Model Checks
B2: Model Checks
B3: If the total of all checks is not zero, or very close to zero, find the checks below that are out of balance and follow the calculations
B4: back through the model and correct any errors.
D6: Total of all Checks
D7: =ABS(SUM(D10:D1993)) -> 1.19950451
B9: Forecasted Demand
C10: Utah | D10: =Calculations!P25-'RevRun Fcst'!T205 -> 0
C11: Wyoming | D11: =Calculations!P44-'RevRun Fcst'!T329 -> 0
C12: Total System | D12: =Calculations!P47-'RevRun Fcst'!T370 -> 0
B13: Forecasted Utah Demand Check by Month
C14: 1 | D14: =Calculations!D25-'RevRun Fcst'!H205 -> 0
C15: 2 | D15: =Calculations!E25-'RevRun Fcst'!I205 -> 0
C16: 3 | D16: =Calculations!F25-'RevRun Fcst'!J205 -> 0
C17: 4 | D17: =Calculations!G25-'RevRun Fcst'!K205 -> 0
C18: 5 | D18: =Calculations!H25-'RevRun Fcst'!L205 -> 0
C19: 6 | D19: =Calculations!I25-'RevRun Fcst'!M205 -> 0
C20: 7 | D20: =Calculations!J25-'RevRun Fcst'!N205 -> 0
C21: 8 | D21: =Calculations!K25-'RevRun Fcst'!O205 -> 0
C22: 9 | D22: =Calculations!L25-'RevRun Fcst'!P205 -> 0
C23: 10 | D23: =Calculations!M25-'RevRun Fcst'!Q205 -> 0
C24: 11 | D24: =Calculations!N25-'RevRun Fcst'!R205 -> 0
C25: 12 | D25: =Calculations!O25-'RevRun Fcst'!S205 -> 0
C26: Wyoming I-2 and I-4 Revenues | D26: =('RevRun Fcst'!T273+'RevRun Fcst'!T282)-Calculations!P65 -> 0
C27: System Sales Volumes | D27: =Calculations!H76-'RevRun Fcst'!T368 -> 0
C28: Utah Sales Volumes | D28: =Calculations!P20-'Utah Summary-by class'!B24 -> 0
B29: Company Production | D29: =Calculations!P120-'Monthly Inputs'!S7-'Monthly Inputs'!S13 -> 0
B30: Injections | D30: ='Monthly Inputs'!S29-SUM('Monthly Inputs'!S23:S28) -> 0
B31: Withdrawls | D31: ='Monthly Inputs'!S37-SUM('Monthly Inputs'!S32:S36) -> 0
B32: Injections & Withdrawls | D32: =SUM('Ut 1.3 p2'!D23:D28)-'Monthly Inputs'!S29-'Monthly Inputs'!S37 -> 0
B33: Injections | D33: =Calculations!P129-'Monthly Inputs'!S29 -> 0
B34: Withdrawls | D34: =Calculations!P137-'Monthly Inputs'!S37 -> 0
B35: Sales for Resale | D35: =Expenses!S445-Calculations!P86 -> 0
B36: Incidental Plant Prod Sales | D36: =Expenses!S446-Calculations!P87 -> 0
B37: Incidental Gas & Oil Sales | D37: =Expenses!S447-Calculations!P89 -> 0
B38: Gasoline and Oil Costs | D38: =Expenses!S450+Calculations!P90 -> 0
B39: Wexpro Revenue Sharing | D39: =Expenses!S449-Calculations!P94 -> 0
B40: Storage Gas | D40: ='Rate Base'!U216-Calculations!P99 -> 0
B41: 101 Production | D41: ='Rate Base'!U158-Calculations!P100 -> 0
B42: 108 Production | D42: ='Rate Base'!U176-Calculations!P101 -> 0
B43: 111 Production | D43: ='Rate Base'!U183-Calculations!P102 -> 0
B44: 255 Production | D44: ='Rate Base'!U251-Calculations!P103 -> 0
B45: 282 Production | D45: ='Rate Base'!U258-Calculations!P104 -> 0
B46: 282.1 Production | D46: ='Rate Base'!U265-Calculations!P105 -> 0
B47: Production Rate Base | D47: =SUM(Calculations!P99:P105)-'Rate Base'!U285 -> 0
B48: Purchased Gas Cost | D48: ='Ut 1.2'!G24-Calculations!P192 -> -0.2849999964
B49: Working Gas Rate Base | D49: =Calculations!P99-'Ut 1.3 p2'!D53 -> 0
B50: Allocations | D50: ='Ut 1.5'!E41-'Ut 1.5'!F41-'Ut 1.5'!G41+'Ut 1.5'!G39 -> 1.192092896e-07
B52: System Sales | D52: ='SDR#1'!C10-'RevRun Fcst'!T368 -> 0
B53: Lost & Unaccounted For | D53: ='SDR#1'!C15-(('SDR#1'!C10+'SDR#1'!C11)/(1-'Other Inputs'!E283)) -> 1.010910586
B54: Supply / Demand | D54: ='SDR#1'!C36-'SDR#1'!C15 -> -0.08527800441
B55: System Sales | D55: ='SDR#3'!H36-'SDR#1'!C10 -> 0
B56: SNG Revenue | D56: ='SDR#4'!G23-'Utah Summary-by class'!L24 -> -0.1385299861
B57: Utah Sales | D57: ='SDR#3'!D36-'SDR#4'!E23 -> 0
B58: Utah Sales | D58: ='SDR#2'!G59+'Ut 1.6 p1'!J22 -> 0.6974017918
B59: Seasonal Volumes | D59: =Calculations!P52+Calculations!P53-Calculations!P7-Calculations!P8 -> 0
B60: Seasonal Volumes | D60: =Calculations!P55+Calculations!P56-Calculations!P9 -> 0
B61: Seasonal Volumes | D61: =Calculations!P58+Calculations!P59-Calculations!P10 -> 0

Sheet SDR#1
E1: ='Control Panel'!E32 -> Questar Gas Company
E2: ='Control Panel'!E33 -> Docket No. 15-057-11
B4: Standard Data Request #1
B5: Summary of Sources of Supply and Demand
A8: 1 | B8: DEMAND | C8: Total | D8: Utah | E8: Wyoming
A10: =A8+1 -> 2 | B10: SALES IN DTHS | C10: =D10+E10 -> 113145032 | D10: =Calculations!P20 -> 108998957 | E10: =Calculations!P39 -> 4146075
A11: =A10+1 -> 3 | B11: DIST. CO. USE & | C11: 0
A12: =A11+1 -> 4 | B12: DIST. LOST & UNACCT. (0.49%) | C12: =Calculations!P148 -> 589830
A15: =A12+1 -> 5 | B15: TOTAL | C15: =SUM(C10:C12) -> 113734862
A19: =A15+1 -> 6 | B19: SUPPLY | C19: Total | D19: Utah | E19: Wyoming
A21: =A19+1 -> 7 | B21: COMPANY PRODUCTION | C21: ='Ut 1.1'!F1420+'Ut 1.1'!F1520 -> 64505102 | D21: =$D$10/$C$10*C21 -> 62141383.63 | E21: =$E$10/$C$10*C21 -> 2363718.371
A22: =A21+1 -> 8 | B22: GAS REIMBURSEMENT | C22: =C21*-'Other Inputs'!$E$287 -> -3650279.217 | D22: =D21*-'Other Inputs'!$E$287 -> -3516518.758 | E22: =E21*-'Other Inputs'!$E$287 -> -133760.4589
A25: =A22+1 -> 9 | B25: CONTRACT GAS | C25: ='Ut 1.2'!E24 -> 55602735 | D25: =$D$10/$C$10*C25 -> 53565234.06 | E25: =$E$10/$C$10*C25 -> 2037500.944
A26: =A25+1 -> 10 | B26: GAS REIMBURSEMENT | C26: =C25*-'Other Inputs'!$E$286 -> -1034210.871 | D26: =D25*-'Other Inputs'!$E$286 -> -996313.3534 | E26: =E25*-'Other Inputs'!$E$286 -> -37897.51756
A28: =A26+1 -> 11 | B28: STORAGE
A29: =A28+1 -> 12 | B29: INJECTIONS | C29: ='Ut 1.4 p2'!E22 -> -14908184 | D29: =$D$10/$C$10*C29 -> -14361890.03 | E29: =$E$10/$C$10*C29 -> -546293.9723
A30: =A29+1 -> 13 | B30: WITHDRAWALS | C30: ='Ut 1.4 p2'!E21 -> 14038293 | D30: =$D$10/$C$10*C30 -> 13523875.22 | E30: =$E$10/$C$10*C30 -> 514417.7753
A31: =A30+1 -> 14 | B31: NET (INJECTIONS) WITHDRAWALS | C31: =C29+C30 -> -869891 | D31: =D29+D30 -> -838014.803 | E31: =E29+E30 -> -31876.19698
A33: =A31+1 -> 15 | B33: Storage Fuel | C33: =Calculations!P165+Calculations!P166-1 -> -818593.9972 | D33: =D10/C10*C33 -> -788597.5223 | E33: =E10/C10*C33 -> -29996.47485
A36: =A33+1 -> 16 | B36: TOTAL SUPPLY | C36: =C21+C22+C25+C26+C29+C30+C33 -> 113734861.9 | D36: =SUM(D21:D30)+D33 -> 109567173.2 | E36: =SUM(E21:E30)+E33 -> 4167688.667
A38: =A36+1 -> 17 | B38: Company Use & Loss % | C38: =(+C36-C10)/C36 -> 0.005186008096 | D38: =(+D36-D10)/D36 -> 0.005186008096 | E38: =(+E36-E10)/E36 -> 0.005186008096
B41: Difference | C41: =C15-C36 -> 0.08527800441

Sheet SDR#2
H1: ='Control Panel'!E32 -> Questar Gas Company
H2: ='Control Panel'!E33 -> Docket No. 15-057-11
A5: Standard Data Request #2
A6: Supplier Non-Gas Costs
B8: (A) | C8: (B) | D8: (C) | E8: (D) | F8: (E) | G8: (F) | T8: withdraw
A9: I. Transportation (QPC T-1) | C9: Volume (Dth) | G9: Utah Total | J9: Utah gas | K9: Utah Co. | L9: Utah gas | M9: Wyo gas | N9: Wyo Co. | O9: Wyo gas | Q9: @city gate | R9: @city gate | T9: loss | U9: Kern River
B10: Month | C10: Utah | D10: Wyoming | E10: $/dth | F10: Demand | G10: b*d+e*(Ut %) | J10: purchased | K10: production | L10: withdrawn | M10: purchased | N10: production | O10: withdrawn | P10: Total | Q10: purchased | R10: co production | S10: withdrawls | T10: =-Calculations!P165/Calculations!P137 -> 0.03208631113 | U10: Transportation
B12: ='Ut Storage'!B11 -> Oct15 | C12: =J12+K12+L12-(T12+$B$43*U12)*$J$39 -> 8081127.746 | D12: =M12+N12+O12-(T12+$B$43*U12)*$K$39 -> 307387.9113 | E12: ='Other Inputs'!$F$38 -> 0.00267 | F12: =('Other Inputs'!$D$22)*('Other Inputs'!$F$22)-('Other Inputs'!$E$291/12)+('Other Inputs'!$D$30*'Other Inputs'!$F$30) -> 4397398.408 | G12: =(+C12)*E12+F12*$J$33/$L$33 -> 4289304.286 | J12: =Q12*$J$39 -> 4280733.831 | K12: =R12*$J$39 -> 5134311.352 | L12: =S12*$J$39 -> 0 | M12: =Q12-J12 -> 162829.4803 | N12: =R12-K12 -> 195297.648 | O12: =S12-L12 -> 0 | P12: =SUM(J12:O12)-U12 -> 8071737.311 | Q12: =Calculations!D169 -> 4443563.311 | R12: =Calculations!D161 -> 5329609 | S12: =Calculations!D163+Calculations!D164 -> 0 | T12: =S12*$T$10 -> 0 | U12: =V12*W12 -> 1701435 | V12: 54885 | W12: 31 | X12: =B12 -> Oct15
B13: ='Ut Storage'!B12 -> Nov15 | C13: =J13+K13+L13-(T13+$B$43*U13)*$J$39 -> 12261414.4 | D13: =M13+N13+O13-(T13+$B$43*U13)*$K$39 -> 466396.607 | E13: ='Other Inputs'!$F$38 -> 0.00267 | F13: =('Other Inputs'!$D$22)*('Other Inputs'!$F$22)-('Other Inputs'!$E$291/12)+('Other Inputs'!$D$30*'Other Inputs'!$F$30) -> 4397398.408 | G13: 4300465.652 | J13: =Q13*$J$39 -> 8453249.722 | K13: 5099052.519 | L13: 0 | M13: 321542.5937 | N13: 193956.4814 | O13: 0 | P13: =SUM(J13:O13)-U13 -> 12421251.32 | Q13: =Calculations!E169 -> 8774792.316 | R13: =Calculations!E161 -> 5293009 | S13: =Calculations!E163+Calculations!E164 -> 0 | T13: =S13*$T$10 -> 0 | U13: =V13*W13 -> 1646550 | V13: 54885 | W13: 30 | X13: =B13 -> Nov15
B14: ='Ut Storage'!B13 -> Dec15 | C14: 15681439.6 | D14: 596486.6681 | E14: ='Other Inputs'!$F$38 -> 0.00267 | F14: =('Other Inputs'!$D$22)*('Other Inputs'!$F$22)-('Other Inputs'!$E$291/12)+('Other Inputs'!$D$30*'Other Inputs'!$F$30) -> 4397398.408 | G14: 4309597.119 | J14: =Q14*$J$39 -> 7994436.75 | K14: 5174838.78 | L14: 3973578.998 | M14: 304090.3809 | N14: 196839.2202 | O14: 151146.0017 | P14: 16093495.13 | Q14: =Calculations!F169 -> 8298527.131 | R14: =Calculations!F161 -> 5371678 | S14: =Calculations!F163+Calculations!F164 -> 4124725 | T14: 132347.2097 | U14: =V14*W14 -> 1701435 | V14: 54885 | W14: 31 | X14: Dec15
B15: ='Ut Storage'!B14 -> Jan16 | C15: 18194908.87 | D15: 692093.3822 | E15: ='Other Inputs'!$F$38 -> 0.00267 | F15: =('Other Inputs'!$D$22)*('Other Inputs'!$F$22)-('Other Inputs'!$E$291/12)+('Other Inputs'!$D$30*'Other Inputs'!$F$30) -> 4397398.408 | G15: 4316308.082 | J15: =Q15*$J$39 -> 8799611.965 | K15: 5084160.96 | L15: 5832186.743 | M15: 334717.4338 | N15: 193390.04 | O15: 221843.2572 | P15: 18764475.4 | Q15: =Calculations!G169 -> 9134329.399 | R15: =Calculations!G161 -> 5277551 | S15: =Calculations!G163+Calculations!G164 -> 6054030 | T15: 194251.4902 | U15: 1701435 | V15: 54885 | W15: 31 | X15: Jan16
B16: ='Ut Storage'!B15 -> Feb16 | C16: 15429020.09 | D16: 586885.1981 | E16: ='Other Inputs'!$F$38 -> 0.00267 | F16: =('Other Inputs'!$D$22)*('Other Inputs'!$F$22)-('Other Inputs'!$E$291/12)+('Other Inputs'!$D$30*'Other Inputs'!$F$30) -> 4397398.408 | G16: 4308923.159 | J16: 8467878.826 | K16: 4681089.877 | L16: 3644859.739 | M16: 322099.0518 | N16: 178058.1232 | O16: 138642.261 | P16: 15840962.88 | Q16: =Calculations!H169 -> 8789977.877 | R16: =Calculations!H161 -> 4859148 | S16: =Calculations!H163+Calculations!H164 -> 3783502 | T16: 121398.6223 | U16: 1591665 | V16: 54885 | W16: 29 | X16: Feb16
B17: ='Ut Storage'!B16 -> Mar16 | C17: 12242590.97 | D17: 465680.6062 | E17: ='Other Inputs'!$F$38 -> 0.00267 | F17: =('Other Inputs'!$D$22)*('Other Inputs'!$F$22)-('Other Inputs'!$E$291/12)+('Other Inputs'!$D$30*'Other Inputs'!$F$30) -> 4397398.408 | G17: 4300415.393 | J17: 7432460.867 | K17: 4928854.469 | L17: 0 | M17: 282714.0831 | N17: 187482.5306 | O17: 0 | P17: 12680076.95 | Q17: =Calculations!I169 -> 7715174.95 | R17: =Calculations!I161 -> 5116337 | S17: =Calculations!I163+Calculations!I164 -> 0 | T17: 0 | U17: 151435 | V17: 4885 | W17: 31 | X17: Mar16
B18: ='Ut Storage'!B17 -> Apr16 | C18: 9926076.443 | D18: 377565.6072 | E18: ='Other Inputs'!$F$38 -> 0.00267 | F18: =('Other Inputs'!$D$22)*('Other Inputs'!$F$22)-('Other Inputs'!$E$291/12)+('Other Inputs'!$D$30*'Other Inputs'!$F$30) -> 4397398.408 | G18: =(+C18)*E18+F18*$J$33/$L$33 -> 4294230.299 | J18: 5234765.237 | K18: 4806205.751 | L18: 0 | M18: 199118.6877 | N18: 182817.2494 | O18: 0 | P18: 10276356.93 | Q18: =Calculations!J169 -> 5433883.925 | R18: =Calculations!J161 -> 4989023 | S18: =Calculations!J163+Calculations!J164 -> 0 | T18: 0 | U18: 146550 | V18: 4885 | W18: 30 | X18: Apr16
B19: ='Ut Storage'!B18 -> May16 | C19: 6222341.561 | D19: 236683.8683 | E19: ='Other Inputs'!$F$38 -> 0.00267 | F19: =('Other Inputs'!$D$22)*('Other Inputs'!$F$22)-('Other Inputs'!$E$291/12)+('Other Inputs'!$D$30*'Other Inputs'!$F$30) -> 4397398.408 | G19: 4284341.327 | J19: 1427061.589 | K19: 4914004.335 | L19: 0 | M19: 54282.21096 | N19: 186917.6649 | O19: 0 | P19: 6430830.8 | Q19: =Calculations!K169 -> 1481343.8 | R19: =Calculations!K161 -> 5100922 | S19: =Calculations!K163+Calculations!K164 -> 0 | T19: 0 | U19: 151435 | V19: 4885 | W19: 31 | X19: May16
B20: ='Ut Storage'!B19 -> Jun16 | C20: 4745043.38 | D20: 180490.7705 | E20: ='Other Inputs'!$F$38 -> 0.00267 | F20: =('Other Inputs'!$D$22)*('Other Inputs'!$F$22)-('Other Inputs'!$E$291/12)+('Other Inputs'!$D$30*'Other Inputs'!$F$30) -> 4397398.408 | G20: 4280396.941 | J20: 148542.7915 | K20: 4711395.133 | L20: 0 | M20: 5650.233464 | N20: 179210.8669 | O20: 0 | P20: 4898249.025 | Q20: =Calculations!L169 -> 154193.025 | R20: =Calculations!L161 -> 4890606 | S20: =Calculations!L163+Calculations!L164 -> 0 | T20: 0 | U20: 146550 | V20: 4885 | W20: 30 | X20: Jun16
B21: ='Ut Storage'!B20 -> Jul16 | C21: 4813146.011 | D21: 183081.2413 | E21: ='Other Inputs'!$F$38 -> 0.00267 | F21: =('Other Inputs'!$D$22)*('Other Inputs'!$F$22)-('Other Inputs'!$E$291/12)+('Other Inputs'!$D$30*'Other Inputs'!$F$30) -> 4397398.408 | G21: =(+C21)*E21+F21*$J$33/$L$33 -> 4280578.775 | J21: 3774.755015 | K21: 4857196.189 | L21: 73249.74458 | M21: 143.5831849 | N21: 184756.8109 | O21: 2786.25542 | P21: 4970472.338 | Q21: =Calculations!M169 -> 3918.3382 | R21: =Calculations!M161 -> 5041953 | S21: =Calculations!M163+Calculations!M164 -> 76036 | T21: 2439.714753 | U21: 151435 | V21: 4885 | W21: 31 | X21: Jul16
B22: ='Ut Storage'!B21 -> Aug16 | C22: 4575763.918 | D22: 174051.7608 | E22: ='Other Inputs'!$F$38 -> 0.00267 | F22: =('Other Inputs'!$D$22)*('Other Inputs'!$F$22)-('Other Inputs'!$E$291/12)+('Other Inputs'!$D$30*'Other Inputs'!$F$30) -> 4397398.408 | G22: =(+C22)*E22+F22*$J$33/$L$33 -> 4279944.965 | J22: 75338.34878 | K22: 4619149.933 | L22: 0 | M22: 2865.701223 | N22: 175702.0671 | O22: 0 | P22: 4721621.05 | Q22: =Calculations!N169 -> 78204.05 | R22: =Calculations!N161 -> 4794852 | S22: =Calculations!N163+Calculations!N164 -> 0 | T22: 0 | U22: 151435 | V22: 4885 | W22: 31 | X22: Aug16
B23: ='Ut Storage'!B22 -> Sep16 | C23: 4750776.167 | D23: 180708.8328 | E23: ='Other Inputs'!$F$38 -> 0.00267 | F23: =('Other Inputs'!$D$22)*('Other Inputs'!$F$22)-('Other Inputs'!$E$291/12)+('Other Inputs'!$D$30*'Other Inputs'!$F$30) -> 4397398.408 | G23: 4280412.247 | J23: 251065.8935 | K23: 4614604.819 | L23: 0 | M23: 9549.981513 | N23: 175529.1812 | O23: 0 | P23: 4904199.875 | Q23: =Calculations!O169 -> 260615.875 | R23: =Calculations!O161 -> 4790134 | S23: =Calculations!O163+Calculations!O164 -> 0 | T23: 0 | U23: 146550 | V23: 4885 | W23: 30 | X23: Sep16
C26: =SUM(C12:C23) -> 116923649.2 | D26: =SUM(D12:D23) -> 4447512.454 | G26: =SUM(G12:G23) -> 51524918.24 | J26: =SUM(J12:J25) -> 52568920.58 | K26: 58624864.12 | L26: 13523875.22 | M26: 1999603.422 | N26: 2229957.884 | O26: 514417.7753 | P26: =SUM(P12:P23) -> 120073729 | Q26: 54568524 | R26: 60854822 | S26: 14038293 | T26: 450437.0369 | U26: 9387910
C29: Months | F29: System | G29: Utah | J29: Allocation Factors
C30: or Days | D30: Dth | E30: Rate | F30: Total | G30: Total
J31: Peak Demand Allocation Base
A32: II. Transportation (ML 104 demand) | C32: ='Other Inputs'!E23 -> 12 | D32: ='Other Inputs'!D23 -> 30000 | E32: ='Other Inputs'!F23 -> 5.28804 | F32: =C32*D32*E32 -> 1903694.4 | G32: =F32*J34 -> 1847558.152 | J32: Utah | K32: Wyo | L32: Total
J33: ='Other Inputs'!E129 -> 1289691 | K33: ='Other Inputs'!E130 -> 39186 | L33: =J33+K33 -> 1328877
J34: =J33/L33 -> 0.9705119435 | K34: =K33/L33 -> 0.02948805646
A36: III. Transportation (TL 112 demand) | C36: ='Other Inputs'!E24 -> 12 | D36: ='Other Inputs'!D24 -> 12000 | E36: ='Other Inputs'!F24 -> 5.28804 | F36: =C36*D36*E36 -> 761477.76 | G36: =F36*J34 -> 739023.2608 | J36: Dth Sales Allocation Base
C37: ='Other Inputs'!E25 -> 5 | D37: ='Other Inputs'!D25 -> 75000 | E37: ='Other Inputs'!F25 -> 6.80887 | F37: =C37*D37*E37 -> 2553326.25 | G37: =F37*J34 -> 2478033.621 | J37: Utah | K37: Wyo | L37: Total
J38: =Calculations!P20 -> 108998957 | K38: =Calculations!P39 -> 4146075 | L38: =J38+K38 -> 113145032
A39: IV. Transportation (KR 2003 Expansion) | C39: ='Other Inputs'!E54 -> 12 | D39: ='Other Inputs'!D54 -> 3000 | E39: ='Other Inputs'!F54 -> 14.34754167 | F39: =C39*D39*E39 -> 516511.5 | J39: =J38/L38 -> 0.9633561021 | K39: =K38/L38 -> 0.0366438979
C40: ='Other Inputs'!E55 -> 5 | D40: ='Other Inputs'!D55 -> 50000 | E40: ='Other Inputs'!F55 -> 14.34754167 | F40: =C40*D40*E40 -> 3586885.417 | G40: =(F39+F40+F41)*J34 -> 4371886.405
C41: ='Other Inputs'!E56 -> 12 | D41: ='Other Inputs'!D56 -> 1885 | E41: ='Other Inputs'!F56 -> 17.74204167 | F41: =C41*D41*E41 -> 401324.9825
A43: V. Trans (KR 2003 Expansion) | B43: ='Other Inputs'!C61 -> 0.8138169565 | C43: ='Other Inputs'!E60 -> 366 | D43: ='Other Inputs'!D60 -> 4885 | E43: ='Other Inputs'!F60 -> 0.0044 | F43: =B43*C43*D43*E43 -> 6402.138488
B44: ='Other Inputs'!C60 -> 0.8138169565 | C44: ='Other Inputs'!E61 -> 152 | D44: ='Other Inputs'!D61 -> 50000 | E44: ='Other Inputs'!F61 -> 0.0044 | F44: =B44*C44*D44*E44 -> 27214.03902 | G44: =(F43+F44)*J39 -> 32384.34974
A47: VI. Other Trans, Gathering & Processing | F47: ='Other Inputs'!$D$165+'Other Inputs'!$D$167 -> 5281993.25 | G47: =F47*$J$39 -> 5088440.429
A49: VII. QGM Gathering | B49: Demand | C49: ='Ut 1.3 p1'!H49 -> 12 | E49: ='Ut 1.3 p1'!J49 -> 862503 | F49: =C49*E49 -> 10350036
B50: Commodity | C50: ='Ut 1.3 p1'!F50 -> 38212543.43 | D50: ='Ut 1.3 p1'!F50 -> 38212543.43 | E50: ='Ut 1.3 p1'!J50 -> 0.14446 | F50: =C50*E50 -> 5520184.025 | G50: =(F49)*'Ut 1.5'!G51+(F50)*'Ut 1.5'!G54 -> 15362736.52
A51: Wexpro II Gathering | B51: Commodity | D51: ='Ut 1.3 p1'!F53 -> 4371050 | E51: ='Ut 1.3 p1'!J53 -> 0.4279 | F51: =E51*D51 -> 1870372.295 | G51: =(F51)*'Ut 1.5'!G54 -> 1801834.564
A53: VII. Storage Demand | C53: 12 | D53: ='Other Inputs'!E151 -> 184625 | E53: ='Other Inputs'!E14 -> 2.87375 | F53: =C53*D53*E53 -> 6366793.125
C54: 12 | D54: ='Other Inputs'!E152 -> 2500000 | E54: ='Other Inputs'!E15 -> 0.09 | F54: =C54*D54*E54 -> 2700000
C55: 12 | D55: ='Other Inputs'!E153 -> 111827 | E55: ='Other Inputs'!E16 -> 2.85338 | F55: =C55*D55*E55 -> 3829019.103
C56: 12 | D56: ='Other Inputs'!E154 -> 13419000 | E56: ='Other Inputs'!E17 -> 0.02378 | F56: =C56*D56*E56 -> 3829245.84 | G56: =SUM(F53:F56)*J34 -> 16231868.61
A59: Total Supplier Non-Gas Costs | G59: =G26+G32+G36+G37+G40+G44+G47+G51+G56+G50 -> 99478684.16

Sheet SDR#3
I1: ='Control Panel'!E32 -> Questar Gas Company
I2: ='Control Panel'!E33 -> Docket No. 15-057-11
C5: Standard Data Request #3
C6: Monthly Forecasted Sales
D8: Utah Sales | F8: Wyoming Sales | H8: System Total
C9: Month | D9: Dth | F9: Dth | H9: Dth
B11: 1 | C11: =Calculations!D141 -> Oct15 | D11: =Calculations!D20 -> 6310529 | F11: =Calculations!D39 -> 245829 | H11: =SUM(D11:F11) -> 6556358
B13: =B11+1 -> 2 | C13: =Calculations!E141 -> Nov15 | D13: =Calculations!E20 -> 11495612 | F13: =Calculations!E39 -> 417681 | H13: =SUM(D13:F13) -> 11913293
B15: =B13+1 -> 3 | C15: =Calculations!F141 -> Dec15 | D15: =Calculations!F20 -> 16963689 | F15: =Calculations!F39 -> 594137 | H15: 17557826
B17: =B15+1 -> 4 | C17: =Calculations!G141 -> Jan16 | D17: =Calculations!G20 -> 19464578 | F17: =Calculations!G39 -> 699571 | H17: 20164149
B19: =B17+1 -> 5 | C19: =Calculations!H141 -> Feb16 | D19: =Calculations!H20 -> 16615540 | F19: =Calculations!H39 -> 607071 | H19: 17222611
B21: =B19+1 -> 6 | C21: =Calculations!I141 -> Mar16 | D21: =Calculations!I20 -> 12265292 | F21: =Calculations!I39 -> 488094 | H21: 12753386
B23: =B21+1 -> 7 | C23: =Calculations!J141 -> Apr16 | D23: =Calculations!J20 -> 8746909 | F23: =Calculations!J39 -> 367858 | H23: 9114767
B25: =B23+1 -> 8 | C25: =Calculations!K141 -> May16 | D25: =Calculations!K20 -> 4840998 | F25: =Calculations!K39 -> 245647 | H25: 5086645
B27: =B25+1 -> 9 | C27: =Calculations!L141 -> Jun16 | D27: =Calculations!L20 -> 3451886 | F27: =Calculations!L39 -> 136255 | H27: 3588141
B29: =B27+1 -> 10 | C29: =Calculations!M141 -> Jul16 | D29: =Calculations!M20 -> 2630623 | F29: =Calculations!M39 -> 106175 | H29: 2736798
B31: =B29+1 -> 11 | C31: =Calculations!N141 -> Aug16 | D31: =Calculations!N20 -> 2557967 | F31: =Calculations!N39 -> 90315 | H31: 2648282
B33: =B31+1 -> 12 | C33: =Calculations!O141 -> Sep16 | D33: =Calculations!O20 -> 3655334 | F33: =Calculations!O39 -> 147442 | H33: 3802776
B36: =B33+1 -> 13 | C36: Total Sales (Dth) | D36: =SUM(D11:D33) -> 108998957 | F36: =SUM(F11:F33) -> 4146075 | H36: =SUM(H11:H33) -> 113145032

Sheet SDR#4
H1: ='Control Panel'!E32 -> Questar Gas Company
H2: ='Control Panel'!E33 -> Docket No. 15-057-11
C5: Standard Data Request #4
C6: Supplier Non-Gas Costs Recovered at Current Rates
C9: (A) | D9: (B) | E9: (C) | F9: (D) | G9: (E)
B10: 1 | C10: Rate Schedule | D10: Season | E10: Sales Dth | F10: SNG Rate | G10: SNG Revenue
B12: =B10+1 -> 2 | C12: GS | D12: winter | E12: ='Utah Summary-by class'!B8 -> 73595600 | F12: ='Utah Summary-by class'!J8 -> 1.25283 | G12: =E12*F12 -> 92202775.55
B13: =B12+1 -> 3 | D13: summer | E13: ='Utah Summary-by class'!B9 -> 28682418 | F13: ='Utah Summary-by class'!J9 -> 0.58822 | G13: =E13*F13 -> 16871571.92
B15: =B13+1 -> 4 | C15: FS | D15: winter | E15: ='Utah Summary-by class'!B13 -> 2500791 | F15: ='Utah Summary-by class'!J13 -> 1.2202 | G15: =E15*F15 -> 3051465.178
B16: =B15+1 -> 5 | D16: summer | E16: ='Utah Summary-by class'!B14 -> 2400336 | F16: ='Utah Summary-by class'!J14 -> 0.58822 | G16: =E16*F16 -> 1411925.642
B18: =B16+1 -> 6 | C18: NGV | D18: annual | E18: ='Utah Summary-by class'!B18 -> 619877 | F18: ='Utah Summary-by class'!J18 -> 0.90407 | G18: =E18*F18 -> 560412.1994
B20: =B18+1 -> 7 | C20: IS | D20: annual | E20: ='Utah Summary-by class'!B21 -> 1199935 | F20: ='Utah Summary-by class'!J21 -> 0.1788 | G20: =E20*F20 -> 214548.378
B23: =B20+1 -> 8 | C23: Total Supplier Non-Gas Costs | E23: =SUM(E12:E20) -> 108998957 | G23: =SUM(G12:G20) -> 114312698.9

Sheet Ut 1.1
I1: Questar Gas Company
I2: ='Control Panel'!$E$33 -> Docket No. 15-057-11
I3: Exhibit 1.1
D4: Test Year Cost of Questar Gas' Production
D5: =CONCATENATE('Control Panel'!E37," through ",'Control Panel'!E38) -> Oct-15 through Sept-16
B7: WEXPRO I
B8: (A) | C8: (B) | D8: (C) | E8: (D) | F8: (E) | G8: (F) | H8: (G) | I8: (H)
F9: Base Year | G9: Market | H9: Royalty | I9: Test Year
B10: Field Name | C10: Well Name | D10: Formation | E10: Price $ | F10: Dth | G10: Value $ | H10: Rate % | I10: Royalty $
A12: 1 | B12: ACE UNIT (CO) | C12: ACE UNIT 2 FT UN | D12: FORT UNION | E12: 2.623823704 | F12: 65697.803 | G12: =E12*F12 -> 172379.4528 | H12: 0.1268519763 | I12: =G12*H12 -> 21866.67427
A13: =A12+1 -> 2 | C13: ACE UNIT 7 LOWER FT UN | D13: FORT UNION | E13: 2.623823704 | F13: 417.924 | G13: 1096.558898 | H13: 0.1268519763 | I13: =G13*H13 -> 139.1006633
A14: =A13+1 -> 3 | C14: ACE UNIT 10 FT UN | D14: MESAVERDE | E14: 2.623823704 | F14: 7004.846 | G14: 18379.48098 | H14: 0.1268519763 | I14: 2331.473486
A15: 4 | C15: ACE UNIT 12 FT UN | D15: FORT UNION | E15: 2.623823704 | F15: 21448.451 | G15: 56276.95416 | H15: 0.1268519763 | I15: 7138.842856
A16: 5 | C16: ACE UNIT 11 FT UN | D16: FORT UNION | E16: 2.623823704 | F16: 19498.054 | G16: 51159.45628 | H16: 0.1268519763 | I16: 6489.678136
A17: 6 | C17: ACE UNIT 13 FT UN | D17: FORT UNION | E17: 2.623823704 | F17: 39755.668 | G17: 104311.8641 | H17: 0.1268519763 | I17: 13232.16611
A18: 7 | B18: E HIAW (CO) | C18: HIAWATHA UNIT 1 FT UN | D18: FORT UNION | E18: 2.623823704 | F18: 38959.033 | G18: 102221.6343 | H18: 0.1925 | I18: 19677.6646
A19: 8 | C19: F WILSON A 2 WAS | D19: WASATCH | E19: 2.623823704 | F19: 92618.56 | G19: 243014.7732 | H19: 0.1925 | I19: 46780.34384
A20: 9 | C20: F WILSON B 3 WAS | D20: WASATCH | E20: 2.623823704 | F20: 231473.186 | G20: 607344.8324 | H20: 0.1625 | I20: 98693.53526
A21: 10 | C21: F WILSON B 6 WAS | D21: WASATCH | E21: 2.623823704 | F21: 127272.276 | G21: 333940.0147 | H21: 0.1625 | I21: 54265.25239
A22: 11 | C22: F WILSON A 9 WAS | D22: WASATCH | E22: 2.623823704 | F22: 143219.145 | G22: 375781.7876 | H22: 0.1925 | I22: 72337.99411
A23: 12 | C23: F WILSON B 12 FT UN | D23: FORT UNION | E23: 2.623823704 | F23: 68890.766 | G23: 180757.2248 | H23: 0.1625 | I23: =G23*H23 -> 29373.04904
A24: 13 | C24: F WILSON B 2 UNIT (HIAW) FT UN | D24: FORT UNION | E24: 2.623823704 | F24: 41934.657 | G24: 110029.1471 | H24: 0.1625 | I24: 17879.7364
A25: 14 | C25: F WILSON A 22 FT UN | D25: FORT UNION | E25: 2.623823704 | F25: 19705.347 | G25: 51703.35656 | H25: 0.1925 | I25: 9952.896138
A26: 15 | C26: STLD 3712100 NE4 2 WAS | D26: WASATCH | E26: 2.623823704 | F26: 14374.514 | G26: 37716.19057 | H26: 0.13375 | I26: 5044.540489
A27: 16 | C27: STLD 3712100 SE4 4 WAS | D27: WASATCH | E27: 2.623823704 | F27: 32969.835 | G27: 86507.0346 | H27: 0.1375 | I27: 11894.71726
A28: 17 | C28: STATE LAND 5 FT UN | D28: FORT UNION | E28: 2.623823704 | F28: 14241.362 | G28: 37366.8232 | H28: 0.13375 | I28: 4997.812603
A29: 18 | C29: G KUYKENDALL A 8 FT UN | D29: FORT UNION | E29: 2.623823704 | F29: 6 | G29: 15.74294223 | H29: 0.1925 | I29: 3.030516379
A30: 19 | C30: KS WHITFORD 1 WAS | D30: WASATCH | E30: 2.623823704 | F30: 45242.194 | G30: 118707.5411 | H30: 0.155 | I30: 18399.66886
A31: 20 | C31: F WILSON B 24 FT UN | D31: FORT UNION | E31: 2.623823704 | F31: 89087.586 | G31: 233750.1199 | H31: 0.1625 | I31: 37984.39449
A32: 21 | C32: F WILSON A 26 FT UN | D32: FORT UNION | E32: 2.623823704 | F32: 108461.34 | G32: 284583.4349 | H32: 0.1925 | I32: 54782.31122
A33: 22 | C33: HIAWATHA STATELAND 6 FT UN | D33: FORT UNION | E33: 2.623823704 | F33: 12450.179 | G33: 32667.07478 | H33: 0.13375 | I33: 4369.221252
A34: 23 | C34: G KUYKENDALL 9 FT UN | D34: FORT UNION | E34: 2.623823704 | F34: 24580.622 | G34: 64495.21867 | H34: 0.1925 | I34: 12415.32959
A35: 24 | C35: F WILSON A 20 FT UN | D35: FORT UNION | E35: 2.623823704 | F35: 1037.972 | G35: 2723.455538 | H35: 0.1925 | I35: 524.2651911
A36: 25 | C36: F WILSON A 20 LEW/LAN/FT UN | D36: LEWIS/LANCE/FT U | E36: 2.623823704 | F36: 19722.214 | G36: 51747.6126 | H36: 0.1925 | I36: 9961.415425
A37: 26 | C37: F WILSON 32 MESA | D37: MESAVERDE | E37: 2.623823704 | F37: 4350.388 | G37: 11414.65116 | H37: 0.1925 | I37: 2197.320348
A38: 27 | C38: F WILSON 32 LEWIS | D38: LEWIS | E38: 2.623823704 | F38: 31187.19 | G38: 81829.6884 | H38: 0.1925 | I38: 15752.21502
A39: 28 | C39: F WILSON 32 LANCE | D39: LANCE | E39: 2.623823704 | F39: 35159.065 | G39: 92251.18817 | H39: 0.1925 | I39: 17758.35372
A40: 29 | C40: HIAWATHA STLD 7 FT UN | D40: FORT UNION | E40: 2.623823704 | F40: 32659.623 | G40: 85693.093 | H40: 0.1375 | I40: 11782.80029
A41: 30 | C41: F WILSON 33 FT UN | D41: FORT UNION | E41: 2.623823704 | F41: 454128.992 | G41: 1191554.414 | H41: 0.1925 | I41: 229374.2247
A42: 31 | C42: F WILSON 33 LEWIS | D42: LEWIS | E42: 2.623823704 | F42: 18758.385 | G42: 49218.69522 | H42: 0.1925 | I42: 9474.59883
A43: 32 | C43: F WILSON 33 LANCE | D43: LANCE | E43: 2.623823704 | F43: 18758.385 | G43: 49218.69522 | H43: 0.1925 | I43: 9474.59883
A44: 33 | C44: F WILSON 34 LEW/LAN/FT UN | D44: LEWIS/LANCE/FT U | E44: 2.623823704 | F44: 36092.664 | G44: 94700.78736 | H44: 0.1625 | I44: 15388.87795
A45: 34 | C45: F WILSON 35 MESA | D45: MESAVERDE | E45: 2.623823704 | F45: 1687.379 | G45: 4427.385019 | H45: 0.1925 | I45: 852.2716161
A46: 35 | C46: F WILSON 35 LEW/LAN/FT UN | D46: LEWIS/LANCE/FT U | E46: 2.623823704 | F46: 82533.86 | G46: 216554.2983 | H46: 0.1925 | I46: 41686.70242
A47: 36 | C47: F WILSON 29E (DD) FT UN | D47: FORT UNION | E47: 2.623823704 | F47: 25784.655 | G47: 67654.389 | H47: 0.1625 | I47: 10993.83821
A48: 37 | C48: F WILSON 37 MESA | D48: FORT UNION | E48: 2.623823704 | F48: 11484.175 | G48: 30132.45059 | H48: 0.2325 | I48: 7005.794762
A49: 38 | C49: F WILSON 37 LEW/LNC/FTUN | D49: FORT UNION | E49: 2.623823704 | F49: 65067.695 | G49: 170726.1605 | H49: 0.1625 | I49: 27743.00109
A50: 39 | B50: HIAW DEEP (CO) | C50: HIAWATHA DEEP UNIT 1 NUGGET | D50: NUGGET | E50: 2.623823704 | F50: 51994.366 | G50: 136424.05 | H50: 0.1723962084 | I50: 23518.98895
A51: 40 | C51: HIAWATHA DEEP UNIT 3 NUGGET | D51: NUGGET | E51: 2.623823704 | F51: 194693.504 | G51: 510841.4309 | H51: 0.1714959958 | I51: 87607.25987
A52: 41 | C52: HIAWATHA DEEP UNIT 2 NUGGET | D52: NUGGET | E52: 2.623823704 | F52: 7497.851 | G52: 19673.03919 | H52: 0.172395903 | I52: 3391.551355
A53: 42 | B53: JACKS DRAW (CO) | C53: JACKS DRAW UNIT 2 FT UN | D53: FORT UNION | E53: 2.623823704 | F53: 46810.153 | G53: 122821.589 | H53: 0.1396875 | I53: 17156.64072
A54: 43 | C54: JACKS DRAW UNIT 3 FT UN | D54: FORT UNION | E54: 2.623823704 | F54: 9057.939 | G54: 23766.43506 | H54: 0.1396875 | I54: 3319.873898
A55: 44 | C55: JACKS DRAW UNIT 9 FT UN | D55: FORT UNION | E55: 2.623823704 | F55: 26770.77 | G55: 70241.78091 | H55: 0.1396875 | I55: 9811.898771
A56: 45 | C56: JACKS DRAW UNIT 5 FT UN | D56: FORT UNION | E56: 2.623823704 | F56: 1970.975 | G56: 5171.490926 | H56: 0.1489132823 | I56: 770.1036883
A57: 46 | C57: JACKS DRAW UNIT 8 FT UN | D57: FORT UNION | E57: 2.623823704 | F57: 3228.207 | G57: 8470.246049 | H57: 0.1489132823 | I57: 1261.332141
A58: 47 | C58: JACKS DRAW UNIT 17 FT UN | D58: FORT UNION | E58: 2.623823704 | F58: 21055.429 | G58: 55245.73372 | H58: 0.1396875 | I58: 7717.138429
A59: 48 | C59: JACKS DRAW UNIT 18 FT UN | D59: FORT UNION | E59: 2.623823704 | F59: 148049.869 | G59: 388456.7557 | H59: 0.1396877 | I59: 54262.63076
A60: 49 | C60: JACKS DRAW UNIT 19 FT UN | D60: FORT UNION | E60: 2.623823704 | F60: 116278.394 | G60: 305094.0065 | H60: 0.149541643 | I60: 45624.25899
A61: 50 | C61: JACKS DRAW UNIT 20 FT UN | D61: FORT UNION | E61: 2.623823704 | F61: 99669.826 | G61: 261516.0521 | H61: 0.1396877 | I61: 36530.57583
A62: 51 | B62: LO HORSE DR (CO) | C62: LOWER HORSE DRAW 12-2 MANCOS B | D62: MANCOS B | E62: 2.623823704 | F62: 28744.278 | G62: 75419.91798 | H62: 0.125 | I62: 9427.489748
A63: 52 | C63: LOWER HORSE DRAW 10-1 MANCOS B | D63: MANCOS B | E63: 2.623823704 | F63: 2460.19 | G63: 6455.104839 | H63: 0.125 | I63: 806.8881049
A64: 53 | C64: LOWER HORSE DRAW 10-2 MB SILT | D64: MANCOS B SILT | E64: 2.623823704 | F64: 4783.624 | G64: 12551.38604 | H64: 0.125 | I64: 1568.923256
A65: 54 | C65: LOWER HORSE FED 11-5 MANCOS B | D65: MANCOS B | E65: 2.623823704 | F65: 23747.268 | G65: 62308.64469 | H65: 0.125 | I65: 7788.580587
A66: 55 | C66: LOWER HORSE FED 11-5 MB SILT | D66: MANCOS B SILT | E66: 2.623823704 | F66: 15505.523 | G66: 40683.7588 | H66: 0.125 | I66: 5085.46985
A67: 56 | B67: POWDER WASH (CO) | C67: CARL ALLEN B 4 WAS | D67: WASATCH | E67: 2.623823704 | F67: 13.999 | G67: 36.73090804 | H67: 0.1100461 | I67: 4.042093179
A68: 57 | C68: CARL ALLEN B 6 FT UN | D68: FORT UNION | E68: 2.623823704 | F68: 38878.669 | G68: 102010.7733 | H68: 0.1100461 | I68: 11225.88776
A69: 58 | C69: CARL ALLEN B 6 LOWER FT UN | D69: FORT UNION | E69: 2.623823704 | F69: 39051.037 | G69: 102463.0366 | H69: 0.1100461 | I69: 11275.65757
A70: 59 | C70: CARL ALLEN B 7 FT UN | D70: FORT UNION | E70: 2.623823704 | F70: 4994.978 | G70: 13105.94168 | H70: 0.1100461 | I70: 1442.257769
A71: 60 | C71: CARL ALLEN A 8 FT UN | D71: FORT UNION | E71: 2.623823704 | F71: 21010.984 | G71: 55129.11787 | H71: 0.1100461 | I71: 6066.744418
A72: 61 | C72: CARL ALLEN B 10 WAS | D72: WASATCH | E72: 2.623823704 | F72: 2071.969 | G72: 5436.481377 | H72: 0.1100461 | I72: 598.2635733
A73: 62 | C73: CARL ALLEN A 11 FT UN | D73: FORT UNION | E73: 2.623823704 | F73: 2596.167 | G73: 6811.884515 | H73: 0.1100461 | I73: 749.6213245
A74: 63 | C74: CARL ALLEN A 11 LOWER FT UN | D74: FORT UNION | E74: 2.623823704 | F74: 49332.148 | G74: 129438.8593 | H74: 0.110046 | I74: 14244.22871
A75: 64 | C75: CARL ALLEN B 15 WAS | D75: WASATCH | E75: 2.623823704 | F75: 7014.503 | G75: 18404.81925 | H75: 0.1100461 | I75: 2025.378579
A76: 65 | C76: CARL ALLEN B 17 WAS | D76: WASATCH | E76: 2.623823704 | F76: 8666.54 | G76: =E76*F76 -> 22739.47309 | H76: 0.1100461 | I76: 2502.390329
A77: 66 | C77: CARL ALLEN A 19 FT UN | D77: FORT UNION | E77: 2.623823704 | F77: 65402.779 | G77: 171605.3619 | H77: 0.1100461 | I77: 18884.50081
A78: =A77+1 -> 67 | C78: CARL ALLEN A 20 FT UN | D78: FORT UNION | E78: 2.623823704 | F78: 18316.764 | G78: 48059.95957 | H78: 0.1100461 | I78: 5288.811117
A79: 68 | C79: BW MUSSER A 1 WAS | D79: WASATCH | E79: 2.623823704 | F79: 4458.968 | G79: 11699.54594 | H79: 0.1100461 | I79: 1287.489402
A80: 69 | C80: BW MUSSER B 10 FT UN | D80: FORT UNION | E80: 2.623823704 | F80: 12742.373 | G80: 33433.74033 | H80: 0.1100461 | I80: 3679.252731
A81: 70 | C81: BW MUSSER B 11 FT UN | D81: FORT UNION | E81: 2.623823704 | F81: 9095.507 | G81: 23865.00687 | H81: 0.1100461 | I81: 2626.250933
A82: 71 | C82: JC DONNELL B 3 WAS | D82: WASATCH | E82: 2.623823704 | F82: 41580.804 | G82: 109100.6992 | H82: 0.1100461 | I82: 12006.10645
A83: 72 | C83: JC DONNELL B 5 FT UN | D83: FORT UNION | E83: 2.623823704 | F83: 18460.127 | G83: 48436.11881 | H83: 0.1100461 | I83: =G83*H83 -> 5330.205974
A84: 73 | C84: JC DONNELL B 9 FT UN | D84: FORT UNION | E84: 2.623823704 | F84: 13123.377 | G84: 34433.42765 | H84: 0.1100461 | I84: 3789.264423
A85: 74 | C85: JC DONNELL B 10 FT UN | D85: FORT UNION | E85: 2.623823704 | F85: 32386.795 | G85: 84977.24043 | H85: 0.1100461 | I85: 9351.413898
A86: 75 | C86: H STEWART A 1 FT UN | D86: FORT UNION | E86: 2.623823704 | F86: 8590.203 | G86: 22539.17826 | H86: 0.1100461 | I86: 2480.348664
A87: 76 | C87: BW MUSSER B 13 FT UN | D87: FORT UNION | E87: 2.623823704 | F87: 22275.507 | G87: 58447.00329 | H87: 0.1100461 | I87: 6431.864769
A88: 77 | C88: BW MUSSER A 14 FT UN | D88: FORT UNION | E88: 2.623823704 | F88: 18074.328 | G88: 47423.85025 | H88: 0.1100461 | I88: 5218.809767
A89: 78 | C89: BW MUSSER 15 UPPER FT UN | D89: FORT UNION | E89: 2.623823704 | F89: 10567.726 | G89: 27727.84998 | H89: 0.1100461 | I89: 3051.341752
A90: 79 | C90: BW MUSSER B 18 FT UN | D90: FORT UNION | E90: 2.623823704 | F90: 29375.246 | G90: 77075.46678 | H90: 0.1100461 | I90: 8481.854525
A91: 80 | C91: BW MUSSER B 19 FT UN | D91: FORT UNION | E91: 2.623823704 | F91: 30917.709 | G91: 81122.61776 | H91: 0.1100461 | I91: 8927.227706
A92: 81 | C92: BW MUSSER B 20 FT UN | D92: FORT UNION | E92: 2.623823704 | F92: 7577.621 | G92: 19882.3416 | H92: 0.1100461 | I92: 2187.974152
A93: 82 | C93: POWDER WASH GOVT 1 FT UN | D93: FORT UNION | E93: 2.623823704 | F93: 7946.96 | G93: 20851.42203 | H93: 0.1100461 | I93: 2294.617673
A94: 83 | C94: JC DONNELL A 11 FT UN | D94: FORT UNION | E94: 2.623823704 | F94: 55326.393 | G94: 145166.7014 | H94: 0.1100461 | I94: 15975.02934
A95: 84 | C95: JA LEE 1 FT UN | D95: FORT UNION | E95: 2.623823704 | F95: 14354.809 | G95: 37664.48813 | H95: 0.1100461 | I95: 4144.830027
A96: 85 | C96: JC DONNELL A 1 FT UN | D96: FORT UNION | E96: 2.623823704 | F96: 13778.81 | G96: 36153.1683 | H96: 0.1100461 | I96: 3978.515174
A97: 86 | C97: MFS 20-1 FT UN | D97: FORT UNION | E97: 2.623823704 | F97: 73356.342 | G97: 192474.109 | H97: 0.125 | I97: 24059.26363
A98: 87 | C98: CARL ALLEN A 16 WAS | D98: WASATCH | E98: 2.623823704 | F98: 23056.945 | G98: 60497.35884 | H98: 0.1100461 | I98: 6657.498401
A99: 88 | C99: H STEWART A 2 FT UN | D99: FORT UNION | E99: 2.623823704 | F99: 68874.53 | G99: 180714.6244 | H99: 0.1100461 | I99: 19886.93963
A100: 89 | C100: CARL ALLEN B 9 UPPER WAS | D100: WASATCH | E100: 2.623823704 | F100: 8990.203 | G100: 23588.70774 | H100: 0.1100461 | I100: 2595.845291
A101: 90 | C101: CARL ALLEN A 2 WAS | D101: WASATCH | E101: 2.623823704 | F101: 14539.936 | G101: 38150.22874 | H101: 0.1100461 | I101: 4198.283887
A102: 91 | C102: CARL ALLEN 22 FT UN | D102: FORT UNION | E102: 2.623823704 | F102: 93493.297 | G102: 245309.9289 | H102: 0.1100461 | I102: 26995.40096
A103: 92 | C103: JC DONNELL 14-29 FT UN | D103: FORT UNION | E103: 2.623823704 | F103: 113690.434 | G103: 298303.6557 | H103: 0.1100461 | I103: 32827.15392
A104: 93 | C104: CARL ALLEN 23 FT UN | D104: FORT UNION | E104: 2.623823704 | F104: 41999.516 | G104: 110199.3257 | H104: 0.1100461 | I104: 12127.00601
A105: 94 | C105: BW MUSSER 23 FT UN | D105: FORT UNION | E105: 2.623823704 | F105: 59249.522 | G105: 155460.3003 | H105: 0.1100461 | I105: 17107.79975
A106: 95 | C106: BW MUSSER 24 FT UN | D106: FORT UNION | E106: 2.623823704 | F106: 43090.509 | G106: 113061.8989 | H106: 0.1100461 | I106: 12442.02104
A107: 96 | C107: CARL ALLEN 26 FT UN | D107: MESAVERDE | E107: 2.623823704 | F107: 149231.05 | G107: 391555.9664 | H107: 0.1100461 | I107: 43089.20704
A108: 97 | C108: CARL ALLEN 25 FT UN | D108: WASATCH | E108: 2.623823704 | F108: 206991.692 | G108: 543109.7081 | H108: 0.1100461 | I108: 59767.10525
A109: 98 | C109: H STEWART 5 FT UN | D109: FORT UNION | E109: 2.623823704 | F109: 133327.077 | G109: 349826.7451 | H109: 0.1100461 | I109: 38497.06897
A110: 99 | C110: CARL ALLEN 27 FT UN | D110: FORT UNION | E110: 2.623823704 | F110: 154808.975 | G110: 406191.4583 | H110: 0.110046 | I110: 44699.74522
A111: 100 | C111: CARL ALLEN 28 FT UN | D111: FORT UNION | E111: 2.623823704 | F111: 52210.44 | G111: 136990.9901 | H111: 0.110046 | I111: 15075.3105
A112: 101 | C112: CARL ALLEN 29 FT UN | D112: FORT UNION | E112: 2.623823704 | F112: 103934.028 | G112: 272704.5664 | H112: 0.110046 | I112: 30010.04671
A113: 102 | C113: BW MUSSER 27 FT UN | D113: FORT UNION | E113: 2.623823704 | F113: 100593.803 | G113: 263940.4048 | H113: 0.110046 | I113: 29045.58579
A114: 103 | C114: JC DONNELL 14 FT UN | D114: FORT UNION | E114: 2.623823704 | F114: 34597.458 | G114: 90777.63041 | H114: 0.110046 | I114: 9989.715116
A115: 104 | C115: JC DONNELL 15 FT UN | D115: FORT UNION | E115: 2.623823704 | F115: 75769.528 | G115: 198805.8836 | H115: 0.110046 | I115: 21877.79227
A116: 105 | C116: JC DONNELL 16 FT UN | D116: FORT UNION | E116: 2.623823704 | F116: 106588.374 | G116: 279669.1023 | H116: 0.110046 | I116: 30776.46603
A117: 106 | C117: BW MUSSER 28 FT UN | D117: FORT UNION | E117: 2.623823704 | F117: 8227.022 | G117: 21586.25534 | H117: 0.110046 | I117: 2375.481055
A118: 107 | C118: BW MUSSER 29 FT UN | D118: FORT UNION | E118: 2.623823704 | F118: 76389.002 | G118: 200431.2742 | H118: 0.110046 | I118: 22056.66
A119: 108 | C119: BW MUSSER 26R FT UN | D119: FORT UNION | E119: 2.623823704 | F119: 74040.848 | G119: 194270.1321 | H119: 0.1100461 | I119: 21378.67038
A120: 109 | C120: CARL ALLEN 30 FT UN | D120: FORT UNION | E120: 2.623823704 | F120: 94527.553 | G120: 248023.6343 | H120: 0.110046 | I120: 27294.00886
A121: 110 | C121: CARL ALLEN 31 FT UN | D121: FORT UNION | E121: 2.623823704 | F121: 213782.255 | G121: 560926.9483 | H121: 0.110046 | I121: 61727.76695
A122: 111 | C122: CARL ALLEN 32 FT UN | D122: FORT UNION | E122: 2.623823704 | F122: 104329.286 | G122: 273741.6537 | H122: 0.110046 | I122: 30124.17402
A123: 112 | C123: CARL ALLEN 33 FT UN | D123: FORT UNION | E123: 2.623823704 | F123: 21575.378 | G123: 56609.98823 | H123: 0.110046 | I123: 6229.702765
A124: 113 | C124: CARL ALLEN 34 FT UN | D124: FORT UNION | E124: 2.623823704 | F124: 108051.096 | G124: 283507.027 | H124: 0.110046 | I124: 31198.81429
A125: 114 | C125: JC DONNELL 18 FT UN | D125: FORT UNION | E125: 2.623823704 | F125: 14935.509 | G125: 39188.14255 | H125: 0.110046 | I125: 4312.498335
A126: 115 | C126: BW MUSSER 31 FT UN | D126: FORT UNION | E126: 2.623823704 | F126: 90468.553 | G126: 237373.5339 | H126: 0.110046 | I126: 26122.00791
A127: 116 | C127: BW MUSSER 32 FT UN | D127: FORT UNION | E127: 2.623823704 | F127: 77829.822 | G127: 204211.7319 | H127: 0.110046 | I127: 22472.68425
A128: 117 | C128: BW MUSSER 34 FT UN | D128: FORT UNION | E128: 2.623823704 | F128: 63363.708 | G128: 166255.199 | H128: 0.110046 | I128: 18295.71963
A129: 118 | C129: BW MUSSER 35 FT UN | D129: FORT UNION | E129: 2.623823704 | F129: 4257.022 | G129: 11169.67523 | H129: 0.110046 | I129: 1229.178081
A130: 119 | C130: STEWART 6 FT UN | D130: FORT UNION | E130: 2.623823704 | F130: 81696.87 | G130: 214358.1841 | H130: 0.110046 | I130: 23589.26073
A131: 120 | C131: BW MUSSER 36 FT UN | D131: FORT UNION | E131: 2.623823704 | F131: 168086.063 | G131: 441028.1965 | H131: 0.110046 | I131: 48533.38891
A132: 121 | C132: BW MUSSER 37 FT UN | D132: FORT UNION | E132: 2.623823704 | F132: 197277.803 | G132: 517622.1759 | H132: 0.110046 | I132: 56962.24997
A133: 122 | C133: CARL ALLEN 35 FT UN | D133: FORT UNION | E133: 2.623823704 | F133: 69883.535 | G133: 183362.0757 | H133: 0.110046 | I133: 20178.26298
A134: 123 | C134: CARL ALLEN 36 FT UN | D134: FORT UNION | E134: 2.623823704 | F134: 112454.58 | G134: 295060.9927 | H134: 0.110046 | I134: 32470.282
A135: 124 | C135: BW MUSSER 38 FT UN | D135: FORT UNION | E135: 2.623823704 | F135: 146263.728 | G135: 383770.2366 | H135: 0.110046 | I135: 42232.37946
A136: 125 | C136: BW MUSSER 39 FT UN | D136: FORT UNION | E136: 2.623823704 | F136: 116233.823 | G136: 304977.06 | H136: 0.110046 | I136: 33561.50555
A137: 126 | C137: CARL ALLEN 37 FT UN | D137: FORT UNION | E137: 2.623823704 | F137: 19430.043 | G137: 50981.0074 | H137: 0.1100461 | I137: 5610.261039
A138: 127 | C138: BW MUSSER 42 FT UN | D138: FORT UNION | E138: 2.623823704 | F138: 51436.855 | G138: 134961.2394 | H138: 0.110046 | I138: 14851.94455
A139: 128 | C139: POWDER WASH GOVT 17 FT UN | D139: FORT UNION | E139: 2.623823704 | F139: 11298.26 | G139: 29644.64241 | H139: 0.110046 | I139: 3262.274318
A140: 129 | C140: BW MUSSER 72 FT UN | D140: FORT UNION | E140: 2.623823704 | F140: 10003.3 | G140: =E140*F140 -> 26246.89566 | H140: 0.110046 | I140: 2888.36588
A141: 130 | C141: BW MUSSER 73 FT UN | D141: FORT UNION | E141: 2.623823704 | F141: 61658.042 | G141: 161779.8322 | H141: 0.110046 | I141: 17803.22341
A142: =A141+1 -> 131 | C142: CARL ALLEN 40 FT UN | D142: FORT UNION | E142: 2.623823704 | F142: 68918.953 | G142: 180831.1826 | H142: 0.110046 | I142: 19899.74832
A143: 132 | C143: CARL ALLEN 41 FT UN | D143: FORT UNION | E143: 2.623823704 | F143: 76358.097 | G143: 200350.1849 | H143: 0.110046 | I143: 22047.73645
A144: 133 | B144: RABBIT MTN (CO) | C144: MF FEDERAL 8-1 MANCOS B | D144: MANCOS B | E144: 2.623823704 | F144: 33410.174 | G144: 87662.40651 | H144: 0.155 | I144: 13587.67301
A145: 134 | C145: RABBIT MTN FED 7-1 MANCOS B | D145: MANCOS B | E145: 2.623823704 | F145: 51413.387 | G145: 134899.6635 | H145: 0.125 | I145: 16862.45794
A146: 135 | B146: SUGAR LOAF (CO) | C146: SUGARLOAF GOVT 1 MESA | D146: MESAVERDE | E146: 2.623823704 | F146: 122323.993 | G146: 320956.5925 | H146: 0.13375 | I146: 42927.94424
A147: 136 | C147: SUGARLOAF GOVT 2 MESA | D147: MESAVERDE | E147: 2.623823704 | F147: 146553.06 | G147: 384529.3928 | H147: 0.13375 | I147: =G147*H147 -> 51430.80628
A148: 137 | C148: SUGARLOAF GOVT 3 FT UN | D148: FORT UNION | E148: 2.623823704 | F148: 61502.501 | G148: 161371.72 | H148: 0.13375 | I148: 21583.46755
A149: 138 | C149: SUGARLOAF GOVT 4 MESA | D149: MESAVERDE | E149: 2.623823704 | F149: 35622.523 | G149: 93467.22026 | H149: 0.13375 | I149: 12501.24071
A150: 139 | C150: SUGARLOAF GOVT 6 MESA | D150: MESAVERDE | E150: 2.623823704 | F150: 102588.62 | G150: 269174.453 | H150: 0.13375 | I150: 36002.08308
A151: 140 | C151: SUGARLOAF GOVT 8 MESA | D151: MESAVERDE | E151: 2.623823704 | F151: 11721.811 | G151: 30755.96556 | H151: 0.13375 | I151: 4113.610394
A152: 141 | C152: SUGARLOAF GOVT 10 MESA | D152: MESAVERDE | E152: 2.623823704 | F152: 81970.405 | G152: 215075.8917 | H152: 0.13375 | I152: 28766.40051
A153: 142 | C153: SUGARLOAF GOVT 12 MESA | D153: MESAVERDE | E153: 2.623823704 | F153: 5166.781 | G153: 13556.72246 | H153: 0.13375 | I153: 1813.211629
A154: 143 | C154: SUGARLOAF GOVT 14 MESA | D154: MESAVERDE | E154: 2.623823704 | F154: 27188.716 | G154: 71338.39753 | H154: 0.13375 | I154: 9541.51067
A155: 144 | C155: SUGARLOAF GOVT 15 MESA | D155: MESAVERDE | E155: 2.623823704 | F155: 13064.194 | G155: 34278.1419 | H155: 0.13375 | I155: 4584.701479
A156: 145 | C156: SUGARLOAF STLD 2 MESA | D156: MESAVERDE | E156: 2.623823704 | F156: 16735.914 | G156: 43912.08787 | H156: 0.125 | I156: 5489.010984
A157: 146 | C157: SUGARLOAF GOVT 17 ALMOND | D157: ALMOND | E157: 2.623823704 | F157: 199982.198 | G157: 524718.0316 | H157: 0.20375 | I157: 106911.2989
A158: 147 | B158: W HIAW (CO) | C158: WB LASHER A 2 WAS | D158: WASATCH | E158: 2.623823704 | F158: 16548.405 | G158: 43420.09731 | H158: 0.1925 | I158: 8358.368732
A159: 148 | C159: WB LASHER A 4 FT UN | D159: FORT UNION | E159: 2.623823704 | F159: 26419.294 | G159: 69319.56985 | H159: 0.1925 | I159: 13344.0172
A160: 149 | C160: WM WHEELER A 2 WAS | D160: WASATCH | E160: 2.623823704 | F160: 26112.382 | G160: 68514.28687 | H160: 0.1925 | I160: 13189.00022
A161: 150 | C161: WM WHEELER A 2 FT UN | D161: FORT UNION | E161: 2.623823704 | F161: 5016.076 | G161: 13161.29911 | H161: 0.1925 | I161: 2533.550079
A162: 151 | C162: WM WHEELER A 3 FT UN | D162: FORT UNION | E162: 2.623823704 | F162: 18529.706 | G162: 48618.68184 | H162: 0.1925 | I162: 9359.096254
A163: 152 | C163: WB LASHER A 5 FT UN | D163: FORT UNION | E163: 2.623823704 | F163: 27102.735 | G163: 71112.79855 | H163: 0.1840625 | I163: 13089.19948
A164: 153 | C164: WB LASHER A 6 LEW/LNC/FT UN | D164: LANCE/LEWIS | E164: 2.623823704 | F164: 53837.969 | G164: 141261.3393 | H164: 0.1925 | I164: 27192.80781
A165: 154 | C165: WM WHEELER A 4 LEW/LNC/FT UN | D165: LANCE/LEWIS | E165: 2.623823704 | F165: 64622.623 | G165: 169558.3701 | H165: 0.1925 | I165: 32639.98624
A166: 155 | C166: LASHER 7 LEWIS | D166: LEWIS | E166: 2.623823704 | F166: 80368.949 | G166: 210873.9535 | H166: 0.1925 | I166: 40593.23605
A167: 156 | C167: LASHER 8 LEWIS | D167: LEWIS | E167: 2.623823704 | F167: 27617.588 | G167: 72463.68205 | H167: 0.1840625 | I167: 13337.84648
A168: 157 | C168: LASHER 9 LEWIS | D168: LEWIS | E168: 2.623823704 | F168: 47289.33 | G168: 124078.865 | H168: 0.1840625 | I168: 22838.26609
A169: 158 | C169: LASHER 10 MESA | D169: MESAVERDE | E169: 2.623823704 | F169: 6130.88 | G169: 16086.34827 | H169: 0.2540625 | I169: 4086.937858
A170: 159 | C170: LASHER 10 FT UN | D170: FORT UNION | E170: 2.623823704 | F170: 5947.324 | G170: 15604.72969 | H170: 0.1840625 | I170: 2872.245558
A171: 160 | C171: LASHER 10 LEWIS | D171: LEWIS | E171: 2.623823704 | F171: 5947.324 | G171: 15604.72969 | H171: 0.1840625 | I171: 2872.245558
A172: 161 | C172: LASHER 11 MESA | D172: MESAVERDE | E172: 2.623823704 | F172: 21509.006 | G172: 56435.8398 | H172: 0.2540625 | I172: 14338.23055
A173: 162 | C173: LASHER 11 FT UN | D173: FORT UNION | E173: 2.623823704 | F173: 21512.141 | G173: 56444.06549 | H173: 0.1840625 | I173: 10389.2358
A174: 163 | C174: LASHER 11 LEWIS | D174: LEWIS | E174: 2.623823704 | F174: 21512.141 | G174: 56444.06549 | H174: 0.1840625 | I174: 10389.2358
A175: 164 | C175: LASHER 11 LANCE | D175: LANCE | E175: 2.623823704 | F175: 21512.141 | G175: 56444.06549 | H175: 0.1840625 | I175: 10389.2358
A176: 165 | C176: LASHER 12 MESA | D176: MESAVERDE | E176: 2.623823704 | F176: 11396.977 | G176: 29903.65841 | H176: 0.2540625 | I176: 7597.398215
A177: 166 | C177: LASHER 12 FT UN | D177: FORT UNION | E177: 2.623823704 | F177: 11390.957 | G177: 29887.86299 | H177: 0.1840625 | I177: 5501.234782
A178: 167 | C178: LASHER 12 LEWIS | D178: LEWIS | E178: 2.623823704 | F178: 11390.957 | G178: 29887.86299 | H178: 0.1840625 | I178: 5501.234782
A179: 168 | C179: LASHER 12 LANCE | D179: LANCE | E179: 2.623823704 | F179: 11390.957 | G179: 29887.86299 | H179: 0.1840625 | I179: 5501.234782
A180: 169 | C180: WHEELER 6 MESA | D180: MESAVERDE | E180: 2.623823704 | F180: 12416.241 | G180: 32578.02746 | H180: 0.2625 | I180: 8551.732207
A181: 170 | C181: WHEELER 6 LEW/LAN/FT UN | D181: LANCE/LEWIS | E181: 2.623823704 | F181: 17213.717 | G181: 45165.75871 | H181: 0.1925 | I181: 8694.408551
A182: 171 | C182: WHEELER 5 MESA | D182: MESAVERDE | E182: 2.623823704 | F182: 1700.981 | G182: 4463.074269 | H182: 0.2625 | I182: 1171.556995
A183: 172 | C183: WHEELER 5 LEW/LAN/FT UN | D183: LANCE/LEWIS | E183: 2.623823704 | F183: 36080.806 | G183: 94669.67406 | H183: 0.1925 | I183: 18223.91226
A184: 173 | C184: WHEELER 7 MESA | D184: MESAVERDE | E184: 2.623823704 | F184: 4345.263 | G184: 11401.20406 | H184: 0.2625 | I184: 2992.816066
A185: 174 | C185: WHEELER 7 LEW/LAN/FT UN | D185: LANCE/LEWIS | E185: 2.623823704 | F185: 9853.001 | G185: 25852.53758 | H185: 0.1925 | I185: 4976.613485
A186: 175 | C186: WHEELER 8 MESA | D186: MESAVERDE | E186: 2.623823704 | F186: 116.998 | G186: 306.9821258 | H186: 0.2625 | I186: 80.58280801
A187: 176 | C187: WHEELER 8 LEW/LAN/FT UN | D187: LANCE/LEWIS | E187: 2.623823704 | F187: 1178.959 | G187: 3093.380571 | H187: 0.1925 | I187: 595.4757599
A188: 177 | C188: WHEELER 9 MESA | D188: MESAVERDE | E188: 2.623823704 | F188: 6660.704 | G188: 17476.51304 | H188: 0.2625 | I188: 4587.584674
A189: 178 | C189: WHEELER 9 LEW/LAN/FT UN | D189: LANCE/LEWIS | E189: 2.623823704 | F189: 58630.876 | G189: 153837.0823 | H189: 0.1925 | I189: 29613.63833
A190: 179 | B190: CLAY BASIN (UT) | C190: CLAY BASIN UNIT 7 FR | D190: FRONTIER | E190: 2.623823704 | F190: 30418.818 | G190: 79813.61573 | H190: 0.1549177 | I190: 12364.54178
A191: 180 | C191: CLAY BASIN UNIT 8 FR | D191: FRONTIER | E191: 2.623823704 | F191: 57069.653 | G191: 149740.7083 | H191: 0.1549177 | I191: 23197.48613
A192: 181 | C192: CLAY BASIN UNIT 9 FR | D192: FRONTIER | E192: 2.623823704 | F192: 88855.019 | G192: 233139.9051 | H192: 0.1549177 | I192: 36117.49788
A193: 182 | C193: CLAY BASIN UNIT 12 FR | D193: FRONTIER | E193: 2.623823704 | F193: 87849.428 | G193: 230501.4116 | H193: 0.1549177 | I193: 35708.74853
A194: 183 | C194: CLAY BASIN UNIT 13 FR | D194: FRONTIER | E194: 2.623823704 | F194: 86668.023 | G194: 227401.6132 | H194: 0.1549177 | I194: 35228.53489
A195: 184 | C195: CLAY BASIN UNIT 14 FR | D195: FRONTIER | E195: 2.623823704 | F195: 46130.066 | G195: 121037.1607 | H195: 0.1549177 | I195: 18750.79854
A196: 185 | C196: CLAY BASIN UNIT 15 FR | D196: LANCE | E196: 2.623823704 | F196: 182360.116 | G196: 478480.7951 | H196: 0.1549177 | I196: 74125.14427
A197: 186 | C197: CLAY BASIN UNIT 16 FR | D197: FRONTIER | E197: 2.623823704 | F197: 30077.078 | G197: 78916.95022 | H197: 0.1549177 | I197: 12225.63242
A198: 187 | C198: CLAY BASIN UNIT 17 FR | D198: FRONTIER | E198: 2.623823704 | F198: 70740.823 | G198: 185611.4483 | H198: 0.1549177 | I198: 28754.49866
A199: 188 | C199: CLAY BASIN UNIT 18 FR | D199: FRONTIER | E199: 2.623823704 | F199: 66011.145 | G199: 173201.607 | H199: 0.1549177 | I199: 26831.99459
A200: 189 | C200: CLAY BASIN UNIT 19 FR | D200: FRONTIER | E200: 2.623823704 | F200: 96090.178 | G200: 252123.6868 | H200: 0.1549177 | I200: 39058.42167
A201: 190 | C201: CLAY BASIN UNIT 20 FR | D201: FRONTIER | E201: 2.623823704 | F201: 80461.905 | G201: 211117.8536 | H201: 0.1549177 | I201: 32705.89232
A202: 191 | C202: CLAY BASIN UNIT 22 FR | D202: FRONTIER | E202: 2.623823704 | F202: 95824.341 | G202: 251426.1774 | H202: 0.1549177 | I202: 38950.36512
... 1304 more rows

Sheet Ut 1.2
H1: ='Control Panel'!$E$32 -> Questar Gas Company
H2: ='Control Panel'!$E$33 -> Docket No. 15-057-11
H3: Exhibit 1.2
B8: TEST YEAR PURCHASED GAS COSTS
D11: (A) | E11: (B) | F11: (C) | G11: (D)
F12: Cost
C13: Component | E13: Dth | F13: per Dth | G13: Total Cost
B15: 1 | C15: Current Contracts | G15: =ROUND(Calculations!$P$184+Calculations!$P$187-G16,0) -> 71681807
B16: =B15+1 -> 2 | C16: Stabilization Costs | G16: ='Monthly Inputs'!S94 -> 0
B17: =B16+1 -> 3 | D17: Total Current Contracts | E17: =Calculations!$P$183+Calculations!$P$186 -> 24930000 | F17: =G17/E17 -> 2.875323185 | G17: =G15+G16 -> 71681807
B19: =B17+1 -> 4 | C19: Forecast Spot | E19: =Calculations!$P$180 -> 29666296 | F19: =G19/E19 -> 2.623209652 | G19: =ROUND(Calculations!P181,0) -> 77820914
B21: =B19+1 -> 5 | C21: Future Contracts | E21: =Calculations!P189 -> 1006439 | F21: =G21/E21 -> 2.669339125 | G21: =ROUND(Calculations!P190,0) -> 2686527
B24: =B21+1 -> 6 | C24: Total Gas Purchased | E24: =E17+E19+E21 -> 55602735 | F24: =G24/E24 -> 2.737082052 | G24: =G17+G19+G21 -> 152189248

Sheet Ut 1.3 p1
N1: ='Control Panel'!$E$32 -> Questar Gas Company
N2: ='Control Panel'!$E$33 -> Docket No. 15-057-11
N3: Exhibit 1.3
N4: Page 1 of 2
B8: TEST YEAR TRANSPORTATION, GATHERING AND PROCESSING CHARGES
B11: (A) | D11: (B) | F11: (C) | H11: (D) | J11: (E) | L11: (F) | M11: (G)
D12: Fctr | F12: Dth | H12: Months/Days | J12: Rate | M12: Total Costs
B14: TRANSPORTATION DEMAND
B16: QPC Demand
A17: 1 | B17: T-1 Transportation - Yearly | F17: ='Other Inputs'!D22+'Other Inputs'!D23+'Other Inputs'!D24 -> 840902 | G17: x | H17: ='Other Inputs'!E22 -> 12 | I17: x | J17: ='Other Inputs'!F22 -> 5.28804 | K17: = | L17: =ROUND(F17*H17*J17,0) -> 53360681
A18: =A17+1 -> 2 | B18: T-1 Transportation Nov-Mar | F18: ='Other Inputs'!D25 -> 75000 | G18: x | H18: ='Other Inputs'!E25 -> 5 | I18: x | J18: ='Other Inputs'!F25 -> 6.80887 | K18: = | L18: =ROUND(F18*H18*J18,0) -> 2553326
A19: =A18+1 -> 3 | B19: No-Notice Transportation | F19: ='Other Inputs'!D30 -> 203542 | G19: x | H19: ='Other Inputs'!E30 -> 12 | I19: x | J19: ='Other Inputs'!F30 -> 0.86753 | K19: = | L19: =ROUND(F19*H19*J19,0) -> 2118945
A20: =A19+1 -> 4 | B20: Capacity Release Credits | L20: =-ROUND('Other Inputs'!E291,0) -> -45673
A21: =A20+1 -> 5 | C21: Total | L21: =SUM(L17:L20) -> 57987279
B23: Kern River Demand
A24: =A21+1 -> 6 | B24: January - December | F24: ='Other Inputs'!D56 -> 1885 | G24: x | H24: ='Other Inputs'!E56 -> 12 | I24: x | J24: ='Other Inputs'!F56 -> 17.74204167 | K24: = | L24: =ROUND(F24*H24*J24,0) -> 401325
A25: =A24+1 -> 7 | B25: January - December | F25: ='Other Inputs'!D54 -> 3000 | G25: x | H25: ='Other Inputs'!E54 -> 12 | I25: x | J25: ='Other Inputs'!F54 -> 14.34754167 | K25: = | L25: =ROUND(F25*H25*J25,0) -> 516512
A26: =A25+1 -> 8 | B26: November - March | F26: ='Other Inputs'!D55 -> 50000 | G26: x | H26: ='Other Inputs'!E55 -> 5 | I26: x | J26: =J25 -> 14.34754167 | K26: = | L26: =ROUND(F26*H26*J26,0) -> 3586885
A27: =A26+1 -> 9 | C27: Total | L27: =SUM(L24:L26) -> 4504722
A29: =A27+1 -> 10 | B29: Total Transportation Demand (SNG) | M29: =L21+L27 -> 62492001
B32: TRANSPORTATION COMMODITY
B34: QPC Commodity
A35: =A29+1 -> 11 | B35: QPC Commodity (SNG) | F35: =F36-(D40*F40*H40)-(D41*F41*H41) -> 121371161.6 | I35: x | J35: ='Other Inputs'!F38 -> 0.00267 | K35: = | L35: =ROUND(F35*J35,0) -> 324061
A36: =A35+1 -> 12 | B36: QPC ACA | F36: =Calculations!$P$173 -> 129011202 | I36: x | J36: ='Other Inputs'!F39 -> 0.0014 | K36: = | L36: =ROUND(F36*J36,0) -> 180616
A37: =A36+1 -> 13 | C37: Total | L37: =SUM(L35:L36) -> 504677
B39: Kern River Commodity
A40: =A37+1 -> 14 | B40: January - December | D40: ='Other Inputs'!C60 -> 0.8138169565 | E40: x | F40: ='Other Inputs'!D60 -> 4885 | G40: x | H40: ='Other Inputs'!E60 -> 366 | I40: x | J40: ='Other Inputs'!F60 -> 0.0044 | K40: = | L40: =ROUND(D40*F40*H40*J40,0) -> 6402
A41: =A40+1 -> 15 | B41: November - March | D41: ='Other Inputs'!C61 -> 0.8138169565 | E41: x | F41: ='Other Inputs'!D61 -> 50000 | G41: x | H41: ='Other Inputs'!E61 -> 152 | I41: x | J41: ='Other Inputs'!F61 -> 0.0044 | K41: = | L41: =ROUND(D41*F41*H41*J41,0) -> 27214
A42: =A41+1 -> 16 | C42: Total (SNG) | L42: =SUM(L40:L41) -> 33616
A44: =A42+1 -> 17 | B44: Total Transportation Commodity | M44: =L37+L42 -> 538293
B47: OTHER CHARGES
A49: =A44+1 -> 18 | B49: QEP Field Services Demand | H49: 12 | I49: x | J49: ='Other Inputs'!E173 -> 862503 | K49: = | L49: =ROUND(H49*J49,0) -> 10350036
A50: =A49+1 -> 19 | B50: QEP Field Services Commodity | F50: ='Other Inputs'!D174 -> 38212543.43 | I50: x | J50: ='Other Inputs'!D173 -> 0.14446 | K50: = | L50: =ROUND(F50*J50,0) -> 5520184
A51: =A50+1 -> 20 | C51: Total QEP Field Services (SNG) | M51: =L49+L50 -> 15870220 | N51: 1/
A53: =A51+1 -> 21 | B53: Wexpro II Gathering | F53: ='Other Inputs'!D177 -> 4371050 | J53: ='Other Inputs'!D176 -> 0.4279 | L53: ='Other Inputs'!D177*'Other Inputs'!D176 -> 1870372.295
A54: =A53+1 -> 22 | B54: Other Wexpro I Gathering Charges | L54: =ROUND('Other Inputs'!D165,0) -> 1884810
A55: =A54+1 -> 23 | B55: Other Transportation Charges | L55: =ROUND('Other Inputs'!$D$167,0) -> 3397183
A56: =A55+1 -> 24 | C56: Total Wexpro II Gathering, Other Gathering & Transportation | M56: =SUM(L53:L55) -> 7152365.295
A61: =A56+1 -> 25 | B61: TOTAL TRANSPORTATION AND OTHER CHARGES | M61: =SUM(M13:M59) -> 86052879.3
A66: 1/ | B66: See paragraph 7c in application.

Sheet Ut 1.3 p2
L1: ='Control Panel'!$E$32 -> Questar Gas Company
L2: ='Control Panel'!$E$33 -> Docket No. 15-057-11
L3: Exhibit 1.3
L4: Page 2 of 2
B7: TEST YEAR STORAGE AND WORKING GAS CHARGES
B10: (A) | D10: (B) | F10: (C) | H10: (D) | J10: (E) | K10: (F)
B12: STORAGE CHARGES 1/
B14: Component | D14: Dth | F14: Months | H14: Rate | K14: Total Costs
B15: Storage Demand
A16: 1 | B16: Peaking Demand | D16: ='Other Inputs'!E151 -> 184625 | E16: x | F16: 12 | G16: x | H16: ='Other Inputs'!E14 -> 2.87375 | I16: = | J16: =ROUND(D16*F16*H16,0) -> 6366793
A17: =A16+1 -> 2 | B17: Ryckman Demand 4/ | D17: ='Other Inputs'!E152 -> 2500000 | E17: x | F17: 12 | G17: x | H17: ='Other Inputs'!E15 -> 0.09 | I17: = | J17: =ROUND(D17*F17*H17,0) -> 2700000
A18: =A17+1 -> 3 | B18: Clay Basin Demand | D18: ='Other Inputs'!E153 -> 111827 | E18: x | F18: 12 | G18: x | H18: ='Other Inputs'!E16 -> 2.85338 | I18: = | J18: =ROUND(D18*F18*H18,0) -> 3829019
A19: 4 | B19: Clay Basin Capacity | D19: ='Other Inputs'!E154 -> 13419000 | E19: x | F19: 12 | G19: x | H19: ='Other Inputs'!E17 -> 0.02378 | I19: = | J19: =ROUND(D19*F19*H19,0) -> 3829246
A20: 5 | C20: Total Demand Charges (SNG) | J20: =SUM(J16:J19) -> 16725058
B22: Storage Commodity 2/
A23: =A20+1 -> 6 | B23: Peaking Injections | D23: =(+'Monthly Inputs'!S24+'Monthly Inputs'!S26+'Monthly Inputs'!S27) -> 987970 | F23: x | H23: ='Other Inputs'!E6 -> 0.03872 | I23: = | J23: =ROUND(D23*H23,0) -> 38254
A24: =A23+1 -> 7 | B24: Peaking Withdrawals | D24: =(+'Monthly Inputs'!S32+'Monthly Inputs'!S34+'Monthly Inputs'!S35) -> 286564 | F24: x | H24: ='Other Inputs'!E7 -> 0.03872 | I24: = | J24: =ROUND(D24*H24,0) -> 11096
A25: =A24+1 -> 8 | B25: Ryckman Injections | D25: ='Monthly Inputs'!S28 -> 2226256 | F25: x | H25: ='Other Inputs'!E8 -> 0.015 | I25: = | J25: =ROUND(D25*H25,0) -> 33394
A26: =A25+1 -> 9 | B26: Ryckman Withdrawals | D26: ='Monthly Inputs'!S36 -> 1510600 | F26: x | H26: ='Other Inputs'!E9 -> 0.01 | I26: = | J26: 15106
A27: =A26+1 -> 10 | B27: Clay Basin Injections | D27: ='Monthly Inputs'!S25 -> 11693958 | F27: x | H27: ='Other Inputs'!E10 -> 0.01049 | I27: = | J27: =ROUND(D27*H27,0) -> 122670
A28: =A27+1 -> 11 | B28: Clay Basin Withdrawals | D28: ='Monthly Inputs'!S33 -> 12241129 | F28: x | H28: ='Other Inputs'!E11 -> 0.01781 | I28: = | J28: =ROUND(D28*H28,0) -> 218015
A29: 12 | C29: Total Commodity Charges | J29: =SUM(J23:J28) -> 438535
A31: 13 | B31: Total Storage Charges | K31: =J20+J29 -> 17163593
B34: WORKING GAS CHARGES - QGC Account 164
C36: Month | D36: Amount | H36: Pre-Tax Return %
A38: =A31+1 -> 14 | C38: =+'Rate Base'!H8 -> 2014-07-21 | D38: =+'Rate Base'!H216 -> 42002346.57
A39: =A38+1 -> 15 | C39: =+'Rate Base'!I8 -> 2014-08-20 | D39: =+'Rate Base'!I216 -> 56135251.62
A40: 16 | C40: =+'Rate Base'!J8 -> 2014-09-19 | D40: =+'Rate Base'!J216 -> 66798582.12
A41: 17 | C41: =+'Rate Base'!K8 -> 2014-10-19 | D41: =+'Rate Base'!K216 -> 69627001.85
A42: 18 | C42: =+'Rate Base'!L8 -> 2014-11-18 | D42: =+'Rate Base'!L216 -> 59708122.01
A43: 19 | C43: =+'Rate Base'!M8 -> 2014-12-18 | D43: =+'Rate Base'!M216 -> 40325369.94
A44: 20 | C44: =+'Rate Base'!N8 -> 2015-01-17 | D44: =+'Rate Base'!N216 -> 30248596.29
A45: 21 | C45: =+'Rate Base'!O8 -> 2015-02-16 | D45: =+'Rate Base'!O216 -> 14896410.62
A46: 22 | C46: =+'Rate Base'!P8 -> 2015-03-18 | D46: =+'Rate Base'!P216 -> 9447138.71
A47: 23 | C47: =+'Rate Base'!Q8 -> 2015-04-17 | D47: =+'Rate Base'!Q216 -> 6488848.3
A48: 24 | C48: =+'Rate Base'!R8 -> 2015-05-17 | D48: =+'Rate Base'!R216 -> 11612623.98
A49: 25 | C49: =+'Rate Base'!S8 -> 2015-06-16 | D49: =+'Rate Base'!S216 -> 26098151.32
A50: 26 | C50: =+'Rate Base'!T8 -> 2015-07-16 | D50: =+'Rate Base'!T216 -> 41844180.15
A53: =A50+1 -> 27 | B53: 12-Month Average 3/ | D53: =(SUM(D39:D49)+D38/2+D50/2)/12 -> 36109113.34 | F53: x | H53: ='Other Inputs'!E281 -> 0.1079 | J53: = | K53: =D53*H53 -> 3896173.33
A56: =A53+1 -> 28 | B56: TOTAL FIRM STORAGE AND WORKING GAS CHARGES | K56: =K53+K31 -> 21059766.33
A60: 1/ | B60: =CONCATENATE("Exhibit 1.9 - ",'Other Inputs'!G22) -> Exhibit 1.9 - 1/1/2015
A61: 2/ | B61: Questar Gas planned volumes.
A62: 3/ | B62: (½ of Line 14 + sum of Lines 15 through 25 + ½ of Line 26) / 12
A63: 4/ | B63: Ryckman Creek Resources is expected to be operational beginning October of 2015.

Sheet Ut 1.4 p1
G1: ='Control Panel'!$E$32 -> Questar Gas Company
G2: ='Control Panel'!$E$33 -> Docket No. 15-057-11
G3: Exhibit 1.4
G4: Page 1 of 3
B8: SUMMARY OF TEST-YEAR GAS RELATED COSTS AND REVENUES CREDITS
B11: (A) | E11: (B) | F11: (C) | G11: (D)
B12: Component | E12: Costs | F12: Dth | G12: $ per Dth
B14: WEXPRO I
A15: 1 | C15: Questar Gas Production 1/ | E15: ='Other Inputs'!D184 -> 299043587.9
A16: =A15+1 -> 2 | C16: Wexpro I Revenue Sharing Credits 2/ | E16: =-'Ut 1.4 p3'!H28 -> -17650872
A17: =A16+1 -> 3 | D17: Net Questar Gas Production Costs | E17: =E15+E16 -> 281392715.9 | F17: =F22 -> 60134052 | G17: =E17/F22 -> 4.67942383
A19: =A17+1 -> 4 | D19: Gathering 3/ | E19: ='Ut 1.3 p1'!L54+'Ut 1.3 p1'!M51 -> 17755030
A22: =A19+1 -> 5 | B22: Total Wexpro I Cost of Production | E22: =SUM(E17:E19) -> 299147745.9 | F22: ='Monthly Inputs'!S7 -> 60134052 | G22: =E22/F22 -> 4.974681332
B24: WEXPRO II
A25: =A22+1 -> 6 | C25: Wexpro II Production 4/ | E25: ='Other Inputs'!D205 -> 27144395.66
A26: =A25+1 -> 7 | C26: Wexpro II Revenue Sharing Credits 5/ | E26: =-'Ut 1.4 p3'!H44 -> -963969
A27: =A26+1 -> 8 | D27: Net Cost of Wexpro II Production | E27: =E25+E26 -> 26180426.66 | F27: =F32 -> 4371050 | G27: =E27/F32 -> 5.989505189
A29: =A27+1 -> 9 | D29: Gathering 6/ | E29: ='Ut 1.3 p1'!L53 -> 1870372.295
A32: =A29+1 -> 10 | B32: Total Wexpro II Cost of Production | E32: =SUM(E27:E29) -> 28050798.95 | F32: ='Monthly Inputs'!S13 -> 4371050 | G32: =E32/F32 -> 6.417405189
A34: =A32+1 -> 11 | B34: Sales of Cost-of-Service Gas 7/ | E34: =-'Other Inputs'!E223 -> 0 | F34: ='Other Inputs'!F223 -> 0 | G34: ='Other Inputs'!G223 -> 0
A37: =A34+1 -> 12 | B37: Total Cost of Service Production | E37: =E22+E32+E34 -> 327198544.9 | F37: =F22+F32 -> 64505102 | G37: =E37/F37 -> 5.072444423
A39: =A37+1 -> 13 | B39: Questar Gas Contract Gas 8/ | E39: ='Ut 1.2'!G24 -> 152189248 | F39: ='Ut 1.2'!E24 -> 55602735 | G39: =E39/F39 -> 2.737082052
A41: =A39+1 -> 14 | B41: Injection / Withdrawal Adjustment 9/ | E41: ='Ut 1.4 p2'!H23 -> -715817.1878
A43: =A41+1 -> 15 | B43: Transportation & Other Costs 10/ | E43: ='Ut 1.3 p1'!M29+'Ut 1.3 p1'!M44+'Ut 1.3 p1'!L55 -> 66427477 | F43: ='Ut 1.3 p1'!F35 -> 121371161.6 | G43: =E43/F43 -> 0.5473085708
A45: =A43+1 -> 16 | B45: Storage & Working Gas 11/ | E45: ='Ut 1.3 p2'!K56 -> 21059766.33
B47: Gas Management Costs | E47: ='Ut 1.3 p1'!M58 -> 0
A50: =A45+1 -> 17 | B50: Questar Gas - Related Gas Costs for Rate Purposes 12/ | E50: =E37+E39+E41+E43+E45+E47 -> 566159219 | F50: ='Ut 1.6 p1'!H20 -> 113145032 | G50: =E50/F50 -> 5.003836306
A53: 1/ | B53: Exhibit 1.1, Page 19, Line 1402, Column H.
A54: 2/ | B54: Exhibit 1.4, Page 3, Line 8.
A55: 3/ | B55: Exhibit 1.3, Page 1, Lines 20 + 22.
A56: 4/ | B56: Exhibit 1.1, Page 20, Line 1483, Column H.
A57: 5/ | B57: Exhibit 1.4, Page 3, Line 16.
A58: 6/ | B58: Exhibit 1.3, Page 1, Line 21.
A59: 7/ | B59: Exhibit 1.4, Page 3, Line 17.
A60: 8/ | B60: Exhibit 1.2, Line 6.
A61: 9/ | B61: Exhibit 1.4, Page 2, Line 6.
A62: 10/ | B62: Exhibit 1.3, Page 1, Lines 10 + 17 + 23.
A63: 11/ | B63: Exhibit 1.3, Page 2, Line 28.
A64: 12/ | B64: Exhibit 1.6, Page 1, Line 4.

Sheet Ut 1.4 p2
J1: ='Control Panel'!$E$32 -> Questar Gas Company
J2: ='Control Panel'!$E$33 -> Docket No. 15-057-11
J3: Exhibit 1.4
J4: Page 2 of 3
B8: ANNUALIZED UNIT COST OF STORAGE GAS
C11: (A) | E11: (B) | F11: (C) | H11: (D)
F12: Average
E13: Dth | F13: Rate | H13: Total Costs
B15: 1 | C15: Company Production 1/ | E15: ='Ut 1.4 p1'!F37 -> 64505102 | F15: =H15/E15 -> 5.072444423 | H15: ='Ut 1.4 p1'!E37 -> 327198544.9
B16: =B15+1 -> 2 | C16: Purchased Gas 2/ | E16: ='Ut 1.2'!E24 -> 55602735 | F16: =H16/E16 -> 2.737082052 | H16: ='Ut 1.2'!G24 -> 152189248
B17: =B16+1 -> 3 | C17: Average Price | E17: =SUM(E15:E16) -> 120107837 | F17: =(+H15+H16)/(+E15+E16) -> 3.991311515 | H17: =SUM(H15:H16) -> 479387792.9
C20: Storage 3/
B21: =B17+1 -> 4 | C21: Withdrawals | E21: ='Monthly Inputs'!S37 -> 14038293 | F21: ='Ut Storage'!L27 -> 4.682102163 | H21: =E21*F21 -> 65728722.01
B22: =B21+1 -> 5 | C22: Injections | E22: =-'Monthly Inputs'!S29 -> -14908184 | F22: ='Ut Storage'!K27 -> 4.456917033 | H22: =E22*F22 -> -66444539.2
B23: =B22+1 -> 6 | C23: Storage Adjustment | H23: =H21+H22 -> -715817.1878
B29: 1/ | C29: Exhibit 1.4, Page 1, Line 12.
B30: 2/ | C30: Exhibit 1.2, Line 6.
B31: 3/ | C31: Questar Gas Company planned volumes.

Sheet Ut 1.4 p3
K1: ='Control Panel'!$E$32 -> Questar Gas Company
K2: ='Control Panel'!$E$33 -> Docket No. 15-057-11
K3: Exhibit 1.4
K4: Page 3 of 3
D8: OTHER REVENUES 1/
C11: (A) | E11: (B) | F11: (C) | G11: (D)
C12: Account | G12: =Expenses!S8 -> 12 Months Ending
C13: Number | E13: Account Name | G13: ='Control Panel'!E7 -> 2016-09-30
C14: WEXPRO I
B15: 1 | D15: 483 | E15: Sales for Resale | H15: ='Other Inputs'!F191 -> 2578952
B17: =B15+1 -> 2 | D17: 490 | E17: Plant By-Product | H17: ='Other Inputs'!F192 -> 3127471
B19: =B17+1 -> 3 | D19: 492 | E19: Gasoline and Oil Sales | F19: ='Other Inputs'!F193 -> 424941
B20: =B19+1 -> 4 | D20: 758-1 | E20: Gasoline and Oil Cost | F20: ='Other Inputs'!F196 -> -63741
B21: =B20+1 -> 5 | E21: Net Gasoline and Oil Sales | H21: =F19+F20 -> 361200
B23: =B21+1 -> 6 | D23: 495-1 | E23: Overriding Royalty Revenue from Questar E & P | H23: ='Other Inputs'!F194 -> 11583249
B25: =B23+1 -> 7 | D25: 495-2 | E25: Oil Revenue Received from Wexpro | H25: ='Other Inputs'!F195 -> 0
B28: =B25+1 -> 8 | E28: Total Wexpro I | H28: =SUM(H15:H25) -> 17650872
C30: WEXPRO II
B31: =B28+1 -> 9 | D31: 483 | E31: Sales for Resale | H31: ='Other Inputs'!E212 -> 0
B33: =B31+1 -> 10 | D33: 490 | E33: Plant By-Product | H33: ='Other Inputs'!E213 -> 528837
B35: =B33+1 -> 11 | D35: 492 | E35: Gasoline and Oil Sales | F35: ='Other Inputs'!E214 -> 511920
B36: =B35+1 -> 12 | D36: 758-1 | E36: Gasoline and Oil Cost | F36: ='Other Inputs'!E217 -> -76788
B37: =B36+1 -> 13 | E37: Net Gasoline and Oil Sales | H37: =F35+F36 -> 435132
B39: =B37+1 -> 14 | D39: 495-1 | E39: Overriding Royalty Revenue from Questar E & P | H39: ='Other Inputs'!E215 -> 0
B41: =B39+1 -> 15 | D41: 495-2 | E41: Oil Revenue Received from Wexpro | H41: ='Other Inputs'!E216 -> 0
B44: =B41+1 -> 16 | E44: Total Wexpro II | H44: =SUM(H31:H41) -> 963969
B46: 17 | E46: Sales of Cost-of-Service Gas | H46: ='Other Inputs'!E223 -> 0
B49: 18 | E49: Grand Total (Line 8 + Line 16 + Line 17) | H49: =H28+H44+H46 -> 18614841
B53: 1/ | D53: Forecasted 12-month test year.

Sheet Ut 1.5
H1: ='Control Panel'!$E$32 -> Questar Gas Company
H2: ='Control Panel'!$E$33 -> Docket No. 15-057-11
H3: Exhibit 1.5
B8: TEST-YEAR GAS COST ALLOCATION
B11: (A) | D11: (B) | E11: (C) | F11: (D) | G11: (E)
D12: Allocation
D13: Factor 1/ | E13: System | F13: Wyoming | G13: Utah
A15: 1 | B15: Questar Gas Production (Exhibit 1.1) | D15: 2 | E15: ='Ut 1.4 p1'!E15+'Ut 1.4 p1'!E25 -> 326187983.6 | F15: =CHOOSE($D15,F$51,F$54)*$E15 -> 11952799.17 | G15: =CHOOSE($D15,G$51,G$54)*$E15 -> 314235184.4
A16: =A15+1 -> 2 | B16: Other Revenue's Credit (Exhibit 1.4, p 3) | D16: 2 | E16: ='Ut 1.4 p1'!E16+'Ut 1.4 p1'!E26+'Ut 1.4 p1'!E34 -> -18614841 | F16: -682120.3329 | G16: -17932720.67
A17: =A16+1 -> 3 | B17: Gathering (Exhibit 1.3, p 1) | C17: - Demand | D17: 1 | E17: ='Ut 1.3 p1'!L49 -> 10350036 | F17: 305202.4459 | G17: =CHOOSE($D17,G$51,G$54)*$E17 -> 10044833.55
A18: =A17+1 -> 4 | B18: Gathering | C18: - Commodity | D18: 2 | E18: ='Ut 1.3 p1'!L54+'Ut 1.3 p1'!L50+'Ut 1.3 p1'!L53 -> 9275366.295 | F18: 339885.5755 | G18: 8935480.72
A19: =A18+1 -> 5 | B19: Net Cost of Questar Gas Production | E19: =SUM(E15:E18) -> 327198544.9 | F19: =SUM(F15:F18) -> 11915766.85 | G19: =SUM(G15:G18) -> 315282778
A21: =A19+1 -> 6 | B21: Questar Gas Contract Gas (Exhibit 1.2) | D21: 2 | E21: ='Ut 1.4 p1'!E39 -> 152189248 | F21: =CHOOSE($D21,F$51,F$54)*$E21 -> 5576807.265 | G21: =CHOOSE($D21,G$51,G$54)*$E21 -> 146612440.7
A24: =A21+1 -> 7 | B24: Injection / Withdrawal Adjustment (Exhibit 1.4, p 1) | D24: 2 | E24: ='Ut 1.4 p1'!E41 -> -715817.1878 | F24: =CHOOSE($D24,F$51,F$54)*$E24 -> -26230.33194 | G24: =CHOOSE($D24,G$51,G$54)*$E24 -> -689586.8558
A27: =A24+1 -> 8 | B27: Transportation (Exhibit 1.3, p 1) | C27: - Demand | D27: 1 | E27: ='Ut 1.3 p1'!M29 -> 62492001 | F27: =CHOOSE($D27,F$51,F$54)*$E27 -> 1842767.654 | G27: =CHOOSE($D27,G$51,G$54)*$E27 -> 60649233.35
A28: =A27+1 -> 9 | B28: Transportation | C28: - Commodity | D28: 2 | E28: ='Ut 1.3 p1'!M44 -> 538293 | F28: =CHOOSE($D28,F$51,F$54)*$E28 -> 19725.15373 | G28: =CHOOSE($D28,G$51,G$54)*$E28 -> 518567.8463
A31: =A28+1 -> 10 | B31: Storage (Exhibit 1.3, p 2) | C31: - Demand | D31: 1 | E31: ='Ut 1.3 p2'!J20 -> 16725058 | F31: =CHOOSE($D31,F$51,F$54)*$E31 -> 493189.4545 | G31: =CHOOSE($D31,G$51,G$54)*$E31 -> 16231868.55
A32: =A31+1 -> 11 | B32: Storage | C32: - Commodity | D32: 2 | E32: ='Ut 1.3 p2'!J29 -> 438535 | F32: =CHOOSE($D32,F$51,F$54)*$E32 -> 16069.63176 | G32: =CHOOSE($D32,G$51,G$54)*$E32 -> 422465.3682
A35: =A32+1 -> 12 | B35: Other Transportation - Commodity (Exhibit 1.3, p 1) | D35: 2 | E35: ='Ut 1.3 p1'!L55 -> 3397183 | F35: =CHOOSE($D35,F$51,F$54)*$E35 -> 124486.027 | G35: =CHOOSE($D35,G$51,G$54)*$E35 -> 3272696.973
A38: =A35+1 -> 13 | B38: Working Gas Costs (Exhibit 1.3, p 2) | D38: 2 | E38: ='Ut 1.3 p2'!K53 -> 3896173.33 | F38: =CHOOSE($D38,F$51,F$54)*$E38 -> 142770.9777 | G38: =CHOOSE($D38,G$51,G$54)*$E38 -> 3753402.352
A41: =A38+1 -> 14 | B41: Totals | E41: =SUM(E19:E38) -> 566159219 | F41: =SUM(F19:F38) -> 20105352.68 | G41: =SUM(G19:G38) -> 546053866.3
A48: 1/ | B48: Allocation Factors | E48: Total | F48: Wyoming | G48: Utah
B50: #1 Peak Day Demand | D50: Dth- | E50: =SUM(F50:G50) -> 1328877 | F50: ='Other Inputs'!$E$130 -> 39186 | G50: ='Other Inputs'!$E$129 -> 1289691
D51: Percent- | E51: =F51+G51 -> 1 | F51: =F50/E50 -> 0.02948805646 | G51: =G50/E50 -> 0.9705119435
B53: #2 Commodity Sales - All | D53: Dth- | E53: =F53+G53 -> 113145032 | F53: ='Ut 1.6 p1'!H19 -> 4146075 | G53: ='Ut 1.6 p1'!H18 -> 108998957
D54: Percent- | E54: =F54+G54 -> 1 | F54: =F53/E53 -> 0.0366438979 | G54: =G53/E53 -> 0.9633561021

Sheet Ut 1.6 p1
J1: ='Control Panel'!$E$32 -> Questar Gas Company
J2: ='Control Panel'!$E$33 -> Docket No. 15-057-11
J3: Exhibit 1.6
J4: Page 1 of 3
B8: TEST-YEAR GAS COST CHANGE
B11: (A) | C11: (B) | D11: (C) | F11: (D) | H11: (E) | J11: (F)
F12: Average Rate | H12: x Dth | I12: = | J12: Total
A13: 1 | B13: Utah Allocation of Questar Gas-Related Gas Costs (Exhibit 1.5) 1/ | J13: ='Ut 1.5'!G41 -> 546053866.3
H15: Total
B16: Test-Year Sales: | D16: Firm | F16: + Interruptible | H16: = Sales Dth
A18: =A13+1 -> 2 | B18: Utah | D18: =Calculations!P13 -> 107799022 | F18: =Calculations!P17 -> 1199935 | H18: =D18+F18 -> 108998957
A19: =A18+1 -> 3 | B19: Wyoming | D19: =Calculations!P32 -> 3982965 | F19: =Calculations!P36 -> 163110 | H19: =D19+F19 -> 4146075
A20: =A19+1 -> 4 | B20: Total Dth | H20: =SUM(H18:H19) -> 113145032
A22: =A20+1 -> 5 | B22: Supplier Non-Gas Costs 2/ | J22: =(-'Ut 1.6 p2'!F14) -> -99478683.46
A25: =A22+1 -> 6 | B25: Commodity Portion of Test-Year Gas Cost (Lines 1 + 5) | J25: =J13+J22 -> 446575182.9
F28: Current Case | H28: Prior Case
B29: FIRM CUSTOMER RATES | F29: ='Control Panel'!E5 -> 15-057-11 | H29: ='Control Panel'!E9 -> 15-057-04 | J29: Difference
A31: =A25+1 -> 7 | B31: Gas Cost (line 6/Total Sales Dth, line 2) | F31: =ROUND((J25)/H18,5) -> 4.09706 | H31: ='Other Inputs'!F105 -> 4.20785 | J31: =F31-H31 -> -0.11079
A32: =A31+1 -> 8 | B32: 191 Account Amortization (Commodity Portion) 3/ | F32: =D49/H18 -> 0.007233959129 | H32: ='Other Inputs'!F106 -> 0.06294 | J32: =F32-H32 -> -0.05570604087
A33: =A32+1 -> 9 | B33: Total Sales Unit Commodity Cost (Lines 7 + 8) | F33: =F31+F32 -> 4.104293959 | H33: =H31+H32 -> 4.27079 | J33: =J31+J32 -> -0.1664960409
A43: 1/ | B43: Exhibit 1.5, Line 14, Column E.
A45: 2/ | B45: Test Year Estimate of Transportation, Gathering, and Storage billings.
A47: 3/ | B47: 191 Account (July 2015) actual | D47: ='Other Inputs'!E123 -> 18077600
B48: Less: Supplier Non-Gas balance actual | D48: ='Other Inputs'!E124 -> 17289106
B49: 191 Account Commodity Portion | D49: =D47-D48 -> 788494 | F49: =H18 -> 108998957 | H49: =D49/F49 -> 0.007233959129

Sheet Ut 1.6 p2
E1: Questar Gas Company
G2: ='Control Panel'!$E$33 -> Docket No. 15-057-11
G3: Exhibit 1.6
G4: Page 2 of 3
C8: TEST-YEAR SUPPLIER NON-GAS COST CHANGE
C11: (A) | D11: (B) | E11: (C) | F11: (D)
D12: Dth | E12: Average Rate | F12: Total
B14: 1 | C14: Supplier Non-Gas (SNG) Costs 1/ | F14: ='Ut 1.5'!G27+'Ut 1.5'!G31+'Ut 1.5'!G17+(+'Ut 1.3 p1'!L35+'Ut 1.3 p1'!L42+'Ut 1.3 p1'!L54+'Ut 1.3 p1'!L55+'Ut 1.3 p1'!L50+'Ut 1.3 p1'!L53)*'Ut 1.5'!G54 -> 99478683.46
B15: =B14+1 -> 2 | C15: 191 Account Balance for SNG Costs 2/ | F15: =E44 -> 15358114
B16: =1+B15 -> 3 | C16: Total | F16: =SUM(F14:F15) -> 114836797.5
B19: =B16+1 -> 4 | C19: SNG Costs Recovered at Current Rates 3/ | F19: ='Other Inputs'!E229-(D29*('Other Inputs'!G81-'Other Inputs'!F230)) -> 114312698.9
B22: =1+B19 -> 5 | C22: SNG Costs Adjustment to Current Rates (Line 3 - Line 4) | F22: =F16-F19 -> 524098.5698
B28: 6a | C28: Adjustment for SNG contributions from:
B29: 6b | C29: IS SNG current rate | D29: ='RevRun Fcst'!T102+'RevRun Fcst'!T93 -> 1199935 | E29: ='Ut 1.6 p3'!E24 -> 0.1788 | F29: =D29*E29 -> 214548.378
B30: 6c | C30: IS SNG new rate | D30: ='RevRun Fcst'!T102+'RevRun Fcst'!T93 -> 1199935 | E30: ='Ut 1.6 p3'!I24 -> 0.17885 | F30: =D30*E30 -> 214608.3748
B35: =2+B22 -> 7 | C35: Percent Change to Current Rates | F35: =(((+F16-F30)-(F19-F29))/(F19-F29))*100 -> 0.4592875263 | G35: %
C36: ((ln 3-ln 6c)-(ln 4-ln 6b))/(ln 4-ln 6b)
B42: 1/ | C42: Exhibit 1.6, Page 1, Line 5.
B44: 2/ | C44: Spring pass-through SNG amortization from Docket No. 15-057-04 | E44: 15358114
C45: Amortization will be adjusted in the 2016 spring pass-through.
B47: 3/ | C47: ="Output of Revrun.Exe computer program dated "&'RevRun Fcst'!D4 -> Output of Revrun.Exe computer program dated 8/3/2015

Sheet Ut 1.6 p3
I1: ='Control Panel'!$E$32 -> Questar Gas Company
I2: ='Control Panel'!$E$33 -> Docket No. 15-057-11
I3: Exhibit 1.6
I4: Page 3 of 3
F8: TEST YEAR CHANGE IN SUPPLIER NON-GAS COSTS
F9: BY RATE CLASS
C12: (A) | D12: (B) | E12: (C) | F12: (D) | G12: (E) | H12: (F) | I12: (G)
G13: Rate per Dth
C14: Rate Class | D14: Season | E14: Current total 1/ | F14: Curr. Base 1/ | G14: Calc. Base 2/ | H14: Amortization 3/ | I14: Total 4/ | K14: CHECK !!
B16: 1 | C16: GS | D16: Winter | E16: ='Other Inputs'!G73 -> 1.25283 | F16: ='Other Inputs'!E73 -> 1.08433 | G16: =ROUND(E16*('Ut 1.6 p2'!$F$14-'Ut 1.6 p2'!$F$30)/('Ut 1.6 p2'!$F$19-'Ut 1.6 p2'!$F$29),5) -> 1.08995 | H16: =I16-G16 -> 0.16863 | I16: =ROUND(E16*ROUND(1+'Ut 1.6 p2'!$F$35/100,7),5)+M16 -> 1.25858 | K16: =ROUND(G16*('Ut 1.6 p2'!$F$15)/('Ut 1.6 p2'!$F$14-'Ut 1.6 p2'!$F$30),5)-H16 -> 1e-05
B17: =B16+1 -> 2 | D17: Summer | E17: ='Other Inputs'!G74 -> 0.58822 | F17: ='Other Inputs'!E74 -> 0.50911 | G17: =ROUND(E17*('Ut 1.6 p2'!$F$14-'Ut 1.6 p2'!$F$30)/('Ut 1.6 p2'!$F$19-'Ut 1.6 p2'!$F$29),5) -> 0.51174 | H17: =I17-G17 -> 0.07918 | I17: =ROUND(E17*ROUND(1+'Ut 1.6 p2'!$F$35/100,7),5)+M17 -> 0.59092 | K17: =ROUND(G17*('Ut 1.6 p2'!$F$15)/('Ut 1.6 p2'!$F$14-'Ut 1.6 p2'!$F$30),5)-H17 -> 0
B19: =B17+1 -> 3 | C19: FS | D19: Winter | E19: ='Other Inputs'!G76 -> 1.2202 | F19: ='Other Inputs'!E76 -> 1.05609 | G19: =ROUND(E19*('Ut 1.6 p2'!$F$14-'Ut 1.6 p2'!$F$30)/('Ut 1.6 p2'!$F$19-'Ut 1.6 p2'!$F$29),5) -> 1.06156 | H19: =I19-G19 -> 0.16424 | I19: =ROUND(E19*ROUND(1+'Ut 1.6 p2'!$F$35/100,7),5)+M19 -> 1.2258 | K19: =ROUND(G19*('Ut 1.6 p2'!$F$15)/('Ut 1.6 p2'!$F$14-'Ut 1.6 p2'!$F$30),5)-H19 -> 0
B20: =B19+1 -> 4 | D20: Summer | E20: ='Other Inputs'!G77 -> 0.58822 | F20: ='Other Inputs'!E77 -> 0.50911 | G20: =ROUND(E20*('Ut 1.6 p2'!$F$14-'Ut 1.6 p2'!$F$30)/('Ut 1.6 p2'!$F$19-'Ut 1.6 p2'!$F$29),5) -> 0.51174 | H20: =I20-G20 -> 0.07918 | I20: =ROUND(E20*ROUND(1+'Ut 1.6 p2'!$F$35/100,7),5)+M20 -> 0.59092 | K20: =ROUND(G20*('Ut 1.6 p2'!$F$15)/('Ut 1.6 p2'!$F$14-'Ut 1.6 p2'!$F$30),5)-H20 -> 0
B22: =B20+1 -> 5 | C22: NGV | E22: ='Other Inputs'!G79 -> 0.90407 | F22: ='Other Inputs'!E79 -> 0.78248 | G22: =ROUND(E22*('Ut 1.6 p2'!$F$14-'Ut 1.6 p2'!$F$30)/('Ut 1.6 p2'!$F$19-'Ut 1.6 p2'!$F$29),5) -> 0.78653 | H22: =I22-G22 -> 0.12169 | I22: =ROUND(E22*ROUND(1+'Ut 1.6 p2'!$F$35/100,7),5)+M22 -> 0.90822 | K22: =ROUND(G22*('Ut 1.6 p2'!$F$15)/('Ut 1.6 p2'!$F$14-'Ut 1.6 p2'!$F$30),5)-H22 -> 0
B24: =B22+1 -> 6 | C24: IS 5/ | E24: ='Other Inputs'!F230 -> 0.1788 | F24: ='Other Inputs'!F230 -> 0.1788 | G24: ='Other Inputs'!$F$48 -> 0.17885 | H24: =I24-G24 -> 0 | I24: ='Other Inputs'!$F$48 -> 0.17885
B31: 1/ | C31: Current Questar Gas Tariff (excluding bad debt surcharge).
B33: 2/ | C33: Exhibit 1.6 page 2 (line 1 - line 6c)/(line 4 - line 6b)*Exhibit 1.6 page 3 column C. (N.A. to line 6)
B35: 3/ | C35: Column G - Column E
B37: 4/ | C37: (Current Questar Gas rates) x (1+Exhibit 1.6, Page 2, Line 7, % change).
C38: ="(except ln. 6, which is calculated by adding QPC T-2 and ACA rates, then adjusting for distr. loss of "&TEXT('Other Inputs'!E283,"0.000%") -> (except ln. 6, which is calculated by adding QPC T-2 and ACA rates, then adjusting for distr. loss of 0.519%
C39: ="= ("&TEXT('Other Inputs'!$F$42,"$0.00000")&" + "&TEXT('Other Inputs'!$F$44,"$0.00000")&") / ( 1 - "&TEXT('Other Inputs'!$E$283,"0.00000")&" ) = "&TEXT(('Other Inputs'!F42+'Other Inputs'!F44)/(1-('Other Inputs'!$E$283)),("$0.00000")) -> = ($0.17652 + $0.00140) / ( 1 - 0.00519 ) = $0.17885
B41: 5/ | C41: ="IS Tariff rate has an adjustment for bad debt of "&TEXT('Other Inputs'!$E$294,"0.00%")&" = "&TEXT($I$24,"$0.00000")&" / ( 1 - "&TEXT('Other Inputs'!$E$294,"0.00000")&" ) = "&TEXT($I$24/(1-('Other Inputs'!$E$294)),("$0.00000")) -> IS Tariff rate has an adjustment for bad debt of 0.25% = $0.17885 / ( 1 - 0.00250 ) = $0.17930

Sheet Ut 1.7
L1: ='Control Panel'!$E$32 -> Questar Gas Company
L2: ='Control Panel'!$E$33 -> Docket No. 15-057-11
L3: Exhibit 1.7
C7: EFFECT ON GS TYPICAL CUSTOMER
C8: 80 DTHS - ANNUAL CONSUMPTION
C11: (A) | D11: (B) | E11: (C) | F11: (D) | H11: (E) | J11: (F)
F12: Billed at Current | H12: Billed at
C13: Rate | E13: Usage | F13: Rates Effective | H13: Proposed Rates
C14: Schedule | D14: Month | E14: In Dth | F14: ='Other Inputs'!J86 -> 2015-06-01 | H14: ='Control Panel'!E5 -> 15-057-11 | J14: Change
B16: 1 | C16: GS | D16: Jan | E16: ='Monthly Inputs'!G116 -> 14.9 | F16: =ROUND((+E16*'Other Inputs'!$G$88)+'Other Inputs'!$G$90,2) -> 129.09 | H16: =ROUND((+E16*'Ut 1.8'!$F$10)+'Ut 1.8'!$C$12,2) -> 126.7 | J16: =H16-F16 -> -2.39
B17: =B16+1 -> 2 | D17: Feb | E17: ='Monthly Inputs'!G117 -> 12.5 | F17: =ROUND((+E17*'Other Inputs'!$G$88)+'Other Inputs'!$G$90,2) -> 109.39 | H17: =ROUND((+E17*'Ut 1.8'!$F$10)+'Ut 1.8'!$C$12,2) -> 107.38 | J17: -2.01
B18: =B17+1 -> 3 | D18: Mar | E18: ='Monthly Inputs'!G118 -> 10.1 | F18: =ROUND((+E18*'Other Inputs'!$G$88)+'Other Inputs'!$G$90,2) -> 89.68 | H18: =ROUND((+E18*'Ut 1.8'!$F$10)+'Ut 1.8'!$C$12,2) -> 88.06 | J18: -1.62
B19: 4 | D19: Apr | E19: ='Monthly Inputs'!G119 -> 8.3 | F19: =ROUND((+E19*'Other Inputs'!$G$86)+'Other Inputs'!$G$90,2) -> 64.05 | H19: =ROUND((+E19*'Ut 1.8'!$C$10)+'Ut 1.8'!$C$12,2) -> 62.69 | J19: -1.36
B20: 5 | D20: May | E20: ='Monthly Inputs'!G120 -> 4.4 | F20: =ROUND((+E20*'Other Inputs'!$G$86)+'Other Inputs'!$G$90,2) -> 37.13 | H20: =ROUND((+E20*'Ut 1.8'!$C$10)+'Ut 1.8'!$C$12,2) -> 36.4 | J20: -0.73
B21: 6 | D21: Jun | E21: ='Monthly Inputs'!G121 -> 3.1 | F21: =ROUND((+E21*'Other Inputs'!$G$86)+'Other Inputs'!$G$90,2) -> 28.15 | H21: =ROUND((+E21*'Ut 1.8'!$C$10)+'Ut 1.8'!$C$12,2) -> 27.64 | J21: -0.51
B22: 7 | D22: Jul | E22: ='Monthly Inputs'!G122 -> 2 | F22: =ROUND((+E22*'Other Inputs'!$G$86)+'Other Inputs'!$G$90,2) -> 20.56 | H22: =ROUND((+E22*'Ut 1.8'!$C$10)+'Ut 1.8'!$C$12,2) -> 20.23 | J22: -0.33
B23: 8 | D23: Aug | E23: ='Monthly Inputs'!G123 -> 1.8 | F23: =ROUND((+E23*'Other Inputs'!$G$86)+'Other Inputs'!$G$90,2) -> 19.18 | H23: =ROUND((+E23*'Ut 1.8'!$C$10)+'Ut 1.8'!$C$12,2) -> 18.88 | J23: -0.3
B24: 9 | D24: Sep | E24: ='Monthly Inputs'!G124 -> 2 | F24: =ROUND((+E24*'Other Inputs'!$G$86)+'Other Inputs'!$G$90,2) -> 20.56 | H24: =ROUND((+E24*'Ut 1.8'!$C$10)+'Ut 1.8'!$C$12,2) -> 20.23 | J24: -0.33
B25: 10 | D25: Oct | E25: ='Monthly Inputs'!G125 -> 3.1 | F25: =ROUND((+E25*'Other Inputs'!$G$86)+'Other Inputs'!$G$90,2) -> 28.15 | H25: =ROUND((+E25*'Ut 1.8'!$C$10)+'Ut 1.8'!$C$12,2) -> 27.64 | J25: -0.51
B26: 11 | D26: Nov | E26: ='Monthly Inputs'!G126 -> 6.3 | F26: =ROUND((+E26*'Other Inputs'!$G$88)+'Other Inputs'!$G$90,2) -> 58.48 | H26: =ROUND((+E26*'Ut 1.8'!$F$10)+'Ut 1.8'!$C$12,2) -> 57.47 | J26: -1.01
B27: 12 | D27: Dec | E27: ='Monthly Inputs'!G127 -> 11.5 | F27: =ROUND((+E27*'Other Inputs'!$G$88)+'Other Inputs'!$G$90,2) -> 101.17 | H27: =ROUND((+E27*'Ut 1.8'!$F$10)+'Ut 1.8'!$C$12,2) -> 99.33 | J27: -1.84
B30: =B27+1 -> 13 | D30: Total | E30: =SUM(E16:E27) -> 80 | F30: =SUM(F16:F27) -> 705.59 | H30: =SUM(H16:H27) -> 692.65 | J30: =H30-F30 -> -12.94
B32: =B30+1 -> 14 | H32: Percent Change: | J32: =ROUND(J30/F30,4)*100 -> -1.83 | K32: %

Sheet Ut 1.8 p1
F1: ='Control Panel'!E32 -> Questar Gas Company
F2: ='Control Panel'!E33 -> Docket No. 15-057-11
F3: Exhibit 1.8
F4: Page 1 of 17
A15: QUESTAR GAS COMPANY
A16: 333 South State Street
A17: P.O. Box 45433
A18: Salt Lake City, Utah 84145-0433
A29: LEGISLATIVE/PROPOSED RATE SCHEDULES
A31: P.S.C. Utah No. 400
A32: Affecting All Firm Sales Rate Schedules
A33: and Classes of Service In
A34: Questar Gas Company's
A35: Utah Service Area
A39: Date Issued: September 1, 2015
A40: To Become Effective October 1, 2015

Sheet LEG - PR
A2: LEGISLATIVE TARIFF
A3: SHEETS
A6: PROPOSED TARIFF
A7: SHEETS

Sheet Ut 1.8
A1: SUMMARY OF PROPOSED RATES
A3: UTAH RATE CLASSES | C3: Rates per Dth Used Each Month
C4: All Season Rates or Summer Rates: Apr. 1 - Oct. 31 | F4: Winter Rates: Nov. 1 - Mar. 31
A5: UT GS | C5: First 45 Dth | D5: All Over 45 Dth | F5: First 45 Dth | G5: All Over 45 Dth
B6: Distribution Non-Gas Cost | C6: 2.04445 | D6: 1.01237 | F6: 2.68722 | G6: 1.65515
B7: Supplier Non-Gas Cost | C7: ='Ut 1.6 p3'!I17 -> 0.59092 | D7: =C7 -> 0.59092 | F7: ='Ut 1.6 p3'!I16 -> 1.25858 | G7: =F7 -> 1.25858
B8: Commodity Cost | C8: =('Ut 1.6 p1'!$F$33) -> 4.104293959 | D8: =C8 -> 4.104293959 | F8: =D8 -> 4.104293959 | G8: =F8 -> 4.104293959
B10: Total Rate | C10: =SUM(C6:C9) -> 6.739663959 | D10: =SUM(D6:D9) -> 5.707583959 | F10: =SUM(F6:F9) -> 8.050093959 | G10: =SUM(G6:G9) -> 7.018023959
B12: BSF Category 1 | C12: 6.75
B13: BSF Category 2 | C13: 18.25
B14: BSF Category 3 | C14: 63.5
B15: BSF Category 4 | C15: 420.25
A18: UT FS | C18: First 200 Dth | D18: Next 1,800 Dth | E18: All Over 2,000 Dth | F18: First 200 Dth | G18: Next 1,800 Dth | H18: All Over 2,000 Dth
B19: Distribution Non-Gas Cost | C19: 0.84366 | D19: 0.4579 | E19: 0.05184 | F19: 1.27647 | G19: 0.89071 | H19: 0.48465
B20: Supplier Non-Gas Cost | C20: ='Ut 1.6 p3'!$I$20 -> 0.59092 | D20: =C20 -> 0.59092 | E20: =D20 -> 0.59092 | F20: ='Ut 1.6 p3'!$I$19 -> 1.2258 | G20: =F20 -> 1.2258 | H20: =G20 -> 1.2258
B21: Commodity Cost | C21: =('Ut 1.6 p1'!$F$33) -> 4.104293959 | D21: =C21 -> 4.104293959 | E21: =D21 -> 4.104293959 | F21: =E21 -> 4.104293959 | G21: =F21 -> 4.104293959 | H21: =G21 -> 4.104293959
B23: Total Rate | C23: =SUM(C19:C22) -> 5.538873959 | D23: =SUM(D19:D22) -> 5.153113959 | E23: 4.747053959 | F23: 6.606563959 | G23: 6.220803959 | H23: 5.814743959
B25: Minimum Monthly DNG Charge: | C25: 144 | F25: 219
B27: BSF Category 1 | C27: =C12 -> 6.75
B28: BSF Category 2 | C28: =C13 -> 18.25
B29: BSF Category 3 | C29: =C14 -> 63.5
B30: BSF Category 4 | C30: =C15 -> 420.25
A33: UT Future Rate Class
C34: First 10,000 Dth | D34: All Over 10,000 Dth
B35: Distribution Non-Gas Cost
B36: Supplier Non-Gas Cost
B37: Commodity Cost
B39: Total Rate | C39: =SUM(C35:C38) -> 0 | D39: =SUM(D35:D38) -> 0
B41: Minimum Yearly Distribution Non-Gas Charge | D41: =ROUND(((10000*C35))*12,-2) -> 0
B44: BSF Category 1 | C44: =C12 -> 6.75
B45: BSF Category 2 | C45: =C13 -> 18.25
B46: BSF Category 3 | C46: =C14 -> 63.5
B47: BSF Category 4 | C47: =C15 -> 420.25
A51: UT NGV
B52: Distribution Non-Gas Cost | C52: 5.52588
B53: Supplier Non-Gas Cost | C53: ='Ut 1.6 p3'!I22 -> 0.90822
B54: Commodity Cost | C54: ='Ut 1.6 p1'!F33 -> 4.104293959
B56: Total Rate | C56: =SUM(C52:C55) -> 10.53839396
A59: UT IS | C59: First 2,000 Dth | D59: Next 18,000 Dth | E59: All Over 20,000
B60: Distribution Non-Gas Cost | C60: 0.43867 | D60: 0.07303 | E60: 0.04628
B61: Supplier Non-Gas Cost | C61: ='Ut 1.6 p3'!$I$24/(1-'Other Inputs'!$E$294) -> 0.1792982456 | D61: =C61 -> 0.1792982456 | E61: =D61 -> 0.1792982456
B62: Commodity Cost | C62: =('Ut 1.6 p1'!$F$33) -> 4.104293959 | D62: =('Ut 1.6 p1'!$F$33) -> 4.104293959 | E62: =('Ut 1.6 p1'!$F$33) -> 4.104293959
B64: Total Rate | C64: =SUM(C60:C62) -> 4.722262205 | D64: =SUM(D60:D62) -> 4.356622205 | E64: 4.329872205
B66: BSF Category 1 | C66: =C12 -> 6.75
B67: BSF Category 2 | C67: =C13 -> 18.25
B68: BSF Category 3 | C68: 63.5
B69: BSF Category 4 | C69: 420.25

Sheet Ut 1.9
D1: ='Control Panel'!$E$32 -> Questar Gas Company
D2: ='Control Panel'!$E$33 -> Docket No. 15-057-11
D3: Exhibit 1.9
D4: Page 1 of 2
D6: ='Control Panel'!$E$32 -> Questar Gas Company
D7: ='Control Panel'!$E$33 -> Docket No. 15-057-11
D8: Exhibit 1.9
D9: Page 2 of 2

Sheet Ut 1.10
P17: Exhibit 1.10 | Q17: =CONCATENATE("Docket No. ",'Control Panel'!E5) -> Docket No. 15-057-11 | R17: Questar Gas Company

Sheet Ut 1.11
F1: ='Control Panel'!E32 -> Questar Gas Company
F2: ='Control Panel'!E33 -> Docket No. 15-057-11
F3: Exhibit 1.11
F4: Page 1 of 7
A17: QUESTAR GAS COMPANY
A18: 333 South State Street
A19: P.O. Box 45433
A20: Salt Lake City, Utah 84145-0433
A31: COMBINED LEGISLATIVE/PROPOSED RATE SCHEDULES
A32: P.S.C. Utah Tariff

Sheet Ut Storage
A1: Storage Injection / Withdrawal adjustment
C3: (A) | D3: (B) | E3: (C) | F3: (D) | G3: (E) | H3: (F) | I3: (G) | K3: (H) | L3: (I) | M3: (J)
G4: Injections | I4: (J) / (C)
E5: Storage | G5: ------------------------------------------------------------- | I5: Storage | M5: Storage
C6: Injection Dth | D6: Withdrawal Dth | E6: Inventory Dth | F6: % that is | G6: Co. Prod. | H6: Purchased | I6: Inventory | M6: Inventory
A7: Line | B7: Month | C7: Per IRPs | D7: Per IRPs | E7: Balance | F7: Co. Prod. (1) | G7: $/Dth (2) | H7: $/Dth (3) | I7: Average $/Dth | K7: Injection (4) | L7: Withdrawal (5) | M7: Balance
B8: Mar15 | E8: =-1*'Other Inputs'!D234 -> 8357578 | I8: =M8/E8 -> 5.006735223 | M8: ='Other Inputs'!E234 -> 41844180.15
B9: ='Monthly Inputs'!E3 -> Aug15 | C9: ='Monthly Inputs'!E29 -> 2664090 | D9: =-'Monthly Inputs'!E37 -> 0 | E9: =E8+C9+D9 -> 11021668 | F9: =F21 -> 0.9845634087 | G9: ='Other Inputs'!F102 -> 5.11854 | H9: ='Monthly Inputs'!E79 -> 2.71 | I9: =M9/E9 -> 5.024773151 | K9: =(+F9*C9*G9)+((1-F9)*C9*H9) -> 13537201.3 | L9: =D9*I8 -> 0 | M9: =M8+L9+K9 -> 55381381.45
B10: ='Monthly Inputs'!F3 -> Sep15 | C10: ='Monthly Inputs'!F29 -> 2358382 | D10: =-'Monthly Inputs'!F37 -> 0 | E10: =E9+C10+D10 -> 13380050 | F10: =F22 -> 0.9502986889 | G10: =G9 -> 5.11854 | H10: ='Monthly Inputs'!F79 -> 2.56 | I10: =M10/E10 -> 5.018886746 | K10: =(+F10*C10*G10)+((1-F10)*C10*H10) -> 11771574.16 | L10: =D10*I9 -> 0 | M10: =M9+L10+K10 -> 67152955.61
A11: 1. | B11: ='Monthly Inputs'!G3 -> Oct15 | C11: ='Monthly Inputs'!G29 -> 3104779 | D11: =-'Monthly Inputs'!G37 -> 0 | E11: =E10+C11+D11 -> 16484829 | F11: =Calculations!D177 -> 0.555100153 | G11: ='Ut 1.4 p2'!$F$15 -> 5.072444423 | H11: =Calculations!D195 -> 2.59142 | I11: =M11/E11 -> 4.82108104 | K11: 12321740.93 | L11: =D11*I10 -> 0 | M11: =M10+L11+K11 -> 79474696.54
A12: 2. | B12: ='Monthly Inputs'!H3 -> Nov15 | C12: ='Monthly Inputs'!H29 -> 2045829 | D12: =-'Monthly Inputs'!H37 -> 0 | E12: 18530658 | F12: =Calculations!E177 -> 0.3855591403 | G12: ='Ut 1.4 p2'!$F$15 -> 5.072444423 | H12: =Calculations!E195 -> 2.6324 | I12: =M12/E12 -> 4.683309936 | K12: 7310118.191 | L12: =D12*I11 -> 0 | M12: =M11+L12+K12 -> 86784814.73
A13: 3. | B13: ='Monthly Inputs'!I3 -> Dec15 | C13: ='Monthly Inputs'!I29 -> 14434 | D13: =-'Monthly Inputs'!I37 -> -4124725 | E13: 14420367 | F13: =Calculations!F177 -> 0.4024036845 | G13: ='Ut 1.4 p2'!$F$15 -> 5.072444423 | H13: =Calculations!F195 -> 2.84932 | I13: 4.682369652 | K13: 54039.64686 | L13: =D13*I12 -> -19317365.58 | M13: 67521488.8
A14: 4. | B14: ='Monthly Inputs'!J3 -> Jan16 | C14: ='Monthly Inputs'!J29 -> 0 | D14: =-'Monthly Inputs'!J37 -> -6054030 | E14: 8366337 | F14: =Calculations!G177 -> 0.375404622 | G14: ='Ut 1.4 p2'!$F$15 -> 5.072444423 | H14: =Calculations!G195 -> 2.91892 | I14: 4.682369652 | K14: 0 | L14: -28347206.34 | M14: 39174282.46
A15: 5. | B15: ='Monthly Inputs'!K3 -> Feb16 | C15: ='Monthly Inputs'!K29 -> 0 | D15: =-'Monthly Inputs'!K37 -> -3783502 | E15: 4582835 | F15: =Calculations!H177 -> 0.3651058404 | G15: ='Ut 1.4 p2'!$F$15 -> 5.072444423 | H15: =Calculations!H195 -> 2.81131 | I15: 4.682369652 | K15: 0 | L15: -17715754.94 | M15: 21458527.52
A16: 6. | B16: ='Monthly Inputs'!L3 -> Mar16 | C16: ='Monthly Inputs'!L29 -> 11358 | D16: =-'Monthly Inputs'!L37 -> 0 | E16: 4594193 | F16: =Calculations!I177 -> 0.4082336059 | G16: ='Ut 1.4 p2'!$F$15 -> 5.072444423 | H16: =Calculations!I195 -> 2.65806 | I16: 4.679801781 | K16: 41385.06349 | L16: 0 | M16: 21499912.59
A17: 7. | B17: ='Monthly Inputs'!M3 -> Apr16 | C17: ='Monthly Inputs'!M29 -> 1229877 | D17: =-'Monthly Inputs'!M37 -> 0 | E17: 5824070 | F17: =Calculations!J177 -> 0.4885180365 | G17: ='Ut 1.4 p2'!$F$15 -> 5.072444423 | H17: =Calculations!J195 -> 2.56 | I17: 4.491346648 | K17: 4658004.685 | L17: 0 | M17: 26157917.27
A18: 8. | B18: ='Monthly Inputs'!N3 -> May16 | C18: ='Monthly Inputs'!N29 -> 1433272 | D18: =-'Monthly Inputs'!N37 -> 0 | E18: 7257342 | F18: =Calculations!K177 -> 0.7817595562 | G18: ='Ut 1.4 p2'!$F$15 -> 5.072444423 | H18: =Calculations!K195 -> 2.62001 | I18: 4.500407099 | K18: 6503076.183 | L18: 0 | M18: 32660993.45
A19: 9. | B19: ='Monthly Inputs'!O3 -> Jun16 | C19: ='Monthly Inputs'!O29 -> 1402881 | D19: =-'Monthly Inputs'!O37 -> 0 | E19: 8660223 | F19: =Calculations!L177 -> 0.9705836427 | G19: ='Ut 1.4 p2'!$F$15 -> 5.072444423 | H19: =Calculations!L195 -> 2.74393 | I19: 4.581976358 | K19: 7019943.589 | L19: 0 | M19: =M18+L19+K19 -> 39680937.04
A20: 10. | B20: ='Monthly Inputs'!P3 -> Jul16 | C20: ='Monthly Inputs'!P29 -> 2310517 | D20: =-'Monthly Inputs'!P37 -> -76036 | E20: 10894704 | F20: =Calculations!M177 -> 0.9992534188 | G20: ='Ut 1.4 p2'!$F$15 -> 5.072444423 | H20: =Calculations!M195 -> 2.88004 | I20: 4.685646263 | K20: 11716187.2 | L20: -348395.1544 | M20: =M19+L20+K20 -> 51048729.09
A21: 11. | B21: ='Monthly Inputs'!Q3 -> Aug16 | C21: ='Monthly Inputs'!Q29 -> 2157042 | D21: =-'Monthly Inputs'!Q37 -> 0 | E21: 13051746 | F21: =Calculations!N177 -> 0.9845634087 | G21: ='Ut 1.4 p2'!$F$15 -> 5.072444423 | H21: =Calculations!N195 -> 2.92267 | I21: 4.744087335 | K21: 10869893.82 | L21: 0 | M21: =M20+L21+K21 -> 61918622.9
A22: 12. | B22: ='Monthly Inputs'!R3 -> Sep16 | C22: ='Monthly Inputs'!R29 -> 1198195 | D22: =-'Monthly Inputs'!R37 -> 0 | E22: 14249941 | F22: =Calculations!O177 -> 0.9502986889 | G22: ='Ut 1.4 p2'!$F$15 -> 5.072444423 | H22: =Calculations!O195 -> 2.92931 | I22: 4.762740618 | K22: 5950149.899 | L22: 0 | M22: =M21+L22+K22 -> 67868772.8
M25: Inj./With. Adj.
A26: 14. | B26: Total | C26: =SUM(C11:C22) -> 14908184 | D26: =SUM(D11:D22) -> -14038293 | K26: =SUM(K11:K22) -> 66444539.2 | L26: =SUM(L11:L22) -> -65728722.01 | M26: =L26+K26 -> 715817.1878
A27: 15. | B27: Average $ /Dth | K27: =K26/C26 -> 4.456917033 | L27: =L26/D26 -> 4.682102163
A31: ___________________________________________________________________

Sheet Ex 1.1 Data
A1: QEPFS gathered | B1: 43961629.12 | C1: Adjusted test year-> | D1: -0.1307750828 | E1: 38212543.43 | H1: Samson Gathered | I1: 4996141.392 | J1: Adjusted test year-> | K1: -0.1251148322 | L1: 4371050
A2: Birch Creek | B2: 1561815.699 | C2: Adjusted test year-> | D2: =D1 -> -0.1307750828 | E2: 1357569.122
A3: Other | B3: 23630389.99
C4: WEXPRO I | J4: WEXPRO II
A5: Input Operator Service Fee > | C5: ='Monthly Inputs'!S107 -> 271979844 | H5: Input Operator Service Fee > | J5: ='Monthly Inputs'!S109 -> 25135556
A7: do not change the order of the months below!!!!! | H7: do not change the order of the months below!!!!!
A8: \/ | C8: 2015-07-01 | H8: \/ | J8: 2015-07-01
A9: \/ | B9: Company | C9: Average Index | D9: Church Buttes | H9: \/ | I9: Company | J9: Average Index | K9: Church Buttes
A10: \/ | B10: Production | C10: Spot Prices | D10: & Canyon Cr | H10: \/ | I10: Production | J10: Spot Prices | K10: & Canyon Cr
A11: January | B11: 5186216 | C11: ='Graph (Ex 1.10) Inputs'!F6 -> 2.81 | D11: =C11+0.1 -> 2.91 | E11: =B11*D11 -> 15091888.56 | H11: January | I11: 407900 | J11: =C11 -> 2.81 | K11: =J11+0.1 -> 2.91 | L11: =I11*K11 -> 1186989
A12: February | B12: 4772956 | C12: ='Graph (Ex 1.10) Inputs'!F7 -> 2.72 | D12: 2.82 | E12: =B12*D12 -> 13459735.92 | H12: February | I12: 377660 | J12: =C12 -> 2.72 | K12: =J12+0.1 -> 2.82 | L12: =I12*K12 -> 1065001.2
A13: March | B13: 5023592 | C13: ='Graph (Ex 1.10) Inputs'!F8 -> 2.63 | D13: 2.73 | E13: 13714406.16 | H13: March | I13: 399640 | J13: 2.63 | K13: 2.73 | L13: 1091017.2
A14: April | B14: 4905372 | C14: ='Graph (Ex 1.10) Inputs'!F9 -> 2.56 | D14: 2.66 | E14: 13048289.52 | H14: April | I14: 382910 | J14: 2.56 | K14: 2.66 | L14: 1018540.6
A15: May | B15: 5015083 | C15: ='Graph (Ex 1.10) Inputs'!F10 -> 2.62 | D15: 2.72 | E15: 13641025.76 | H15: May | I15: 391810 | J15: 2.62 | K15: 2.72 | L15: 1065723.2
A16: June | B16: 4808811 | C16: ='Graph (Ex 1.10) Inputs'!F11 -> 2.74 | D16: 2.84 | E16: 13657023.24 | H16: June | I16: 375150 | J16: 2.74 | K16: 2.84 | L16: 1065426
A17: July | B17: 4960387 | C17: ='Graph (Ex 1.10) Inputs'!F12 -> 2.86 | D17: 2.96 | E17: 14682745.52 | H17: July | I17: 384000 | J17: 2.86 | K17: 2.96 | L17: 1136640
A18: August | B18: 4887224 | C18: ='Graph (Ex 1.10) Inputs'!F13 -> 2.92 | D18: 3.02 | E18: 14759416.48 | H18: August | I18: 195240 | J18: 2.92 | K18: 3.02 | L18: 589624.8
A19: September | B19: 4736953 | C19: ='Graph (Ex 1.10) Inputs'!F14 -> 2.92 | D19: 3.02 | E19: 14305598.06 | H19: September | I19: 340510 | J19: 2.92 | K19: 3.02 | L19: 1028340.2
A20: October | B20: 5348457 | C20: ='Graph (Ex 1.10) Inputs'!F3 -> 2.59 | D20: 2.69 | E20: 14387349.33 | H20: October | I20: 300840 | J20: 2.59 | K20: 2.69 | L20: 809259.6
A21: November | B21: 5207312 | C21: ='Graph (Ex 1.10) Inputs'!F4 -> 2.59 | D21: 2.69 | E21: 14007669.28 | H21: November | I21: 403190 | J21: 2.59 | K21: 2.69 | L21: 1084581.1
A22: December | B22: 5281689 | C22: ='Graph (Ex 1.10) Inputs'!F5 -> 2.75 | D22: 2.85 | E22: 15052813.65 | H22: December | I22: 412200 | J22: 2.75 | K22: 2.85 | L22: 1174770
B24: =SUM(B11:B22) -> 60134052 | C24: CANYON CREEK | D24: =E24/B24 -> 2.823823704 | E24: =SUM(E11:E22) -> 169807961.5 | I24: =SUM(I11:I22) -> 4371050 | J24: CANYON CREEK | K24: =L24/I24 -> 2.817609705 | L24: =SUM(L11:L22) -> 12315912.9
C25: CHURCH BUTTES | J25: CHURCH BUTTES
C26: All Others -> | D26: =D24-0.2 -> 2.623823704 | J26: All Others -> | K26: =K24-0.2 -> 2.617609705
A29: Make sure all spot pricing is only 2 decimals | H29: Make sure all spot pricing is only 2 decimals

Sheet Expenses
A1: %,LACTUALS
S7: Historical
S8: 12 Months Ending
C9: FERC Acct | E9: Description | G9: 2014-08-01 | H9: 2014-09-01 | I9: 2014-10-01 | J9: 2014-11-01 | K9: 2014-12-01 | L9: 2015-01-01 | M9: 2015-02-01 | N9: 2015-03-01 | O9: 2015-04-01 | P9: 2015-05-01 | Q9: 2015-06-01 | R9: 2015-07-01 | S9: 2015-07-01
B11: 497 | C11: UTILITY OPERATING EXPENSES
B12: 498 | C12: GAS PURCHASE EXPENSES
B13: 499
B14: 500 | D14: Utah % of Sales Dth from 191 Acct ===> | G14: 0.97175 | H14: 0.96048 | I14: 0.9569 | J14: 0.9595 | K14: 0.96259 | L14: 0.96995 | M14: 0.95886 | N14: 0.96038 | O14: 0.95858 | P14: 0.95329 | Q14: 0.97158 | R14: 0.96761
B15: 501
A16: %,FACCOUNT,TQGCACCTS,V758000 | B16: 502 | C16: 758 | D16: Gas Well Royalties
B17: 503 | E17: Utah | G17: 4796924.029 | H17: 4097631.501 | I17: 2790182.071 | J17: 3652822.219 | K17: 2676507.485 | L17: 3725775.403 | M17: 4517904.271 | N17: 3130069.872 | O17: 2543155.263 | P17: 2524502.654 | Q17: 1545171.451 | R17: 2197964.732 | S17: 38198610.95
B18: 504 | E18: Wyoming | G18: 139452.6409 | H18: 168601.5293 | I18: 125673.3695 | J18: 154183.7414 | K18: 104019.5151 | L18: 115428.1673 | M18: 193841.209 | N18: 129129.4782 | O18: 109889.0974 | P18: 123697.4257 | Q18: 45198.30858 | R18: 73575.17768 | S18: 1482689.66
B19: 505 | E19: Total | G19: 4936376.67 | H19: 4266233.03 | I19: 2915855.44 | J19: 3807005.96 | K19: 2780527 | L19: 3841203.57 | M19: 4711745.48 | N19: 3259199.35 | O19: 2653044.36 | P19: 2648200.08 | Q19: 1590369.76 | R19: 2271539.91 | S19: 39681300.61
B20: 506
A21: %,FACCOUNT,TQGCACCTS,V758001,V758002,V758003,V758004 | B21: 507 | C21: 758.1 | D21: Gas Well Royalties - Other
B22: 508 | E22: Utah | G22: 42487.02 | H22: 27726.92 | I22: 24473.79 | J22: 35445.14 | K22: 26866.01 | L22: 20397.98 | M22: 23435.82 | N22: 11271.11 | O22: -6314.52 | P22: 13683.2 | Q22: 13458.14 | R22: 13386.31 | S22: 246316.92
B23: 509 | E23: Wyoming | G23: 0 | H23: 0 | I23: 0 | J23: 0 | K23: 0 | L23: 0 | M23: 0 | N23: 0 | O23: 0 | P23: 0 | Q23: 0 | R23: 0 | S23: 0
B24: 510 | E24: Total | G24: 42487.02 | H24: 27726.92 | I24: 24473.79 | J24: 35445.14 | K24: 26866.01 | L24: 20397.98 | M24: 23435.82 | N24: 11271.11 | O24: -6314.52 | P24: 13683.2 | Q24: 13458.14 | R24: 13386.31 | S24: 246316.92
B25: 511
A26: %,FACCOUNT,TQGCACCTS,V759000,V759001,V759002,V759003,V759004 | B26: 512 | C26: 759 | D26: Gathering by Others, GRI & ACA - Gas Cost
B27: 513 | E27: Utah | G27: 1469942.68 | H27: 1614798.51 | I27: 1657722.47 | J27: 1693911.7 | K27: 3403590.3 | L27: 1765938.79 | M27: 1904586.83 | N27: 1750012.61 | O27: 1871691.44 | P27: 1821209.35 | Q27: 1865796.68 | R27: 1925700.36 | S27: 22744901.72
B28: 514 | E28: Wyoming | G28: 0 | H28: 0 | I28: 0 | J28: 0 | K28: 0 | L28: 0 | M28: 0 | N28: 0 | O28: 0 | P28: 0 | Q28: 0 | R28: 0 | S28: 0
B29: 515 | E29: Total | G29: 1469942.68 | H29: 1614798.51 | I29: 1657722.47 | J29: 1693911.7 | K29: 3403590.3 | L29: 1765938.79 | M29: 1904586.83 | N29: 1750012.61 | O29: 1871691.44 | P29: 1821209.35 | Q29: 1865796.68 | R29: 1925700.36 | S29: 22744901.72
B30: 516
A31: %,FACCOUNT,TQGCACCTS,V759005 | B31: 517 | C31: 759 | D31: Gathering by Others - SNG Cost
B32: 518 | E32: Utah | G32: 0 | H32: 0 | I32: 0 | J32: 0 | K32: 0 | L32: 0 | M32: 0 | N32: 0 | O32: 0 | P32: 0 | Q32: 0 | R32: 0 | S32: 0
B33: 519 | E33: Wyoming | G33: 0 | H33: 0 | I33: 0 | J33: 0 | K33: 0 | L33: 0 | M33: 0 | N33: 0 | O33: 0 | P33: 0 | Q33: 0 | R33: 0 | S33: 0
B34: 520 | E34: Total | G34: 0 | H34: 0 | I34: 0 | J34: 0 | K34: 0 | L34: 0 | M34: 0 | N34: 0 | O34: 0 | P34: 0 | Q34: 0 | R34: 0 | S34: 0
B35: 521
A36: %,FACCOUNT,TQGCACCTS,V800000,V800005,V800002 | B36: 522 | C36: 800 | D36: Natural Gas Well Head Purchases
B37: 523 | E37: Utah | G37: 28247.04279 | H37: 28209.77784 | I37: 26869.13958 | J37: 22729.19251 | K37: 23359.40255 | L37: 16679.37659 | M37: 22876.93254 | N37: 15027.39239 | O37: 14189.15998 | P37: 11452.14922 | Q37: 8626.483936 | R37: 8309.699215 | S37: 226575.7491
B38: 524 | E38: Wyoming | G38: 821.177215 | H38: 1160.72216 | I38: 1210.220416 | J38: 959.38749 | K38: 907.8374484 | L38: 516.743406 | M38: 981.5374558 | N38: 619.9476108 | O38: 613.1100234 | P38: 561.1407759 | Q38: 252.3360644 | R38: 278.1607854 | S38: 8882.320851
B39: 525 | E39: Total | G39: 29068.22 | H39: 29370.5 | I39: 28079.36 | J39: 23688.58 | K39: 24267.24 | L39: 17196.12 | M39: 23858.47 | N39: 15647.34 | O39: 14802.27 | P39: 12013.29 | Q39: 8878.82 | R39: 8587.86 | S39: 235458.07
B40: 526
A41: %,FACCOUNT,TQGCACCTS,V801000 | B41: 527 | C41: 801 | D41: Natural Gas Field Line Purchases
B42: 528 | E42: Utah | G42: 0 | H42: 0 | I42: 0 | J42: 0 | K42: 0 | L42: 0 | M42: 0 | N42: 0 | O42: 0 | P42: 0 | Q42: 0 | R42: 0 | S42: 0
B43: 529 | E43: Wyoming | G43: 0 | H43: 0 | I43: 0 | J43: 0 | K43: 0 | L43: 0 | M43: 0 | N43: 0 | O43: 0 | P43: 0 | Q43: 0 | R43: 0 | S43: 0
B44: 530 | E44: Total | G44: 0 | H44: 0 | I44: 0 | J44: 0 | K44: 0 | L44: 0 | M44: 0 | N44: 0 | O44: 0 | P44: 0 | Q44: 0 | R44: 0 | S44: 0
B45: 531
A46: %,FACCOUNT,TQGCACCTS,V802000 | B46: 532 | C46: 802 | D46: Natural Gas Gasoline Plant Outlet Purchase
B47: 533 | E47: Utah | G47: 0 | H47: 0 | I47: 0 | J47: 0 | K47: 0 | L47: 0 | M47: 0 | N47: 0 | O47: 0 | P47: 0 | Q47: 0 | R47: 0 | S47: 0
B48: 534 | E48: Wyoming | G48: 0 | H48: 0 | I48: 0 | J48: 0 | K48: 0 | L48: 0 | M48: 0 | N48: 0 | O48: 0 | P48: 0 | Q48: 0 | R48: 0 | S48: 0
B49: 535 | E49: Total | G49: 0 | H49: 0 | I49: 0 | J49: 0 | K49: 0 | L49: 0 | M49: 0 | N49: 0 | O49: 0 | P49: 0 | Q49: 0 | R49: 0 | S49: 0
B50: 536
A51: %,FACCOUNT,TQGCACCTS,V803000,V803002 | B51: 537 | C51: 803 | D51: Natural Gas Transmission Line - Purchases
B52: 538 | E52: Utah | G52: 0 | H52: 0 | I52: 0 | J52: 17558850 | K52: 19210708.25 | L52: 26702063.43 | M52: 6035276.086 | N52: 5554577.34 | O52: 1937925.699 | P52: 1394781.545 | Q52: -1964534.76 | R52: 185781.12 | S52: 76615428.71
B53: 539 | E53: Wyoming | G53: 0 | H53: 0 | I53: 0 | J53: 741150 | K53: 746603.0142 | L53: 827256.0504 | M53: 258944.2236 | N53: 229151.3299 | O53: 83737.28063 | P53: 68342.52531 | Q53: -57465.24 | R53: 6218.88 | S53: 2903938.064
B54: 540 | E54: Total | G54: 0 | H54: 0 | I54: 0 | J54: 18300000 | K54: 19957311.26 | L54: 27529319.48 | M54: 6294220.31 | N54: 5783728.67 | O54: 2021662.98 | P54: 1463124.07 | Q54: -2022000 | R54: 192000 | S54: 79519366.77
B55: 541
A56: %,FACCOUNT,V804000,FAFFILIATE,V09 | B56: 542 | C56: 804 | D56: Natural Gas City Gate Purchases - Resources
B57: 543 | E57: Utah | G57: 0 | H57: 0 | I57: 0 | J57: 0 | K57: 0 | L57: 0 | M57: 0 | N57: 0 | O57: 0 | P57: 0 | Q57: 0 | R57: 0 | S57: 0
B58: 544 | E58: Wyoming | G58: 0 | H58: 0 | I58: 0 | J58: 0 | K58: 0 | L58: 0 | M58: 0 | N58: 0 | O58: 0 | P58: 0 | Q58: 0 | R58: 0 | S58: 0
B59: 545 | E59: Total | G59: 0 | H59: 0 | I59: 0 | J59: 0 | K59: 0 | L59: 0 | M59: 0 | N59: 0 | O59: 0 | P59: 0 | Q59: 0 | R59: 0 | S59: 0
B60: 546
A61: %,FACCOUNT,V804000,FAFFILIATE,V | B61: 547 | C61: 804.1 | D61: Natural Gas City Gate Purchases - Other
B62: 548 | E62: Utah | G62: 0 | H62: 0 | I62: 0 | J62: 1719.90375 | K62: 1380113.518 | L62: 14724.90795 | M62: 1169271.318 | N62: 117570.9105 | O62: 91950.0323 | P62: 532786.822 | Q62: 0 | R62: 0 | S62: 3308137.413
B63: 549 | E63: Wyoming | G63: 0 | H63: 0 | I63: 0 | J63: 72.59625 | K63: 53636.59162 | L63: 456.192055 | M63: 50167.72211 | N63: 4850.329529 | O63: 3973.137701 | P63: 26105.87802 | Q63: 0 | R63: 0 | S63: 139262.4473
B64: 550 | E64: Total | G64: 0 | H64: 0 | I64: 0 | J64: 1792.5 | K64: 1433750.11 | L64: 15181.1 | M64: 1219439.04 | N64: 122421.24 | O64: 95923.17 | P64: 558892.7 | Q64: 0 | R64: 0 | S64: 3447399.86
B65: 551
B66: 552 | C66: 805 | D66: Purchased Gas Cost Adjustments - Other
B67: 553 | E67: Utah | G67: 0 | H67: 0 | I67: 0 | J67: 0 | K67: 0 | L67: 0 | M67: 0 | N67: 0 | O67: 0 | P67: 0 | Q67: 0 | R67: 0 | S67: 0
B68: 554 | E68: Wyoming | G68: 0 | H68: 0 | I68: 0 | J68: 0 | K68: 0 | L68: 0 | M68: 0 | N68: 0 | O68: 0 | P68: 0 | Q68: 0 | R68: 0 | S68: 0
B69: 555 | E69: Total | G69: 0 | H69: 0 | I69: 0 | J69: 0 | K69: 0 | L69: 0 | M69: 0 | N69: 0 | O69: 0 | P69: 0 | Q69: 0 | R69: 0 | S69: 0
B70: 556
A71: %,FACCOUNT,TQGCACCTS,V805100 | B71: 557 | C71: 805.1 | D71: Purchased Gas Cost Adjustments - Utah
B72: 558 | E72: Utah | G72: -7415753.673 | H72: -7796305.485 | I72: -4268728.029 | J72: -495856.167 | K72: 21796640.86 | L72: 24437361.63 | M72: 5670780.502 | N72: 4880657.883 | O72: -1228034.921 | P72: -6172424.056 | Q72: -1143091.074 | R72: -6752765.376 | S72: 21512482.09
B73: 559 | E73: Wyoming | G73: -215585.3268 | H73: -320787.5154 | I73: -192268.9707 | J73: -20929.833 | K73: 847102.4369 | L73: 757093.3727 | M73: 243305.498 | N73: 201349.1173 | O73: -53063.07916 | P73: -302440.9441 | Q73: -33436.92576 | R73: -226043.6235 | S73: 684294.2066
B74: 560 | E74: Total | G74: -7631339 | H74: -8117093 | I74: -4460997 | J74: -516786 | K74: 22643743.3 | L74: 25194455 | M74: 5914086 | N74: 5082007 | O74: -1281098 | P74: -6474865 | Q74: -1176528 | R74: -6978809 | S74: 22196776.3
B75: 561
A76: %,FACCOUNT,TQGCACCTS,V806000 | B76: 562 | C76: 806 | D76: Exchange Gas
B77: 563 | E77: Utah | G77: 0 | H77: 0 | I77: 0 | J77: 0 | K77: 0 | L77: 0 | M77: 0 | N77: 0 | O77: 0 | P77: 0 | Q77: 0 | R77: 0 | S77: 0
B78: 564 | E78: Wyoming | G78: 0 | H78: 0 | I78: 0 | J78: 0 | K78: 0 | L78: 0 | M78: 0 | N78: 0 | O78: 0 | P78: 0 | Q78: 0 | R78: 0 | S78: 0
B79: 565 | E79: Total | G79: 0 | H79: 0 | I79: 0 | J79: 0 | K79: 0 | L79: 0 | M79: 0 | N79: 0 | O79: 0 | P79: 0 | Q79: 0 | R79: 0 | S79: 0
B80: 566
A81: %,FACCOUNT,TQGCACCTS,V808100 | B81: 567 | C81: 808.1 | D81: Gas Withdrawn from Underground Storage
B82: 568 | E82: Utah | G82: 42495.60897 | H82: 189389.7131 | I82: 2945313.569 | J82: 12773314.85 | K82: 21157687.34 | L82: 11138905.8 | M82: 14937335.33 | N82: 6894793.056 | O82: 4863790.48 | P82: 963143.7679 | Q82: 340497.2355 | R82: 298965.2194 | S82: 76545631.97
B83: 569 | E83: Wyoming | G83: 1235.401032 | H83: 7792.646867 | I83: 132660.6906 | J83: 539155.0301 | K83: 822270.2119 | L83: 345094.2 | M83: 640888.1123 | N83: 284441.2638 | O83: 210163.1598 | P83: 47192.82212 | Q83: 9959.994477 | R83: 10007.63061 | S83: 3050861.164
B84: 570 | E84: Total | G84: 43731.01 | H84: 197182.36 | I84: 3077974.26 | J84: 13312469.88 | K84: 21979957.55 | L84: 11484000 | M84: 15578223.44 | N84: 7179234.32 | O84: 5073953.64 | P84: 1010336.59 | Q84: 350457.23 | R84: 308972.85 | S84: 79596493.13
B85: 571
A86: %,FACCOUNT,TQGCACCTS,V808200 | B86: 572 | C86: 808.2 | D86: Gas Delivered to Underground Storage
B87: 573 | E87: Utah | G87: -13776146.09 | H87: -10431305.39 | I87: -5651828.409 | J87: -3256149.643 | K87: -2500044.023 | L87: -1364939.198 | M87: -216738.5761 | N87: -1661421.299 | O87: -2028032.459 | P87: -5847587.886 | Q87: -14414345.89 | R87: -15534980.18 | S87: -76683519.04
B88: 574 | E88: Wyoming | G88: -400489.9687 | H88: -429207.4682 | I88: -254565.581 | J88: -137440.3966 | K88: -97161.45701 | L88: -42287.15182 | M88: -9299.193858 | N88: -68541.11068 | O88: -87630.77099 | P88: -286524.3841 | Q88: -421638.6815 | R88: -520021.5044 | S88: -2754807.669
B89: 575 | E89: Total | G89: -14176636.06 | H89: -10860512.86 | I89: -5906393.99 | J89: -3393590.04 | K89: -2597205.48 | L89: -1407226.35 | M89: -226037.77 | N89: -1729962.41 | O89: -2115663.23 | P89: -6134112.27 | Q89: -14835984.57 | R89: -16055001.68 | S89: -79438326.71
B90: 576
A91: %,FACCOUNT,TQGCACCTS,V808300 | B91: 577 | C91: 808.3 | D91: Exchange Gas
B92: 578 | E92: Utah | G92: 300372.7838 | H92: 304254.131 | I92: 308724.647 | J92: 311754.983 | K92: 314015.1472 | L92: 315839.9688 | M92: 311630.4589 | N92: 311643.31 | O92: 312868.0505 | P92: 311125.2573 | Q92: 315955.8728 | R92: 313975.8985 | S92: 3732160.509
B93: 579 | E93: Wyoming | G93: 8732.21625 | H93: 12518.86896 | I93: 13905.353 | J93: 13159.017 | K93: 12203.85279 | L93: 9785.03125 | M93: 13370.54114 | N93: 12856.69 | O93: 13518.94954 | P93: 15244.7427 | Q93: 9242.12716 | R93: 10510.10154 | S93: 145047.4913
B94: 580 | E94: Total | G94: 309105 | H94: 316773 | I94: 322630 | J94: 324914 | K94: 326219 | L94: 325625 | M94: 325001 | N94: 324500 | O94: 326387 | P94: 326370 | Q94: 325198 | R94: 324486 | S94: 3877208
B95: 581
A96: %,FACCOUNT,TQGCACCTS,V813000,V813001,V813002,V813003,V813004 | B96: 582 | C96: 813 | D96: Other Gas Supply Expenses - Gas Cost
B97: 583 | E97: Utah | G97: 28037816.3 | H97: 26505992.71 | I97: 28893224.9 | J97: 27509126.43 | K97: 28133983.82 | L97: 29217361.16 | M97: 29549863.24 | N97: 27090451.72 | O97: 26430127.43 | P97: 27008640.36 | Q97: 23042205.1 | R97: 27049982.37 | S97: 328468775.5
B98: 584 | E98: Wyoming | G98: 815094.7369 | H98: 1090618.058 | I98: 1301387.808 | J98: 1161146.035 | K98: 1093396.29 | L98: 905182.4352 | M98: 1267840.324 | N98: 1117603.133 | O98: 1142039.139 | P98: 1323389.096 | Q98: 674014.9744 | R98: 905477.34 | S98: 12797189.37
B99: 585 | E99: Total | G99: 28852911.04 | H99: 27596610.77 | I99: 30194612.71 | J99: 28670272.46 | K99: 29227380.11 | L99: 30122543.6 | M99: 30817703.56 | N99: 28208054.85 | O99: 27572166.57 | P99: 28332029.46 | Q99: 23716220.07 | R99: 27955459.71 | S99: 341265964.9
B100: 586
B101: 587 | C101: 813 | D101: Other Gas Supply Expenses - SNG Cost
B102: 588 | E102: Utah | S102: 0
B103: 589 | E103: Wyoming | S103: 0
B104: 590 | E104: Total | G104: 0 | H104: 0 | I104: 0 | J104: 0 | K104: 0 | L104: 0 | M104: 0 | N104: 0 | O104: 0 | P104: 0 | Q104: 0 | R104: 0 | S104: 0
B105: 591
B106: 592 | C106: 813.5 | D106: CO2 Processing Expenses
A107: %,FACCOUNT,TQGCACCTS,V813005,V813007,V813008 | B107: 593 | E107: Utah | G107: 0 | H107: 0 | I107: 0 | J107: 0 | K107: 0 | L107: 0 | M107: 0 | N107: 0 | O107: 0 | P107: 0 | Q107: 0 | R107: 0 | S107: 0
A108: %,FACCOUNT,TQGCACCTS,V813006 | B108: 594 | E108: Wyoming | G108: 0 | H108: 0 | I108: 0 | J108: 0 | K108: 0 | L108: 0 | M108: 0 | N108: 0 | O108: 0 | P108: 0 | Q108: 0 | R108: 0 | S108: 0
B109: 595 | E109: Total | G109: 0 | H109: 0 | I109: 0 | J109: 0 | K109: 0 | L109: 0 | M109: 0 | N109: 0 | O109: 0 | P109: 0 | Q109: 0 | R109: 0 | S109: 0
B110: 596
A111: %,FACCOUNT,TQGCACCTS,V858000 | B111: 597 | C111: 858 | D111: Transportation GRI & ACA - Gas Cost
B112: 598 | E112: Utah | G112: 4636160.381 | H112: 4583312.072 | I112: 4559573.287 | J112: 5782280.359 | K112: 5807563.993 | L112: 5918248.443 | M112: 5826148.625 | N112: 5729960.505 | O112: 4559328.132 | P112: 4561095.023 | Q112: 4648401.848 | R112: 4626012.086 | S112: 61238084.75
B113: 599 | E113: Wyoming | G113: 134779.0386 | H113: 188585.3876 | I113: 205369.0131 | J113: 244067.0709 | K113: 225704.5772 | L113: 183353.1272 | M113: 249971.5854 | N113: 236386.6753 | O113: 197007.4185 | P113: 223487.8668 | Q113: 135971.902 | R113: 154852.194 | S113: 2379535.857
B114: 600 | E114: Total | G114: 4770939.42 | H114: 4771897.46 | I114: 4764942.3 | J114: 6026347.43 | K114: 6033268.57 | L114: 6101601.57 | M114: 6076120.21 | N114: 5966347.18 | O114: 4756335.55 | P114: 4784582.89 | Q114: 4784373.75 | R114: 4780864.28 | S114: 63617620.61
B115: 601
A116: %,FACCOUNT,TQGCACCTS,V858001 | B116: 602 | C116: 858 | D116: Trans & Comp of Gas by Others - SNG Cost
B117: 603 | E117: Utah | G117: 0 | H117: 0 | I117: 0 | J117: 0 | K117: 0 | L117: 0 | M117: 0 | N117: 0 | O117: 0 | P117: 0 | Q117: 0 | R117: 0 | S117: 0
B118: 604 | E118: Wyoming | G118: 0 | H118: 0 | I118: 0 | J118: 0 | K118: 0 | L118: 0 | M118: 0 | N118: 0 | O118: 0 | P118: 0 | Q118: 0 | R118: 0 | S118: 0
B119: 605 | E119: Total | G119: 0 | H119: 0 | I119: 0 | J119: 0 | K119: 0 | L119: 0 | M119: 0 | N119: 0 | O119: 0 | P119: 0 | Q119: 0 | R119: 0 | S119: 0
B120: 606
B121: 607 | C121: System Total Gas Purchase Expenses
B122: 608 | D122: Utah Gas Purchase Expenses | G122: 18162546.08 | H122: 19123704.46 | I122: 31285527.44 | J122: 65589948.96 | K122: 101430992.1 | L122: 101908357.7 | M122: 69752370.83 | N122: 53824614.41 | O122: 39362643.79 | P122: 27122408.19 | Q122: 14258141.08 | R122: 14332332.24 | S122: 556153587.3
B123: 609 | D123: Wyoming Gas Purchase Expenses | G123: 484039.9155 | H123: 719282.229 | I123: 1333371.903 | J123: 2695522.648 | K123: 3808682.87 | L123: 3101878.168 | M123: 2910011.56 | N123: 2147846.854 | O123: 1620247.443 | P123: 1239056.169 | Q123: 362098.7954 | R123: 414854.3567 | S123: 20836892.91
B124: 610
B125: 611
B126: 612 | D126: System Total Gas Purchase Expenses | G126: 18646586 | H126: 19842986.69 | I126: 32618899.34 | J126: 68285471.61 | K126: 105239675 | L126: 105010235.9 | M126: 72662382.39 | N126: 55972461.26 | O126: 40982891.23 | P126: 28361464.36 | Q126: 14620239.88 | R126: 14747186.6 | S126: 576990480.2
B127: 613
B128: 614
B129: 615 | C129: OPERATION AND MAINTENANCE EXPENSES
B130: 616
B131: 617 | C131: Production Expenses
B132: 618
A133: %,FACCOUNT,TQGCACCTS,V810000,V810001 | B133: 619 | C133: 810 | D133: Gas Used for Compressor Station Fuel | G133: -2981.76 | H133: -3605.16 | I133: -2790.6 | J133: -2367.42 | K133: -1665.07 | L133: -1641.94 | M133: -1450.28 | N133: -1414.54 | O133: -1109.33 | P133: -1230.22 | Q133: -1492.59 | R133: -1218.64 | S133: -22967.55
A134: %,FACCOUNT,TQGCACCTS,V812000,V812001 | B134: 620 | C134: 812 | D134: Gas Used for Other Utility Operations | G134: -9293.74 | H134: -108709.68 | I134: -233315.06 | J134: 31239.66 | K134: -125027.24 | L134: -138110.25 | M134: -117213.53 | N134: -121744.67 | O134: -116249.74 | P134: -96853.8 | Q134: 87714.22 | R134: 347585.02 | S134: -599978.81
B135: 621
B136: 622 | D136: Total Production Expenses | G136: -12275.5 | H136: -112314.84 | I136: -236105.66 | J136: 28872.24 | K136: -126692.31 | L136: -139752.19 | M136: -118663.81 | N136: -123159.21 | O136: -117359.07 | P136: -98084.02 | Q136: 86221.63 | R136: 346366.38 | S136: -622946.36
B137: 623
B138: 624 | C138: Distribution Operations & Maintenance Expenses
B139: 625
B140: 626 | C140: 870 | D140: Operation Supervision & Engineering
B141: 627 | E141: Utah | G141: 797590.42 | H141: 998804.71 | I141: 900235.3 | J141: 873773.68 | K141: 1318177.47 | L141: 1052962.8 | M141: 970620.17 | N141: 815650.23 | O141: 936132.46 | P141: 904432.54 | Q141: 845644 | R141: 822344.08 | S141: 11236367.86
B142: 628 | E142: Wyoming | G142: 38731.79 | H142: 39517.43 | I142: 37639.96 | J142: 48756.84 | K142: 66114.6 | L142: 57056.15 | M142: 52298.61 | N142: 40845.87 | O142: 35857.13 | P142: 39795.1 | Q142: 39177.68 | R142: 36316.26 | S142: 532107.42
A143: %,FACCOUNT,TQGCACCTS,N870 | B143: 629 | E143: Total | G143: 836322.21 | H143: 1038322.14 | I143: 937875.26 | J143: 922530.52 | K143: 1384292.07 | L143: 1110018.95 | M143: 1022918.78 | N143: 856496.1 | O143: 971989.59 | P143: 944227.64 | Q143: 884821.68 | R143: 858660.34 | S143: 11768475.28
B144: 630
B145: 631 | C145: 871 | D145: Distribution Load Dispatching
B146: 632 | E146: Utah | G146: 140986.7 | H146: 165080.21 | I146: 157271.06 | J146: 172634.53 | K146: 203236.77 | L146: 137867.23 | M146: 199892.44 | N146: 164138.21 | O146: 172298.98 | P146: 176543.58 | Q146: 149748.34 | R146: 163912.6 | S146: 2003610.65
B147: 633 | E147: Wyoming | G147: 4977.38 | H147: 5827.97 | I147: 5518.57 | J147: 5946.76 | K147: 7066.18 | L147: 2324.46 | M147: 4417.57 | N147: 3200.14 | O147: 3573.72 | P147: 3696.19 | Q147: 2649.95 | R147: 3279.8 | S147: 52478.69
A148: %,FACCOUNT,TQGCACCTS,N871 | B148: 634 | E148: Total | G148: 145964.08 | H148: 170908.18 | I148: 162789.63 | J148: 178581.29 | K148: 210302.95 | L148: 140191.69 | M148: 204310.01 | N148: 167338.35 | O148: 175872.7 | P148: 180239.77 | Q148: 152398.29 | R148: 167192.4 | S148: 2056089.34
B149: 635
B150: 636 | C150: 872 | D150: Compressor Station Labor & Expenses
B151: 637 | E151: Utah | G151: 207.15 | H151: 0 | I151: 854.02 | J151: 38.14 | K151: 0 | L151: 0 | M151: 0 | N151: 0 | O151: 0 | P151: 0 | Q151: 0 | R151: 0 | S151: 1099.31
B152: 638 | E152: Wyoming | G152: 0 | H152: 0 | I152: 0 | J152: 0 | K152: 0 | L152: 0 | M152: 0 | N152: 0 | O152: 0 | P152: 0 | Q152: 0 | R152: 0 | S152: 0
A153: %,FACCOUNT,TQGCACCTS,N872 | B153: 639 | E153: Total | G153: 207.15 | H153: 0 | I153: 854.02 | J153: 38.14 | K153: 0 | L153: 0 | M153: 0 | N153: 0 | O153: 0 | P153: 0 | Q153: 0 | R153: 0 | S153: 1099.31
B154: 640
B155: 641 | C155: 873 | D155: Compressor Station Fuel & Power
B156: 642 | E156: Utah | G156: 2988.8 | H156: 3614.58 | I156: 2803.92 | J156: 2405.64 | K156: 1718.4 | L156: 1708.76 | M156: 1492.47 | N156: 1452.13 | O156: 1117.08 | P156: 1236.93 | Q156: 1497.42 | R156: 1223.22 | S156: 23259.35
B157: 643 | E157: Wyoming | G157: 0 | H157: 0 | I157: 0 | J157: 0 | K157: 0 | L157: 0 | M157: 0 | N157: 0 | O157: 0 | P157: 0 | Q157: 0 | R157: 0 | S157: 0
A158: %,FACCOUNT,TQGCACCTS,N873 | B158: 644 | E158: Total | G158: 2988.8 | H158: 3614.58 | I158: 2803.92 | J158: 2405.64 | K158: 1718.4 | L158: 1708.76 | M158: 1492.47 | N158: 1452.13 | O158: 1117.08 | P158: 1236.93 | Q158: 1497.42 | R158: 1223.22 | S158: 23259.35
B159: 645
B160: 646 | C160: 874 | D160: Mains & Service Expenses
B161: 647 | E161: Utah | G161: 616480.05 | H161: 1219928.03 | I161: 614704.17 | J161: 724150.68 | K161: 862092.85 | L161: 612566.63 | M161: 924753.08 | N161: 822094.38 | O161: 771686.9 | P161: 813938.78 | Q161: 1121062.01 | R161: 526674.87 | S161: 9630132.43
B162: 648 | E162: Wyoming | G162: 46766.9 | H162: 75095.52 | I162: 45143.89 | J162: 55568.3 | K162: 52077.08 | L162: 37499.23 | M162: 54338.01 | N162: 45275.3 | O162: 51651.43 | P162: 50375.37 | Q162: 60958.54 | R162: 76227.48 | S162: 650977.05
A163: %,FACCOUNT,TQGCACCTS,N874 | B163: 649 | E163: Total | G163: 663246.95 | H163: 1295023.55 | I163: 659848.06 | J163: 779718.98 | K163: 914169.93 | L163: 650065.86 | M163: 979091.09 | N163: 867369.68 | O163: 823338.33 | P163: 864314.15 | Q163: 1182020.55 | R163: 602902.35 | S163: 10281109.48
B164: 650
B165: 651 | C165: 875 | D165: Measuring & Regulating Station Expenses
B166: 652 | E166: Utah | G166: 137510.49 | H166: 169595.45 | I166: 167675.81 | J166: 375622.06 | K166: 151844.28 | L166: 153216.77 | M166: 187870.81 | N166: 192808.61 | O166: 278086.81 | P166: 194936.9 | Q166: 133007.68 | R166: 142924.73 | S166: 2285100.4
B167: 653 | E167: Wyoming | G167: 4878.47 | H167: 5971.17 | I167: 5907.16 | J167: 13039.52 | K167: 5376.65 | L167: 5404.94 | M167: 6931.43 | N167: 9828.73 | O167: 19190.46 | P167: 17224.77 | Q167: 18206.35 | R167: 6830.13 | S167: 118789.78
A168: %,FACCOUNT,TQGCACCTS,N875 | B168: 654 | E168: Total | G168: 142388.96 | H168: 175566.62 | I168: 173582.97 | J168: 388661.58 | K168: 157220.93 | L168: 158621.71 | M168: 194802.24 | N168: 202637.34 | O168: 297277.27 | P168: 212161.67 | Q168: 151214.03 | R168: 149754.86 | S168: 2403890.18
B169: 655
B170: 656 | C170: 878 | D170: Meter & House Regulator Expenses
B171: 657 | E171: Utah | G171: 315536.44 | H171: 295618.58 | I171: 304551.1 | J171: 365647.62 | K171: 360176.65 | L171: 285239.51 | M171: 328834.91 | N171: 259914.17 | O171: 135743.9 | P171: 392901.64 | Q171: 314066.2 | R171: 247314.34 | S171: 3605545.06
B172: 658 | E172: Wyoming | G172: 9979.37 | H172: 6652.84 | I172: 8307.73 | J172: 14550.74 | K172: 15098.25 | L172: 20386.2 | M172: 17776.77 | N172: 18980.49 | O172: 6861.08 | P172: 12400.5 | Q172: 10625 | R172: 10540.04 | S172: 152159.01
A173: %,FACCOUNT,TQGCACCTS,N878 | B173: 659 | E173: Total | G173: 325515.81 | H173: 302271.42 | I173: 312858.83 | J173: 380198.36 | K173: 375274.9 | L173: 305625.71 | M173: 346611.68 | N173: 278894.66 | O173: 142604.98 | P173: 405302.14 | Q173: 324691.2 | R173: 257854.38 | S173: 3757704.07
B174: 660
B175: 661 | C175: 879 | D175: Customer Installations Expenses
B176: 662 | E176: Utah | G176: 212395.25 | H176: 293582.66 | I176: 258188.14 | J176: 325084.85 | K176: 339773.61 | L176: 321358.56 | M176: 338072 | N176: 243337.28 | O176: 223306.21 | P176: 226989.63 | Q176: 220524.96 | R176: 238768.16 | S176: 3241381.31
B177: 663 | E177: Wyoming | G177: 6903.87 | H177: 9340.7 | I177: 8638.89 | J177: 18520.58 | K177: 20113.26 | L177: 18241.47 | M177: 20475.2 | N177: 11800.28 | O177: 8369.62 | P177: 7857.56 | Q177: 7193.46 | R177: 9748.27 | S177: 147203.16
A178: %,FACCOUNT,TQGCACCTS,N879 | B178: 664 | E178: Total | G178: 219299.12 | H178: 302923.36 | I178: 266827.03 | J178: 343605.43 | K178: 359886.87 | L178: 339600.03 | M178: 358547.2 | N178: 255137.56 | O178: 231675.83 | P178: 234847.19 | Q178: 227718.42 | R178: 248516.43 | S178: 3388584.47
B179: 665
B180: 666 | C180: 880 | D180: Other Expenses
B181: 667 | E181: Utah | G181: 686398.81 | H181: 876917.35 | I181: 647786.12 | J181: 829807.95 | K181: 957099.11 | L181: 961156.37 | M181: 1136060.95 | N181: 980982.49 | O181: 749271.86 | P181: 939516.78 | Q181: 760418.74 | R181: 642144.14 | S181: 10167560.67
B182: 668 | E182: Wyoming | G182: 49169.2 | H182: 61317.53 | I182: 59237.45 | J182: 92441.27 | K182: 107406.47 | L182: 99742.9 | M182: 128970.17 | N182: 100322.26 | O182: 86034.24 | P182: 81466.66 | Q182: 58575.08 | R182: 61054.31 | S182: 985737.54
A183: %,FACCOUNT,TQGCACCTS,N880 | B183: 669 | E183: Total | G183: 735568.01 | H183: 938234.88 | I183: 707023.57 | J183: 922249.22 | K183: 1064505.58 | L183: 1060899.27 | M183: 1265031.12 | N183: 1081304.75 | O183: 835306.1 | P183: 1020983.44 | Q183: 818993.82 | R183: 703198.45 | S183: 11153298.21
B184: 670
B185: 671 | C185: 881 | D185: Rents
B186: 672 | E186: Utah | G186: 1712.5 | H186: 1715.01 | I186: 1707.48 | J186: 1714.17 | K186: 1702.78 | L186: 1699.27 | M186: 1671.98 | N186: 1706.58 | O186: 1740.51 | P186: 1703.84 | Q186: 1720.01 | R186: 1677.97 | S186: 20472.1
B187: 673 | E187: Wyoming | G187: 60.46 | H187: 60.55 | I187: 59.91 | J187: 59.05 | K187: 59.2 | L187: 59.63 | M187: 58.67 | N187: 59.88 | O187: 60.51 | P187: 59.61 | Q187: 60.36 | R187: 59.24 | S187: 717.07
A188: %,FACCOUNT,TQGCACCTS,N881 | B188: 674 | E188: Total | G188: 1772.96 | H188: 1775.56 | I188: 1767.39 | J188: 1773.22 | K188: 1761.98 | L188: 1758.9 | M188: 1730.65 | N188: 1766.46 | O188: 1801.02 | P188: 1763.45 | Q188: 1780.37 | R188: 1737.21 | S188: 21189.17
B189: 675
B190: 676 | C190: 885 | D190: Maintenance Supervision & Engineering
B191: 677 | E191: Utah | G191: 49000.4 | H191: 44548.6 | I191: 56354.6 | J191: 40632.2 | K191: 75514.24 | L191: 44932.8 | M191: 51352.64 | N191: 25238.81 | O191: 78889.02 | P191: 55545.93 | Q191: 58804.92 | R191: 53321.1 | S191: 634135.26
B192: 678 | E192: Wyoming | G192: 1607.85 | H192: 1451.95 | I192: 1853.6 | J192: 1309.52 | K192: 2433.58 | L192: 1520.5 | M192: 1690.87 | N192: 838.94 | O192: 2563.4 | P192: 1838.9 | Q192: 1926.67 | R192: 1745.05 | S192: 20780.83
A193: %,FACCOUNT,TQGCACCTS,N885 | B193: 679 | E193: Total | G193: 50608.25 | H193: 46000.55 | I193: 58208.2 | J193: 41941.72 | K193: 77947.82 | L193: 46453.3 | M193: 53043.51 | N193: 26077.75 | O193: 81452.42 | P193: 57384.83 | Q193: 60731.59 | R193: 55066.15 | S193: 654916.09
B194: 680
B195: 681 | C195: 886 | D195: Maintenance of Structures & Improvements
B196: 682 | E196: Utah | G196: 6401.57 | H196: 6192.95 | I196: 6298.87 | J196: 9155.42 | K196: 8945.4 | L196: 5539.94 | M196: 6469.33 | N196: 6476.16 | O196: 6081.72 | P196: 6329.96 | Q196: 6325.15 | R196: 7284.65 | S196: 81501.12
B197: 683 | E197: Wyoming | G197: 226 | H197: 218.63 | I197: 221.02 | J197: 315.39 | K197: 311.02 | L197: 194.4 | M197: 227.01 | N197: 227.25 | O197: 211.46 | P197: 204.43 | Q197: 206.19 | R197: 219.48 | S197: 2782.28
A198: %,FACCOUNT,TQGCACCTS,N886 | B198: 684 | E198: Total | G198: 6627.57 | H198: 6411.58 | I198: 6519.89 | J198: 9470.81 | K198: 9256.42 | L198: 5734.34 | M198: 6696.34 | N198: 6703.41 | O198: 6293.18 | P198: 6534.39 | Q198: 6531.34 | R198: 7504.13 | S198: 84283.4
B199: 685
B200: 686 | C200: 887 | D200: Maintenance of Mains
B201: 687 | E201: Utah | G201: 705768.36 | H201: 757877.46 | I201: 716964.07 | J201: 752666.95 | K201: 761613.93 | L201: 852914.66 | M201: 815590.57 | N201: 750240.84 | O201: 738921.13 | P201: 725196.45 | Q201: 779524.75 | R201: 764943.88 | S201: 9122223.05
B202: 688 | E202: Wyoming | G202: 5132.71 | H202: 11284.19 | I202: 13959.49 | J202: 15210.28 | K202: 7643.91 | L202: 19108.54 | M202: 17950.85 | N202: 22316.93 | O202: 11327.98 | P202: 8724.07 | Q202: 7942.81 | R202: 7794.9 | S202: 148396.66
A203: %,FACCOUNT,TQGCACCTS,N887 | B203: 689 | E203: Total | G203: 710901.07 | H203: 769161.65 | I203: 730923.56 | J203: 767877.23 | K203: 769257.84 | L203: 872023.2 | M203: 833541.42 | N203: 772557.77 | O203: 750249.11 | P203: 733920.52 | Q203: 787467.56 | R203: 772738.78 | S203: 9270619.71
B204: 690
B205: 691 | C205: 888 | D205: Maint of Compressor Station Equipment
B206: 692 | E206: Utah | G206: 274842.59 | H206: 120506.8 | I206: 204111.96 | J206: 168802.29 | K206: -277804.82 | L206: 177912.05 | M206: 127707.56 | N206: 149938.12 | O206: 137702.48 | P206: 108465.68 | Q206: 210508.99 | R206: 167057.89 | S206: 1569751.59
... 843 more rows

Sheet Rate Base
A1: %,LACTUALS
C2: Company: | F2: Company:
C3: Period Ended: | F3: Period Ended:
C4: Date,Time, Stamp: | F4: Date,Time, Stamp:
U5: Historical
U6: 13-Month Avg
U7: Period Ended
G8: =+H8-30 -> 2014-06-21 | H8: 2014-07-21 | I8: 2014-08-20 | J8: 2014-09-19 | K8: 2014-10-19 | L8: 2014-11-18 | M8: 2014-12-18 | N8: 2015-01-17 | O8: 2015-02-16 | P8: 2015-03-18 | Q8: 2015-04-17 | R8: 2015-05-17 | S8: 2015-06-16 | T8: 2015-07-16 | U8: 2015-07-31
C10: UTILITY RATE BASE
D11: NET UTILITY PLANT
D13: Intangible Plant
C14: 101 | D14: Gas Plant In Service
E15: Intangible Plant
B16: 1 | D16: 302 | E16: Franchises & Consents
B17: =+B16+1 -> 2 | E17: Distribution - Wyoming | H17: 10883.08 | I17: 10883.08 | J17: 10883.08 | K17: 10883.08 | L17: 10883.08 | M17: 10883.08 | N17: 10883.08 | O17: 10883.08 | P17: 10883.08 | Q17: 10883.08 | R17: 10883.08 | S17: 10883.08 | T17: 10883.08 | U17: 10883.08
B18: 3 | E18: Distribution - Utah | H18: 58742.88 | I18: 58742.88 | J18: 58742.88 | K18: 58742.88 | L18: 58742.88 | M18: 58742.88 | N18: 58742.88 | O18: 58742.88 | P18: 58742.88 | Q18: 58742.88 | R18: 58742.88 | S18: 58742.88 | T18: 58742.88 | U18: 58742.88
B19: 4
A20: ="%,FACCOUNT,TQGCACCTS,N"&(D16) -> %,FACCOUNT,TQGCACCTS,N302 | B20: 5 | E20: Total Intangible Plant | H20: 69625.96 | I20: 69625.96 | J20: 69625.96 | K20: 69625.96 | L20: 69625.96 | M20: 69625.96 | N20: 69625.96 | O20: 69625.96 | P20: 69625.96 | Q20: 69625.96 | R20: 69625.96 | S20: 69625.96 | T20: 69625.96 | U20: 69625.96
B21: 6
B22: 7 | E22: Production & Gathering Plant
A23: ="%,FACCOUNT,TQGCACCTS,N"&(D23) -> %,FACCOUNT,TQGCACCTS,N325 | B23: 8 | D23: 325 | E23: Land & Land Rights | H23: 6266900.69 | I23: 6266900.69 | J23: 6266900.69 | K23: 6266900.69 | L23: 6266900.69 | M23: 6266900.69 | N23: 6266900.69 | O23: 6266900.69 | P23: 6266900.69 | Q23: 6266900.69 | R23: 6266900.69 | S23: 6266900.69 | T23: 6266900.69 | U23: 6266900.69
A24: %,FACCOUNT,TQGCACCTS,N326,N327,N328,N329 | B24: 9 | D24: 326...9 | E24: Structures | H24: 1437567.99 | I24: 1437567.99 | J24: 1437567.99 | K24: 1437567.99 | L24: 1437567.99 | M24: 1437567.99 | N24: 1437567.99 | O24: 1437567.99 | P24: 1437567.99 | Q24: 1437567.99 | R24: 1437567.99 | S24: 1437567.99 | T24: 1437567.99 | U24: 1437567.99
A25: ="%,FACCOUNT,TQGCACCTS,N"&(D25) -> %,FACCOUNT,TQGCACCTS,N330 | B25: 10 | D25: 330 | E25: Gas Wells - Construction | H25: 52175293.81 | I25: 52175293.81 | J25: 52175293.81 | K25: 52175293.81 | L25: 52175293.81 | M25: 52175293.81 | N25: 52175293.81 | O25: 52175293.81 | P25: 52175293.81 | Q25: 52175293.81 | R25: 52175293.81 | S25: 52175293.81 | T25: 52175293.81 | U25: 52175293.81
A26: ="%,FACCOUNT,TQGCACCTS,N"&(D26) -> %,FACCOUNT,TQGCACCTS,N331 | B26: 11 | D26: 331 | E26: Gas Wells - Equipment | H26: 17216356.88 | I26: 17216356.88 | J26: 17216356.88 | K26: 17216356.88 | L26: 17216356.88 | M26: 17216356.88 | N26: 17216356.88 | O26: 17216356.88 | P26: 17216356.88 | Q26: 17216356.88 | R26: 17216356.88 | S26: 17216356.88 | T26: 17216356.88 | U26: 17216356.88
A27: %,FACCOUNT,TQGCACCTS,N332,N333,N334 | B27: 12 | D27: 332...4 | E27: Field Lines & Comp, Meas & Reg St Eqpt | H27: 2693816.12 | I27: 2693816.12 | J27: 2693816.12 | K27: 2693816.12 | L27: 2693816.12 | M27: 2693816.12 | N27: 2693816.12 | O27: 2693816.12 | P27: 2693816.12 | Q27: 2693816.12 | R27: 2693816.12 | S27: 2693816.12 | T27: 2693816.12 | U27: 2693816.12
A28: ="%,FACCOUNT,TQGCACCTS,N"&(D28) -> %,FACCOUNT,TQGCACCTS,N336 | B28: 13 | D28: 336 | E28: Purification Equipment | H28: 57014.71 | I28: 57014.71 | J28: 57014.71 | K28: 57014.71 | L28: 57014.71 | M28: 57014.71 | N28: 57014.71 | O28: 57014.71 | P28: 57014.71 | Q28: 57014.71 | R28: 57014.71 | S28: 57014.71 | T28: 57014.71 | U28: 57014.71
A29: ="%,FACCOUNT,TQGCACCTS,N"&(D29) -> %,FACCOUNT,TQGCACCTS,N337 | B29: 14 | D29: 337 | E29: Other Equipment | H29: 121186.63 | I29: 121186.63 | J29: 121186.63 | K29: 121186.63 | L29: 121186.63 | M29: 121186.63 | N29: 121186.63 | O29: 121186.63 | P29: 121186.63 | Q29: 121186.63 | R29: 121186.63 | S29: 121186.63 | T29: 121186.63 | U29: 121186.63
B30: 15
B31: 16 | E31: Total Production & Gathering Plant | H31: 79968136.83 | I31: 79968136.83 | J31: 79968136.83 | K31: 79968136.83 | L31: 79968136.83 | M31: 79968136.83 | N31: 79968136.83 | O31: 79968136.83 | P31: 79968136.83 | Q31: 79968136.83 | R31: 79968136.83 | S31: 79968136.83 | T31: 79968136.83 | U31: 79968136.83
B32: 17
B33: 18 | E33: Distribution Plant
B34: 19 | D34: 374 | E34: Land & Land Rights
B35: 20 | F35: Wyoming | H35: 361364.44 | I35: 361364.44 | J35: 361364.44 | K35: 361364.44 | L35: 381894.39 | M35: 381894.39 | N35: 381894.39 | O35: 381894.39 | P35: 400188.28 | Q35: 400188.28 | R35: 400188.28 | S35: 400188.28 | T35: 400188.28 | U35: 382766.6967
A36: ="%,FACCOUNT,TQGCACCTS,N"&(D34) -> %,FACCOUNT,TQGCACCTS,N374 | B36: 21 | F36: Utah | H36: 14388070 | I36: 14576087.81 | J36: 15057646.82 | K36: 15057646.82 | L36: 15564264.28 | M36: 16452627.14 | N36: 16453519.21 | O36: 16453519.21 | P36: 16770722.2 | Q36: 16771174.02 | R36: 16771388.12 | S36: 16771388.12 | T36: 16771388.12 | U36: 16023309.4
B37: 22 | F37: Total | H37: 14749434.44 | I37: 14937452.25 | J37: 15419011.26 | K37: 15419011.26 | L37: 15946158.67 | M37: 16834521.53 | N37: 16835413.6 | O37: 16835413.6 | P37: 17170910.48 | Q37: 17171362.3 | R37: 17171576.4 | S37: 17171576.4 | T37: 17171576.4 | U37: 16406076.1
B38: 23
B39: 24 | D39: 375 | E39: Structures & Improvements
B40: 25 | F40: Wyoming | H40: 721780.23 | I40: 717226.15 | J40: 717226.15 | K40: 717226.15 | L40: 717226.15 | M40: 717226.15 | N40: 717226.15 | O40: 871199.46 | P40: 866096.88 | Q40: 866243.66 | R40: 943906.23 | S40: 943906.23 | T40: 943906.23 | U40: 802296.0492
A41: ="%,FACCOUNT,TQGCACCTS,N"&(D39) -> %,FACCOUNT,TQGCACCTS,N375 | B41: 26 | F41: Utah | H41: 11712193.54 | I41: 11712952.97 | J41: 11715155.21 | K41: 11748425.27 | L41: 11817112.62 | M41: 11933293.41 | N41: 11989968.78 | O41: 14733261.66 | P41: 14850891.31 | Q41: 14875361.47 | R41: 14874161.47 | S41: 15006285.34 | T41: 15044597.81 | U41: 13219605.43
B42: 27 | F42: Total | H42: 12433973.77 | I42: 12430179.12 | J42: 12432381.36 | K42: 12465651.42 | L42: 12534338.77 | M42: 12650519.56 | N42: 12707194.93 | O42: 15604461.12 | P42: 15716988.19 | Q42: 15741605.13 | R42: 15818067.7 | S42: 15950191.57 | T42: 15988504.04 | U42: 14021901.48
B43: 28
B44: 29 | D44: 376 | E44: Mains
B45: 30 | F45: Dist - Wy - Mains - SD
B46: 31 | F46: Dist - Wy - Mains - LD
B47: 32 | F47: Dist - Wy - Mains - Feeders
B48: 33 | F48: Wyoming | H48: 33080212.1 | I48: 33041505.96 | J48: 33590552.92 | K48: 33591506.12 | L48: 33858502.07 | M48: 34121858.45 | N48: 34128475 | O48: 34234962.28 | P48: 34518784.01 | Q48: 34519290.61 | R48: 34633610.57 | S48: 34870592.9 | T48: 34870755.62 | U48: 34090427.06
B49: 34 | F49: Dist - Ut - Mains - SD
B50: 35 | F50: Dist - Ut - Mains - LD
B51: 36 | F51: Dist - Ut - Mains - Feeders
A52: ="%,FACCOUNT,TQGCACCTS,N"&(D44) -> %,FACCOUNT,TQGCACCTS,N376 | B52: 37 | F52: Utah | H52: 1107192093 | I52: 1108599961 | J52: 1131855852 | K52: 1163061684 | L52: 1169234827 | M52: 1178719177 | N52: 1179529359 | O52: 1185206633 | P52: 1198670518 | Q52: 1204699135 | R52: 1209014579 | S52: 1211569343 | T52: 1216314975 | U52: 1175159550
B53: 38 | F53: Total | H53: 1140272305 | I53: 1141641467 | J53: 1165446405 | K53: 1196653191 | L53: 1203093329 | M53: 1212841035 | N53: 1213657834 | O53: 1219441596 | P53: 1233189302 | Q53: 1239218426 | R53: 1243648190 | S53: 1246439936 | T53: 1251185731 | U53: 1209249977
B54: 39
B55: 40 | D55: 377 | E55: Compressor Station Equipment
B56: 41 | F56: Wyoming | H56: 0 | I56: 0 | J56: 0 | K56: 0 | L56: 0 | M56: 0 | N56: 0 | O56: 0 | P56: 0 | Q56: 0 | R56: 0 | S56: 0 | T56: 0 | U56: 0
A57: ="%,FACCOUNT,TQGCACCTS,N"&(D55) -> %,FACCOUNT,TQGCACCTS,N377 | B57: 42 | F57: Utah | H57: 17742002.32 | I57: 17742228.7 | J57: 17742228.7 | K57: 17742228.7 | L57: 17742228.7 | M57: 18154668.64 | N57: 18154668.64 | O57: 18154668.64 | P57: 18154668.64 | Q57: 18183537.4 | R57: 18190277.74 | S57: 18192571.45 | T57: 18194156.4 | U57: 18010171.28
B58: 43 | F58: Total | H58: 17742002.32 | I58: 17742228.7 | J58: 17742228.7 | K58: 17742228.7 | L58: 17742228.7 | M58: 18154668.64 | N58: 18154668.64 | O58: 18154668.64 | P58: 18154668.64 | Q58: 18183537.4 | R58: 18190277.74 | S58: 18192571.45 | T58: 18194156.4 | U58: 18010171.28
B59: 44
B60: 45 | D60: 378 | E60: Measuring & Regulation Station Equip
B61: 46 | F61: Wyoming | H61: 5334339.69 | I61: 5315594.5 | J61: 5354943.39 | K61: 5354408.39 | L61: 6194071.52 | M61: 6275909.74 | N61: 6488955.88 | O61: 6451531.52 | P61: 6420397.35 | Q61: 6421157.23 | R61: 6504225.07 | S61: 6504342.47 | T61: 6532578.25 | U61: 6101583.003
A62: ="%,FACCOUNT,TQGCACCTS,N"&(D60) -> %,FACCOUNT,TQGCACCTS,N378 | B62: 47 | F62: Utah | H62: 75054943.28 | I62: 75380820.51 | J62: 75396209.55 | K62: 75526253.42 | L62: 76217550.6 | M62: 76788067.05 | N62: 76890036.68 | O62: 77003120.66 | P62: 78178648.13 | Q62: 78210174.33 | R62: 78500991.62 | S62: 78668073.7 | T62: 79283759.95 | U62: 76994108.16
B63: 48 | F63: Total | H63: 80389282.97 | I63: 80696415.01 | J63: 80751152.94 | K63: 80880661.81 | L63: 82411622.12 | M63: 83063976.79 | N63: 83378992.56 | O63: 83454652.18 | P63: 84599045.48 | Q63: 84631331.56 | R63: 85005216.69 | S63: 85172416.17 | T63: 85816338.2 | U63: 83095691.16
B64: 49
B65: 50 | D65: 380 | E65: Services
B66: 51 | F66: Wyoming | H66: 16320576.25 | I66: 16365247.61 | J66: 16393742.73 | K66: 16435995.38 | L66: 16698714.26 | M66: 16772047.64 | N66: 16722941.59 | O66: 16779702.21 | P66: 16960115.71 | Q66: 16985078.97 | R66: 17029541.37 | S66: 17129766.59 | T66: 17318485.71 | U66: 16757702.09
A67: ="%,FACCOUNT,TQGCACCTS,N"&(D65) -> %,FACCOUNT,TQGCACCTS,N380 | B67: 52 | F67: Utah | H67: 328245780.1 | I67: 328632238.1 | J67: 329260526.5 | K67: 330185592.2 | L67: 329665476.4 | M67: 333057164 | N67: 332877469.2 | O67: 335121064.4 | P67: 340030226.8 | Q67: 341438871.3 | R67: 345567302.8 | S67: 346375857.3 | T67: 347655975.2 | U67: 335846888.9
B68: 53 | F68: Total | H68: 344566356.3 | I68: 344997485.7 | J68: 345654269.3 | K68: 346621587.6 | L68: 346364190.7 | M68: 349829211.7 | N68: 349600410.8 | O68: 351900766.6 | P68: 356990342.5 | Q68: 358423950.2 | R68: 362596844.1 | S68: 363505623.9 | T68: 364974460.9 | U68: 352604591
B69: 54
B70: 55 | D70: 381...2 | E70: Meters & Meter Installation
B71: 56 | F71: Wyoming | H71: 8535838.064 | I71: 8534583.804 | J71: 8649358.034 | K71: 8666784.594 | L71: 8678974.554 | M71: 8688637.394 | N71: 8735216.524 | O71: 8770831.524 | P71: 8798058.224 | Q71: 8850369.704 | R71: 8868015.144 | S71: 8892452.884 | T71: 8912547.124 | U71: 8738122.915
A72: %,FACCOUNT,TQGCACCTS,N381,N382 | B72: 57 | F72: Utah | H72: 270931419.7 | I72: 270807793.1 | J72: 274096181.4 | K72: 272774669.4 | L72: 273024925.6 | M72: 273408946.6 | N72: 274458101.9 | O72: 276554253.5 | P72: 278399086.2 | Q72: 279188540.2 | R72: 279907173.7 | S72: 280533278.3 | T72: 281572374 | U72: 275783737.2
B73: 58 | F73: Total | H73: 279467257.8 | I73: 279342376.9 | J73: 282745539.4 | K73: 281441454 | L73: 281703900.2 | M73: 282097584 | N73: 283193318.4 | O73: 285325085 | P73: 287197144.4 | Q73: 288038910 | R73: 288775188.9 | S73: 289425731.2 | T73: 290484921.1 | U73: 284521860.2
B74: 59
B75: 60 | D75: 383...4 | E75: House Regulators & Reg Installations
B76: 61 | F76: Wyoming | H76: 914729.58 | I76: 914729.58 | J76: 914729.58 | K76: 914729.58 | L76: 647686.5 | M76: 904120.82 | N76: 903671.56 | O76: 899916.04 | P76: 899150.9 | Q76: 893724.42 | R76: 887753.61 | S76: 887753.61 | T76: 876480.36 | U76: 880297.5975
A77: %,FACCOUNT,TQGCACCTS,N383,N384 | B77: 62 | F77: Utah | H77: 14020519.54 | I77: 14020519.54 | J77: 13993509.2 | K77: 13985312.92 | L77: 14180494.6 | M77: 13894040.07 | N77: 13869699.99 | O77: 13869587.53 | P77: 13835819.39 | Q77: 13828884.39 | R77: 13828884.39 | S77: 13828884.39 | T77: 13828884.39 | U77: 13921694.86
B78: 63 | F78: Total | H78: 14935249.12 | I78: 14935249.12 | J78: 14908238.78 | K78: 14900042.5 | L78: 14828181.1 | M78: 14798160.89 | N78: 14773371.55 | O78: 14769503.57 | P78: 14734970.29 | Q78: 14722608.81 | R78: 14716638 | S78: 14716638 | T78: 14705364.75 | U78: 14801992.46
B79: 64
B80: 65 | D80: 387 | E80: Other Equipment
B81: =+B80+1 -> 66 | F81: Wyoming | H81: 52618.85 | I81: 52618.85 | J81: 52618.85 | K81: 56482.77 | L81: 52618.85 | M81: 52618.85 | N81: 52618.85 | O81: 52618.85 | P81: 76118.65 | Q81: 76118.65 | R81: 76118.65 | S81: 76118.65 | T81: 76118.65 | U81: 61753.26833
A82: ="%,FACCOUNT,TQGCACCTS,N"&(D80) -> %,FACCOUNT,TQGCACCTS,N387 | B82: 67 | F82: Utah | H82: 906448.28 | I82: 700967.14 | J82: 700967.14 | K82: 779169.25 | L82: 815969.38 | M82: 991700.26 | N82: 994458.45 | O82: 994458.45 | P82: 1158704.32 | Q82: 1160614.96 | R82: 1346450.74 | S82: 1349835.08 | T82: 1446124.18 | U82: 1014131.783
B83: 68 | F83: Total | H83: 959067.13 | I83: 753585.99 | J83: 753585.99 | K83: 835652.02 | L83: 868588.23 | M83: 1044319.11 | N83: 1047077.3 | O83: 1047077.3 | P83: 1234822.97 | Q83: 1236733.61 | R83: 1422569.39 | S83: 1425953.73 | T83: 1522242.83 | U83: 1075885.052
B84: =+B83+1 -> 69
B85: =+B84+1 -> 70 | D85: 388 | E85: Other Equipment
B86: =+B85+1 -> 71 | F86: Wyoming | H86: 7220 | I86: 7220 | J86: 7220 | K86: 7220 | L86: 7220 | M86: 7220 | N86: 7220 | O86: 7220 | P86: 7220 | Q86: 7220 | R86: 7220 | S86: 7220 | T86: 7220 | U86: 7220
A87: ="%,FACCOUNT,TQGCACCTS,N"&(D85) -> %,FACCOUNT,TQGCACCTS,N388 | B87: =+B86+1 -> 72 | F87: Utah | H87: 319038 | I87: 319038 | J87: 319038 | K87: 319038 | L87: 319038 | M87: 319038 | N87: 319038 | O87: 305101.6 | P87: 305101.6 | Q87: 286172.69 | R87: 290689.26 | S87: 290689.26 | T87: 290689.26 | U87: 308070.5033
B88: =+B87+1 -> 73 | F88: Total | H88: 326258 | I88: 326258 | J88: 326258 | K88: 326258 | L88: 326258 | M88: 326258 | N88: 326258 | O88: 312321.6 | P88: 312321.6 | Q88: 293392.69 | R88: 297909.26 | S88: 297909.26 | T88: 297909.26 | U88: 315290.5033
B89: =+B83+1 -> 69
B90: 70 | E90: Total Distribution Plant | H90: 1905841187 | I90: 1907802698 | J90: 1936179071 | K90: 1967285738 | L90: 1975818796 | M90: 1991640255 | N90: 1993674540 | O90: 2006845545 | P90: 2029300517 | Q90: 2037661857 | R90: 2047642478 | S90: 2052298548 | T90: 2060341205 | U90: 1994103437
B91: 71
B92: 72 | C92: General Plant
B93: 73 | D93: 389 | E93: Land & Land Rights
B94: 74 | F94: Distribution - Wyoming | H94: 11584.02 | I94: 11584.02 | J94: 11584.02 | K94: 11584.02 | L94: 11584.02 | M94: 11584.02 | N94: 11584.02 | O94: 11584.02 | P94: 11584.02 | Q94: 11584.02 | R94: 11584.02 | S94: 11584.02 | T94: 11584.02 | U94: 11584.02
A95: ="%,FACCOUNT,TQGCACCTS,N"&(D93) -> %,FACCOUNT,TQGCACCTS,N389 | B95: 75 | F95: Distribution - Utah | H95: 2707795.83 | I95: 2707795.83 | J95: 2707795.83 | K95: 2707795.83 | L95: 2707795.83 | M95: 2707795.83 | N95: 2707795.83 | O95: 2707795.83 | P95: 2707795.83 | Q95: 2707795.83 | R95: 3779827.51 | S95: 3779827.51 | T95: 3779827.51 | U95: 2931135.763
B96: 76 | F96: Total | H96: 2719379.85 | I96: 2719379.85 | J96: 2719379.85 | K96: 2719379.85 | L96: 2719379.85 | M96: 2719379.85 | N96: 2719379.85 | O96: 2719379.85 | P96: 2719379.85 | Q96: 2719379.85 | R96: 3791411.53 | S96: 3791411.53 | T96: 3791411.53 | U96: 2942719.783
B97: 77
B98: 78 | D98: 390 | E98: Structures & Improvements
B99: 79 | F99: Distribution - Wyoming | H99: 111749.71 | I99: 111749.71 | J99: 111749.71 | K99: 111749.71 | L99: 111749.71 | M99: 120846.7 | N99: 120846.7 | O99: 120846.7 | P99: 142988.51 | Q99: 142988.51 | R99: 142988.51 | S99: 144504.59 | T99: 144504.59 | U99: 125928.0175
A100: ="%,FACCOUNT,TQGCACCTS,N"&(D98) -> %,FACCOUNT,TQGCACCTS,N390 | B100: 80 | F100: Distribution - Utah | H100: 21955443.8 | I100: 21955970.75 | J100: 21960398.74 | K100: 21974813.48 | L100: 22021155.44 | M100: 22063883.04 | N100: 22063883.04 | O100: 22077663.79 | P100: 22228818.09 | Q100: 22264413.54 | R100: 22247453.11 | S100: 21551392.32 | T100: 21551392.32 | U100: 22013605.28
B101: 81 | F101: General | H101: 46168575.52 | I101: 46169039.52 | J101: 46169039.52 | K101: 46169039.52 | L101: 46172755.38 | M101: 46213378.45 | N101: 46213378.45 | O101: 46213378.45 | P101: 46427958.53 | Q101: 46556289.43 | R101: 46573249.86 | S101: 46578825.16 | T101: 46578825.16 | U101: 46319169.38
B102: 82 | F102: Total | H102: 68235769.03 | I102: 68236759.98 | J102: 68241187.97 | K102: 68255602.71 | L102: 68305660.53 | M102: 68398108.19 | N102: 68398108.19 | O102: 68411888.94 | P102: 68799765.13 | Q102: 68963691.48 | R102: 68963691.48 | S102: 68274722.07 | T102: 68274722.07 | U102: 68458702.68
B103: 83
B104: 84 | D104: 391 | E104: Office Furniture & Equipment
B105: 85 | F105: Distribution - Wyoming | H105: 283272.01 | I105: 283272.01 | J105: 283272.01 | K105: 283272.01 | L105: 283272.01 | M105: 283272.01 | N105: 170254.98 | O105: 283272.01 | P105: 207014.46 | Q105: 207014.46 | R105: 207014.46 | S105: 204157.96 | T105: 204157.96 | U105: 244900.2804
A106: ="%,FACCOUNT,TQGCACCTS,N"&(D104) -> %,FACCOUNT,TQGCACCTS,N391 | B106: 86 | F106: Distribution - Utah | H106: 16067529.74 | I106: 16093616.42 | J106: 15375719.03 | K106: 15408548.1 | L106: 15442308.61 | M106: 15584975.47 | N106: 15697992.5 | O106: 15587146.11 | P106: 13059346.36 | Q106: 13140266.52 | R106: 13239159.64 | S106: 12996334.77 | T106: 13466721.28 | U106: 14699378.25
B107: 87 | F107: General | H107: 45874301.14 | I107: 45877079.56 | J107: 45873456.48 | K107: 45927316.79 | L107: 46988364.44 | M107: 47798062.23 | N107: 47969805.63 | O107: 47969805.63 | P107: 48020097.33 | Q107: 48056563.41 | R107: 48313346.39 | S107: 47857540.93 | T107: 47857540.93 | U107: 47293113.32
B108: 88 | F108: Total | H108: 62225102.89 | I108: 62253967.99 | J108: 61532447.52 | K108: 61619136.9 | L108: 62713945.06 | M108: 63666309.71 | N108: 63838053.11 | O108: 63840223.75 | P108: 61286458.15 | Q108: 61403844.39 | R108: 61759520.49 | S108: 61058033.66 | T108: 61528420.17 | U108: 62237391.85
B109: 89
B110: 90 | D110: 392 | E110: Transportation Equipment
B111: 91 | F111: Distribution - Wyoming | H111: 1729375.27 | I111: 1998763.81 | J111: 2035375.15 | K111: 2035375.15 | L111: 2168792.07 | M111: 2168792.07 | N111: 2280449.68 | O111: 2167432.65 | P111: 2167432.65 | Q111: 2167432.65 | R111: 2233933.58 | S111: 2233933.58 | T111: 2305021.69 | U111: 2139575.96
A112: ="%,FACCOUNT,TQGCACCTS,N"&(D110) -> %,FACCOUNT,TQGCACCTS,N392 | B112: 92 | F112: Distribution - Utah | H112: 40725720.29 | I112: 41128133.28 | J112: 41722813.26 | K112: 41753243.97 | L112: 42562297.85 | M112: 43694185.34 | N112: 43360729.14 | O112: 43563343.76 | P112: 43544494.33 | Q112: 43658096.32 | R112: 43542625.08 | S112: 44123299.24 | T112: 44796813.28 | U112: 42951210.7
B113: 93 | F113: General | H113: 0 | I113: 0 | J113: 0 | K113: 0 | L113: 0 | M113: 0 | N113: 0 | O113: 0 | P113: 0 | Q113: 0 | R113: 0 | S113: 0 | T113: 0 | U113: 0
B114: 94 | F114: Total | H114: 42455095.56 | I114: 43126897.09 | J114: 43758188.41 | K114: 43788619.12 | L114: 44731089.92 | M114: 45862977.41 | N114: 45641178.82 | O114: 45730776.41 | P114: 45711926.98 | Q114: 45825528.97 | R114: 45776558.66 | S114: 46357232.82 | T114: 47101834.97 | U114: 45090786.66
B115: 95
B116: 96 | D116: 393 | E116: Stores Equipment
B117: 97 | F117: Distribution - Wyoming | H117: 12371.89 | I117: 12371.89 | J117: 12371.89 | K117: 12371.89 | L117: 12371.89 | M117: 12371.89 | N117: 12371.89 | O117: 12371.89 | P117: 12371.89 | Q117: 12371.89 | R117: 12371.89 | S117: 12371.89 | T117: 12371.89 | U117: 12371.89
A118: ="%,FACCOUNT,TQGCACCTS,N"&(D116) -> %,FACCOUNT,TQGCACCTS,N393 | B118: 98 | F118: Distribution - Utah | H118: 45026.02 | I118: 45026.02 | J118: 45026.02 | K118: 45026.02 | L118: 45026.02 | M118: 45026.02 | N118: 45026.02 | O118: 45026.02 | P118: 45026.02 | Q118: 45026.02 | R118: 45026.02 | S118: 45026.02 | T118: 45026.02 | U118: 45026.02
B119: 99 | F119: Total | H119: 57397.91 | I119: 57397.91 | J119: 57397.91 | K119: 57397.91 | L119: 57397.91 | M119: 57397.91 | N119: 57397.91 | O119: 57397.91 | P119: 57397.91 | Q119: 57397.91 | R119: 57397.91 | S119: 57397.91 | T119: 57397.91 | U119: 57397.91
B120: 100
B121: 101 | D121: 394 | E121: Tools, Shop & Garage Equipment
B122: 102 | F122: Distribution - Wyoming | H122: 2082758.46 | I122: 2088814.68 | J122: 2097310.91 | K122: 2107965.41 | L122: 2107965.41 | M122: 2109997.47 | N122: 2109997.47 | O122: 2136065.44 | P122: 2168041.2 | Q122: 2170719.34 | R122: 2169358.34 | S122: 2181233.93 | T122: 2182281.98 | U122: 2131665.818
A123: ="%,FACCOUNT,TQGCACCTS,N"&(D121) -> %,FACCOUNT,TQGCACCTS,N394 | B123: 103 | F123: Distribution - Utah | H123: 24748129.26 | I123: 25026510.77 | J123: 24930664.77 | K123: 24970584.86 | L123: 25022950.34 | M123: 25233681.27 | N123: 26063720.79 | O123: 26187058.4 | P123: 26287419.01 | Q123: 26674200.83 | R123: 26729337.66 | S123: 26847830.33 | T123: 26871575.46 | U123: 25815317.62
B124: 104 | F124: General | H124: 0 | I124: 0 | J124: 0 | K124: 0 | L124: 0 | M124: 0 | N124: 0 | O124: 0 | P124: 0 | Q124: 0 | R124: 0 | S124: 0 | T124: 0 | U124: 0
B125: 105 | F125: Total | H125: 26830887.72 | I125: 27115325.45 | J125: 27027975.68 | K125: 27078550.27 | L125: 27130915.75 | M125: 27343678.74 | N125: 28173718.26 | O125: 28323123.84 | P125: 28455460.21 | Q125: 28844920.17 | R125: 28898696 | S125: 29029064.26 | T125: 29053857.44 | U125: 27946983.43
B126: 106
B127: 107 | D127: 395 | E127: Laboratory Equipment
B128: 108 | F128: Distribution - Wyoming | H128: 0 | I128: 0 | J128: 0 | K128: 0 | L128: 0 | M128: 0 | N128: 0 | O128: 0 | P128: 0 | Q128: 0 | R128: 0 | S128: 0 | T128: 0 | U128: 0
A129: ="%,FACCOUNT,TQGCACCTS,N"&(D127) -> %,FACCOUNT,TQGCACCTS,N395 | B129: 109 | F129: Distribution - Utah | H129: 76245.36 | I129: 76245.36 | J129: 76245.36 | K129: 76245.36 | L129: 76245.36 | M129: 76245.36 | N129: 76245.36 | O129: 76245.36 | P129: 76245.36 | Q129: 76245.36 | R129: 76245.36 | S129: 76245.36 | T129: 76245.36 | U129: 76245.36
B130: 110 | F130: General | H130: 0 | I130: 0 | J130: 0 | K130: 0 | L130: 0 | M130: 0 | N130: 0 | O130: 0 | P130: 0 | Q130: 0 | R130: 0 | S130: 0 | T130: 0 | U130: 0
B131: 111 | F131: Total | H131: 76245.36 | I131: 76245.36 | J131: 76245.36 | K131: 76245.36 | L131: 76245.36 | M131: 76245.36 | N131: 76245.36 | O131: 76245.36 | P131: 76245.36 | Q131: 76245.36 | R131: 76245.36 | S131: 76245.36 | T131: 76245.36 | U131: 76245.36
B132: 112
B133: 113 | D133: 396 | E133: Power Operated Equipment
B134: 114 | F134: Distribution - Wyoming | H134: 695559.31 | I134: 695559.31 | J134: 695559.31 | K134: 695559.31 | L134: 695559.31 | M134: 695559.31 | N134: 695559.31 | O134: 695559.31 | P134: 695559.31 | Q134: 695559.31 | R134: 695559.31 | S134: 695559.31 | T134: 695559.31 | U134: 695559.31
A135: ="%,FACCOUNT,TQGCACCTS,N"&(D133) -> %,FACCOUNT,TQGCACCTS,N396 | B135: 115 | F135: Distribution - Utah | H135: 10108382 | I135: 10095643.35 | J135: 10095643.35 | K135: 10095993.35 | L135: 10723219.85 | M135: 10734078.66 | N135: 10734078.66 | O135: 10734078.66 | P135: 10740010.23 | Q135: 11088327.41 | R135: 11065119.16 | S135: 11262941.73 | T135: 11283888.19 | U135: 10672105.79
B136: 116 | F136: General | H136: 0 | I136: 0 | J136: 0 | K136: 0 | L136: 0 | M136: 0 | N136: 0 | O136: 0 | P136: 0 | Q136: 0 | R136: 0 | S136: 0 | T136: 0 | U136: 0
B137: 117 | F137: Total | H137: 10803941.31 | I137: 10791202.66 | J137: 10791202.66 | K137: 10791552.66 | L137: 11418779.16 | M137: 11429637.97 | N137: 11429637.97 | O137: 11429637.97 | P137: 11435569.54 | Q137: 11783886.72 | R137: 11760678.47 | S137: 11958501.04 | T137: 11979447.5 | U137: 11367665.1
B138: 118
B139: 119 | D139: 397 | E139: Communication Equipment
B140: 120 | F140: Distribution - Wyoming | H140: 73309.11 | I140: 73309.11 | J140: 73309.11 | K140: 73309.11 | L140: 73309.11 | M140: 73309.11 | N140: 73309.11 | O140: 73309.11 | P140: 49809.31 | Q140: 49809.31 | R140: 49809.31 | S140: 49809.31 | T140: 49809.31 | U140: 64496.685
A141: ="%,FACCOUNT,TQGCACCTS,N"&(D139) -> %,FACCOUNT,TQGCACCTS,N397 | B141: 121 | F141: Distribution - Utah | H141: 4874158.36 | I141: 5090656.64 | J141: 5184652.19 | K141: 5185613.75 | L141: 5186105.58 | M141: 5254778.85 | N141: 5254778.85 | O141: 5254778.85 | P141: 5254778.85 | Q141: 5257509.54 | R141: 5257509.54 | S141: 5257509.54 | T141: 5257509.54 | U141: 5208708.844
B142: 122 | F142: Total | H142: 4947467.47 | I142: 5163965.75 | J142: 5257961.3 | K142: 5258922.86 | L142: 5259414.69 | M142: 5328087.96 | N142: 5328087.96 | O142: 5328087.96 | P142: 5304588.16 | Q142: 5307318.85 | R142: 5307318.85 | S142: 5307318.85 | T142: 5307318.85 | U142: 5273205.529
B143: 123
B144: 124 | D144: 398 | E144: Miscellaneous Equipment
B145: =+B144+1 -> 125 | F145: Distribution - Wyoming | H145: 3863.92 | I145: 3863.92 | J145: 3863.92 | K145: 0 | L145: 3863.92 | M145: 3863.92 | N145: 3863.92 | O145: 3863.92 | P145: 3863.92 | Q145: 3863.92 | R145: 3863.92 | S145: 3863.92 | T145: 3863.92 | U145: 3541.926667
A146: ="%,FACCOUNT,TQGCACCTS,N"&(D144) -> %,FACCOUNT,TQGCACCTS,N398 | B146: 126 | F146: Distribution - Utah | H146: 246621.86 | I146: 246621.86 | J146: 246621.86 | K146: 250485.78 | L146: 264561.53 | M146: 265117.63 | N146: 265117.63 | O146: 265117.63 | P146: 267617.63 | Q146: 267617.63 | R146: 267617.63 | S146: 267617.63 | T146: 267617.63 | U146: 260936.1821
B147: 127 | F147: General | H147: 0 | I147: 0 | J147: 0 | K147: 0 | L147: 0 | M147: 0 | N147: 0 | O147: 0 | P147: 0 | Q147: 0 | R147: 0 | S147: 0 | T147: 0 | U147: 0
B148: 128 | F148: Total | H148: 250485.78 | I148: 250485.78 | J148: 250485.78 | K148: 250485.78 | L148: 268425.45 | M148: 268981.55 | N148: 268981.55 | O148: 268981.55 | P148: 271481.55 | Q148: 271481.55 | R148: 271481.55 | S148: 271481.55 | T148: 271481.55 | U148: 264478.1087
B149: 129
B150: 130 | D150: 399 | E150: Communication Equipment
B151: =+B150+1 -> 131 | F151: Distribution - Wyoming | H151: 0 | I151: 0 | J151: 0 | K151: 0 | L151: 0 | M151: 0 | N151: 0 | O151: 0 | P151: 0 | Q151: 0 | R151: 0 | S151: 0 | T151: 0 | U151: 0
A152: ="%,FACCOUNT,TQGCACCTS,N"&(D150) -> %,FACCOUNT,TQGCACCTS,N399 | B152: =+B151+1 -> 132 | F152: Distribution - Utah | H152: 52300 | I152: 52300 | J152: 52300 | K152: 52300 | L152: 52300 | M152: 52300 | N152: 52300 | O152: 52300 | P152: 52300 | Q152: 52300 | R152: 52300 | S152: 52300 | T152: 52300 | U152: 52300
B153: =+B152+1 -> 133 | F153: Total | H153: 52300 | I153: 52300 | J153: 52300 | K153: 52300 | L153: 52300 | M153: 52300 | N153: 52300 | O153: 52300 | P153: 52300 | Q153: 52300 | R153: 52300 | S153: 52300 | T153: 52300 | U153: 52300
B154: =+B148+1 -> 129
B155: 130 | E155: Total General Plant | H155: 218654072.9 | I155: 219843927.8 | J155: 219764772.4 | K155: 219948193.4 | L155: 222733553.7 | M155: 225203104.7 | N155: 225983089 | O155: 226238043.5 | P155: 224170572.8 | Q155: 225305995.2 | R155: 226715300.3 | S155: 226233709 | T155: 227494437.4 | U155: 223767876.4
B156: 131
B157: 132 | C157: 101 | D157: Gas Plant in Service
B158: 133 | E158: Production | H158: 79968136.83 | I158: 79968136.83 | J158: 79968136.83 | K158: 79968136.83 | L158: 79968136.83 | M158: 79968136.83 | N158: 79968136.83 | O158: 79968136.83 | P158: 79968136.83 | Q158: 79968136.83 | R158: 79968136.83 | S158: 79968136.83 | T158: 79968136.83 | U158: 79968136.83
B159: 134 | E159: Distribution - Wyoming | H159: 65339562.28 | I159: 65320973.97 | J159: 66052639.17 | K159: 66116600.5 | L159: 67247791.37 | M159: 67932416.51 | N159: 68149103.02 | O159: 68460759.35 | P159: 68957013.08 | Q159: 69030274.6 | R159: 69361462 | S159: 69723224.69 | T159: 69949163.3 | U159: 67833051.76
B160: 135 | E160: Distribution - Utah | H160: 1840571251 | I160: 1842551350 | J160: 1870196058 | K160: 1901238763 | L160: 1908640630 | M160: 1923777465 | N160: 1925595063 | O160: 1938454412 | P160: 1960413130 | Q160: 1968701209 | R160: 1978350642 | S160: 1982644949 | T160: 1990461668 | U160: 1926340011
B161: 136 | E161: General | H161: 218654072.9 | I161: 219843927.8 | J161: 219764772.4 | K161: 219948193.4 | L161: 222733553.7 | M161: 225203104.7 | N161: 225983089 | O161: 226238043.5 | P161: 224170572.8 | Q161: 225305995.2 | R161: 226715300.3 | S161: 226233709 | T161: 227494437.4 | U161: 223767876.4
B162: 137 | E162: Total | H162: 2204533023 | I162: 2207684388 | J162: 2235981606 | K162: 2267271694 | L162: 2278590112 | M162: 2296881123 | N162: 2299695392 | O162: 2313121352 | P162: 2333508853 | Q162: 2343005615 | R162: 2354395541 | S162: 2358570019 | T162: 2367873405 | U162: 2297909076
B163: 138
B164: 139 | C164: 105 | D164: Gas Plant Held for Future Use
B165: 140 | E165: Distribution - Utah | H165: 5036.83 | I165: 5036.83 | J165: 5036.83 | K165: 5036.83 | L165: 5036.83 | M165: 5036.83 | N165: 5036.83 | O165: 5036.83 | P165: 5036.83 | Q165: 5036.83 | R165: 5036.83 | S165: 5036.83 | T165: 5036.83 | U165: 5036.83
A166: %,FACCOUNT,TQGCACCTS,N105 | B166: 141 | E166: Total | H166: 5036.83 | I166: 5036.83 | J166: 5036.83 | K166: 5036.83 | L166: 5036.83 | M166: 5036.83 | N166: 5036.83 | O166: 5036.83 | P166: 5036.83 | Q166: 5036.83 | R166: 5036.83 | S166: 5036.83 | T166: 5036.83 | U166: 5036.83
B167: 142
B168: 143 | C168: 106 | D168: Completed Construction Not Classified - Gas
B169: 144 | E169: Production | H169: 0 | I169: 0 | J169: 0 | K169: 0 | L169: 0 | M169: 0 | N169: 0 | O169: 0 | P169: 0 | Q169: 0 | R169: 0 | S169: 0 | T169: 0 | U169: 0
B170: 145 | E170: Distribution - Wyoming | H170: 727697.83 | I170: 936734.75 | J170: 612911.41 | K170: 717114.37 | L170: 471167.12 | M170: 856031.42 | N170: 572535.89 | O170: 676781.89 | P170: 289153.15 | Q170: 667825.68 | R170: 956737.71 | S170: 1508262.04 | T170: 1797149.08 | U170: 793973.2404
B171: 146 | E171: Distribution - Utah | H171: 6621971.27 | I171: 6552554.19 | J171: 3589531.54 | K171: 8717793.74 | L171: 10080220.33 | M171: 11425022.55 | N171: 10040972.04 | O171: 10918710.18 | P171: 13760097.18 | Q171: 9522833.352 | R171: 7737766.732 | S171: 13862795.64 | T171: 8024612.832 | U171: 9460965.794
B172: 147 | E172: General | H172: 56308.06 | I172: 498002.79 | J172: 1833520.23 | K172: 2049390.4 | L172: 662094.31 | M172: 537703.08 | N172: 884000.03 | O172: 859857.44 | P172: 1053175.86 | Q172: 682449.07 | R172: 911863.45 | S172: 2598129.7 | T172: 1362529.49 | U172: 1106633.761
B173: 148 | E173: Total | H173: 7405977.16 | I173: 7987291.73 | J173: 6035963.18 | K173: 11484298.51 | L173: 11213481.76 | M173: 12818757.05 | N173: 11497507.96 | O173: 12455349.51 | P173: 15102426.19 | Q173: 10873108.1 | R173: 9606367.892 | S173: 17969187.38 | T173: 11184291.4 | U173: 11361572.8
B174: 149
B175: 150 | C175: 108 | D175: Accum Prov for Depreciation of Gas Plant in Service
B176: 151 | E176: Production | H176: -67270278.51 | I176: -67313568.07 | J176: -67341847.47 | K176: -67370368.33 | L176: -67417957.61 | M176: -67503017.46 | N176: -67590733.85 | O176: -67644222.63 | P176: -67710115.81 | Q176: -67699242.67 | R176: -67761597.82 | S176: -67858205.05 | T176: -67923165.79 | U176: -67567299.91
B177: 152 | E177: Distribution - Wyoming | H177: -25610221.65 | I177: -25754337.31 | J177: -25899869.45 | K177: -26045556.85 | L177: -25546039.79 | M177: -25589774.88 | N177: -25733361.7 | O177: -25806711.9 | P177: -25821750.13 | Q177: -25964083.76 | R177: -26093076.63 | S177: -26359258.43 | T177: -26437855.56 | U177: -25886488.29
B178: 153 | E178: Distribution - Utah | H178: -537333079.5 | I178: -539740116.7 | J178: -541534169.1 | K178: -543764303.1 | L178: -546909546.5 | M178: -549129921 | N178: -551531433.8 | O178: -553795236.3 | P178: -560148916.6 | Q178: -562448282.5 | R178: -564514505 | S178: -567065029.4 | T178: -568649430.7 | U178: -552797726.3
B179: 154 | E179: General | H179: -127441864.8 | I179: -128335775.1 | J179: -128517505.2 | K179: -129387867.8 | L179: -130171341.4 | M179: -130905115.7 | N179: -131581541.3 | O179: -132558919.6 | P179: -130642175.3 | Q179: -131506354.9 | R179: -132028799.5 | S179: -131453701.5 | T179: -132335862.6 | U179: -130581496.7
B180: 155 | E180: Total | H180: -757655444.5 | I180: -761143797.2 | J180: -763293391.2 | K180: -766568096.1 | L180: -770044885.2 | M180: -773127829 | N180: -776437070.6 | O180: -779805090.4 | P180: -784322957.8 | Q180: -787617963.8 | R180: -790397978.9 | S180: -792736194.4 | T180: -795346314.7 | U180: -776833011.2
B181: 156
B182: 157 | C182: 111 | D182: Accum Prov for Amortization of Gas Plant in Service
B183: 158 | E183: Production | H183: -6089142.24 | I183: -6090167.45 | J183: -6090799.73 | K183: -6091526.41 | L183: -6092752.27 | M183: -6094959.03 | N183: -6097235.33 | O183: -6098547.69 | P183: -6100221.03 | Q183: -6102015.92 | R183: -6103594.58 | S183: -6105396.1 | T183: -6107065.06 | U183: -6097109.933
B184: 159 | E184: Distribution - Wyoming | H184: -10883.08 | I184: -10883.08 | J184: -10883.08 | K184: -10883.08 | L184: -10883.08 | M184: -10883.08 | N184: -10883.08 | O184: -10883.08 | P184: -10883.08 | Q184: -10883.08 | R184: -10883.08 | S184: -10883.08 | T184: -10883.08 | U184: -10883.08
B185: 160 | E185: Distribution - Utah | H185: -58742.89 | I185: -58742.89 | J185: -58742.89 | K185: -58742.89 | L185: -58742.88 | M185: -58742.89 | N185: -58742.89 | O185: -58742.89 | P185: -58742.89 | Q185: -58742.88 | R185: -58742.88 | S185: -58742.88 | T185: -58742.88 | U185: -58742.88625
B186: 161 | E186: General | H186: 0 | I186: 0 | J186: 0 | K186: 0 | L186: 0 | M186: 0 | N186: 0 | O186: 0 | P186: 0 | Q186: 0 | R186: 0 | S186: 0 | T186: 0 | U186: 0
B187: 162 | E187: Total | H187: -6158768.21 | I187: -6159793.42 | J187: -6160425.7 | K187: -6161152.38 | L187: -6162378.23 | M187: -6164585 | N187: -6166861.3 | O187: -6168173.66 | P187: -6169847 | Q187: -6171641.88 | R187: -6173220.54 | S187: -6175022.06 | T187: -6176691.02 | U187: -6166735.899
B188: 163
B189: 164 | C189: 254 | D189: Other Regulatory Liabilities - ARC
B190: 165 | E190: Production | H190: 0 | I190: 0 | J190: 0 | K190: 0 | L190: 0 | M190: 0 | N190: 0 | O190: 0 | P190: 0 | Q190: 0 | R190: 0 | S190: 0 | T190: 0 | U190: 0
B191: 166 | E191: Distribution - Wyoming | H191: 0 | I191: 0 | J191: 0 | K191: -1873094.13 | L191: -1915245.14 | M191: -1939747.24 | N191: -1969165.41 | O191: -1992446.19 | P191: -2012121.13 | Q191: -2030096.24 | R191: -2030096.24 | S191: -2083090.31 | T191: -2111102.09 | U191: -1575054.423
B192: 167 | E192: Distribution - Utah | H192: 0 | I192: 0 | J192: 0 | K192: -57566301.87 | L192: -58099649.86 | M192: -58750167.76 | N192: -59536256.59 | O192: -60317643.81 | P192: -61138251.87 | Q192: -61829489.76 | R192: -62387505.76 | S192: -63198575.69 | T192: -64047364.91 | U192: -47903960.45
B193: 168 | E193: General | H193: -57507091 | I193: -58028227 | J193: -58875037 | K193: 0 | L193: 0 | M193: 0 | N193: 0 | O193: 0 | P193: 0 | Q193: 0 | R193: 0 | S193: 0 | T193: 0 | U193: -12138067.46
B194: 169 | E194: Total | H194: -57507091 | I194: -58028227 | J194: -58875037 | K194: -59439396 | L194: -60014895 | M194: -60689915 | N194: -61505422 | O194: -62310090 | P194: -63150373 | Q194: -63859586 | R194: -64417602 | S194: -65281666 | T194: -66158467 | U194: -61617082.33
B195: 170
B196: 171
B197: 172 | C197: System Net Utility Plant
B198: 173 | E198: Production | H198: 6608716.08 | I198: 6564401.31 | J198: 6535489.63 | K198: 6506242.09 | L198: 6457426.95 | M198: 6370160.34 | N198: 6280167.65 | O198: 6225366.51 | P198: 6157799.99 | Q198: 6166878.24 | R198: 6102944.43 | S198: 6004535.68 | T198: 5937905.98 | U198: 6303726.988
B199: 174 | E199: Distribution - Wyoming | H199: 40446155.38 | I199: 40492488.33 | J199: 40754798.05 | K199: 38904180.81 | L199: 40246790.48 | M199: 41248042.73 | N199: 41008228.72 | O199: 41327500.07 | P199: 41401411.89 | Q199: 41693037.2 | R199: 42184143.76 | S199: 42778254.91 | T199: 43186471.65 | U199: 42729653.63
B200: 175 | E200: Distribution - Utah | H200: 1309801399 | I200: 1309305044 | J200: 1332192677 | K200: 1308567209 | L200: 1313652911 | M200: 1327263656 | N200: 1324509602 | O200: 1335201499 | P200: 1352827316 | Q200: 1353887527 | R200: 1359127655 | S200: 1366185396 | T200: 1365730742 | U200: 1382949544
B201: 176 | E201: General | H201: 33761425.15 | I201: 33977928.52 | J201: 34205750.5 | K201: 92609716.03 | L201: 93224306.62 | M201: 94835692.06 | N201: 95285547.72 | O201: 94538981.42 | P201: 94581573.39 | Q201: 94482089.46 | R201: 95598364.25 | S201: 97378137.28 | T201: 96521104.24 | U201: 94293013.45
B202: 177 | E202: Total
... 92 more rows

Sheet RevRun Fcst
D3: TEMPERATURE ADJUSTED INPUT DATA FROM REVRUN SYSTEM
D4: 8/3/2015
T7: 12-Month
B8: Rate Class | D8: Description | H8: Oct15 | I8: Nov15 | J8: Dec15 | K8: Jan16 | L8: Feb16 | M8: Mar16 | N8: Apr16 | O8: May16 | P8: Jun16 | Q8: Jul16 | R8: Aug16 | S8: Sep16 | T8: Total
B10: UTILITY OPERATING REVENUE
B11: TARIFF DTH SALES AND REVENUE
A13: 13 | B13: Utah | H13: =MONTH(H8) -> 10 | I13: =MONTH(I8) -> 11 | J13: 12 | K13: 1 | L13: 2 | M13: 3 | N13: 4 | O13: 5 | P13: 6 | Q13: 7 | R13: 8 | S13: 9
A14: 14 | C14: GS | D14: Distribution Non-Gas Rev | H14: 16035089.98 | I14: 30699730.94 | J14: 42299463.55 | K14: 47574294.68 | L14: 41755044.56 | M14: 32581033.93 | N14: 19854879.32 | O14: 13921661.8 | P14: 11813185.3 | Q14: 10572727.46 | R14: 10533263.46 | S14: 12148868.26 | T14: 289789243.2
A15: 15
A16: 16 | D16: Supplier Non-Gas Revenue | H16: 3393849.4 | I16: 13595184.97 | J16: 20398118.27 | K16: 23520470.05 | L16: 20047631.56 | M16: 14641370.69 | N16: 4817407.1 | O16: 2541635.68 | P16: 1736668.38 | Q16: 1268761.72 | R16: 1249906.92 | S16: 1863342.73 | T16: 109074347.5
A17: 17
A18: 18 | D18: Commodity Revenue | H18: 24641151.44 | I18: 46344819.34 | J18: 69535435.4 | K18: 80179264.8 | L18: 68340656.28 | M18: 49911176.7 | N18: 34976937.29 | O18: 18453626.62 | P18: 12609135.92 | Q18: 9211884.76 | R18: 9074988.86 | S18: 13528859.09 | T18: 436807936.5
A19: 19 | D19: Total Revenue | H19: 44070090.82 | I19: 90639735.25 | J19: 132233017.2 | K19: 151274029.5 | L19: 130143332.4 | M19: 97133581.32 | N19: 59649223.71 | O19: 34916924.1 | P19: 26158989.6 | Q19: 21053373.94 | R19: 20858159.24 | S19: 27541070.08 | T19: 835671527.2
A20: 20 | D20: # of Customers | H20: 950830 | I20: 953888 | J20: 957432 | K20: 961723 | L20: 963105 | M20: 965348 | N20: 965583 | O20: 966203 | P20: 966459 | Q20: 964834 | R20: 966173 | S20: 966903 | T20: 962373.4167
A21: 21 | D21: Total Dth | H21: 5769694 | I21: 10851580 | J21: 16281633 | K21: 18773872 | L21: 16001877 | M21: 11686638 | N21: 8189805 | O21: 4320893 | P21: 2952413 | Q21: 2156951 | R21: 2124897 | S21: 3167765 | T21: 102278018
A22: 22
A23: 23 | C23: GS-C | D23: Distribution Non-Gas Rev | T23: 0
A24: 24
A25: 25 | D25: Supplier Non-Gas Revenue | T25: 0
A26: 26
A27: 27 | D27: Commodity Revenue | T27: 0
A28: 28 | D28: Total Revenue | T28: 0
A29: 29 | D29: # of Customers
A30: 30 | D30: Total Dth | T30: 0
A31: 31
A32: 32 | C32: GSS | D32: Distribution Non-Gas Rev | H32: 0 | I32: 0 | J32: 0 | K32: 0 | L32: 0 | M32: 0 | N32: 0 | O32: 0 | P32: 0 | Q32: 0 | R32: 0 | S32: 0 | T32: 0
A33: 33 | H33: 0 | I33: 0 | J33: 0 | K33: 0 | L33: 0 | M33: 0 | N33: 0 | O33: 0 | P33: 0 | Q33: 0 | R33: 0 | S33: 0
A34: 34 | D34: Supplier Non-Gas Revenue | H34: 0 | I34: 0 | J34: 0 | K34: 0 | L34: 0 | M34: 0 | N34: 0 | O34: 0 | P34: 0 | Q34: 0 | R34: 0 | S34: 0 | T34: 0
A35: 35 | H35: 0 | I35: 0 | J35: 0 | K35: 0 | L35: 0 | M35: 0 | N35: 0 | O35: 0 | P35: 0 | Q35: 0 | R35: 0 | S35: 0
A36: 36 | D36: Commodity Revenue | H36: 0 | I36: 0 | J36: 0 | K36: 0 | L36: 0 | M36: 0 | N36: 0 | O36: 0 | P36: 0 | Q36: 0 | R36: 0 | S36: 0 | T36: 0
A37: 37 | D37: Total Revenue | H37: 0 | I37: 0 | J37: 0 | K37: 0 | L37: 0 | M37: 0 | N37: 0 | O37: 0 | P37: 0 | Q37: 0 | R37: 0 | S37: 0 | T37: 0
A38: 38 | D38: # of Customers | H38: 0 | I38: 0 | J38: 0 | K38: 0 | L38: 0 | M38: 0 | N38: 0 | O38: 0 | P38: 0 | Q38: 0 | R38: 0 | S38: 0 | T38: 0
A39: 39 | D39: Total Dth | H39: 0 | I39: 0 | J39: 0 | K39: 0 | L39: 0 | M39: 0 | N39: 0 | O39: 0 | P39: 0 | Q39: 0 | R39: 0 | S39: 0 | T39: 0
A40: 40
A41: 41 | C41: F-S | D41: Distribution Non-Gas Rev | H41: 220950.12 | I41: 455014.96 | J41: 480401.43 | K41: 496428.32 | L41: 460051.23 | M41: 438782.78 | N41: 224114.84 | O41: 208432.88 | P41: 211371.63 | Q41: 201831.44 | R41: 196848.7 | S41: 208082.14 | T41: 3802310.47
A42: 42
A43: 43 | D43: Supplier Non-Gas Revenue | H43: 219631.94 | I43: 567608.98 | J43: 641485.99 | K43: 670388.86 | L43: 604964.18 | M43: 567017.18 | N43: 242337.23 | O43: 207618.71 | P43: 199563.04 | Q43: 180016.5 | R43: 169985 | S43: 192773.22 | T43: 4463390.83
A44: 44
A45: 45 | D45: Commodity Revenue | H45: 1594644.65 | I45: 1986673.28 | J45: 2245248.27 | K45: 2346410.46 | L45: 2117419.24 | M45: 1984601.95 | N45: 1759497.15 | O45: 1507422.31 | P45: 1448933.85 | Q45: 1307015.49 | R45: 1234181.44 | S45: 1399636.11 | T45: 20931684.2
A46: 46 | D46: Total Revenue | H46: 2035226.71 | I46: 3009297.22 | J46: 3367135.69 | K46: 3513227.64 | L46: 3182434.65 | M46: 2990401.91 | N46: 2225949.22 | O46: 1923473.9 | P46: 1859868.52 | Q46: 1688863.43 | R46: 1601015.14 | S46: 1800491.47 | T46: 29197385.5
A47: 47 | D47: # of Customers | H47: 591 | I47: 591 | J47: 591 | K47: 591 | L47: 591 | M47: 591 | N47: 591 | O47: 591 | P47: 591 | Q47: 591 | R47: 591 | S47: 591 | T47: 591
A48: 48 | D48: Total Dth | H48: 373384 | I48: 465177 | J48: 525722 | K48: 549409 | L48: 495791 | M48: 464692 | N48: 411984 | O48: 352961 | P48: 339266 | Q48: 306036 | R48: 288982 | S48: 327723 | T48: 4901127
A49: 49
A50: 50 | C50: F-3 | D50: Distribution Non-Gas Rev | H50: 0 | I50: 0 | J50: 0 | K50: 0 | L50: 0 | M50: 0 | N50: 0 | O50: 0 | P50: 0 | Q50: 0 | R50: 0 | S50: 0 | T50: 0
A51: 51 | D51: Supplier Non-Gas Revenue
A52: 52 | D52: Supplier Non-Gas Demand Revenue | H52: 0 | I52: 0 | J52: 0 | K52: 0 | L52: 0 | M52: 0 | N52: 0 | O52: 0 | P52: 0 | Q52: 0 | R52: 0 | S52: 0 | T52: 0
A53: 53 | D53: Commodity Tariff Revenue
A54: 54 | D54: Commodity Demand Revenue | H54: 0 | I54: 0 | J54: 0 | K54: 0 | L54: 0 | M54: 0 | N54: 0 | O54: 0 | P54: 0 | Q54: 0 | R54: 0 | S54: 0 | T54: 0
A55: 55 | D55: Total Revenue | H55: 0 | I55: 0 | J55: 0 | K55: 0 | L55: 0 | M55: 0 | N55: 0 | O55: 0 | P55: 0 | Q55: 0 | R55: 0 | S55: 0 | T55: 0
A56: 56 | D56: # of Customers | H56: 0 | I56: 0 | J56: 0 | K56: 0 | L56: 0 | M56: 0 | N56: 0 | O56: 0 | P56: 0 | Q56: 0 | R56: 0 | S56: 0 | T56: 0
A57: 57 | D57: Total Sales Dth | H57: 0 | I57: 0 | J57: 0 | K57: 0 | L57: 0 | M57: 0 | N57: 0 | O57: 0 | P57: 0 | Q57: 0 | R57: 0 | S57: 0 | T57: 0
A58: 58
A59: 59 | C59: NGV | D59: Distribution Non-Gas Rev | H59: 302694.09 | I59: 250905.59 | J59: 259586.56 | K59: 223514.06 | L59: 262256.34 | M59: 265443.58 | N59: 362899.33 | O59: 303954.68 | P59: 285359.7 | Q59: 295422.34 | R59: 307163.93 | S59: 293055.31 | T59: 3412255.51
A60: 60
A61: 61 | D61: Supplier Non-Gas Revenue | H61: 49713 | I61: 41207.51 | J61: 42633.23 | K61: 36708.86 | L61: 43071.7 | M61: 43595.16 | N61: 59600.81 | O61: 49920.03 | P61: 46866.08 | Q61: 48518.72 | R61: 50447.11 | S61: 48129.97 | T61: 560412.18
A62: 62
A63: 63 | D63: Commodity Revenue | H63: 234842.2 | I63: 194662.61 | J63: 201397.64 | K63: 173411.16 | L63: 203468.98 | M63: 205941.76 | N63: 281551.83 | O63: 235820.21 | P63: 221393.48 | Q63: 229200.49 | R63: 238310.08 | S63: 227364.05 | T63: 2647364.49
A64: 64 | D64: Total Revenue | H64: 587249.29 | I64: 486775.71 | J64: 503617.43 | K64: 433634.08 | L64: 508797.02 | M64: 514980.5 | N64: 704051.97 | O64: 589694.92 | P64: 553619.26 | Q64: 573141.55 | R64: 595921.12 | S64: 568549.33 | T64: 6620032.18
A65: 65 | D65: # of Customers | H65: 1 | I65: 1 | J65: 1 | K65: 1 | L65: 1 | M65: 1 | N65: 1 | O65: 1 | P65: 1 | Q65: 1 | R65: 1 | S65: 1 | T65: 1
A66: 66 | D66: Total Dth | H66: 54988 | I66: 45580 | J66: 47157 | K66: 40604 | L66: 47642 | M66: 48221 | N66: 65925 | O66: 55217 | P66: 51839 | Q66: 53667 | R66: 55800 | S66: 53237 | T66: 619877
A67: 67
A68: 68 | C68: F-4 | D68: Distribution Non-Gas Rev | H68: 0 | I68: 0 | J68: 0 | K68: 0 | L68: 0 | M68: 0 | N68: 0 | O68: 0 | P68: 0 | Q68: 0 | R68: 0 | S68: 0 | T68: 0
A69: 69
A70: 70 | D70: Supplier Non-Gas Revenue | H70: 0 | I70: 0 | J70: 0 | K70: 0 | L70: 0 | M70: 0 | N70: 0 | O70: 0 | P70: 0 | Q70: 0 | R70: 0 | S70: 0 | T70: 0
A71: 71
A72: 72 | D72: Commodity Revenue | H72: 0 | I72: 0 | J72: 0 | K72: 0 | L72: 0 | M72: 0 | N72: 0 | O72: 0 | P72: 0 | Q72: 0 | R72: 0 | S72: 0 | T72: 0
A73: 73 | D73: Total Revenue | H73: 0 | I73: 0 | J73: 0 | K73: 0 | L73: 0 | M73: 0 | N73: 0 | O73: 0 | P73: 0 | Q73: 0 | R73: 0 | S73: 0 | T73: 0
A74: 74 | D74: # of Customers | H74: 0 | I74: 0 | J74: 0 | K74: 0 | L74: 0 | M74: 0 | N74: 0 | O74: 0 | P74: 0 | Q74: 0 | R74: 0 | S74: 0 | T74: 0
A75: 75 | D75: Total Dth | H75: 0 | I75: 0 | J75: 0 | K75: 0 | L75: 0 | M75: 0 | N75: 0 | O75: 0 | P75: 0 | Q75: 0 | R75: 0 | S75: 0 | T75: 0
A76: 76
A77: 77 | C77: I-2 | D77: Distribution Non-Gas Rev | H77: 0 | I77: 0 | J77: 0 | K77: 0 | L77: 0 | M77: 0 | N77: 0 | O77: 0 | P77: 0 | Q77: 0 | R77: 0 | S77: 0 | T77: 0
A78: 78
A79: 79 | D79: Supplier Non-Gas Revenue | H79: 0 | I79: 0 | J79: 0 | K79: 0 | L79: 0 | M79: 0 | N79: 0 | O79: 0 | P79: 0 | Q79: 0 | R79: 0 | S79: 0 | T79: 0
A80: 80
A81: 81 | D81: Commodity Revenue | H81: 0 | I81: 0 | J81: 0 | K81: 0 | L81: 0 | M81: 0 | N81: 0 | O81: 0 | P81: 0 | Q81: 0 | R81: 0 | S81: 0 | T81: 0
A82: 82 | D82: Total Revenue | H82: 0 | I82: 0 | J82: 0 | K82: 0 | L82: 0 | M82: 0 | N82: 0 | O82: 0 | P82: 0 | Q82: 0 | R82: 0 | S82: 0 | T82: 0
A83: 83 | D83: # of Customers
A84: 84 | D84: Total Dth | H84: 0 | I84: 0 | J84: 0 | K84: 0 | L84: 0 | M84: 0 | N84: 0 | O84: 0 | P84: 0 | Q84: 0 | R84: 0 | S84: 0 | T84: 0
A85: 85
A86: 104 | C86: ISE | D86: Distribution Non-Gas Rev | H86: 0 | I86: 0 | J86: 0 | K86: 0 | L86: 0 | M86: 0 | N86: 0 | O86: 0 | P86: 0 | Q86: 0 | R86: 0 | S86: 0 | T86: 0
A87: 105
A88: 106 | D88: Supplier Non-Gas Revenue | H88: 0 | I88: 0 | J88: 0 | K88: 0 | L88: 0 | M88: 0 | N88: 0 | O88: 0 | P88: 0 | Q88: 0 | R88: 0 | S88: 0 | T88: 0
A89: 107
A90: 108 | D90: Commodity Revenue | H90: 0 | I90: 0 | J90: 0 | K90: 0 | L90: 0 | M90: 0 | N90: 0 | O90: 0 | P90: 0 | Q90: 0 | R90: 0 | S90: 0 | T90: 0
A91: 109 | D91: Total Revenue | H91: 0 | I91: 0 | J91: 0 | K91: 0 | L91: 0 | M91: 0 | N91: 0 | O91: 0 | P91: 0 | Q91: 0 | R91: 0 | S91: 0 | T91: 0
A92: 110 | D92: # of Customers | H92: 0 | I92: 0 | J92: 0 | K92: 0 | L92: 0 | M92: 0 | N92: 0 | O92: 0 | P92: 0 | Q92: 0 | R92: 0 | S92: 0 | T92: 0
A93: 111 | D93: Total Dth | H93: 0 | I93: 0 | J93: 0 | K93: 0 | L93: 0 | M93: 0 | N93: 0 | O93: 0 | P93: 0 | Q93: 0 | R93: 0 | S93: 0 | T93: 0
A94: 112
A95: 86 | C95: IS | D95: Distribution Non-Gas Rev | H95: 51476.68 | I95: 55185.91 | J95: 50853.08 | K95: 49194.42 | L95: 42664.97 | M95: 41629.36 | N95: 44678.03 | O95: 51375.76 | P95: 50697.9 | Q95: 51759.17 | R95: 46642.57 | S95: 50358.32 | T95: 586516.17
A96: 87
A97: 88 | D97: Supplier Non-Gas Revenue | H97: 20158.99 | I97: 23889.55 | J97: 19569.98 | K97: 18049.22 | L97: 12588.73 | M97: 11784.07 | N97: 14195.71 | O97: 20062.92 | P97: 19424.97 | Q97: 20428.94 | R97: 15825.63 | S97: 19109.67 | T97: 215088.38
A98: 89
A99: 90 | D99: Commodity Revenue | H99: 480305.86 | I99: 569189.54 | J99: 466272.04 | K99: 430038.65 | L99: 299937.58 | M99: 280766 | N99: 338225.21 | O99: 478016.72 | P99: 462816.97 | Q99: 486737.67 | R99: 377059.51 | S99: 455304.65 | T99: 5124670.4
A100: 91 | D100: Total Revenue | H100: 551941.53 | I100: 648265 | J100: 536695.1 | K100: 497282.29 | L100: 355191.28 | M100: 334179.43 | N100: 397098.95 | O100: 549455.4 | P100: 532939.84 | Q100: 558925.78 | R100: 439527.71 | S100: 524772.64 | T100: 5926274.95
A101: 92 | D101: # of Customers | H101: 46 | I101: 46 | J101: 46 | K101: 46 | L101: 46 | M101: 46 | N101: 46 | O101: 46 | P101: 46 | Q101: 46 | R101: 46 | S101: 46 | T101: 46
A102: 93 | D102: Total Dth | H102: 112463 | I102: 133275 | J102: 109177 | K102: 100693 | L102: 70230 | M102: 65741 | N102: 79195 | O102: 111927 | P102: 108368 | Q102: 113969 | R102: 88288 | S102: 106609 | T102: 1199935
A103: 94
A104: 95 | C104: IS-2 | D104: Distribution Non-Gas Rev | H104: 0 | I104: 0 | J104: 0 | K104: 0 | L104: 0 | M104: 0 | N104: 0 | O104: 0 | P104: 0 | Q104: 0 | R104: 0 | S104: 0 | T104: 0
A105: 96
A106: 97 | D106: Supplier Non-Gas Revenue | H106: 0 | I106: 0 | J106: 0 | K106: 0 | L106: 0 | M106: 0 | N106: 0 | O106: 0 | P106: 0 | Q106: 0 | R106: 0 | S106: 0 | T106: 0
A107: 98
A108: 99 | D108: Commodity Revenue | H108: 0 | I108: 0 | J108: 0 | K108: 0 | L108: 0 | M108: 0 | N108: 0 | O108: 0 | P108: 0 | Q108: 0 | R108: 0 | S108: 0 | T108: 0
A109: 100 | D109: Total Revenue | H109: 0 | I109: 0 | J109: 0 | K109: 0 | L109: 0 | M109: 0 | N109: 0 | O109: 0 | P109: 0 | Q109: 0 | R109: 0 | S109: 0 | T109: 0
A110: 101 | D110: # of Customers | H110: 0 | I110: 0 | J110: 0 | K110: 0 | L110: 0 | M110: 0 | N110: 0 | O110: 0 | P110: 0 | Q110: 0 | R110: 0 | S110: 0 | T110: 0
A111: 102 | D111: Total Dth | H111: 0 | I111: 0 | J111: 0 | K111: 0 | L111: 0 | M111: 0 | N111: 0 | O111: 0 | P111: 0 | Q111: 0 | R111: 0 | S111: 0 | T111: 0
A112: 103 | H112: 0 | I112: 0 | J112: 0 | K112: 0 | L112: 0 | M112: 0 | N112: 0 | O112: 0 | P112: 0 | Q112: 0 | R112: 0 | S112: 0
A113: 113 | C113: FT-1L | D113: Distribution Non-Gas Rev | H113: 0 | I113: 0 | J113: 0 | K113: 0 | L113: 0 | M113: 0 | N113: 0 | O113: 0 | P113: 0 | Q113: 0 | R113: 0 | S113: 0 | T113: 0
A114: 114 | H114: 0 | I114: 0 | J114: 0 | K114: 0 | L114: 0 | M114: 0 | N114: 0 | O114: 0 | P114: 0 | Q114: 0 | R114: 0 | S114: 0
A115: 115 | D115: Supplier Non-Gas Revenue | H115: 0 | I115: 0 | J115: 0 | K115: 0 | L115: 0 | M115: 0 | N115: 0 | O115: 0 | P115: 0 | Q115: 0 | R115: 0 | S115: 0 | T115: 0
A116: 116 | H116: 0 | I116: 0 | J116: 0 | K116: 0 | L116: 0 | M116: 0 | N116: 0 | O116: 0 | P116: 0 | Q116: 0 | R116: 0 | S116: 0
A117: 117 | D117: Commodity Revenue | H117: 0 | I117: 0 | J117: 0 | K117: 0 | L117: 0 | M117: 0 | N117: 0 | O117: 0 | P117: 0 | Q117: 0 | R117: 0 | S117: 0 | T117: 0
A118: 118 | D118: Total Revenue | H118: 0 | I118: 0 | J118: 0 | K118: 0 | L118: 0 | M118: 0 | N118: 0 | O118: 0 | P118: 0 | Q118: 0 | R118: 0 | S118: 0 | T118: 0
A119: 119 | D119: # of Customers | H119: 0 | I119: 0 | J119: 0 | K119: 0 | L119: 0 | M119: 0 | N119: 0 | O119: 0 | P119: 0 | Q119: 0 | R119: 0 | S119: 0 | T119: 0
A120: 120 | D120: Total Dth | H120: 0 | I120: 0 | J120: 0 | K120: 0 | L120: 0 | M120: 0 | N120: 0 | O120: 0 | P120: 0 | Q120: 0 | R120: 0 | S120: 0 | T120: 0
A121: 121
A122: 122 | C122: FT-1 | D122: Distribution Non-Gas Rev | H122: 499842.67 | I122: 534955.42 | J122: 495706.81 | K122: 550231.46 | L122: 518045 | M122: 535818.12 | N122: 482848.14 | O122: 487855.04 | P122: 517925.33 | Q122: 576195.13 | R122: 556102.93 | S122: 495925.58 | T122: 6251451.63
A123: 123
A124: 124 | D124: Supplier Non-Gas Revenue | H124: 0 | I124: 0 | J124: 0 | K124: 0 | L124: 0 | M124: 0 | N124: 0 | O124: 0 | P124: 0 | Q124: 0 | R124: 0 | S124: 0 | T124: 0
A125: 125
A126: 126 | D126: Commodity Revenue | H126: 0 | I126: 0 | J126: 0 | K126: 0 | L126: 0 | M126: 0 | N126: 0 | O126: 0 | P126: 0 | Q126: 0 | R126: 0 | S126: 0 | T126: 0
A127: 127 | D127: Total Revenue | H127: 499842.67 | I127: 534955.42 | J127: 495706.81 | K127: 550231.46 | L127: 518045 | M127: 535818.12 | N127: 482848.14 | O127: 487855.04 | P127: 517925.33 | Q127: 576195.13 | R127: 556102.93 | S127: 495925.58 | T127: 6251451.63
A128: 128 | D128: # of Customers | H128: 8 | I128: 8 | J128: 8 | K128: 8 | L128: 8 | M128: 8 | N128: 8 | O128: 8 | P128: 8 | Q128: 8 | R128: 8 | S128: 8 | T128: 8
A129: 129 | D129: Total Dth | H129: 3616768 | I129: 3812288 | J129: 3596647 | K129: 3886958 | L129: 3686525 | M129: 3942409 | N129: 3411896 | O129: 3279900 | P129: 4088678 | Q129: 4555439 | R129: 4108379 | S129: 3419528 | T129: 45405415
A130: 130
A131: 131 | C131: FT-2 | D131: Distribution Non-Gas Rev | H131: 0 | I131: 0 | J131: 0 | K131: 0 | L131: 0 | M131: 0 | N131: 0 | O131: 0 | P131: 0 | Q131: 0 | R131: 0 | S131: 0 | T131: 0
A132: 132 | H132: 0 | I132: 0 | J132: 0 | K132: 0 | L132: 0 | M132: 0 | N132: 0 | O132: 0 | P132: 0 | Q132: 0 | R132: 0 | S132: 0
A133: 133 | D133: Supplier Non-Gas Revenue | H133: 0 | I133: 0 | J133: 0 | K133: 0 | L133: 0 | M133: 0 | N133: 0 | O133: 0 | P133: 0 | Q133: 0 | R133: 0 | S133: 0 | T133: 0
A134: 134 | H134: 0 | I134: 0 | J134: 0 | K134: 0 | L134: 0 | M134: 0 | N134: 0 | O134: 0 | P134: 0 | Q134: 0 | R134: 0 | S134: 0
A135: 135 | D135: Commodity Revenue | H135: 0 | I135: 0 | J135: 0 | K135: 0 | L135: 0 | M135: 0 | N135: 0 | O135: 0 | P135: 0 | Q135: 0 | R135: 0 | S135: 0 | T135: 0
A136: 136 | D136: Total Revenue | H136: 0 | I136: 0 | J136: 0 | K136: 0 | L136: 0 | M136: 0 | N136: 0 | O136: 0 | P136: 0 | Q136: 0 | R136: 0 | S136: 0 | T136: 0
A137: 137 | D137: # of Customers | H137: 0 | I137: 0 | J137: 0 | K137: 0 | L137: 0 | M137: 0 | N137: 0 | O137: 0 | P137: 0 | Q137: 0 | R137: 0 | S137: 0 | T137: 0
A138: 138 | D138: Total Dth | H138: 0 | I138: 0 | J138: 0 | K138: 0 | L138: 0 | M138: 0 | N138: 0 | O138: 0 | P138: 0 | Q138: 0 | R138: 0 | S138: 0 | T138: 0
A139: 139
A140: 140 | C140: MT | D140: Distribution Non-Gas Rev | H140: 1990.1 | I140: 3068.35 | J140: 4038.78 | K140: 4346.08 | L140: 3612.19 | M140: 3086.55 | N140: 2498.22 | O140: 2074.33 | P140: 1800.05 | Q140: 1835.1 | R140: 2040.63 | S140: 1934.83 | T140: 32325.21
A141: 141
A142: 142 | D142: Supplier Non-Gas Revenue | H142: 106.38 | I142: 202.38 | J142: 288.78 | K142: 316.14 | L142: 250.8 | M142: 204 | N142: 151.62 | O142: 113.88 | P142: 89.46 | Q142: 92.58 | R142: 110.88 | S142: 101.46 | T142: 2028.36
A143: 143
A144: 144 | D144: Commodity Revenue | H144: 0 | I144: 0 | J144: 0 | K144: 0 | L144: 0 | M144: 0 | N144: 0 | O144: 0 | P144: 0 | Q144: 0 | R144: 0 | S144: 0 | T144: 0
A145: 145 | D145: Total Revenue | H145: 2096.48 | I145: 3270.73 | J145: 4327.56 | K145: 4662.22 | L145: 3862.99 | M145: 3290.55 | N145: 2649.84 | O145: 2188.21 | P145: 1889.51 | Q145: 1927.68 | R145: 2151.51 | S145: 2036.29 | T145: 34353.57
A146: 146 | D146: # of Customers | H146: 1 | I146: 1 | J146: 1 | K146: 1 | L146: 1 | M146: 1 | N146: 1 | O146: 1 | P146: 1 | Q146: 1 | R146: 1 | S146: 1 | T146: 1
A147: 147 | D147: Total Dth | H147: 1773 | I147: 3373 | J147: 4813 | K147: 5269 | L147: 4180 | M147: 3400 | N147: 2527 | O147: 1898 | P147: 1491 | Q147: 1543 | R147: 1848 | S147: 1691 | T147: 33806
A148: 148
A149: 149 | C149: FT-E | D149: Distribution Non-Gas Rev | H149: 0 | I149: 0 | J149: 0 | K149: 0 | L149: 0 | M149: 0 | N149: 0 | O149: 0 | P149: 0 | Q149: 0 | R149: 0 | S149: 0 | T149: 0
A150: 150
A151: 151 | D151: Supplier Non-Gas Revenue | H151: 0 | I151: 0 | J151: 0 | K151: 0 | L151: 0 | M151: 0 | N151: 0 | O151: 0 | P151: 0 | Q151: 0 | R151: 0 | S151: 0 | T151: 0
A152: 152
A153: 153 | D153: Commodity Revenue | H153: 0 | I153: 0 | J153: 0 | K153: 0 | L153: 0 | M153: 0 | N153: 0 | O153: 0 | P153: 0 | Q153: 0 | R153: 0 | S153: 0 | T153: 0
A154: 154 | D154: Total Revenue | H154: 0 | I154: 0 | J154: 0 | K154: 0 | L154: 0 | M154: 0 | N154: 0 | O154: 0 | P154: 0 | Q154: 0 | R154: 0 | S154: 0 | T154: 0
A155: 155 | D155: # of Customers | H155: 0 | I155: 0 | J155: 0 | K155: 0 | L155: 0 | M155: 0 | N155: 0 | O155: 0 | P155: 0 | Q155: 0 | R155: 0 | S155: 0 | T155: 0
A156: 156 | D156: Total Dth | H156: 0 | I156: 0 | J156: 0 | K156: 0 | L156: 0 | M156: 0 | N156: 0 | O156: 0 | P156: 0 | Q156: 0 | R156: 0 | S156: 0 | T156: 0
A157: 157
A158: 158 | C158: TS | D158: Distribution Non-Gas Rev | H158: 1146124.61 | I158: 1265513.67 | J158: 1316665.75 | K158: 1337474.65 | L158: 1226199.94 | M158: 1223772.31 | N158: 1183923.98 | O158: 1154065.6 | P158: 1157994.61 | Q158: 1164851.89 | R158: 1167125.77 | S158: 1113333 | T158: 14457045.78
A159: 159
A160: 160 | D160: Supplier Non-Gas Revenue | H160: 0 | I160: 0 | J160: 0 | K160: 0 | L160: 0 | M160: 0 | N160: 0 | O160: 0 | P160: 0 | Q160: 0 | R160: 0 | S160: 0 | T160: 0
A161: 161
A162: 162 | D162: Commodity Revenue | H162: 0 | I162: 0 | J162: 0 | K162: 0 | L162: 0 | M162: 0 | N162: 0 | O162: 0 | P162: 0 | Q162: 0 | R162: 0 | S162: 0 | T162: 0
A163: 163 | D163: Total Revenue | H163: 1146124.61 | I163: 1265513.67 | J163: 1316665.75 | K163: 1337474.65 | L163: 1226199.94 | M163: 1223772.31 | N163: 1183923.98 | O163: 1154065.6 | P163: 1157994.61 | Q163: 1164851.89 | R163: 1167125.77 | S163: 1113333 | T163: 14457045.78
A164: 164 | D164: # of Customers | H164: 451 | I164: 451 | J164: 451 | K164: 451 | L164: 451 | M164: 451 | N164: 451 | O164: 451 | P164: 451 | Q164: 451 | R164: 451 | S164: 451 | T164: 451
A165: 165 | D165: Total Dth | H165: 2900104 | I165: 3591403 | J165: 3886007 | K165: 4010229 | L165: 3351429 | M165: 3343439 | N165: 3112777 | O165: 2934730 | P165: 2958137 | Q165: 2999540 | R165: 3012247 | S165: 2707778 | T165: 38807820
A166: 166
A167: 167 | C167: TSE | D167: Distribution Non-Gas Rev | H167: 0 | I167: 0 | J167: 0 | K167: 0 | L167: 0 | M167: 0 | N167: 0 | O167: 0 | P167: 0 | Q167: 0 | R167: 0 | S167: 0 | T167: 0
A168: 168 | H168: 0 | I168: 0 | J168: 0 | K168: 0 | L168: 0 | M168: 0 | N168: 0 | O168: 0 | P168: 0 | Q168: 0 | R168: 0 | S168: 0
A169: 169 | D169: Supplier Non-Gas Revenue | H169: 0 | I169: 0 | J169: 0 | K169: 0 | L169: 0 | M169: 0 | N169: 0 | O169: 0 | P169: 0 | Q169: 0 | R169: 0 | S169: 0 | T169: 0
A170: 170 | H170: 0 | I170: 0 | J170: 0 | K170: 0 | L170: 0 | M170: 0 | N170: 0 | O170: 0 | P170: 0 | Q170: 0 | R170: 0 | S170: 0
A171: 171 | D171: Commodity Revenue | H171: 0 | I171: 0 | J171: 0 | K171: 0 | L171: 0 | M171: 0 | N171: 0 | O171: 0 | P171: 0 | Q171: 0 | R171: 0 | S171: 0 | T171: 0
A172: 172 | D172: Total Revenue | H172: 0 | I172: 0 | J172: 0 | K172: 0 | L172: 0 | M172: 0 | N172: 0 | O172: 0 | P172: 0 | Q172: 0 | R172: 0 | S172: 0 | T172: 0
A173: 173 | D173: # of Customers | H173: 0 | I173: 0 | J173: 0 | K173: 0 | L173: 0 | M173: 0 | N173: 0 | O173: 0 | P173: 0 | Q173: 0 | R173: 0 | S173: 0 | T173: 0
A174: 174 | D174: Total Dth | H174: 0 | I174: 0 | J174: 0 | K174: 0 | L174: 0 | M174: 0 | N174: 0 | O174: 0 | P174: 0 | Q174: 0 | R174: 0 | S174: 0 | T174: 0
A175: 175
A176: 176 | C176: FT-2C | D176: Distribution Non-Gas Rev | T176: 0
A177: 177
A178: 178 | D178: Supplier Non-Gas Revenue | T178: 0
A179: 179
A180: 180 | D180: Commodity Revenue | T180: 0
A181: 181 | D181: Total Revenue | T181: 0
A182: 182 | D182: # of Customers | H182: 0 | I182: 0 | J182: 0 | K182: 0 | L182: 0 | M182: 0 | N182: 0 | O182: 0 | P182: 0 | Q182: 0 | R182: 0 | S182: 0 | T182: 0
A183: 183 | D183: Total Dth | T183: 0
A184: 184
A185: 185 | C185: E-1 | D185: Distribution Non-Gas Rev | H185: 0 | I185: 0 | J185: 0 | K185: 0 | L185: 0 | M185: 0 | N185: 0 | O185: 0 | P185: 0 | Q185: 0 | R185: 0 | S185: 0 | T185: 0
A186: 186 | H186: 0 | I186: 0 | J186: 0 | K186: 0 | L186: 0 | M186: 0 | N186: 0 | O186: 0 | P186: 0 | Q186: 0 | R186: 0 | S186: 0
A187: 187 | D187: Supplier Non-Gas Revenue | H187: 0 | I187: 0 | J187: 0 | K187: 0 | L187: 0 | M187: 0 | N187: 0 | O187: 0 | P187: 0 | Q187: 0 | R187: 0 | S187: 0 | T187: 0
A188: 188 | H188: 0 | I188: 0 | J188: 0 | K188: 0 | L188: 0 | M188: 0 | N188: 0 | O188: 0 | P188: 0 | Q188: 0 | R188: 0 | S188: 0
A189: 189 | D189: Commodity Revenue | H189: 0 | I189: 0 | J189: 0 | K189: 0 | L189: 0 | M189: 0 | N189: 0 | O189: 0 | P189: 0 | Q189: 0 | R189: 0 | S189: 0 | T189: 0
A190: 190 | D190: Total Revenue | H190: 0 | I190: 0 | J190: 0 | K190: 0 | L190: 0 | M190: 0 | N190: 0 | O190: 0 | P190: 0 | Q190: 0 | R190: 0 | S190: 0 | T190: 0
A191: 191 | D191: # of Customers | H191: 0 | I191: 0 | J191: 0 | K191: 0 | L191: 0 | M191: 0 | N191: 0 | O191: 0 | P191: 0 | Q191: 0 | R191: 0 | S191: 0 | T191: 0
A192: 192 | D192: Total Dth | H192: 0 | I192: 0 | J192: 0 | K192: 0 | L192: 0 | M192: 0 | N192: 0 | O192: 0 | P192: 0 | Q192: 0 | R192: 0 | S192: 0 | T192: 0
A193: 193
A194: 194 | C194: CET | D194: Distribution Non-Gas Revenue
A195: 195 | C195: DSM | D195: Distribution Non-Gas Rev
A196: 196 | T196: 0
A197: 197 | C197: Utah Totals
A198: 198 | D198: Distribution Non-Gas Rev | H198: 18258168.25 | I198: 33264374.84 | J198: 44906715.96 | K198: 50235483.67 | L198: 44267874.23 | M198: 35089566.63 | N198: 22155841.86 | O198: 16129420.09 | P198: 14038334.52 | Q198: 12864622.53 | R198: 12809187.99 | S198: 14311557.44 | T198: 318331148
A199: 199 | D199: Supplier Non-Gas Revenue | H199: 3683459.71 | I199: 14228093.39 | J199: 21102096.25 | K199: 24245933.13 | L199: 20708506.97 | M199: 15263971.1 | N199: 5133692.47 | O199: 2819351.22 | P199: 2002611.93 | Q199: 1517818.46 | R199: 1486275.54 | S199: 2123457.05 | T199: 114315267.2
A200: 200 | D200: Commodity Revenue | H200: 26950944.15 | I200: 49095344.77 | J200: 72448353.35 | K200: 83129125.07 | L200: 70961482.08 | M200: 52382486.41 | N200: 37356211.48 | O200: 20674885.86 | P200: 14742280.22 | Q200: 11234838.41 | R200: 10924539.89 | S200: 15611163.9 | T200: 465511655.6
A201: 201 | D201: Total Utah Revenue | H201: 48892572.11 | I201: 96587813 | J201: 138457165.6 | K201: 157610541.9 | L201: 135937863.3 | M201: 102736024.1 | N201: 64645745.81 | O201: 39623657.17 | P201: 30783226.67 | Q201: 25617279.4 | R201: 25220003.42 | S201: 32046178.39 | T201: 898158070.8
A202: 202 | D202: # of Customers | H202: 951928 | I202: 954986 | J202: 958530 | K202: 962821 | L202: 964203 | M202: 966446 | N202: 966681 | O202: 967301 | P202: 967557 | Q202: 965932 | R202: 967271 | S202: 968001 | T202: 963471.4167
A203: 203 | D203: Sales Dth | H203: 6310529 | I203: 11495612 | J203: 16963689 | K203: 19464578 | L203: 16615540 | M203: 12265292 | N203: 8746909 | O203: 4840998 | P203: 3451886 | Q203: 2630623 | R203: 2557967 | S203: 3655334 | T203: 108998957
A204: 204 | D204: Transportation Dth | H204: 6518645 | I204: 7407064 | J204: 7487467 | K204: 7902456 | L204: 7042134 | M204: 7289248 | N204: 6527200 | O204: 6216528 | P204: 7048306 | Q204: 7556522 | R204: 7122474 | S204: 6128997 | T204: 84247041
A205: 205 | D205: Total Utah Dth | H205: 12829174 | I205: 18902676 | J205: 24451156 | K205: 27367034 | L205: 23657674 | M205: 19554540 | N205: 15274109 | O205: 11057526 | P205: 10500192 | Q205: 10187145 | R205: 9680441 | S205: 9784331 | T205: 193245998
A206: 206
... 166 more rows
